Workbook

Sheet Export_Results (hidden)
A1: PSAT ANALYSIS RESULTS
B2: Deflection @ Surface | C2: Deflection @ Bottom of Asphalt Layer | D2: Deflection @ Top of Subgrade | E2: Tensile Strain @ Bottom of Asphalt Layer | F2: Tensile Strain @ Bottom of Stabilized Base Layer | G2: Compressive Strain @ Top of Subgrade | H2: Nf | I2: Nr | J2: Damage_Nf | K2: Damage_Nr | L2: RSL_Nf | M2: RSL_Nr
A3: PS-1 | B3: =PSAT!$B$64 -> 0 | C3: =PSAT!$B$65 -> 0 | D3: =PSAT!$B$66 -> 0 | E3: =PSAT!$B$69 -> 0 | F3: =PSAT!$B$70 -> 0 | G3: =PSAT!$C$71 -> 0 | H3: =PSAT!$B$103 -> 0 | I3: =PSAT!$B$107 -> 0 | J3: =PSAT!$B$120 -> 0 | K3: =PSAT!$B$124 -> 0 | L3: =PSAT!$B$129 -> 0 | M3: =PSAT!$B$133 -> 0
A4: PS-2 | B4: =PSAT!$D$64 -> 0 | C4: =PSAT!$D$65 -> 0 | D4: =PSAT!$D$66 -> 0 | E4: =PSAT!$D$69 -> 0 | F4: =PSAT!$D$70 -> 0 | G4: =PSAT!$E$71 -> 0 | H4: =PSAT!$D$103 -> 0 | I4: =PSAT!$D$107 -> 0 | J4: =PSAT!$D$120 -> 0 | K4: =PSAT!$D$124 -> 0 | L4: =PSAT!$D$129 -> 0 | M4: =PSAT!$D$133 -> 0

Sheet SBGB_Strain (hidden)
A1: PAVEMENT SYSTEM- 1
A2: INPUTS (xi) | D2: Transformers | M2: INPUTS (xi) | O2: LAYER 1 (Hidden layer 1) | Y2: LAYER 2 (Hidden layer 2) | AK2: LAYER 1 | FJ2: LAYER 1 | FM2: LAYER 2
A3: Input Parameters | D3: Log+1 for Thck | E3: Transformed | F3: Min-max | G3: Scale (max-min) | H3: Min | I3: Transformed | J3: Standr | K3: Scale (std) | L3: Mean | M3: Transformed | S3: z(2) | V3: a(2) | AC3: z(2) | AF3: a(2) | AK3: Weights_W(1) | FJ3: Biases_b(1) | FM3: Biases_b(2)
A4: HMA1_E | B4: =PSAT!B48 -> 0 | D4: HMA1_E | E4: =B4 -> 0 | F4: HMA1_E | I4: =E4*G4+H4 -> 0 | J4: HMA1_E | K4: 610310.9355 | L4: 1117486.906 | M4: =(E4-L4)/K4 -> -1.831012426 | O4: Weights_W(1)*Inputs_xi | R4: Weights_W(1)*Inputs_xi + b(1) | V4: f(z(2)) (i.e., Trans func (Tanh)) | Y4: Weights_W(1)*Inputs_xi | AB4: Weights_W(1)*Inputs_xi + b(1) | AF4: f(z(2)) (i.e., Trans func (Tanh)) | AJ4: IW | AK4: 1 | AL4: 2 | AM4: 3 | AN4: 4 | AO4: 5 | AP4: 6 | AQ4: 7 | AR4: 8 | AS4: 9 | AT4: 10 | AU4: 11 | AV4: 12 | AW4: 13 | AX4: 14 | AY4: 15 | AZ4: 16 | BA4: 17 | BB4: 18 | BC4: 19 | BD4: 20 | BE4: 21 | BF4: 22 | BG4: 23 | BH4: 24 | BI4: 25 | BJ4: 26 | BK4: 27 | BL4: 28 | BM4: 29 | BN4: 30 | BO4: 31 | BP4: 32 | BQ4: 33 | BR4: 34 | BS4: 35 | BT4: 36 | BU4: 37 | BV4: 38 | BW4: 39 | BX4: 40 | BY4: 41 | BZ4: 42 | CA4: 43 | CB4: 44 | CC4: 45 | CD4: 46 | CE4: 47 | CF4: 48 | CG4: 49 | CH4: 50 | CI4: 51 | CJ4: 52 | CK4: 53 | CL4: 54 | CM4: 55 | CN4: 56 | CO4: 57 | CP4: 58 | CQ4: 59 | CR4: 60 | CS4: 61 | CT4: 62 | CU4: 63 | CV4: 64 | CW4: 65 | CX4: 66 | CY4: 67 | CZ4: 68 | DA4: 69 | DB4: 70 | DC4: 71 | DD4: 72 | DE4: 73 | DF4: 74 | DG4: 75 | DH4: 76 | DI4: 77 | DJ4: 78 | DK4: 79 | DL4: 80 | DM4: 81 | DN4: 82 | DO4: 83 | DP4: 84 | DQ4: 85 | DR4: 86 | DS4: 87 | DT4: 88 | DU4: 89 | DV4: 90 | DW4: 91 | DX4: 92 | DY4: 93 | DZ4: 94 | EA4: 95 | EB4: 96 | EC4: 97 | ED4: 98 | EE4: 99 | EF4: 100 | EG4: 101 | EH4: 102 | EI4: 103 | EJ4: 104 | EK4: 105 | EL4: 106 | EM4: 107 | EN4: 108 | EO4: 109 | EP4: 110 | EQ4: 111 | ER4: 112 | ES4: 113 | ET4: 114 | EU4: 115 | EV4: 116 | EW4: 117 | EX4: 118 | EY4: 119 | EZ4: 120 | FA4: 121 | FB4: 122 | FC4: 123 | FD4: 124 | FE4: 125 | FF4: 126 | FG4: 127 | FH4: 128 | FJ4: B1 | FK4: 1 | FM4: B2 | FN4: 1
A5: HMA1_P | B5: =PSAT!B49 -> 0 | D5: HMA1_P | E5: =B5 -> 0 | F5: HMA2_E | I5: =E5*G17+H17 -> 0 | J5: HMA2_E | K5: 669967.2707 | L5: 1001597.441 | M5: =(E5-L17)/K17 -> -6.063951225 | P5: 1 | S5: 1 | W5: 1 | Z5: 1 | AC5: 1 | AG5: 1 | AH5: TANH | AJ5: 1 | AK5: -0.05179304065 | AL5: 0.1045188532 | AM5: -0.2603311844 | AN5: -0.103037121 | AO5: 0.04760846527 | AP5: -1.896948635 | AQ5: -1.176222534 | AR5: -0.07940077861 | AS5: 0.07670797073 | AT5: -0.6705724849 | AU5: -0.02369308371 | AV5: -0.08264801462 | AW5: 0.04041466557 | AX5: 0.4726878713 | AY5: 0.06044437963 | AZ5: -0.09732283145 | BA5: -0.02672591055 | BB5: -0.08188084487 | BC5: -0.06772659343 | BD5: -0.115817384 | BE5: 0.1223193418 | BF5: 0.002287412124 | BG5: -0.5449150984 | BH5: -0.2746092865 | BI5: 0.9950631609 | BJ5: 0.5962063941 | BK5: -0.4224012285 | BL5: -0.1246246671 | BM5: 0.1142408233 | BN5: 0.02075350558 | BO5: 0.002923095204 | BP5: 0.0400344275 | BQ5: 3.85156154 | BR5: -0.05079086173 | BS5: 0.07712312808 | BT5: 0.1827718152 | BU5: -0.06525226291 | BV5: -0.05312500073 | BW5: -0.1640904998 | BX5: 0.01206420713 | BY5: 0.3143120513 | BZ5: 0.01461129395 | CA5: -0.06148622944 | CB5: -0.02904103286 | CC5: -0.7707468216 | CD5: 0.1170802967 | CE5: 0.1271104094 | CF5: 0.1372087962 | CG5: -0.441759434 | CH5: -0.2936755802 | CI5: -0.3106364409 | CJ5: -0.2389980794 | CK5: 0.3331223726 | CL5: -0.5159349311 | CM5: -0.03531611021 | CN5: 0.02735307427 | CO5: 0.0777689417 | CP5: -0.06780123763 | CQ5: -0.8489404508 | CR5: 0.03758698731 | CS5: 0.04239071399 | CT5: -0.06104054131 | CU5: 0.04309967311 | CV5: -0.02718832723 | CW5: -0.03707778462 | CX5: -0.02520034814 | CY5: -0.03432534253 | CZ5: -0.0475319094 | DA5: 0.0709510042 | DB5: 0.06917021173 | DC5: 0.1107573984 | DD5: 0.03593535408 | DE5: -0.9949124298 | DF5: -0.1836613087 | DG5: 0.09228985548 | DH5: 0.03342856807 | DI5: 0.03405458848 | DJ5: -0.09472625462 | DK5: 0.07329586253 | DL5: 0.2746552678 | DM5: 0.1022904827 | DN5: 0.3979445555 | DO5: 0.260533677 | DP5: 0.005553385259 | DQ5: -0.2423259357 | DR5: 0.3895109774 | DS5: 0.08650442193 | DT5: 0.1309542006 | DU5: -0.05449049835 | DV5: 0.1796338326 | DW5: 0.1630045152 | DX5: 0.05612770358 | DY5: -0.1937194541 | DZ5: -0.1257615439 | EA5: 0.1228972523 | EB5: 0.09755851925 | EC5: -0.06929499939 | ED5: -0.06556471868 | EE5: 0.01631545409 | EF5: -0.04329174466 | EG5: 0.008704296814 | EH5: 0.02743377566 | EI5: 0.05812187975 | EJ5: -0.08749993179 | EK5: 0.1147452563 | EL5: 0.02067453767 | EM5: -0.1762679496 | EN5: -0.05630206535 | EO5: 0.1820538475 | EP5: 0.8928036819 | EQ5: -0.7336212173 | ER5: 0.06316545097 | ES5: 2.666419481 | ET5: 0.2843051323 | EU5: -0.1249130185 | EV5: -0.1018608527 | EW5: 0.01095274731 | EX5: 0.4381319584 | EY5: -0.06755996945 | EZ5: -0.176270818 | FA5: 0.02003325615 | FB5: -0.3802730058 | FC5: 0.1010291957 | FD5: -0.06770543029 | FE5: -0.03328255662 | FF5: -0.08871026749 | FG5: 0.9470850155 | FH5: -0.05290967544 | FJ5: 1 | FK5: 0.4626088106 | FM5: 1 | FN5: -0.006988507685
A6: HMA1_T | B6: =PSAT!B50 -> 0 | D6: HMA1_T | E6: =LN(B6+1) -> 0 | F6: HMA3_E | I6: =E6*G30+H30 -> 0 | J6: HMA3_E | K6: 702996.6118 | L6: 890092.7386 | M6: =(E6-L30)/K30 -> -2.981603799 | O6: 1 | P6: =MMULT(TRANSPOSE(AK5:FH42),M4:M41) -> -2.553776341 | R6: 1 | S6: =FK5:FK132+P6:P133 -> -2.09116753 | V6: 1 | W6: =2/(1+EXP(-2*S6))-1 -> -0.9699332509 | Y6: 1 | Z6: =MMULT(TRANSPOSE(AK46:FH173),W6:W133) -> 2.919831269 | AB6: 1 | AC6: =FN5:FN132+Z6:Z133 -> 2.912842761 | AF6: 1 | AG6: =2/(1+EXP(-2*AC6))-1 -> 0.9941158017 | AH6: =TANH(AC6) -> 0.9941158017 | AJ6: 2 | AK6: 0.02808906929 | AL6: 0.04309704512 | AM6: -0.1295104115 | AN6: -0.004615626313 | AO6: -0.01055386978 | AP6: -0.1018960475 | AQ6: -0.05386004136 | AR6: 0.01009810736 | AS6: 0.03758248765 | AT6: -0.1656468996 | AU6: 0.07139872878 | AV6: -0.04208554962 | AW6: -0.01455186495 | AX6: 0.03733968133 | AY6: -0.01840913545 | AZ6: -0.01134790668 | BA6: -0.05704609867 | BB6: -0.02530426764 | BC6: 0.0003775257204 | BD6: -0.007691399291 | BE6: 0.0642798845 | BF6: 0.001910144601 | BG6: -0.07266567375 | BH6: -0.007723885956 | BI6: 0.09685448488 | BJ6: 0.1254803876 | BK6: -0.07868327039 | BL6: -0.09964889781 | BM6: 0.06246629433 | BN6: -0.008594408148 | BO6: -0.04986693007 | BP6: 0.07570461318 | BQ6: -0.003509564146 | BR6: -0.01274079676 | BS6: 0.07294834355 | BT6: 0.03206187724 | BU6: 0.06460793857 | BV6: -0.01362367829 | BW6: -0.05048753636 | BX6: 0.04114723738 | BY6: 0.1206704006 | BZ6: 0.04712338366 | CA6: -0.02230844552 | CB6: -2.58894651e-05 | CC6: 0.1616779904 | CD6: -0.04575239668 | CE6: 0.1224260437 | CF6: 0.02890571006 | CG6: -0.02889544788 | CH6: 0.07940228905 | CI6: 0.01571115228 | CJ6: -0.002837203511 | CK6: 0.01625373191 | CL6: -0.1255820992 | CM6: 0.1216947116 | CN6: 0.05457891989 | CO6: -0.005684486824 | CP6: -0.02909296699 | CQ6: 0.06800890883 | CR6: -0.01899362569 | CS6: -0.02314205494 | CT6: 0.0217310293 | CU6: 0.006729126875 | CV6: 0.007296969658 | CW6: 0.007082021733 | CX6: -0.04484816871 | CY6: 0.07400432823 | CZ6: 0.01277064615 | DA6: 0.06002491802 | DB6: 0.005304516881 | DC6: -0.02099559344 | DD6: -0.01126064276 | DE6: -0.05395490352 | DF6: -0.002562717699 | DG6: 0.04779932313 | DH6: 0.03846219029 | DI6: -0.02366255995 | DJ6: -0.04331566975 | DK6: -0.06724202448 | DL6: -0.1105032928 | DM6: 0.009976311795 | DN6: 0.04910750035 | DO6: -0.01799457901 | DP6: 0.003628502015 | DQ6: 0.03981508305 | DR6: 0.1197539303 | DS6: -0.01827149796 | DT6: -0.02083686766 | DU6: -0.00631272114 | DV6: 0.1154084588 | DW6: -0.07912622439 | DX6: -0.05180866038 | DY6: -0.07632016745 | DZ6: -0.0115613576 | EA6: -0.02837473393 | EB6: 0.007472781346 | EC6: 0.007314209648 | ED6: 0.027030972 | EE6: 0.03625243357 | EF6: -0.01316924456 | EG6: 0.00406707657 | EH6: 0.02498223555 | EI6: -0.03757106539 | EJ6: -0.01240659306 | EK6: -0.01245068584 | EL6: -0.0002299531923 | EM6: -0.01531365252 | EN6: -0.01057056335 | EO6: 0.06873768295 | EP6: 0.1175433437 | EQ6: -0.03508515516 | ER6: -0.01411036677 | ES6: -0.00868289946 | ET6: 0.02240194733 | EU6: 0.0326803353 | EV6: -0.02474609286 | EW6: 0.08509862763 | EX6: -0.1624469267 | EY6: 0.04019227179 | EZ6: -0.04301933074 | FA6: -0.07945823895 | FB6: -0.0318305929 | FC6: 0.04555544704 | FD6: -0.0310271386 | FE6: 0.05878932754 | FF6: -0.05830623369 | FG6: 0.113295151 | FH6: -0.008633368688 | FJ6: 2 | FK6: 1.50035811 | FM6: 2 | FN6: -0.01648333675
A7: HMA2_E | B7: =PSAT!B45 -> 0 | D7: HMA2_E | E7: =B7 -> 0 | F7: HMA4_E | I7: =E7*G5+H5 -> 0 | J7: HMA4_E | K7: 721881.7193 | L7: 782229.5428 | M7: =(E7-L5)/K5 -> -1.494994584 | O7: 2 | P7: -3.188634699 | R7: 2 | S7: -1.688276589 | V7: 2 | W7: =2/(1+EXP(-2*S7))-1 -> -0.9339273476 | Y7: 2 | Z7: -0.3163763828 | AB7: 2 | AC7: -0.3328597196 | AF7: 2 | AG7: -0.3210880168 | AH7: =TANH(AC7) -> -0.3210880168 | AJ7: 3 | AK7: 0.248479637 | AL7: 0.2611351566 | AM7: -0.3603523673 | AN7: -0.1793757609 | AO7: 0.147856607 | AP7: 0.5606687295 | AQ7: 0.3565968286 | AR7: -0.2517310681 | AS7: 0.8240759855 | AT7: -0.4197668988 | AU7: -0.1679881518 | AV7: -0.1378536797 | AW7: -0.05562329732 | AX7: 0.2449949721 | AY7: 0.05546538385 | AZ7: -0.08025627505 | BA7: 0.02268249286 | BB7: -0.3325085831 | BC7: -0.0193337141 | BD7: -0.04464977075 | BE7: -0.1728774915 | BF7: -0.1698860686 | BG7: -0.5478403654 | BH7: -0.3578672421 | BI7: 0.6008224992 | BJ7: 0.502445396 | BK7: -0.06772422297 | BL7: -0.3815177995 | BM7: 0.2340976511 | BN7: 0.1971288475 | BO7: -0.04379875477 | BP7: 0.2057708816 | BQ7: -0.6118742205 | BR7: 0.1414246571 | BS7: 0.1491465766 | BT7: 0.6371289378 | BU7: -0.3791067253 | BV7: -0.3476889451 | BW7: -0.1638964391 | BX7: 0.01306359923 | BY7: 0.1444323507 | BZ7: -0.7247174452 | CA7: -0.2266340352 | CB7: -0.09904658006 | CC7: -0.1928734364 | CD7: 0.8459593458 | CE7: 0.4078817216 | CF7: 0.3635413741 | CG7: -0.8292464101 | CH7: -0.05670244731 | CI7: -0.8466075174 | CJ7: -0.4721445457 | CK7: 0.4534420533 | CL7: -0.7470135186 | CM7: 0.730184152 | CN7: -0.0425858856 | CO7: 0.1379933982 | CP7: -0.1573361942 | CQ7: 0.2496918 | CR7: -0.4541967473 | CS7: 0.0481983979 | CT7: -0.3156961627 | CU7: 0.05976445999 | CV7: 0.3502411874 | CW7: -0.04300959204 | CX7: -0.04629002425 | CY7: -0.005766108209 | CZ7: -0.3372082142 | DA7: 0.344204094 | DB7: 0.1635652082 | DC7: -0.6256957975 | DD7: 0.08134454089 | DE7: 0.04072943111 | DF7: -0.4746944315 | DG7: 0.03187536677 | DH7: 0.4520673132 | DI7: -0.004253473516 | DJ7: -0.264598913 | DK7: 0.2574375445 | DL7: -0.8268483137 | DM7: -0.02078180284 | DN7: 0.9180794543 | DO7: 0.9518782319 | DP7: 0.191022336 | DQ7: -0.22656863 | DR7: 0.7630017044 | DS7: 1.015778983 | DT7: 0.0917018305 | DU7: -0.1151871608 | DV7: 0.1410777448 | DW7: 0.1808141159 | DX7: 0.0792668575 | DY7: -0.3686117946 | DZ7: -0.3782741407 | EA7: 0.1507386719 | EB7: 0.2314635172 | EC7: -0.0234967868 | ED7: 0.01539185749 | EE7: -0.02800865107 | EF7: -0.003567915755 | EG7: 0.1029285625 | EH7: 0.0488419493 | EI7: -0.2489885746 | EJ7: -0.02626714813 | EK7: 0.06381593361 | EL7: -0.1927696981 | EM7: 0.3034542294 | EN7: -0.1126199532 | EO7: 0.5851088463 | EP7: 0.3223740759 | EQ7: 0.6586118448 | ER7: 0.1006490828 | ES7: 0.3550680746 | ET7: 0.5287301367 | EU7: -0.398804056 | EV7: -0.2029241026 | EW7: -0.3134458127 | EX7: 0.8760617124 | EY7: -0.1625958562 | EZ7: -0.3040751137 | FA7: -0.2507978433 | FB7: 0.1713559138 | FC7: 0.1890182297 | FD7: -0.1543827401 | FE7: -0.04042018921 | FF7: 0.02468337098 | FG7: 1.306777818 | FH7: -0.2530209208 | FJ7: 3 | FK7: 0.3641737095 | FM7: 3 | FN7: 0.02691964399
A8: HMA2_P | B8: =PSAT!B46 -> 0 | D8: HMA2_P | E8: =B8 -> 0 | F8: HMA5_E | I8: =E8*G18+H18 -> 0 | J8: HMA5_E | K8: 724013.0948 | L8: 672172.4858 | M8: =(E8-L18)/K18 -> -2.660439821 | O8: 3 | P8: 1.073021222 | R8: 3 | S8: 1.437194931 | V8: 3 | W8: 0.893131637 | Y8: 3 | Z8: -0.3136063465 | AB8: 3 | AC8: -0.2866867025 | AF8: 3 | AG8: -0.2790824116 | AH8: -0.2790824116 | AJ8: 4 | AK8: 0.08270845579 | AL8: -0.01317173081 | AM8: -0.2621665432 | AN8: -0.2156828515 | AO8: -0.04653695532 | AP8: 0.1999362067 | AQ8: 0.2506859608 | AR8: 0.05547499276 | AS8: 0.009834553044 | AT8: -0.7099290764 | AU8: -0.3003317276 | AV8: -0.007400400099 | AW8: 0.1043106016 | AX8: 0.2565830915 | AY8: 0.08953943276 | AZ8: -0.08667406744 | BA8: 0.3665894728 | BB8: -0.06703470788 | BC8: -0.3249605701 | BD8: 2.656761034 | BE8: -1.032044197 | BF8: 0.02303218252 | BG8: -0.2005730779 | BH8: -0.132576799 | BI8: -0.3050114331 | BJ8: -0.1127975079 | BK8: -0.3005591317 | BL8: 0.0744209861 | BM8: 0.04333044341 | BN8: -0.1834860686 | BO8: 0.02090187904 | BP8: 0.04186923717 | BQ8: 0.008304330825 | BR8: -0.04717377291 | BS8: 0.2069546229 | BT8: 0.2023458282 | BU8: -0.4762221849 | BV8: -1.770363744 | BW8: -1.191336994 | BX8: 0.06841653194 | BY8: 0.1936144709 | BZ8: 0.123410189 | CA8: -0.07999519384 | CB8: 0.1560404096 | CC8: 0.1590896029 | CD8: -0.01623563482 | CE8: -0.02665444524 | CF8: 0.05953822191 | CG8: 0.08881663743 | CH8: -0.1606241057 | CI8: -0.04082639234 | CJ8: -0.1018569656 | CK8: 0.01660806239 | CL8: -0.3742103704 | CM8: 0.3100602932 | CN8: -0.02815491493 | CO8: 0.07203172476 | CP8: -0.09792663992 | CQ8: -0.4517823945 | CR8: -0.6661094429 | CS8: 0.06468018713 | CT8: 0.01615664523 | CU8: 0.02299683531 | CV8: -0.09706201378 | CW8: 0.01698477945 | CX8: -0.07838201195 | CY8: -0.04282468093 | CZ8: -0.1820771127 | DA8: 0.06096804501 | DB8: 0.03297262591 | DC8: 0.08541591911 | DD8: -0.000103174796 | DE8: 0.2643605701 | DF8: 0.2207523462 | DG8: -0.4473592613 | DH8: -0.02517803978 | DI8: 0.08894742783 | DJ8: 0.01850800085 | DK8: -0.005974847706 | DL8: -0.3100879291 | DM8: -0.1307457352 | DN8: -0.1536382956 | DO8: -0.03641202395 | DP8: -0.08890119087 | DQ8: -0.2114422074 | DR8: -0.3232651707 | DS8: 0.9818707012 | DT8: 0.05418974871 | DU8: 0.2975531305 | DV8: 0.1669816034 | DW8: 0.2125601855 | DX8: -0.1139813508 | DY8: -0.09079368992 | DZ8: -0.08713370287 | EA8: 0.2541732398 | EB8: 0.1725484311 | EC8: -0.03774724122 | ED8: 0.03638028041 | EE8: 0.001786502129 | EF8: 0.006290592502 | EG8: 0.02178902689 | EH8: 0.1046002898 | EI8: 0.1545804185 | EJ8: -0.08292379851 | EK8: -0.006619975867 | EL8: 0.002098994365 | EM8: -0.1767825932 | EN8: -0.08986201089 | EO8: -0.3878721903 | EP8: -0.7019446529 | EQ8: -0.5817512248 | ER8: 0.01552727555 | ES8: 0.874239897 | ET8: 0.3102755818 | EU8: 0.2088290829 | EV8: -0.2213754186 | EW8: -0.280065402 | EX8: 0.1104390909 | EY8: 0.02225849181 | EZ8: -0.1168776277 | FA8: 0.1567315927 | FB8: 0.4252609868 | FC8: 0.06198504486 | FD8: 0.009936617672 | FE8: -0.009617008252 | FF8: -0.02917497503 | FG8: 0.5746543802 | FH8: -0.1112100678 | FJ8: 4 | FK8: 0.2299472753 | FM8: 4 | FN8: -0.1064329137
A9: HMA2_T | B9: =PSAT!B47 -> 0 | D9: HMA2_T | E9: =LN(B9+1) -> 0 | F9: HMA6_E | I9: =E9*G31+H31 -> 0 | J9: HMA6_E | K9: 705153.8537 | L9: 558023.1214 | M9: =(E9-L31)/K31 -> -2.062656718 | O9: 4 | P9: -0.02899445074 | R9: 4 | S9: 0.2009528246 | V9: 4 | W9: 0.1982908532 | Y9: 4 | Z9: 0.0440838876 | AB9: 4 | AC9: -0.0623490261 | AF9: 4 | AG9: -0.06226835964 | AH9: -0.06226835964 | AJ9: 5 | AK9: -0.01739943955 | AL9: -0.03374385448 | AM9: 0.3249509245 | AN9: -0.09177523952 | AO9: -0.02475702065 | AP9: 0.1036714091 | AQ9: -0.08514092737 | AR9: -0.07566863918 | AS9: 0.1052751702 | AT9: 0.1362724585 | AU9: 0.1169713212 | AV9: 0.08811531028 | AW9: -0.0813440332 | AX9: -0.08268249777 | AY9: -0.1949706789 | AZ9: -0.07610782526 | BA9: 0.2366660729 | BB9: 0.01682339388 | BC9: 0.1170519456 | BD9: -0.1317214958 | BE9: 0.271333742 | BF9: 0.07557541758 | BG9: 0.183317288 | BH9: 0.05429830571 | BI9: -0.1166593791 | BJ9: 0.01859355428 | BK9: -0.0466090205 | BL9: -0.007943492487 | BM9: -0.004357910816 | BN9: -0.1423003756 | BO9: -0.09365031126 | BP9: -0.1271188505 | BQ9: -0.0235204663 | BR9: -0.04724846489 | BS9: -0.04490193293 | BT9: -0.2187698067 | BU9: 0.1627684337 | BV9: -0.0309579365 | BW9: 0.03526170376 | BX9: -0.09343934224 | BY9: -0.05404565269 | BZ9: 0.02202105027 | CA9: 0.1782755903 | CB9: -0.02163433394 | CC9: -0.04873582459 | CD9: 0.08647211551 | CE9: 0.07474448858 | CF9: -0.05436812139 | CG9: 0.2696558399 | CH9: -0.1338868709 | CI9: 0.01106264298 | CJ9: -0.3150367685 | CK9: -0.1188717791 | CL9: 0.03180732402 | CM9: 0.005427811531 | CN9: 0.02903040115 | CO9: -0.05502443322 | CP9: -0.1206720201 | CQ9: -0.1452070244 | CR9: 0.1303423127 | CS9: -0.01186590082 | CT9: 0.01697407421 | CU9: 0.01754951718 | CV9: -0.06579258184 | CW9: -0.04732674367 | CX9: -0.007779860423 | CY9: -0.0002552961942 | CZ9: 0.1380140943 | DA9: 0.02792930687 | DB9: -0.04913943569 | DC9: -0.05069805109 | DD9: -0.02700115341 | DE9: 0.07413589821 | DF9: 0.2344498879 | DG9: 0.2777395085 | DH9: -0.1392223885 | DI9: -0.0912788497 | DJ9: -0.06937195114 | DK9: 0.04996033616 | DL9: -0.2072454709 | DM9: -0.2368271602 | DN9: -0.2300840415 | DO9: -0.03751857712 | DP9: 0.02317206418 | DQ9: 0.1356477769 | DR9: 0.02899567557 | DS9: 0.05824597842 | DT9: 0.01850962555 | DU9: 0.5554001968 | DV9: -0.174016844 | DW9: -0.1255816459 | DX9: 0.009401601871 | DY9: 0.0145914835 | DZ9: 0.03951794807 | EA9: -0.1336738047 | EB9: 0.02411788865 | EC9: 0.02444402463 | ED9: 0.009279647779 | EE9: 0.02315025922 | EF9: 0.157162137 | EG9: -0.08205519114 | EH9: 0.03079830434 | EI9: -0.1928512248 | EJ9: 0.0406011346 | EK9: -0.1086012389 | EL9: 0.000401437398 | EM9: 0.130458291 | EN9: 0.0509306472 | EO9: -0.2593775752 | EP9: 0.08954258112 | EQ9: 0.008198882886 | ER9: 0.03898939127 | ES9: 0.3134106089 | ET9: -0.3456815122 | EU9: -0.1996207732 | EV9: 0.1310976837 | EW9: 0.06382325842 | EX9: -0.02710714223 | EY9: -0.06340680303 | EZ9: 0.03717368062 | FA9: 0.09599567627 | FB9: 0.1848301196 | FC9: -0.02771567985 | FD9: -0.03441453767 | FE9: -0.02005460009 | FF9: -0.03700314612 | FG9: -0.041691079 | FH9: -0.0222857441 | FJ9: 5 | FK9: 0.226700074 | FM9: 5 | FN9: 0.5116849217
A10: HMA3_E | B10: =PSAT!B42 -> 0 | D10: HMA3_E | E10: =B10 -> 0 | F10: HMA7_E | I10: =E10*G6+H6 -> 0 | J10: HMA7_E | K10: 671742.6588 | L10: 448757.3306 | M10: =(E10-L6)/K6 -> -1.266140866 | O10: 5 | P10: 1.499161265 | R10: 5 | S10: 1.725861339 | V10: 5 | W10: 0.9385649462 | Y10: 5 | Z10: -3.893433725 | AB10: 5 | AC10: -3.381748803 | AF10: 5 | AG10: -0.9976923024 | AH10: -0.9976923024 | AJ10: 6 | AK10: 0.1063942279 | AL10: 0.03470909059 | AM10: -0.02286253792 | AN10: -0.1849122179 | AO10: 0.06627675907 | AP10: -0.09256518903 | AQ10: -0.1953609636 | AR10: -0.0933943039 | AS10: -0.04350574544 | AT10: -0.1673063801 | AU10: -0.2393742541 | AV10: -0.1299011213 | AW10: -0.1383978432 | AX10: 0.1966044754 | AY10: 0.1025840107 | AZ10: -0.0877928769 | BA10: 0.06423125105 | BB10: -0.3287429835 | BC10: 0.04220047603 | BD10: -0.4537895524 | BE10: 0.2723778685 | BF10: -0.07790371489 | BG10: -0.1575701086 | BH10: -0.1299027351 | BI10: -0.4406571036 | BJ10: 0.1532382075 | BK10: 0.06517908372 | BL10: -0.1233187195 | BM10: 0.1409001296 | BN10: -1.095527865 | BO10: 0.000295733904 | BP10: 0.07854302305 | BQ10: 0.2664473573 | BR10: 0.1908201633 | BS10: 0.1394827443 | BT10: 0.7140688674 | BU10: -0.1139904297 | BV10: 0.09903164945 | BW10: 0.2996449936 | BX10: 0.06251537315 | BY10: 0.01540133831 | BZ10: -0.6034958264 | CA10: -0.08581250248 | CB10: -0.1331561013 | CC10: -0.1664182748 | CD10: -0.2709930484 | CE10: 0.1269457213 | CF10: 0.1935621757 | CG10: -0.1430763858 | CH10: -0.01301059975 | CI10: -0.6771371966 | CJ10: -0.09602478465 | CK10: 0.2729733759 | CL10: -0.242400214 | CM10: 0.3337124454 | CN10: -0.2106868863 | CO10: 0.0581019047 | CP10: -0.3072379212 | CQ10: 0.1903184752 | CR10: -0.04810511753 | CS10: 0.05052576499 | CT10: -0.1690887935 | CU10: 0.02732807833 | CV10: 0.3122654187 | CW10: 0.0004018429274 | CX10: 0.03091190788 | CY10: 0.05414752246 | CZ10: -0.02125529244 | DA10: 0.3092386487 | DB10: 0.1695053972 | DC10: -0.3383224402 | DD10: 0.09541319733 | DE10: -0.6122388816 | DF10: 0.5466922227 | DG10: 0.5636390409 | DH10: 0.4632768012 | DI10: 0.07927163105 | DJ10: -0.1846300424 | DK10: -0.07989950539 | DL10: -0.5842808698 | DM10: -0.09531591191 | DN10: 1.103420571 | DO10: 0.1652893543 | DP10: 0.1727416373 | DQ10: 0.1879329242 | DR10: -0.6607222876 | DS10: 0.05881757318 | DT10: 0.08111158627 | DU10: 0.9519620156 | DV10: -0.1154761676 | DW10: 0.1786074121 | DX10: 0.2252791515 | DY10: -0.3180287849 | DZ10: -0.2503055875 | EA10: 0.1856893509 | EB10: 0.1031540825 | EC10: -0.1756525569 | ED10: 0.09505724007 | EE10: 0.04026238483 | EF10: -0.2836210623 | EG10: 0.2026035925 | EH10: 0.08800232108 | EI10: -0.1688258891 | EJ10: -0.0279153717 | EK10: 0.06685205242 | EL10: -0.04029816623 | EM10: 0.302592208 | EN10: -0.07928124734 | EO10: -0.9383520404 | EP10: 0.1927747763 | EQ10: 0.54307706 | ER10: -0.1697378924 | ES10: 0.1912209183 | ET10: 0.4453251889 | EU10: 0.3483819773 | EV10: -0.09578211044 | EW10: -0.2073244345 | EX10: 0.5609835847 | EY10: -0.0272526188 | EZ10: -0.2383433611 | FA10: -0.3059140911 | FB10: 0.2689354908 | FC10: 0.1059057496 | FD10: 0.003719681822 | FE10: -0.1109076439 | FF10: -0.008319335713 | FG10: 0.6196244696 | FH10: -0.1438288265 | FJ10: 6 | FK10: -0.4728774433 | FM10: 6 | FN10: 0.8034729562
A11: HMA3_P | B11: =PSAT!B43 -> 0 | D11: HMA3_P | E11: =B11 -> 0 | F11: HMA8_E | I11: =E11*G19+H19 -> 0 | J11: HMA8_E | K11: 614680.0474 | L11: 337428.6689 | M11: =(E11-L19)/K19 -> -1.876727847 | O11: 6 | P11: 0.4015650934 | R11: 6 | S11: -0.0713123499 | V11: 6 | W11: -0.07119171013 | Y11: 6 | Z11: -6.086864883 | AB11: 6 | AC11: -5.283391927 | AF11: 6 | AG11: -0.9999484863 | AH11: -0.9999484863 | AJ11: 7 | AK11: -0.0721051857 | AL11: -0.09871778975 | AM11: -0.1471042869 | AN11: 0.4131367791 | AO11: 0.1870301993 | AP11: -0.09246448159 | AQ11: 0.03571574017 | AR11: -0.0599806094 | AS11: -0.004233228025 | AT11: -0.4016011647 | AU11: 0.2078933666 | AV11: -0.03468714691 | AW11: -0.3154382715 | AX11: 0.07379381838 | AY11: 0.2068675259 | AZ11: 2.199912138 | BA11: -0.2664534034 | BB11: 0.008522844535 | BC11: -0.003941415053 | BD11: -0.2430354037 | BE11: -0.2165441995 | BF11: -0.01872972665 | BG11: -0.9656747187 | BH11: -0.1005517542 | BI11: -0.2305775088 | BJ11: 0.2045669846 | BK11: -0.1966677566 | BL11: -0.01985179157 | BM11: 0.1330913776 | BN11: -0.03089792222 | BO11: -0.02630134399 | BP11: 0.08288871343 | BQ11: 0.01384822909 | BR11: -0.07314350651 | BS11: 0.3510331141 | BT11: -0.07295829665 | BU11: -0.1952269955 | BV11: 1.40205852 | BW11: 0.169921354 | BX11: -0.1215146229 | BY11: 0.0275825549 | BZ11: -0.1122759287 | CA11: -0.02448113759 | CB11: -0.7887010249 | CC11: 0.1469754615 | CD11: -0.07745334255 | CE11: 0.1462968631 | CF11: -0.105416035 | CG11: 0.07884279849 | CH11: -0.2700645037 | CI11: -0.2959732594 | CJ11: -0.09865563801 | CK11: -0.04599753263 | CL11: -0.2197300883 | CM11: 0.3325940315 | CN11: 0.04901533512 | CO11: -0.05861537934 | CP11: -0.05592277748 | CQ11: 0.03743895942 | CR11: 0.1529328488 | CS11: 0.03852202371 | CT11: 0.06222853638 | CU11: 0.02966931697 | CV11: 0.03891275109 | CW11: 0.05689015756 | CX11: -0.5374448248 | CY11: 0.1109180477 | CZ11: -0.1700442647 | DA11: -0.1797700433 | DB11: -0.04886712275 | DC11: 0.05604265703 | DD11: -0.006456159882 | DE11: -0.549690246 | DF11: 0.101095064 | DG11: -0.137713555 | DH11: -0.02247126303 | DI11: -0.02324787341 | DJ11: 0.2722150365 | DK11: -0.002914259632 | DL11: -0.5272001206 | DM11: 0.05714102242 | DN11: -0.1937960398 | DO11: 0.04352273258 | DP11: -0.08671296226 | DQ11: -0.09806116317 | DR11: 0.1236527049 | DS11: 0.0446486273 | DT11: 0.4500848071 | DU11: 0.8633372352 | DV11: 0.03944109977 | DW11: -0.5454221472 | DX11: 0.1314613264 | DY11: -0.04184727321 | DZ11: -0.04949943864 | EA11: -0.02369353257 | EB11: 0.2354272444 | EC11: -0.06014694988 | ED11: -0.08603210812 | EE11: 0.01647948199 | EF11: 0.1570393507 | EG11: -0.1693931038 | EH11: 0.02482771357 | EI11: -0.1425344192 | EJ11: 0.1134849783 | EK11: -0.1328407446 | EL11: -0.06294681775 | EM11: -0.001412102346 | EN11: -0.03834643382 | EO11: -0.3106270294 | EP11: 0.03551160591 | EQ11: 0.4553252613 | ER11: -0.06534370916 | ES11: 0.2728496217 | ET11: 0.1805784145 | EU11: 0.2256211953 | EV11: -0.2623370717 | EW11: 0.2092760433 | EX11: 0.2175760182 | EY11: 0.02812154544 | EZ11: 0.1042935035 | FA11: 0.5228521017 | FB11: -0.03736412597 | FC11: 0.01679092083 | FD11: -0.2038696096 | FE11: -0.08024411741 | FF11: -0.04980598446 | FG11: 0.3455376194 | FH11: -0.1283616182 | FJ11: 7 | FK11: -1.346511561 | FM11: 7 | FN11: 1.021436328
A12: HMA3_T | B12: =PSAT!B44 -> 0 | D12: HMA3_T | E12: =LN(B12+1) -> 0 | F12: HMA9_E | I12: =E12*G32+H32 -> 0 | J12: HMA9_E | K12: 524707.6283 | L12: 224287.5073 | M12: =(E12-L32)/K32 -> -1.598665607 | O12: 7 | P12: 0.2176102843 | R12: 7 | S12: -1.128901277 | V12: 7 | W12: -0.8106428914 | Y12: 7 | Z12: -7.15035704 | AB12: 7 | AC12: -6.128920712 | AF12: 7 | AG12: -0.9999905046 | AH12: -0.9999905046 | AJ12: 8 | AK12: 0.03577149029 | AL12: -0.05624083747 | AM12: 0.1593676852 | AN12: 0.1882067076 | AO12: -0.04882939678 | AP12: 0.08321983223 | AQ12: 0.01680054159 | AR12: 0.138010981 | AS12: 0.26302653 | AT12: 0.5127188279 | AU12: 0.2119535545 | AV12: 0.0369941474 | AW12: -0.7456025815 | AX12: -0.1339618055 | AY12: 0.0173107679 | AZ12: -0.2583254418 | BA12: 0.05474398521 | BB12: 0.04203601967 | BC12: -0.03473896204 | BD12: -0.01576718786 | BE12: -0.135455474 | BF12: 0.1280932573 | BG12: 0.07904312989 | BH12: 0.001333411985 | BI12: 0.2314696871 | BJ12: 0.08452547886 | BK12: -0.04749040966 | BL12: -0.03188235285 | BM12: -0.1082435491 | BN12: -0.02191510424 | BO12: 0.09687844472 | BP12: 0.02743668394 | BQ12: -0.1741814104 | BR12: -0.01431620461 | BS12: -0.1657237972 | BT12: -0.1023311264 | BU12: 0.1084558619 | BV12: -0.1972621719 | BW12: -0.1612472614 | BX12: -0.03815191302 | BY12: 0.02530911565 | BZ12: 0.2194789589 | CA12: -0.03916589179 | CB12: 0.1920786942 | CC12: -0.1527850813 | CD12: 0.02706166947 | CE12: -0.002452959654 | CF12: -0.1133235547 | CG12: -0.03921172327 | CH12: 0.2664016482 | CI12: -0.6256444936 | CJ12: 0.02280366073 | CK12: -0.2637626919 | CL12: 0.1832922278 | CM12: -0.01722657944 | CN12: 0.00674512537 | CO12: -0.04275075398 | CP12: -0.0947883177 | CQ12: -0.1672749121 | CR12: -0.2096633822 | CS12: -0.05424771249 | CT12: -0.02790910458 | CU12: -0.01292315835 | CV12: -0.0442860533 | CW12: -0.03374930213 | CX12: -0.1210592972 | CY12: -0.01234840825 | CZ12: 0.323114204 | DA12: -0.08508360619 | DB12: -0.07146798998 | DC12: 0.03872619316 | DD12: 0.01170468649 | DE12: 0.2286658743 | DF12: 0.01280402651 | DG12: 0.137793269 | DH12: -0.1465214515 | DI12: 0.08651617057 | DJ12: -0.1553263326 | DK12: 0.04479219268 | DL12: 0.03541739798 | DM12: -0.06239303099 | DN12: -0.008990198199 | DO12: 0.1334553472 | DP12: 0.01645478722 | DQ12: -0.1804621492 | DR12: -0.0400296393 | DS12: 0.2329038461 | DT12: 0.09100685404 | DU12: 0.1793071819 | DV12: 0.06349174272 | DW12: -0.133160983 | DX12: -0.05304272344 | DY12: 0.0357158448 | DZ12: -0.02055349591 | EA12: -0.06066672938 | EB12: -0.1468592559 | EC12: 0.1197849044 | ED12: -0.04640324831 | EE12: -0.0679737553 | EF12: -0.1263742032 | EG12: -0.1157442955 | EH12: -0.0724816954 | EI12: 0.1745202332 | EJ12: -0.08645062277 | EK12: 0.07631934237 | EL12: 0.1524483183 | EM12: 0.1304886494 | EN12: 0.1740316698 | EO12: 0.1640910288 | EP12: -0.08017601313 | EQ12: -0.2216311606 | ER12: -0.08377003486 | ES12: 0.04541126307 | ET12: -0.1602581531 | EU12: -0.1909042634 | EV12: 0.03511238701 | EW12: 0.3231777086 | EX12: -0.2407951313 | EY12: -0.2411892791 | EZ12: 0.06376453721 | FA12: -0.19580657 | FB12: 0.03892037085 | FC12: -0.03606455877 | FD12: 0.05385541526 | FE12: 0.1431758827 | FF12: 0.167673488 | FG12: 0.2493765763 | FH12: 0.177573164 | FJ12: 8 | FK12: -0.2026282093 | FM12: 8 | FN12: -0.5432763068
A13: HMA4_E | B13: =PSAT!B39 -> 0 | D13: HMA4_E | E13: =B13 -> 0 | F13: HMA10_E | I13: =E13*G7+H7 -> 0 | J13: HMA10_E | K13: 386895.5653 | L13: 111749.0916 | M13: =(E13-L7)/K7 -> -1.083597938 | O13: 8 | P13: 2.00573309 | R13: 8 | S13: 1.803104881 | V13: 8 | W13: 0.9471266058 | Y13: 8 | Z13: 2.562025757 | AB13: 8 | AC13: 2.018749451 | AF13: 8 | AG13: 0.9653285763 | AH13: 0.9653285763 | AJ13: 9 | AK13: 0.1349354518 | AL13: -0.09852141736 | AM13: -0.1287192608 | AN13: -0.08319931173 | AO13: 0.3791486194 | AP13: -0.1071398668 | AQ13: -0.1987889421 | AR13: -0.2285805758 | AS13: -0.2666953194 | AT13: -0.2336496861 | AU13: 0.5049839047 | AV13: -0.2195796784 | AW13: -0.5143421606 | AX13: -0.1405393058 | AY13: -0.03319349592 | AZ13: -0.3517726287 | BA13: -0.2978352864 | BB13: -0.3229940952 | BC13: -0.1832760237 | BD13: 0.2436335617 | BE13: 0.06842499775 | BF13: -0.07747841358 | BG13: -0.016280859 | BH13: -0.1727459345 | BI13: 0.7289202584 | BJ13: 0.09945271304 | BK13: 0.03935300672 | BL13: 0.1191184818 | BM13: 0.3157158784 | BN13: 0.126304916 | BO13: -0.2075143841 | BP13: 0.314396319 | BQ13: 0.2256993648 | BR13: 0.1267410413 | BS13: 0.04096335673 | BT13: 0.4902550587 | BU13: -0.04992298341 | BV13: -0.1284156583 | BW13: -0.4766636795 | BX13: 0.03962479983 | BY13: 0.237447538 | BZ13: -0.3967848752 | CA13: -0.2026072814 | CB13: 0.237232679 | CC13: -0.2239111111 | CD13: -0.2691903662 | CE13: 0.1004653968 | CF13: 0.4903360019 | CG13: -0.1328091942 | CH13: -0.04447535597 | CI13: -0.4059669269 | CJ13: 0.1416340716 | CK13: -0.02689265642 | CL13: 0.1371575522 | CM13: 0.193510937 | CN13: -0.1004168251 | CO13: 0.1667674206 | CP13: -0.306665674 | CQ13: -0.07115339357 | CR13: -0.2861177868 | CS13: 0.1203687509 | CT13: -0.09180561951 | CU13: 0.05967495926 | CV13: 0.130342693 | CW13: -0.09898758395 | CX13: 0.1016510205 | CY13: -0.00521063262 | CZ13: 0.03932621482 | DA13: -0.9069560243 | DB13: 0.162766409 | DC13: -0.1421045871 | DD13: 0.07745532012 | DE13: -0.0555774931 | DF13: 0.3687755764 | DG13: 0.6371686002 | DH13: 0.4389318436 | DI13: 0.08803502356 | DJ13: -0.2113424963 | DK13: -0.1485717772 | DL13: -0.1200304194 | DM13: -0.03729547167 | DN13: 0.8106361204 | DO13: -0.1396258427 | DP13: 0.1130219814 | DQ13: 0.1309760884 | DR13: 0.5490792455 | DS13: 0.4570117813 | DT13: -0.0422421175 | DU13: 0.07308917566 | DV13: -0.1930751328 | DW13: -0.7602564366 | DX13: 0.2025793356 | DY13: -0.3356165598 | DZ13: -0.2958231796 | EA13: 0.1351549552 | EB13: -0.003002012074 | EC13: -0.2702853 | ED13: -0.3173424748 | EE13: 0.03169629349 | EF13: 0.4493859996 | EG13: -0.8806882876 | EH13: 0.05480894789 | EI13: -0.08333118634 | EJ13: 0.08565056842 | EK13: 0.1185249162 | EL13: -0.3213630149 | EM13: 0.2784213327 | EN13: -0.1916781483 | EO13: -0.6383267252 | EP13: 0.07895521227 | EQ13: 0.1082900121 | ER13: -0.09809960553 | ES13: 0.3990991521 | ET13: 0.1835959052 | EU13: 0.3434789271 | EV13: 0.0006370030173 | EW13: -0.1216323647 | EX13: 0.09259240457 | EY13: 0.01460980779 | EZ13: -0.3632334294 | FA13: -0.2749187701 | FB13: 0.1968125393 | FC13: 0.2035614089 | FD13: -0.1269883098 | FE13: 0.02185510388 | FF13: 0.04135057605 | FG13: 0.3915625554 | FH13: -0.1159272433 | FJ13: 9 | FK13: -0.1864822683 | FM13: 9 | FN13: 0.05773706004
A14: HMA4_P | B14: =PSAT!B40 -> 0 | D14: HMA4_P | E14: =B14 -> 0 | F14: SB_E | I14: =E14*G20+H20 -> 0 | J14: SB_E | K14: 610035.7389 | L14: 1117592.978 | M14: =(E14-L20)/K20 -> -1.462165849 | O14: 9 | P14: -0.9815364926 | R14: 9 | S14: -1.168018761 | V14: 9 | W14: -0.8236359958 | Y14: 9 | Z14: 0.5470960324 | AB14: 9 | AC14: 0.6048330925 | AF14: 9 | AG14: 0.540479758 | AH14: 0.540479758 | AJ14: 10 | AK14: 0.2275296288 | AL14: -0.03338641453 | AM14: -0.1791147112 | AN14: -0.2094733219 | AO14: 0.09847512901 | AP14: 0.01753870748 | AQ14: -0.03593303301 | AR14: -0.01192749167 | AS14: 0.1455381513 | AT14: 0.02932110955 | AU14: -0.2250257119 | AV14: -0.1122365279 | AW14: -0.8188772423 | AX14: 0.1846904577 | AY14: -0.065759794 | AZ14: -0.2423329905 | BA14: 0.05106044406 | BB14: -0.1168182627 | BC14: 0.2482808513 | BD14: -0.01154584034 | BE14: -0.1289396727 | BF14: -0.08396411805 | BG14: 0.335202326 | BH14: 0.1001530174 | BI14: -0.2102264871 | BJ14: 0.4000249879 | BK14: -0.09999331337 | BL14: 0.03910632638 | BM14: 0.1252758277 | BN14: -0.07084879289 | BO14: -0.1416257075 | BP14: -0.07174211795 | BQ14: 0.05626296625 | BR14: -0.4138649925 | BS14: 0.1141127587 | BT14: 0.01624038914 | BU14: -0.0933430038 | BV14: -0.1527048523 | BW14: 0.2788930124 | BX14: -0.003598663321 | BY14: -0.01545304737 | BZ14: -0.09355949611 | CA14: 0.2115508193 | CB14: 0.06885364397 | CC14: 0.0214953917 | CD14: -0.09215773777 | CE14: -0.2145529769 | CF14: 0.3064772982 | CG14: 0.2041073421 | CH14: -0.01318257202 | CI14: -0.1452404512 | CJ14: -0.210951719 | CK14: -0.2907315852 | CL14: 0.0609510305 | CM14: -0.1655994955 | CN14: 0.09209109651 | CO14: 0.07996880087 | CP14: -0.0250182789 | CQ14: 0.03771969919 | CR14: -0.1617217056 | CS14: 0.01146422893 | CT14: -0.1047621957 | CU14: 0.02841954247 | CV14: 0.03443173343 | CW14: 0.07789074819 | CX14: 1.324311117 | CY14: 0.1480841206 | CZ14: -0.6096938491 | DA14: 0.1612371761 | DB14: -0.04075536165 | DC14: 0.004581655006 | DD14: -0.002136544568 | DE14: -0.2851388705 | DF14: -0.230387155 | DG14: 0.2161684225 | DH14: -0.1082816596 | DI14: -0.07750176683 | DJ14: 0.3163867382 | DK14: -0.1092167785 | DL14: 0.5041033817 | DM14: -0.08042909178 | DN14: 0.1790941996 | DO14: -0.05056486874 | DP14: -0.05124236048 | DQ14: 0.1164234975 | DR14: -0.2631987163 | DS14: -0.1135034054 | DT14: -0.965143299 | DU14: -0.08897364804 | DV14: -0.4080807545 | DW14: -0.2432857285 | DX14: 0.1994832079 | DY14: 0.1480136551 | DZ14: 0.2638257226 | EA14: 0.07869553936 | EB14: 1.071731796 | EC14: 0.009713707124 | ED14: -1.219861938 | EE14: 0.161225039 | EF14: 0.1156399329 | EG14: -0.07192575547 | EH14: 0.1865700689 | EI14: -0.04734912726 | EJ14: 0.04907163152 | EK14: -0.1065523298 | EL14: 0.01765003238 | EM14: -0.05089340844 | EN14: 0.03512974902 | EO14: 0.001777862134 | EP14: 0.4801915287 | EQ14: 0.1374584714 | ER14: -0.0002725846454 | ES14: -0.1226785718 | ET14: 0.3481666137 | EU14: 0.1583789937 | EV14: -0.4704361573 | EW14: -0.2006013162 | EX14: 0.4165882033 | EY14: 0.1775465853 | EZ14: 0.1869199544 | FA14: -0.7109539384 | FB14: 0.04528863198 | FC14: 0.1013547806 | FD14: -0.05364005518 | FE14: -0.07918464245 | FF14: -0.1608804232 | FG14: -0.1163097665 | FH14: -0.1682510914 | FJ14: 10 | FK14: -0.4117341677 | FM14: 10 | FN14: -0.1183280277
A15: HMA4_T | B15: =PSAT!B41 -> 0 | D15: HMA4_T | E15: =LN(B15+1) -> 0 | F15: GB_E | I15: =E15*G33+H33 -> 0 | J15: GB_E | K15: 54808.51739 | L15: 105257.2673 | M15: =(E15-L33)/K33 -> -1.304171397 | O15: 10 | P15: 3.116870371 | R15: 10 | S15: 2.705136203 | V15: 10 | W15: 0.9910989469 | Y15: 10 | Z15: 0.07827629041 | AB15: 10 | AC15: -0.04005173733 | AF15: 10 | AG15: -0.04003033484 | AH15: -0.04003033484 | AJ15: 11 | AK15: 0.1127458353 | AL15: -0.01056469272 | AM15: 0.2680751126 | AN15: -0.2236825351 | AO15: -0.09235157835 | AP15: -0.1525585609 | AQ15: 0.1296462323 | AR15: -0.01463684744 | AS15: -0.1503167048 | AT15: 0.8845972755 | AU15: -0.3402344576 | AV15: 0.1780424559 | AW15: 0.1433144027 | AX15: 0.1788752386 | AY15: -0.3169629642 | AZ15: 0.07809811546 | BA15: 0.04746025301 | BB15: 0.09087939411 | BC15: -0.04105744452 | BD15: -0.0291187272 | BE15: -0.05781341881 | BF15: -0.0009208257143 | BG15: 0.035807782 | BH15: -0.08518508724 | BI15: -0.06811857251 | BJ15: 0.06395294213 | BK15: -0.1064499683 | BL15: -0.04885073286 | BM15: -0.2220193335 | BN15: 0.1004964418 | BO15: -0.1592909159 | BP15: -0.1941517501 | BQ15: 0.04002789505 | BR15: 0.1515413391 | BS15: -0.1545247465 | BT15: 0.1683041257 | BU15: 0.1413035783 | BV15: 0.5343908429 | BW15: -0.1176136667 | BX15: 0.05680849876 | BY15: -0.04122080428 | BZ15: 0.2864227997 | CA15: 0.02071234628 | CB15: -0.1026409378 | CC15: 0.07861477325 | CD15: -0.02725652376 | CE15: -0.107633672 | CF15: -0.2351980066 | CG15: -0.1189254338 | CH15: -0.06015394589 | CI15: -0.4969022616 | CJ15: -0.2369797568 | CK15: -0.2689817602 | CL15: 0.5782804452 | CM15: 0.02401321444 | CN15: 0.05068734065 | CO15: -0.07583360876 | CP15: 0.0009460892664 | CQ15: -0.03284330678 | CR15: 0.06256691613 | CS15: -0.02585366266 | CT15: -0.02220887723 | CU15: -0.050244594 | CV15: -0.1040927396 | CW15: -0.0005392322157 | CX15: -0.1038613115 | CY15: -0.0809683447 | CZ15: 0.09503486624 | DA15: -0.1938381715 | DB15: 0.08770729984 | DC15: -0.1299590701 | DD15: 0.009692866409 | DE15: 0.1212491362 | DF15: -0.419591314 | DG15: -0.06609545924 | DH15: 0.04989902385 | DI15: -0.03335993889 | DJ15: -0.3698505778 | DK15: -0.02425327245 | DL15: 0.4072348104 | DM15: 0.1042335955 | DN15: 0.2261158934 | DO15: -0.1522938729 | DP15: -0.02146102743 | DQ15: 0.1422980187 | DR15: -0.02001933441 | DS15: 0.03491261169 | DT15: 0.02610000862 | DU15: 0.03501668928 | DV15: -0.150386328 | DW15: 0.3351803587 | DX15: -0.1005920134 | DY15: 0.01726488473 | DZ15: -0.1724792325 | EA15: -0.05294883956 | EB15: -0.1259037557 | EC15: 0.01357316742 | ED15: -0.03179752022 | EE15: 0.1292659515 | EF15: -0.08904630025 | EG15: 0.1577460889 | EH15: -0.1249282079 | EI15: 0.003761194233 | EJ15: 0.01026867266 | EK15: 0.03792655155 | EL15: -0.0333742409 | EM15: -0.05501471444 | EN15: 0.02447541928 | EO15: 0.06447783138 | EP15: -0.2184998463 | EQ15: -0.155083589 | ER15: -0.02490444276 | ES15: -0.02674358002 | ET15: -0.187740939 | EU15: -0.2997752868 | EV15: 0.2196670732 | EW15: 0.3988116551 | EX15: 0.041144948 | EY15: 0.0407169161 | EZ15: 0.190265305 | FA15: -0.2166263482 | FB15: -0.02259851335 | FC15: -0.05942651383 | FD15: 0.03098666625 | FE15: -0.06505679313 | FF15: 0.3585121468 | FG15: -0.05007392763 | FH15: 0.0686410575 | FJ15: 11 | FK15: -0.748265227 | FM15: 11 | FN15: -0.1246140137
A16: HMA5_E | B16: =PSAT!B36 -> 0 | D16: HMA5_E | E16: =B16 -> 0 | F16: SUBG_E | I16: =E16*G8+H8 -> 0 | J16: SUBG_E | K16: 15863.55586 | L16: 30404.40748 | M16: =(E16-L8)/K8 -> -0.9283982438 | O16: 11 | P16: -0.8576349647 | R16: 11 | S16: -1.605900192 | V16: 11 | W16: -0.9225518792 | Y16: 11 | Z16: 5.473722714 | AB16: 11 | AC16: 5.3491087 | AF16: 11 | AG16: 0.9999548307 | AH16: 0.9999548307 | AJ16: 12 | AK16: -0.117359644 | AL16: -0.07087773526 | AM16: 0.1467385537 | AN16: -0.4206265994 | AO16: -0.09222231867 | AP16: -0.02736414071 | AQ16: -0.08898030373 | AR16: 0.1238689692 | AS16: 0.2022291164 | AT16: 0.5192774213 | AU16: -0.631010504 | AV16: -0.2555366321 | AW16: 0.03934181605 | AX16: 0.04546433826 | AY16: -0.4663472743 | AZ16: 0.2336683866 | BA16: -0.05936782826 | BB16: -0.3202234041 | BC16: -0.2298350576 | BD16: 0.1352597116 | BE16: 0.03196499806 | BF16: -0.133414284 | BG16: -0.3474418277 | BH16: -0.1383482355 | BI16: 0.2126693568 | BJ16: 0.3897133752 | BK16: 0.1241989704 | BL16: 0.06132333231 | BM16: 0.1051435787 | BN16: -0.03941984177 | BO16: -0.5352027851 | BP16: 0.2708519999 | BQ16: 0.0305146667 | BR16: 0.2574347716 | BS16: 0.3283016983 | BT16: 0.6150678548 | BU16: -0.1983887613 | BV16: 0.2712496679 | BW16: -0.2013096804 | BX16: 0.05950951547 | BY16: -0.01223473272 | BZ16: -0.3047738377 | CA16: -0.07862918009 | CB16: -0.03874852164 | CC16: -0.01873924241 | CD16: -0.09080680743 | CE16: 0.08898031854 | CF16: 0.1466788123 | CG16: -0.1287161501 | CH16: -0.09920282306 | CI16: -0.4063291844 | CJ16: -0.5319198309 | CK16: -0.0381065927 | CL16: 0.2168125609 | CM16: 0.1896438277 | CN16: -0.1229228801 | CO16: 0.04903021553 | CP16: -0.2709124434 | CQ16: -0.02737399976 | CR16: -0.1648542972 | CS16: 0.09961788001 | CT16: -0.1108801345 | CU16: 0.07704767799 | CV16: 0.1747244771 | CW16: -0.1398632476 | CX16: -0.465349366 | CY16: -0.06802326548 | CZ16: -0.09772652514 | DA16: 0.7381208946 | DB16: 0.0950944751 | DC16: -0.1454090618 | DD16: 0.07993127831 | DE16: -0.130596806 | DF16: -0.8410788773 | DG16: 0.3108349591 | DH16: -0.2056022438 | DI16: 0.1403576829 | DJ16: -0.4831924212 | DK16: 0.1453913615 | DL16: 0.3673141913 | DM16: 0.003626871768 | DN16: 0.02767857729 | DO16: -0.4873328082 | DP16: -0.003329467239 | DQ16: 0.07153622835 | DR16: -0.475867445 | DS16: 0.1948431077 | DT16: -0.1672255106 | DU16: 0.2703164511 | DV16: -0.1140866566 | DW16: 0.113174182 | DX16: 0.04694671968 | DY16: -0.3087875812 | DZ16: 1.096822006 | EA16: 0.187830499 | EB16: -0.03526504012 | EC16: -0.1966635497 | ED16: 0.0038807695 | EE16: 0.0879331827 | EF16: 0.2043126185 | EG16: -0.2477923879 | EH16: -0.0008045956557 | EI16: -0.1009456646 | EJ16: -0.04851807811 | EK16: 0.1494225214 | EL16: -0.2955785144 | EM16: 0.2623145808 | EN16: -0.2151832782 | EO16: -0.4026781779 | EP16: -0.159732576 | EQ16: 0.1238610113 | ER16: 0.1812165318 | ES16: -0.04393474334 | ET16: 0.1605933616 | EU16: 0.1459494231 | EV16: 0.0507138715 | EW16: 0.2160407337 | EX16: -0.03662314938 | EY16: -0.04457589731 | EZ16: -0.3740913488 | FA16: -0.4781080965 | FB16: -0.02515884204 | FC16: 0.1231265683 | FD16: 0.03054754606 | FE16: -0.1070481288 | FF16: 0.1587885759 | FG16: -0.6355448368 | FH16: -0.01667987985 | FJ16: 12 | FK16: -1.039862269 | FM16: 12 | FN16: 1.304628879
A17: HMA5_P | B17: =PSAT!B37 -> 0 | D17: HMA5_P | E17: =B17 -> 0 | F17: HMA1_P | I17: =E17*G21+H21 -> 0 | J17: HMA1_P | K17: 0.05770593259 | L17: 0.3499259606 | M17: =(E17-L21)/K21 -> -1.185221193 | O17: 12 | P17: 3.6146772 | R17: 12 | S17: 2.574814931 | V17: 12 | W17: 0.9884638243 | Y17: 12 | Z17: -9.391451914 | AB17: 12 | AC17: -8.086823035 | AF17: 12 | AG17: -0.9999998108 | AH17: -0.9999998108 | AJ17: 13 | AK17: -0.09201273445 | AL17: 0.02650578386 | AM17: -0.1927909733 | AN17: -0.3659406164 | AO17: 0.2149015198 | AP17: -0.034427416 | AQ17: -0.02200350241 | AR17: -0.06398323001 | AS17: 0.05094327361 | AT17: 0.1027769407 | AU17: -0.05010259183 | AV17: -0.04492301544 | AW17: -0.8752234407 | AX17: 0.1281108027 | AY17: -0.006883527995 | AZ17: -0.1779367792 | BA17: 0.1502192286 | BB17: 0.04878300974 | BC17: 0.04977341338 | BD17: -0.0197849566 | BE17: -0.09419163543 | BF17: 0.1032099187 | BG17: -0.103936011 | BH17: -0.05206896323 | BI17: 0.1466902908 | BJ17: 0.2788793359 | BK17: -0.2429329655 | BL17: 0.07293384235 | BM17: 0.2703736573 | BN17: -0.05642232424 | BO17: 0.2704117091 | BP17: -0.02678954014 | BQ17: -0.1655233403 | BR17: 0.6503068939 | BS17: 0.2242410047 | BT17: -0.002008668223 | BU17: -0.279345748 | BV17: 0.03598914492 | BW17: 0.09043905926 | BX17: 0.05976107852 | BY17: 0.09414114719 | BZ17: -0.04741522472 | CA17: -0.05283682577 | CB17: -0.05169276236 | CC17: 0.05251189794 | CD17: -0.1387694542 | CE17: -0.09480424131 | CF17: -0.1179924609 | CG17: 0.1432439852 | CH17: -0.03280727544 | CI17: -0.1636065582 | CJ17: 0.02849972542 | CK17: 0.2289270567 | CL17: 0.1730765834 | CM17: 0.0302167023 | CN17: 0.4042596815 | CO17: 0.05277958734 | CP17: -0.09655183832 | CQ17: -0.04383517579 | CR17: -0.06439356971 | CS17: 0.06079883963 | CT17: -0.06174916031 | CU17: -0.0364273657 | CV17: 0.2566107202 | CW17: 0.02856806523 | CX17: 0.2639996061 | CY17: 0.08834756838 | CZ17: -0.09451790241 | DA17: -0.05952116539 | DB17: 0.04692319852 | DC17: 0.02387901954 | DD17: 0.01179982837 | DE17: -0.2034371322 | DF17: -0.01641086196 | DG17: 0.2085248379 | DH17: -0.08270177676 | DI17: 0.08961749313 | DJ17: -0.0566007356 | DK17: 0.2608484517 | DL17: -0.0009822925033 | DM17: -0.08320591073 | DN17: -0.04034540401 | DO17: 0.03858754788 | DP17: 0.1717415262 | DQ17: 0.2020871287 | DR17: 0.2484810273 | DS17: -0.1316248712 | DT17: 0.000247589423 | DU17: -0.02715718022 | DV17: 0.08369561137 | DW17: -0.1698915763 | DX17: -0.05904377768 | DY17: -0.1154848678 | DZ17: 0.08124254138 | EA17: 0.1944269541 | EB17: -0.7690028844 | EC17: 0.07601732609 | ED17: 0.4454312568 | EE17: 0.7033713158 | EF17: 0.1621804252 | EG17: -0.133980508 | EH17: 0.02743895819 | EI17: -0.1122994215 | EJ17: 0.110918151 | EK17: -0.04503527708 | EL17: 0.2379650875 | EM17: -0.1027382784 | EN17: 0.09134337171 | EO17: -0.2873821225 | EP17: 0.3145939322 | EQ17: -0.26299966 | ER17: 0.003419099181 | ES17: -0.3139840784 | ET17: 0.365200334 | EU17: 0.4994026793 | EV17: -0.1310664822 | EW17: 0.2618368975 | EX17: 0.001176565766 | EY17: -0.219210571 | EZ17: -0.8360243656 | FA17: -0.1975398167 | FB17: 0.04433709356 | FC17: 0.1266744886 | FD17: 0.002009122611 | FE17: -0.06136105854 | FF17: -0.0866632279 | FG17: -0.5273437413 | FH17: 0.1764184059 | FJ17: 13 | FK17: -0.7913635644 | FM17: 13 | FN17: -0.1184561034
A18: HMA5_T | B18: =PSAT!B38 -> 0 | D18: HMA5_T | E18: =LN(B18+1) -> 0 | F18: HMA2_P | I18: =E18*G34+H34 -> 0 | J18: HMA2_P | K18: 0.1185996959 | L18: 0.3155273537 | M18: =(E18-L34)/K34 -> -1.083959135 | O18: 13 | P18: 4.345321471 | R18: 13 | S18: 3.553957906 | V18: 13 | W18: 0.9983641405 | Y18: 13 | Z18: -0.1949633947 | AB18: 13 | AC18: -0.3134194981 | AF18: 13 | AG18: -0.3035447382 | AH18: -0.3035447382 | AJ18: 14 | AK18: 0.1022033455 | AL18: 0.09462287943 | AM18: -0.01848275286 | AN18: 0.127915362 | AO18: -0.08207227628 | AP18: -0.1333886807 | AQ18: -0.003341708134 | AR18: 0.274553998 | AS18: -0.04402524252 | AT18: 0.1814033399 | AU18: 0.07520544238 | AV18: 0.06655055972 | AW18: 0.06496560515 | AX18: 0.01177013269 | AY18: 0.04155989596 | AZ18: 0.005841190361 | BA18: 0.1115283316 | BB18: 0.08680711769 | BC18: -0.07577607929 | BD18: -0.09209426555 | BE18: 0.04934104518 | BF18: -0.1595084926 | BG18: -0.2638015145 | BH18: 0.04058847351 | BI18: 0.2174862267 | BJ18: 0.02101435335 | BK18: 0.1489856267 | BL18: 0.02077950269 | BM18: -0.2311417167 | BN18: 0.06640467757 | BO18: 0.06604358842 | BP18: 0.07096975893 | BQ18: -0.02318081171 | BR18: -0.1357966823 | BS18: -0.28811533 | BT18: 0.1215014637 | BU18: 0.003519377918 | BV18: 0.09778579688 | BW18: 0.1059673941 | BX18: -0.08656212513 | BY18: -0.1769493994 | BZ18: 0.08774064217 | CA18: 0.03170577903 | CB18: 0.05353438342 | CC18: -0.06507652689 | CD18: -0.03429487084 | CE18: -0.09549504759 | CF18: -0.1881258176 | CG18: -0.1506376853 | CH18: -0.02900276904 | CI18: -0.3667345142 | CJ18: -0.1077397623 | CK18: -0.1293515045 | CL18: 0.2066640959 | CM18: -0.2804940857 | CN18: 0.1108126318 | CO18: -0.02247520547 | CP18: 0.04500379058 | CQ18: 0.1032777584 | CR18: -0.08865058362 | CS18: -0.01270005811 | CT18: -0.01517654873 | CU18: -0.03403380904 | CV18: -0.3054649596 | CW18: -0.02147790778 | CX18: -0.06765020944 | CY18: -0.1249060546 | CZ18: 0.1014299708 | DA18: -0.05044534029 | DB18: -0.03046241917 | DC18: 0.2467498691 | DD18: -0.03598861724 | DE18: 0.1338034764 | DF18: 0.3080800527 | DG18: -0.1222208956 | DH18: -0.1456113255 | DI18: -0.07480644812 | DJ18: 0.147236339 | DK18: 0.1022872777 | DL18: 0.2605812033 | DM18: -0.09570772146 | DN18: -0.1091956057 | DO18: 0.2932988607 | DP18: -0.03779218089 | DQ18: -0.02461521465 | DR18: 0.1827527501 | DS18: -0.07722366862 | DT18: -0.07348422749 | DU18: -0.05884565084 | DV18: 0.1127242873 | DW18: -0.1365421895 | DX18: 0.2126590784 | DY18: -0.0398056927 | DZ18: 0.01539114437 | EA18: -0.1080505148 | EB18: 0.1045277373 | EC18: -0.1455256864 | ED18: 0.2724776502 | EE18: -0.2868986433 | EF18: 0.0294308112 | EG18: 0.1579357192 | EH18: 0.01722187846 | EI18: 0.02948659385 | EJ18: -0.05499785738 | EK18: -0.01709428549 | EL18: 0.008430896557 | EM18: 0.02946309999 | EN18: -0.09315776774 | EO18: -0.1526480304 | EP18: -0.1266909396 | EQ18: 0.2245844024 | ER18: 0.06722087121 | ES18: -0.3169985219 | ET18: -0.06807702778 | EU18: -0.1756557263 | EV18: -0.09209183025 | EW18: 0.5465541953 | EX18: -0.2372733127 | EY18: 0.2214173558 | EZ18: 0.2650456676 | FA18: -0.2773849678 | FB18: -0.03077549703 | FC18: -0.01080483628 | FD18: 0.2096783802 | FE18: 0.03790752557 | FF18: 0.2247157115 | FG18: -0.1809428291 | FH18: 0.07428165472 | FJ18: 14 | FK18: -0.2435740283 | FM18: 14 | FN18: -0.1764022204
A19: HMA6_E | B19: =PSAT!B33 -> 0 | D19: HMA6_E | E19: =B19 -> 0 | F19: HMA3_P | I19: =E19*G9+H9 -> 0 | J19: HMA3_P | K19: 0.1492138589 | L19: 0.2800338042 | M19: =(E19-L9)/K9 -> -0.79134946 | O19: 14 | P19: -4.823670443 | R19: 14 | S19: -5.067244471 | V19: 14 | W19: -0.9999206293 | Y19: 14 | Z19: 1.940763146 | AB19: 14 | AC19: 1.764360926 | AF19: 14 | AG19: 0.9429880748 | AH19: 0.9429880748 | AJ19: 15 | AK19: 0.1278499008 | AL19: 0.2073677272 | AM19: -0.05961740054 | AN19: -0.1311247615 | AO19: 0.2586273121 | AP19: -0.007946803143 | AQ19: -0.1204783694 | AR19: 0.1114659204 | AS19: 0.2908836189 | AT19: 0.123135441 | AU19: -0.1818774577 | AV19: -0.08521463332 | AW19: 0.04084022426 | AX19: 0.1509894756 | AY19: -0.2556683266 | AZ19: 0.164442229 | BA19: -0.1282601115 | BB19: -0.3402017438 | BC19: -0.1730684706 | BD19: 0.2014998771 | BE19: -0.003717286921 | BF19: -0.2378837327 | BG19: -0.1710012229 | BH19: -0.03250266648 | BI19: 0.2304858036 | BJ19: 0.05315746019 | BK19: 0.1031596451 | BL19: 0.1243483314 | BM19: 0.01018048976 | BN19: -0.1673796243 | BO19: 0.7522468611 | BP19: -0.3095927396 | BQ19: -0.04558635037 | BR19: -0.1333219876 | BS19: -0.001269572711 | BT19: 0.1668766209 | BU19: -0.06801089102 | BV19: 0.04572173309 | BW19: -0.03067728943 | BX19: -0.0170496495 | BY19: 0.1427340015 | BZ19: -0.2880639784 | CA19: -0.04707062816 | CB19: 0.006719631584 | CC19: -0.005189555102 | CD19: -0.1281668023 | CE19: 0.1171799597 | CF19: 0.2116222492 | CG19: 0.02202652975 | CH19: -0.0961568438 | CI19: -0.1703871563 | CJ19: -0.03179138315 | CK19: -0.2203825384 | CL19: 0.2072208605 | CM19: -0.2045878198 | CN19: 0.3761850187 | CO19: 0.01675644729 | CP19: -0.2080708439 | CQ19: -0.08789479195 | CR19: -0.04527945839 | CS19: 0.06891303494 | CT19: 0.07782682378 | CU19: 0.1297258541 | CV19: 0.1319150073 | CW19: -0.06445265707 | CX19: -0.07385058261 | CY19: 0.05655505423 | CZ19: -0.2914247481 | DA19: 0.005382371736 | DB19: 0.114310925 | DC19: -0.04428546074 | DD19: 0.02511954362 | DE19: -0.1096892321 | DF19: -0.2413229019 | DG19: 0.1849654466 | DH19: -0.2361354363 | DI19: 0.06714891636 | DJ19: -0.09162141498 | DK19: 0.206988012 | DL19: 0.07516416337 | DM19: -0.05165926136 | DN19: 0.1099577722 | DO19: 0.1783532643 | DP19: -0.03195885352 | DQ19: 0.1343027173 | DR19: 0.2606899673 | DS19: 0.003902419718 | DT19: -0.2309317452 | DU19: 0.2199953974 | DV19: 0.07723433616 | DW19: -0.1972026225 | DX19: 0.1501059384 | DY19: -0.2054941757 | DZ19: 0.2116039644 | EA19: -0.02152918956 | EB19: 0.5980024888 | EC19: 0.25789473 | ED19: 0.2287556261 | EE19: -0.04248905816 | EF19: 0.3280812954 | EG19: -0.2349076893 | EH19: -0.009857606443 | EI19: -0.1688370105 | EJ19: 0.2036556952 | EK19: 0.1417975933 | EL19: 0.9962610979 | EM19: 0.2131713132 | EN19: -0.054349933 | EO19: -0.2514760572 | EP19: 0.01100462786 | EQ19: 0.2559775166 | ER19: 0.1360259113 | ES19: -0.3118600836 | ET19: -0.08955711326 | EU19: 0.07824116068 | EV19: -0.1662079779 | EW19: 0.2455893517 | EX19: -0.4102915241 | EY19: 0.224540008 | EZ19: -0.0578103682 | FA19: -0.07631404889 | FB19: 0.0483734631 | FC19: 0.1346604045 | FD19: 0.08534109258 | FE19: -0.079836441 | FF19: -0.09707024975 | FG19: -0.5265525531 | FH19: 0.2785191147 | FJ19: 15 | FK19: -1.03591375 | FM19: 15 | FN19: 0.3353072428
A20: HMA6_P | B20: =PSAT!B34 -> 0 | D20: HMA6_P | E20: =B20 -> 0 | F20: HMA4_P | I20: =E20*G22+H22 -> 0 | J20: HMA4_P | K20: 0.1674213961 | L20: 0.2447978477 | M20: =(E20-L22)/K22 -> -0.974002687 | O20: 15 | P20: 6.977689451 | R20: 15 | S20: 5.941775701 | V20: 15 | W20: 0.9999861941 | Y20: 15 | Z20: 1.739293316 | AB20: 15 | AC20: 2.074600559 | AF20: 15 | AG20: 0.9689360653 | AH20: 0.9689360653 | AJ20: 16 | AK20: 0.1764726613 | AL20: 0.009251067268 | AM20: -0.1632829709 | AN20: -0.3904896169 | AO20: 0.1698265313 | AP20: -0.1808972556 | AQ20: 0.0592896102 | AR20: 0.01502932726 | AS20: 0.1878283426 | AT20: -0.004860463503 | AU20: -0.3032507015 | AV20: 0.01299217701 | AW20: 0.01090871996 | AX20: -0.05098580309 | AY20: 0.0838327576 | AZ20: 0.2041182754 | BA20: -0.01176620748 | BB20: 0.09479124014 | BC20: -0.1525875571 | BD20: 0.07621558232 | BE20: -0.05653333295 | BF20: 0.05543391829 | BG20: 0.01294927779 | BH20: -0.03544965128 | BI20: 0.1417315589 | BJ20: -0.1399006881 | BK20: 0.3045254924 | BL20: 0.1899011356 | BM20: 0.5100404456 | BN20: -0.05731400935 | BO20: -0.1216369463 | BP20: -0.05356391407 | BQ20: -0.5612003651 | BR20: 0.06430839577 | BS20: 0.04952218663 | BT20: -0.08030083322 | BU20: -0.01244499778 | BV20: 0.1456057433 | BW20: 0.2087026278 | BX20: 0.09041936688 | BY20: -0.01163971205 | BZ20: 0.1451566397 | CA20: 0.2412522237 | CB20: 0.04600195699 | CC20: 0.07518985118 | CD20: -0.02599723261 | CE20: 0.01198298582 | CF20: 0.0545490691 | CG20: 0.1845662954 | CH20: -0.03047976668 | CI20: -0.4002857445 | CJ20: -0.2595608574 | CK20: -0.3282562787 | CL20: 0.2883493695 | CM20: 0.03956752661 | CN20: 0.02810748261 | CO20: -0.005184882137 | CP20: -0.04565224881 | CQ20: 0.09619433956 | CR20: 0.05183455579 | CS20: 0.04818313924 | CT20: 0.02483804515 | CU20: 0.0776102433 | CV20: -0.0150395731 | CW20: -0.04560689675 | CX20: 0.1180149473 | CY20: 0.07120754991 | CZ20: -0.1841390393 | DA20: -0.1164761131 | DB20: -0.06423365646 | DC20: 0.187770013 | DD20: -0.0158894367 | DE20: 0.1219891453 | DF20: -0.1367882486 | DG20: -0.01259059434 | DH20: -0.07251550756 | DI20: 0.1083595376 | DJ20: 0.1377214475 | DK20: -0.3255319685 | DL20: 0.2430240149 | DM20: -0.1315310868 | DN20: -0.124755734 | DO20: 0.1444022949 | DP20: -0.4490473191 | DQ20: -0.1675139294 | DR20: 0.1022981132 | DS20: -0.02131312682 | DT20: -0.0445833698 | DU20: 0.1143237867 | DV20: -0.1566685238 | DW20: -0.210034414 | DX20: -0.001165956505 | DY20: 0.04294862629 | DZ20: -0.1165853008 | EA20: 0.1317553763 | EB20: 0.1019273801 | EC20: 0.07859506173 | ED20: 0.3292337703 | EE20: -0.01809177582 | EF20: -0.0107809321 | EG20: 0.003759764381 | EH20: 0.1027857709 | EI20: 0.2292770004 | EJ20: 0.2951841626 | EK20: -0.03521514619 | EL20: 0.0908129292 | EM20: -0.03159146786 | EN20: 0.01033421344 | EO20: -0.2940413293 | EP20: 0.1588994434 | EQ20: -0.2069950769 | ER20: -0.07503473113 | ES20: -0.4540389021 | ET20: 0.01403217631 | EU20: 0.3962796365 | EV20: -0.2049651898 | EW20: 0.3084294586 | EX20: -0.288353027 | EY20: -0.06463494902 | EZ20: 0.23933427 | FA20: -0.5881638064 | FB20: -0.1460363682 | FC20: -0.0544612219 | FD20: 0.2165649099 | FE20: -0.04759030239 | FF20: -0.1227580699 | FG20: -0.3645629774 | FH20: 0.09335955196 | FJ20: 16 | FK20: 2.813270857 | FM20: 16 | FN20: -0.3113096944
A21: HMA6_T | B21: =PSAT!B35 -> 0 | D21: HMA6_T | E21: =LN(B21+1) -> 0 | F21: HMA5_P | I21: =E21*G35+H35 -> 0 | J21: HMA5_P | K21: 0.1770941652 | L21: 0.2098957577 | M21: =(E21-L35)/K35 -> -0.9027244375 | O21: 16 | P21: -1.01261115 | R21: 16 | S21: 1.800659707 | V21: 16 | W21: 0.9468742884 | Y21: 16 | Z21: 2.426558295 | AB21: 16 | AC21: 2.1152486 | AF21: 16 | AG21: 0.9713267432 | AH21: 0.9713267432 | AJ21: 17 | AK21: -0.08853761982 | AL21: 0.01645096554 | AM21: 0.1411763229 | AN21: 0.02126013087 | AO21: -0.04461931115 | AP21: -0.03936088394 | AQ21: 0.153358691 | AR21: 0.01016283181 | AS21: -0.1760934239 | AT21: 0.02374232563 | AU21: -0.004798564769 | AV21: 0.04699437024 | AW21: -0.2568708523 | AX21: -0.2045454882 | AY21: 0.1391609307 | AZ21: -0.01893015209 | BA21: -0.0550771969 | BB21: 0.1033356305 | BC21: 0.1059770933 | BD21: -0.1312931173 | BE21: -0.07556715541 | BF21: -0.1182888665 | BG21: 0.1231856967 | BH21: 0.02911280866 | BI21: 0.1679642923 | BJ21: -0.2126916429 | BK21: 0.1665393348 | BL21: -0.03088287863 | BM21: -0.1168036398 | BN21: 0.03951747306 | BO21: -0.1494344826 | BP21: 0.04478729888 | BQ21: -0.7861581723 | BR21: 0.07920379502 | BS21: -0.08335189529 | BT21: -0.002913754669 | BU21: 0.06098201124 | BV21: 0.1623052189 | BW21: 0.2158605574 | BX21: 0.00185451121 | BY21: -0.01727741692 | BZ21: 0.1294265907 | CA21: 0.02740819392 | CB21: -0.02145588577 | CC21: 0.193557224 | CD21: 0.1698753149 | CE21: -0.04897228221 | CF21: -0.1512021014 | CG21: -0.02832113679 | CH21: 0.1071217936 | CI21: -0.494773919 | CJ21: -0.3765863211 | CK21: -0.0511736519 | CL21: 0.1533338326 | CM21: -0.08394664719 | CN21: -0.005936037072 | CO21: 0.07258261178 | CP21: 0.1147843438 | CQ21: 0.0789406418 | CR21: 0.08598938012 | CS21: -0.01755900062 | CT21: 0.1281243835 | CU21: 0.01676293941 | CV21: -0.3554447754 | CW21: 0.04075459363 | CX21: -0.1499210722 | CY21: -0.06256302101 | CZ21: -0.1252861308 | DA21: -0.02375176269 | DB21: -0.02952993167 | DC21: 0.1352647714 | DD21: -0.01762106204 | DE21: 0.003160330221 | DF21: 0.121330728 | DG21: 0.12526471 | DH21: -0.09705125393 | DI21: -0.1673963202 | DJ21: -0.006507489713 | DK21: 0.06614625693 | DL21: 0.3996808921 | DM21: 0.09818191838 | DN21: -0.2021550955 | DO21: 0.3512772987 | DP21: -0.04083701286 | DQ21: -0.325861917 | DR21: -0.05662444614 | DS21: -0.370330685 | DT21: -0.01091134705 | DU21: -0.1978826736 | DV21: -0.156271897 | DW21: -0.06089328895 | DX21: 0.05452246321 | DY21: 0.1499338752 | DZ21: 0.06448963956 | EA21: -0.09211768954 | EB21: -0.02116120477 | EC21: -0.064942009 | ED21: -0.003980822016 | EE21: -0.7173430634 | EF21: -0.1417396795 | EG21: 0.0682695576 | EH21: -0.06529576989 | EI21: 0.1894871616 | EJ21: 0.4846251206 | EK21: -0.1202656071 | EL21: -0.05241245943 | EM21: -0.117939468 | EN21: -0.3179231722 | EO21: -0.2246276072 | EP21: 0.006434402321 | EQ21: -0.2581180256 | ER21: -0.02233482124 | ES21: -0.8624867469 | ET21: -0.3902941562 | EU21: 0.08065221361 | EV21: -0.04340494144 | EW21: 0.2267346324 | EX21: -0.5140716334 | EY21: 0.3225696179 | EZ21: -0.1379179585 | FA21: -0.556686204 | FB21: -0.1305848475 | FC21: 0.06625085479 | FD21: 0.1083378089 | FE21: 0.04402696676 | FF21: -0.00465853147 | FG21: -0.2832369962 | FH21: -0.2710416358 | FJ21: 17 | FK21: -2.289978878 | FM21: 17 | FN21: -0.02152884324
A22: HMA7_E | B22: =PSAT!B30 -> 0 | D22: HMA7_E | E22: =B22 -> 0 | F22: HMA6_P | I22: =E22*G10+H10 -> 0 | J22: HMA6_P | K22: 0.1795619374 | L22: 0.1748938095 | M22: =(E22-L10)/K10 -> -0.6680494751 | O22: 17 | P22: 0.2390969988 | R22: 17 | S22: -2.050881879 | V22: 17 | W22: -0.9674515228 | Y22: 17 | Z22: 0.5018762648 | AB22: 17 | AC22: 0.4803474215 | AF22: 17 | AG22: 0.4465218054 | AH22: 0.4465218054 | AJ22: 18 | AK22: -0.1906118572 | AL22: 0.1584696421 | AM22: -0.06322699736 | AN22: 0.1112108378 | AO22: 0.0562887584 | AP22: 0.1029543053 | AQ22: -0.01387468197 | AR22: -0.03254627059 | AS22: -0.1021504028 | AT22: -0.03295256733 | AU22: 0.0001170101259 | AV22: -0.001295373679 | AW22: -0.2272214242 | AX22: 0.03341353351 | AY22: -0.1721053474 | AZ22: -0.02258661694 | BA22: -0.1921431971 | BB22: -0.3439785334 | BC22: -0.06285284788 | BD22: 0.1206215776 | BE22: -0.01028250463 | BF22: -0.1698860204 | BG22: -0.09836804094 | BH22: 0.1525210857 | BI22: 0.3406421287 | BJ22: -0.1311430922 | BK22: 0.2686541422 | BL22: 0.03196098709 | BM22: 0.4555779888 | BN22: 0.01945863494 | BO22: -0.3080145895 | BP22: -0.1714975275 | BQ22: -0.7105700128 | BR22: 0.1020344138 | BS22: 0.07911298662 | BT22: 0.2887891204 | BU22: -0.05271984702 | BV22: -0.07247238935 | BW22: 0.3506236533 | BX22: -0.1045936231 | BY22: 0.07756164585 | BZ22: -0.07575119396 | CA22: 0.03545252547 | CB22: -0.05127448595 | CC22: 0.1928967212 | CD22: -0.0235183923 | CE22: 0.1216253716 | CF22: 0.03575011019 | CG22: -0.1136789064 | CH22: -0.1007799832 | CI22: -0.4644153656 | CJ22: -0.3577228639 | CK22: 0.0215196308 | CL22: 0.07243132906 | CM22: -0.02640776653 | CN22: -0.0750837079 | CO22: 0.08858912442 | CP22: -0.188096905 | CQ22: -0.2140667332 | CR22: -0.07030624343 | CS22: 0.1051146543 | CT22: 0.2648602947 | CU22: -0.002150236141 | CV22: -0.2090812388 | CW22: -0.07652576943 | CX22: -0.03000092398 | CY22: 0.03685031668 | CZ22: -0.05787657027 | DA22: -0.06265970643 | DB22: 0.02697197866 | DC22: 0.05510821031 | DD22: 0.06316539062 | DE22: 0.09876516132 | DF22: -0.2163681611 | DG22: 0.2534887674 | DH22: -0.1742341764 | DI22: -0.07874530152 | DJ22: -0.133211779 | DK22: -0.2828624374 | DL22: 0.1032852842 | DM22: -0.08260665848 | DN22: -0.3429502755 | DO22: 0.4564295353 | DP22: -0.006774959066 | DQ22: 0.1200889656 | DR22: 0.2108697241 | DS22: -0.2363546326 | DT22: -0.02508320245 | DU22: 0.1233886874 | DV22: -0.2587225502 | DW22: 0.01664604029 | DX22: 0.1360440377 | DY22: -0.2017174184 | DZ22: -0.3013491764 | EA22: -0.07969555711 | EB22: 0.3406734217 | EC22: 0.1354471812 | ED22: -0.07146334335 | EE22: -0.4938500339 | EF22: -0.04836644241 | EG22: 0.04184036701 | EH22: 0.008333451166 | EI22: 0.1932859178 | EJ22: 0.3908815812 | EK22: -0.00135575325 | EL22: 0.06083745077 | EM22: 0.06545873461 | EN22: -0.2108352567 | EO22: -0.173786413 | EP22: 0.06922678273 | EQ22: 0.02295872862 | ER22: -0.02844487077 | ES22: -0.7421230263 | ET22: -0.06321928028 | EU22: 0.02827115126 | EV22: -0.1096762654 | EW22: 0.405181065 | EX22: -0.5168422237 | EY22: 0.08924766552 | EZ22: -0.4957656367 | FA22: -0.4399203648 | FB22: 0.03631150608 | FC22: 0.1061923798 | FD22: 0.08282865212 | FE22: -0.08244596009 | FF22: -0.1055075011 | FG22: -0.2421673385 | FH22: 0.1183594112 | FJ22: 18 | FK22: -1.052660419 | FM22: 18 | FN22: 0.04824704878
A23: HMA7_P | B23: =PSAT!B31 -> 0 | D23: HMA7_P | E23: =B23 -> 0 | F23: HMA7_P | I23: =E23*G23+H23 -> 0 | J23: HMA7_P | K23: 0.1753006251 | L23: 0.1399920589 | M23: =(E23-L23)/K23 -> -0.7985827706 | O23: 18 | P23: 4.244964269 | R23: 18 | S23: 3.19230385 | V23: 18 | W23: 0.996631024 | Y23: 18 | Z23: 0.3485351487 | AB23: 18 | AC23: 0.3967821975 | AF23: 18 | AG23: 0.3771923249 | AH23: 0.3771923249 | AJ23: 19 | AK23: 0.01527435456 | AL23: -0.1284573832 | AM23: 0.1365273465 | AN23: -0.1014684889 | AO23: 0.3253279796 | AP23: 0.1898662394 | AQ23: 0.151505302 | AR23: 0.4622675512 | AS23: -0.1681133738 | AT23: -0.3062839415 | AU23: -0.3552297609 | AV23: 0.09866472149 | AW23: -0.06794254983 | AX23: -0.3533485743 | AY23: 0.06234237054 | AZ23: 0.02233426165 | BA23: -0.2000055241 | BB23: 0.07429091338 | BC23: -0.03324145433 | BD23: -0.09215571308 | BE23: -0.01081439611 | BF23: 0.01398369113 | BG23: 0.07758710339 | BH23: -0.09522179699 | BI23: 0.2329390833 | BJ23: -0.04816700194 | BK23: 0.5827153008 | BL23: -0.1908755229 | BM23: 0.1740103424 | BN23: -0.4151005669 | BO23: 0.01228488047 | BP23: 0.07378558815 | BQ23: -1.123338339 | BR23: 0.09505773422 | BS23: 0.03392528098 | BT23: 0.04494817268 | BU23: 0.6119906907 | BV23: 0.1235227908 | BW23: 0.4435467579 | BX23: -0.7725004208 | BY23: 0.09124733844 | BZ23: 0.604839288 | CA23: 0.4817934719 | CB23: -0.03165944839 | CC23: 0.6296710929 | CD23: -0.08628696566 | CE23: -0.01267157428 | CF23: -0.08460201378 | CG23: -0.4894835003 | CH23: 0.1945711861 | CI23: -0.413775735 | CJ23: -0.3713560247 | CK23: -0.4253959203 | CL23: -0.0256026593 | CM23: -0.2238742331 | CN23: 0.3456329507 | CO23: 0.1366253615 | CP23: -0.05559617734 | CQ23: -0.09091689782 | CR23: 0.3047466929 | CS23: 0.02174553801 | CT23: 0.427364154 | CU23: -0.0330819087 | CV23: -0.6607747167 | CW23: 0.6377380347 | CX23: -0.0619974372 | CY23: -0.2989726836 | CZ23: -0.10440974 | DA23: 0.1789497098 | DB23: -0.6050787228 | DC23: 0.4564003384 | DD23: -0.03631035699 | DE23: 0.1769360592 | DF23: 0.03153448101 | DG23: -0.02564944241 | DH23: -0.3424476741 | DI23: -0.1837427728 | DJ23: 0.7108111063 | DK23: -0.3391543121 | DL23: 0.3277634063 | DM23: 0.07882523728 | DN23: -0.5553569782 | DO23: -0.1017228787 | DP23: -0.3703917957 | DQ23: -0.2685356589 | DR23: 0.4294575747 | DS23: -0.2995808656 | DT23: -0.1198035768 | DU23: 0.09816976074 | DV23: -0.119001126 | DW23: 0.180167901 | DX23: 0.04617597023 | DY23: -0.183351944 | DZ23: 0.02806183791 | EA23: -0.4678206544 | EB23: 0.2556576069 | EC23: 0.03215782735 | ED23: 0.01681397397 | EE23: -0.1054325792 | EF23: 0.2042166956 | EG23: 0.03129099261 | EH23: 0.06258179251 | EI23: 0.6190859155 | EJ23: 0.2610174749 | EK23: -0.05585144562 | EL23: -0.05637364132 | EM23: 0.01843254541 | EN23: 0.1935924896 | EO23: -0.1700909335 | EP23: 0.1922437907 | EQ23: -0.1096121889 | ER23: -0.1385492962 | ES23: -0.7815197802 | ET23: -0.3695723533 | EU23: -0.1196868313 | EV23: 0.00397061503 | EW23: 0.1056401089 | EX23: -0.5308235395 | EY23: 0.1083799856 | EZ23: -0.3557203372 | FA23: -0.7901339646 | FB23: 0.04373541433 | FC23: -0.02975396683 | FD23: 0.2559270723 | FE23: 0.004363507667 | FF23: -0.2174988048 | FG23: -0.1109818433 | FH23: 0.4018408417 | FJ23: 19 | FK23: -1.256155151 | FM23: 19 | FN23: -0.05925921855
A24: HMA7_T | B24: =PSAT!B32 -> 0 | D24: HMA7_T | E24: =LN(B24+1) -> 0 | F24: HMA8_P | I24: =E24*G36+H36 -> 0 | J24: HMA8_P | K24: 0.1633576928 | L24: 0.1049265446 | M24: =(E24-L36)/K36 -> -0.7489026795 | O24: 19 | P24: 3.238360239 | R24: 19 | S24: 1.982205089 | V24: 19 | W24: 0.9627485484 | Y24: 19 | Z24: 0.2415609035 | AB24: 19 | AC24: 0.1823016849 | AF24: 19 | AG24: 0.1803086431 | AH24: 0.1803086431 | AJ24: 20 | AK24: -0.3369763801 | AL24: -0.06647365349 | AM24: 0.1310522957 | AN24: 0.1676365887 | AO24: 0.2771904242 | AP24: 0.5498369172 | AQ24: 0.02246922668 | AR24: 0.6877355803 | AS24: -0.2998732399 | AT24: -0.3532294786 | AU24: -0.3429749097 | AV24: 0.2994356289 | AW24: -0.1788597677 | AX24: -0.3264527094 | AY24: 0.06940589023 | AZ24: -0.211001514 | BA24: -0.1249853922 | BB24: 0.1659531739 | BC24: -0.1044449545 | BD24: 0.009250366625 | BE24: 0.1559737997 | BF24: -0.01958587847 | BG24: 0.2709525152 | BH24: -0.1752273497 | BI24: 0.312644723 | BJ24: -0.01565365981 | BK24: 0.9955144016 | BL24: -0.3926210674 | BM24: 0.1642283046 | BN24: -0.2193703458 | BO24: -0.1000911042 | BP24: -0.1789082243 | BQ24: -1.561872287 | BR24: -0.02538023395 | BS24: -0.1535455085 | BT24: -0.0613355653 | BU24: 0.8101026224 | BV24: 0.1813721499 | BW24: 0.3885279074 | BX24: -0.8328771093 | BY24: -0.2283217879 | BZ24: 0.7484807469 | CA24: 0.7134899959 | CB24: 0.05292350044 | CC24: 0.5185045382 | CD24: 0.2002916725 | CE24: -0.07569941997 | CF24: -0.2772842953 | CG24: -0.4809127959 | CH24: 0.3848364805 | CI24: -0.2648843128 | CJ24: -0.5465210409 | CK24: -0.3566062051 | CL24: -0.2141351717 | CM24: -0.3992154093 | CN24: 0.2558224386 | CO24: -0.09021584417 | CP24: 0.1078007748 | CQ24: 0.1377825235 | CR24: 0.1124945126 | CS24: 0.01631242303 | CT24: 0.4951323669 | CU24: -0.09633165575 | CV24: -0.87229925 | CW24: 0.6957855769 | CX24: 0.08639944037 | CY24: -0.3265000742 | CZ24: -0.1175670887 | DA24: -0.01566975779 | DB24: -0.7156444974 | DC24: 0.656465045 | DD24: -0.1221294026 | DE24: 0.3982485399 | DF24: 0.06882323818 | DG24: -0.2342435644 | DH24: -0.6123026196 | DI24: -0.2159580779 | DJ24: 0.3351368651 | DK24: -0.4517808272 | DL24: 0.3852241541 | DM24: 0.3205188693 | DN24: -0.8829205725 | DO24: -0.1528956593 | DP24: -0.7453931854 | DQ24: -0.05705396235 | DR24: 0.1274390682 | DS24: -0.8489775451 | DT24: 0.1350367331 | DU24: 0.06604513516 | DV24: -0.2572692794 | DW24: 0.3763908159 | DX24: 0.04806750829 | DY24: 0.4835362326 | DZ24: 0.1945434964 | EA24: -0.2809401991 | EB24: -0.06471203 | EC24: 0.1750487566 | ED24: -0.0899323887 | EE24: -0.1203639343 | EF24: -0.2137288579 | EG24: -0.06527191859 | EH24: -0.003794832373 | EI24: 1.05374186 | EJ24: 0.5076033655 | EK24: 0.3577226486 | EL24: -0.1231056296 | EM24: -0.2812255831 | EN24: -0.1587357191 | EO24: -0.1005531268 | EP24: 0.2293520158 | EQ24: -0.2007848065 | ER24: 0.06538977732 | ES24: -1.229214353 | ET24: -0.4576670807 | EU24: -0.1944511831 | EV24: -0.03574554843 | EW24: 0.3287573679 | EX24: -0.4991062321 | EY24: 0.2579190353 | EZ24: 0.216014716 | FA24: -0.9557568413 | FB24: -0.4163167426 | FC24: -0.1461764555 | FD24: 0.4760231401 | FE24: 0.08007162062 | FF24: -0.2937354341 | FG24: -0.1284332323 | FH24: 0.2160501687 | FJ24: 20 | FK24: 2.398269043 | FM24: 20 | FN24: 0.07235460854
A25: HMA8_E | B25: =PSAT!B27 -> 0 | D25: HMA8_E | E25: =B25 -> 0 | F25: HMA9_P | I25: =E25*G11+H11 -> 0 | J25: HMA9_P | K25: 0.1424118669 | L25: 0.07001127373 | M25: =(E25-L11)/K11 -> -0.5489500925 | O25: 20 | P25: -1.113290687 | R25: 20 | S25: 1.284978356 | V25: 20 | W25: 0.8578056743 | Y25: 20 | Z25: -1.705206729 | AB25: 20 | AC25: -1.632852121 | AF25: 20 | AG25: -0.9264666807 | AH25: -0.9264666807 | AJ25: 21 | AK25: -0.02734750609 | AL25: -0.1835927948 | AM25: 0.0718109406 | AN25: -0.135209758 | AO25: 0.2757498069 | AP25: 0.1148402123 | AQ25: -0.05010658225 | AR25: 0.3684660117 | AS25: 0.009221981408 | AT25: -0.2738757464 | AU25: -0.3942549778 | AV25: -0.02324271129 | AW25: -0.1795667142 | AX25: -0.05222423165 | AY25: -0.0786359292 | AZ25: 0.02635805403 | BA25: -0.1777130513 | BB25: -0.3182547196 | BC25: -0.09603185345 | BD25: -0.1559660425 | BE25: -0.04246039071 | BF25: -0.1220825409 | BG25: 0.2911136957 | BH25: -0.1276564163 | BI25: 0.3027403033 | BJ25: -0.07604316772 | BK25: 0.8247531679 | BL25: -0.2230739984 | BM25: 0.1373377577 | BN25: -0.4237448814 | BO25: 0.07595345901 | BP25: -0.08159634715 | BQ25: -1.25852482 | BR25: 0.0009658599133 | BS25: 0.0438944875 | BT25: 0.0852796898 | BU25: 0.6893220626 | BV25: -0.01963410463 | BW25: 0.4315169713 | BX25: -0.9867778286 | BY25: -0.14678314 | BZ25: 0.4291712756 | CA25: 0.4406153863 | CB25: -0.02342296252 | CC25: 0.5158072894 | CD25: -0.08254336952 | CE25: 0.1727764974 | CF25: -0.2340180726 | CG25: -0.3984606761 | CH25: 0.1346919514 | CI25: -0.3333984234 | CJ25: -0.5903028797 | CK25: -0.1922820863 | CL25: -0.1242672413 | CM25: -0.3874461422 | CN25: 0.2967608981 | CO25: 0.01303140043 | CP25: -0.1697188884 | CQ25: 0.1164825171 | CR25: 0.1792325273 | CS25: 0.06262484792 | CT25: 0.4795613959 | CU25: 0.1010475308 | CV25: -0.5980651406 | CW25: 0.7209606739 | CX25: -0.04203852879 | CY25: -0.1431495609 | CZ25: -0.07897453744 | DA25: 0.06183049155 | DB25: -0.6978188297 | DC25: 0.4915441026 | DD25: 0.05440566886 | DE25: 0.2894742123 | DF25: -0.136085611 | DG25: 0.111251623 | DH25: -0.3215798005 | DI25: -0.08292376857 | DJ25: 0.3492191841 | DK25: -0.3460623417 | DL25: 0.2111542203 | DM25: 0.1699859102 | DN25: -0.534422482 | DO25: 0.1746239949 | DP25: -0.7123046264 | DQ25: 0.0621670182 | DR25: 0.3669585155 | DS25: -0.742665347 | DT25: -0.01268104738 | DU25: 0.2243122539 | DV25: -0.4121814282 | DW25: 0.3143368579 | DX25: 0.1972779164 | DY25: 0.2504801908 | DZ25: 0.1043932874 | EA25: -0.1458435468 | EB25: 0.129465976 | EC25: 0.2349645464 | ED25: 0.01829551202 | EE25: -0.1214659924 | EF25: -0.3572262101 | EG25: -0.0826584784 | EH25: 0.03335490524 | EI25: 0.6650391215 | EJ25: 0.5132985151 | EK25: 0.1844910068 | EL25: -0.004870099392 | EM25: 0.05084110891 | EN25: -0.01280116339 | EO25: -0.05953901053 | EP25: 0.05970231064 | EQ25: 0.03533981937 | ER25: -0.02327448826 | ES25: -0.9378189036 | ET25: -0.441697148 | EU25: -0.1809988829 | EV25: -0.03048231114 | EW25: 0.2448418062 | EX25: -0.6143667535 | EY25: -0.04476882573 | EZ25: 0.1200304519 | FA25: -0.6316306881 | FB25: -0.07798639001 | FC25: -0.1075001969 | FD25: 0.5275564595 | FE25: 0.1184561838 | FF25: -0.1143470751 | FG25: -0.2932035486 | FH25: 0.1021041222 | FJ25: 21 | FK25: -1.26961107 | FM25: 21 | FN25: -0.0781784299
A26: HMA8_P | B26: =PSAT!B28 -> 0 | D26: HMA8_P | E26: =B26 -> 0 | F26: HMA10_P | I26: =E26*G24+H24 -> 0 | J26: HMA10_P | K26: 0.1069446361 | L26: 0.03512591708 | M26: =(E26-L24)/K24 -> -0.6423116221 | O26: 21 | P26: 1.382595003 | R26: 21 | S26: 0.1129839326 | V26: 21 | W26: 0.1125056143 | Y26: 21 | Z26: 0.2477881956 | AB26: 21 | AC26: 0.1696097657 | AF26: 21 | AG26: 0.1680018506 | AH26: 0.1680018506 | AJ26: 22 | AK26: -0.5710563843 | AL26: -0.08128913962 | AM26: -0.1029056523 | AN26: 0.162147434 | AO26: 0.4102316727 | AP26: 0.6558946197 | AQ26: 0.1178632331 | AR26: 0.2917710851 | AS26: -0.3374274132 | AT26: -0.2394470664 | AU26: -0.157662472 | AV26: 0.7271589636 | AW26: 0.05110157037 | AX26: -0.2825062586 | AY26: 0.2163679119 | AZ26: 0.001121708717 | BA26: -0.04545983502 | BB26: -0.003800348315 | BC26: 0.06969578629 | BD26: -0.1071069257 | BE26: -0.05081891676 | BF26: 0.06638805857 | BG26: 0.5258612637 | BH26: 0.09278595736 | BI26: 0.2383797496 | BJ26: 0.2809530009 | BK26: 0.2719741236 | BL26: -0.01767681167 | BM26: 0.1391292236 | BN26: -0.5123998186 | BO26: 0.1282453664 | BP26: 0.09666390311 | BQ26: -0.6989752318 | BR26: -0.01376141717 | BS26: 0.1824379312 | BT26: -0.02492073169 | BU26: 0.04482797714 | BV26: -0.1623621999 | BW26: 0.1385787093 | BX26: -1.327268578 | BY26: -0.2111945348 | BZ26: 0.4029525645 | CA26: 0.1919703168 | CB26: -0.05159338432 | CC26: 0.4001876807 | CD26: -0.06320569079 | CE26: 0.07186158853 | CF26: -0.6764748719 | CG26: -0.4864571067 | CH26: 0.564957833 | CI26: 0.2436061467 | CJ26: -0.1761001668 | CK26: -0.1241099629 | CL26: -1.055788319 | CM26: -0.5429008595 | CN26: 0.3010615095 | CO26: -0.1029914657 | CP26: -0.02269564771 | CQ26: -0.01834997375 | CR26: 0.6071232345 | CS26: -0.02777022323 | CT26: 0.1266432216 | CU26: -0.05502208325 | CV26: -0.5797424245 | CW26: 1.037528565 | CX26: -0.09537459237 | CY26: 0.0724516533 | CZ26: 0.09851532726 | DA26: -0.1989750357 | DB26: -0.1956379294 | DC26: 0.1369670387 | DD26: 0.02820248778 | DE26: 0.3035553691 | DF26: -0.06084387323 | DG26: -0.3195061326 | DH26: -0.1860778506 | DI26: -0.5192314185 | DJ26: 0.4070110829 | DK26: -0.02948867276 | DL26: 0.02021974565 | DM26: 0.1694931845 | DN26: -0.5168769958 | DO26: 0.1087538776 | DP26: -0.6421955226 | DQ26: 0.2635246633 | DR26: 0.2270970815 | DS26: -0.6617539106 | DT26: -0.09290031662 | DU26: -0.2937309982 | DV26: -0.1565143596 | DW26: -0.01708500104 | DX26: 0.01180054982 | DY26: 0.6191681917 | DZ26: -0.1189036889 | EA26: -0.1686883219 | EB26: 0.01546670573 | EC26: 0.6031339167 | ED26: 0.2478631124 | EE26: -0.0885964321 | EF26: -0.1592094464 | EG26: -0.1540881077 | EH26: 0.07162919419 | EI26: 0.1403737985 | EJ26: 0.1581268513 | EK26: -0.02482230143 | EL26: 0.07872705352 | EM26: -0.4503712749 | EN26: 0.1848311537 | EO26: -0.09845107353 | EP26: -0.03135277164 | EQ26: -0.1343644053 | ER26: -0.2602055769 | ES26: -0.5484470609 | ET26: -0.1557956344 | EU26: 0.2183412857 | EV26: -0.07733794563 | EW26: 0.09148038576 | EX26: 0.1076270263 | EY26: -0.3186508615 | EZ26: 0.01180720471 | FA26: -0.7289588598 | FB26: 0.07019698 | FC26: -0.5169369977 | FD26: 0.3368703261 | FE26: -0.1077171759 | FF26: -0.165240391 | FG26: -0.3787543653 | FH26: -0.1781906687 | FJ26: 22 | FK26: -0.3075258577 | FM26: 22 | FN26: -1.009206618
A27: HMA8_T | B27: =PSAT!B29 -> 0 | D27: HMA8_T | E27: =LN(B27+1) -> 0 | F27: SB_P | I27: =E27*G37+H37 -> 0 | J27: SB_P | K27: 0.05785233328 | L27: 0.3496320775 | M27: =(E27-L37)/K37 -> -0.6079546536 | O27: 22 | P27: 3.20688055 | R27: 22 | S27: 2.899354692 | V27: 22 | W27: 0.9939553947 | Y27: 22 | Z27: 2.726302551 | AB27: 22 | AC27: 1.717095933 | AF27: 22 | AG27: 0.9375123905 | AH27: 0.9375123905 | AJ27: 23 | AK27: -1.043905763 | AL27: 0.2301662764 | AM27: -0.3976093535 | AN27: 0.4515734273 | AO27: 0.5790748725 | AP27: 0.9903172274 | AQ27: 0.1006059692 | AR27: 0.08586887445 | AS27: -0.7669663159 | AT27: -0.3341622161 | AU27: 0.09743086286 | AV27: 1.069943071 | AW27: -0.09594587739 | AX27: -0.669657365 | AY27: 0.3611475233 | AZ27: -0.2276508684 | BA27: 0.08895051326 | BB27: 0.01416381256 | BC27: 0.09476222994 | BD27: -0.4707001101 | BE27: 0.2050989587 | BF27: 0.04454863439 | BG27: 1.053317384 | BH27: -0.1821592244 | BI27: 0.3260173893 | BJ27: 0.05287129048 | BK27: 0.4977500644 | BL27: -0.1785670843 | BM27: 0.1740487179 | BN27: -0.448632211 | BO27: 0.06809404983 | BP27: 0.02477753367 | BQ27: -1.074628072 | BR27: -0.1040132478 | BS27: 0.2245968372 | BT27: -0.1661888937 | BU27: 0.293713146 | BV27: -0.5769560396 | BW27: 0.1798983896 | BX27: -1.689151265 | BY27: -0.8026428973 | BZ27: 0.8504899425 | CA27: 0.2189823507 | CB27: -0.03290399444 | CC27: 0.9906795716 | CD27: 0.1414222347 | CE27: 0.1495959226 | CF27: -1.235390012 | CG27: -0.3121977662 | CH27: 1.185249103 | CI27: 0.3814689962 | CJ27: -0.3464920087 | CK27: -0.0778751586 | CL27: -0.8933623551 | CM27: -1.110794808 | CN27: 0.2731223208 | CO27: -0.2916280646 | CP27: 0.07144985191 | CQ27: 0.1467517039 | CR27: 0.7930949676 | CS27: -0.1414572112 | CT27: 0.4497949641 | CU27: -0.2718499784 | CV27: -0.8691765959 | CW27: 1.57566852 | CX27: -0.1838139525 | CY27: 0.05791339379 | CZ27: 0.1458783836 | DA27: 0.007420839112 | DB27: -0.1966883437 | DC27: 0.403512034 | DD27: 0.1021363425 | DE27: 0.1650311701 | DF27: -0.04594716154 | DG27: -0.3785461345 | DH27: -0.3456572458 | DI27: -0.7885153732 | DJ27: 0.3294213106 | DK27: -0.2620577438 | DL27: 0.1247103009 | DM27: 0.1960094346 | DN27: -0.719036547 | DO27: -0.01370385525 | DP27: -0.938476945 | DQ27: 0.3087911352 | DR27: 0.4176400061 | DS27: -0.9243249744 | DT27: -0.280153567 | DU27: -0.492895234 | DV27: -0.308045264 | DW27: 0.06715618272 | DX27: -0.08281652699 | DY27: 0.621273419 | DZ27: 0.1304263035 | EA27: -0.5107739092 | EB27: -0.3959360544 | EC27: 0.7838338152 | ED27: 0.4084424076 | EE27: -0.08416727035 | EF27: -0.2282478417 | EG27: -0.04558266207 | EH27: -0.0611398573 | EI27: 0.5346021114 | EJ27: 0.2407854979 | EK27: -0.07023488714 | EL27: -0.03272217809 | EM27: -0.9907840735 | EN27: 0.130058664 | EO27: 0.08716310137 | EP27: 0.2093990129 | EQ27: -0.4838093884 | ER27: -0.09661033272 | ES27: -0.8535135921 | ET27: -0.2798389753 | EU27: -0.1570107677 | EV27: 0.1362379834 | EW27: 0.2773380006 | EX27: -0.1141217611 | EY27: -0.3354040515 | EZ27: 0.528167521 | FA27: -1.162537185 | FB27: 0.02764240323 | FC27: -0.2835684469 | FD27: 0.5236194505 | FE27: 0.1278641368 | FF27: -0.1078279391 | FG27: -0.5050624945 | FH27: -0.06174900184 | FJ27: 23 | FK27: -0.406897574 | FM27: 23 | FN27: -0.7436921188
A28: HMA9_E | B28: =PSAT!B24 -> 0 | D28: HMA9_E | E28: =B28 -> 0 | F28: GB_P | I28: =E28*G12+H12 -> 0 | J28: GB_P | K28: 0.02894793964 | L28: 0.3502178686 | M28: =(E28-L12)/K12 -> -0.4274523472 | O28: 23 | P28: 3.660590385 | R28: 23 | S28: 3.253692811 | V28: 23 | W28: 0.9970196952 | Y28: 23 | Z28: 3.509163929 | AB28: 23 | AC28: 2.76547181 | AF28: 23 | AG28: 0.992106778 | AH28: 0.992106778 | AJ28: 24 | AK28: -0.8967570658 | AL28: 0.1826179673 | AM28: -0.2047297085 | AN28: 0.1582546862 | AO28: 0.4460202763 | AP28: 0.9327756751 | AQ28: 0.08000669573 | AR28: 0.163200605 | AS28: -0.582981075 | AT28: -0.586296836 | AU28: -0.1648317014 | AV28: 0.9095799355 | AW28: -0.004352981737 | AX28: -0.5500096037 | AY28: 0.09264607705 | AZ28: -0.01456427955 | BA28: 0.0951174433 | BB28: -0.2545384706 | BC28: -0.1471606332 | BD28: -0.4692358787 | BE28: 0.06164523148 | BF28: -0.1541944778 | BG28: 0.7140982993 | BH28: 0.01391581899 | BI28: 0.3638348159 | BJ28: 0.03958849177 | BK28: 0.392743254 | BL28: 0.1090008199 | BM28: 0.2350180496 | BN28: -0.3662788739 | BO28: 0.1009242382 | BP28: -0.01639025975 | BQ28: -0.8072232899 | BR28: -0.07761418156 | BS28: 0.1029914302 | BT28: -0.09262248133 | BU28: 0.338764315 | BV28: -0.4505335373 | BW28: 0.1179267774 | BX28: -1.49046924 | BY28: -0.56370518 | BZ28: 0.5534084137 | CA28: 0.00754738138 | CB28: -0.01099671365 | CC28: 0.9242131996 | CD28: -0.05639991778 | CE28: 0.2619635722 | CF28: -1.053355518 | CG28: -0.4296200781 | CH28: 0.779729785 | CI28: 0.4827970077 | CJ28: -0.2649013431 | CK28: -0.1891547526 | CL28: -0.6601016701 | CM28: -0.8571199292 | CN28: 0.1858391657 | CO28: -0.1832616102 | CP28: -0.1380638003 | CQ28: -0.01584754153 | CR28: 0.7542810522 | CS28: -0.01801517593 | CT28: 0.326561576 | CU28: -0.101516213 | CV28: -0.8706266394 | CW28: 1.330508259 | CX28: -0.1368617606 | CY28: 0.0005469166751 | CZ28: -0.1767880745 | DA28: 0.0925665045 | DB28: -0.05539618829 | DC28: 0.3600880708 | DD28: 0.06389708523 | DE28: 0.02341191768 | DF28: 0.04188433743 | DG28: -0.3115226225 | DH28: -0.1121847209 | DI28: -0.667116216 | DJ28: 0.3827734079 | DK28: -0.2142643754 | DL28: -0.1806183654 | DM28: 0.1494963584 | DN28: -0.5968911881 | DO28: 0.0471815433 | DP28: -0.749546578 | DQ28: 0.3460851841 | DR28: 0.586209954 | DS28: -0.7135183825 | DT28: -0.02214531221 | DU28: -0.1515100352 | DV28: -0.2779557535 | DW28: -0.1184590846 | DX28: 0.005935353555 | DY28: 0.8263615789 | DZ28: -0.1014696926 | EA28: -0.1194463175 | EB28: -0.09031981283 | EC28: 0.601386771 | ED28: 0.179460271 | EE28: -0.03995998352 | EF28: -0.1002056003 | EG28: 0.03687650208 | EH28: -0.06352144731 | EI28: 0.1774308748 | EJ28: 0.1662878564 | EK28: 0.1192625195 | EL28: -0.08935550434 | EM28: -0.8406346856 | EN28: 0.2575614269 | EO28: -0.08888354219 | EP28: 0.2264908854 | EQ28: -0.1942410505 | ER28: -0.06069959866 | ES28: -0.4468171328 | ET28: -0.196977482 | EU28: -0.009437806501 | EV28: 0.08419258542 | EW28: 0.05249811272 | EX28: 0.07820154621 | EY28: -0.3067647288 | EZ28: 0.2961868019 | FA28: -0.9422005951 | FB28: 0.1909248142 | FC28: -0.4122162859 | FD28: 0.3840032492 | FE28: 0.07402755395 | FF28: -0.1016468399 | FG28: -0.5542230794 | FH28: -0.1428263755 | FJ28: 24 | FK28: -1.040113609 | FM28: 24 | FN28: -0.126050906
A29: HMA9_P | B29: =PSAT!B25 -> 0 | D29: HMA9_P | E29: =B29 -> 0 | F29: SUBG_P | I29: =E29*G25+H25 -> 0 | J29: SUBG_P | K29: 0.04317364293 | L29: 0.3750419503 | M29: =(E29-L25)/K25 -> -0.4916112348 | O29: 24 | P29: 5.316144486 | R29: 24 | S29: 4.276030877 | V29: 24 | W29: 0.9996137817 | Y29: 24 | Z29: -4.015858127 | AB29: 24 | AC29: -4.141909033 | AF29: 24 | AG29: -0.9994949855 | AH29: -0.9994949855 | AJ29: 25 | AK29: -0.1897301551 | AL29: -0.01572877689 | AM29: -0.05010505083 | AN29: 0.4339910674 | AO29: 0.3059174197 | AP29: 0.2671545896 | AQ29: 0.7497035909 | AR29: 0.06633205048 | AS29: -0.042627091 | AT29: -0.2833715585 | AU29: -0.168323916 | AV29: 0.8356251678 | AW29: 0.2664818382 | AX29: -0.1556730851 | AY29: 0.5677701381 | AZ29: 0.03740289394 | BA29: 0.1652205999 | BB29: 0.1649253705 | BC29: -0.02010892941 | BD29: -0.5909543571 | BE29: 0.6899971172 | BF29: -0.01320181246 | BG29: 0.3265864533 | BH29: 0.2890169898 | BI29: -0.132170579 | BJ29: 0.02162624191 | BK29: 0.2155351623 | BL29: 0.2428214122 | BM29: -0.01641754749 | BN29: -0.1483211917 | BO29: 0.6182873537 | BP29: -0.5386232061 | BQ29: -0.4331368485 | BR29: -0.3975587275 | BS29: -0.06733832022 | BT29: 0.03658626521 | BU29: -0.01676954926 | BV29: -0.3034490305 | BW29: -0.02346554736 | BX29: -0.6084072973 | BY29: -0.4080714393 | BZ29: 0.3566877319 | CA29: -0.1990349146 | CB29: 0.07072344281 | CC29: 0.4262740127 | CD29: -0.04881525377 | CE29: 0.2498218478 | CF29: -0.4182954855 | CG29: -0.1445503957 | CH29: 0.5069855989 | CI29: 0.7687592321 | CJ29: 0.06537916481 | CK29: 0.03952711962 | CL29: -0.8236039141 | CM29: -0.07606181309 | CN29: -0.1383785352 | CO29: -0.7208533821 | CP29: -0.01690195753 | CQ29: 0.7043474591 | CR29: 0.5338882862 | CS29: 0.02386518064 | CT29: -0.1041861327 | CU29: -0.8528301071 | CV29: -0.6294748506 | CW29: 0.5462745849 | CX29: 0.06071363124 | CY29: 0.238347183 | CZ29: 0.5501297044 | DA29: 0.417506742 | DB29: -0.1152754587 | DC29: -0.03150479936 | DD29: 0.0229494479 | DE29: 0.3206902386 | DF29: -0.1052440084 | DG29: -0.5999924043 | DH29: 0.05328103048 | DI29: -0.2655880581 | DJ29: 0.002390668938 | DK29: -0.07010165248 | DL29: -0.2441954973 | DM29: -0.913502195 | DN29: -0.02580110062 | DO29: 0.2898060695 | DP29: -0.3700868781 | DQ29: 0.2719250276 | DR29: 0.06869232119 | DS29: -0.3241902487 | DT29: -0.08825554217 | DU29: -0.5534404568 | DV29: -0.1546847058 | DW29: 0.1860751527 | DX29: -0.06853005046 | DY29: 0.3274428951 | DZ29: -0.1509755447 | EA29: -0.1420667167 | EB29: -0.4696693215 | EC29: 0.2799638485 | ED29: 0.136987247 | EE29: -0.01516444279 | EF29: -0.09165149148 | EG29: -0.2673725483 | EH29: 0.1145909063 | EI29: -0.04445539435 | EJ29: -0.1308173785 | EK29: -0.01873288799 | EL29: -0.2831872971 | EM29: -0.186213375 | EN29: 0.2168693125 | EO29: -0.003976237921 | EP29: -0.1422577576 | EQ29: -0.08135485739 | ER29: -0.04690033827 | ES29: -0.1297583435 | ET29: 0.07789239457 | EU29: -0.4150133453 | EV29: 0.4569025133 | EW29: -0.3502860293 | EX29: 0.1353735562 | EY29: -0.05597997749 | EZ29: 0.2746406596 | FA29: -0.4134684542 | FB29: 0.130103855 | FC29: -0.2974882656 | FD29: 0.1166255111 | FE29: 0.7357157947 | FF29: -0.03258504709 | FG29: -0.2595276009 | FH29: 0.3772397468 | FJ29: 25 | FK29: 0.5836274997 | FM29: 25 | FN29: -0.3471407006
A30: HMA9_T | B30: =PSAT!B26 -> 0 | D30: HMA9_T | E30: =LN(B30+1) -> 0 | F30: HMA1_T | I30: =E30*G38+H38 -> 0 | J30: HMA1_T | K30: 0.3738124369 | L30: 1.114560582 | M30: =(E30-L38)/K38 -> -0.4687911699 | O30: 25 | P30: -7.93101847 | R30: 25 | S30: -7.34739097 | V30: 25 | W30: -0.9999991698 | Y30: 25 | Z30: 2.98922931 | AB30: 25 | AC30: 2.642088609 | AF30: 25 | AG30: 0.9899087688 | AH30: 0.9899087688 | AJ30: 26 | AK30: -0.4076396572 | AL30: -0.05718820195 | AM30: -0.1746524685 | AN30: 0.473497027 | AO30: 0.03013471435 | AP30: 0.4700980644 | AQ30: 1.009942046 | AR30: 0.1728196547 | AS30: -0.2430875603 | AT30: -0.3730247794 | AU30: -0.08281860441 | AV30: 0.9535252311 | AW30: 0.2690574974 | AX30: -0.2948563161 | AY30: 0.9357918667 | AZ30: -0.05506064774 | BA30: 0.2728204121 | BB30: 0.04366381469 | BC30: 0.03475134412 | BD30: -0.8208778927 | BE30: 1.328120351 | BF30: -0.05345814547 | BG30: 0.3328291397 | BH30: 0.2422329878 | BI30: -0.1745568537 | BJ30: -0.02699585678 | BK30: 0.1464326036 | BL30: 0.5198933105 | BM30: -0.1676060496 | BN30: -0.2185489626 | BO30: 0.9035758948 | BP30: -0.9154123806 | BQ30: -0.5353375361 | BR30: -0.5299756388 | BS30: 0.02139627909 | BT30: -0.1991623313 | BU30: 0.07757808088 | BV30: -0.4752712099 | BW30: -0.3565830799 | BX30: -0.8565968011 | BY30: -0.5059718618 | BZ30: 0.39737459 | CA30: -0.3014074398 | CB30: 0.07454725295 | CC30: 0.3749286012 | CD30: 0.2564555287 | CE30: 0.1582806169 | CF30: -0.6475632373 | CG30: -0.1376015872 | CH30: 0.6004692644 | CI30: 0.9962212718 | CJ30: 0.04454435787 | CK30: 0.186456532 | CL30: -0.5872238479 | CM30: -0.340879207 | CN30: -0.0227404655 | CO30: -0.8638456315 | CP30: 0.09001987597 | CQ30: 0.9412896554 | CR30: 0.8064809036 | CS30: 0.1009283668 | CT30: 0.0381753021 | CU30: -1.477405753 | CV30: -0.8476467248 | CW30: 0.7525405255 | CX30: 0.001049886485 | CY30: 0.6025981505 | CZ30: 0.609848015 | DA30: 0.5953948755 | DB30: -0.08425628365 | DC30: 0.1051038856 | DD30: -0.08951843114 | DE30: 0.7267160751 | DF30: 0.1112884171 | DG30: -1.199403786 | DH30: 0.1872953595 | DI30: -0.4324756229 | DJ30: -0.1255342609 | DK30: -0.07036613015 | DL30: -0.1212650795 | DM30: -0.604569482 | DN30: -0.3572437191 | DO30: 0.506996172 | DP30: -0.1753503987 | DQ30: 0.4219706013 | DR30: -0.01354300542 | DS30: -0.3870881013 | DT30: -0.04480182168 | DU30: -0.8798962669 | DV30: -0.1281682523 | DW30: 0.3327526732 | DX30: 0.008661540977 | DY30: 0.3453084665 | DZ30: -0.0127292251 | EA30: -0.3869207312 | EB30: -0.7693685982 | EC30: 0.1566828834 | ED30: 0.1919872186 | EE30: 0.06568790916 | EF30: 0.1355658943 | EG30: -0.3932450293 | EH30: -0.008932413 | EI30: 0.2000315539 | EJ30: -0.004365007752 | EK30: -0.06311463264 | EL30: -0.7576018524 | EM30: -0.2572457203 | EN30: 0.7605302007 | EO30: 0.2032604469 | EP30: -0.02257128623 | EQ30: -0.1484302168 | ER30: 0.2171489966 | ES30: -0.337143539 | ET30: -0.08910108078 | EU30: -0.6877173375 | EV30: 0.5830018942 | EW30: -0.4912445933 | EX30: 0.3513842309 | EY30: -0.0930403253 | EZ30: 0.6915501508 | FA30: -0.971172328 | FB30: 0.2075392262 | FC30: -0.2517755691 | FD30: 0.0943192873 | FE30: 1.346191852 | FF30: 0.1055316881 | FG30: -0.4474802562 | FH30: 0.5324042087 | FJ30: 26 | FK30: 0.7368262761 | FM30: 26 | FN30: 0.01832809963
A31: HMA10_E | B31: =PSAT!B21 -> 0 | D31: HMA10_E | E31: =B31 -> 0 | F31: HMA2_T | I31: =E31*G13+H13 -> 0 | J31: HMA2_T | K31: 0.4866717341 | L31: 1.003836722 | M31: =(E31-L13)/K13 -> -0.2888352868 | O31: 26 | P31: 1.981262759 | R31: 26 | S31: 2.718089035 | V31: 26 | W31: 0.9913255862 | Y31: 26 | Z31: -0.3904755487 | AB31: 26 | AC31: -0.3721474491 | AF31: 26 | AG31: -0.3558686348 | AH31: -0.3558686348 | AJ31: 27 | AK31: -0.08944384311 | AL31: -0.05377877834 | AM31: 0.0704093497 | AN31: 0.5211178768 | AO31: -0.05180364802 | AP31: 0.3364687001 | AQ31: 0.9269380734 | AR31: 0.0259426344 | AS31: -0.15504952 | AT31: -0.2058079971 | AU31: -0.1526145108 | AV31: 0.7277282088 | AW31: 0.252300181 | AX31: -0.2124326537 | AY31: 0.8005982455 | AZ31: -0.03145850232 | BA31: 0.4089683738 | BB31: -0.2784210918 | BC31: -0.04508267727 | BD31: -0.3751852912 | BE31: 1.065188599 | BF31: -0.05533861703 | BG31: 0.3929051033 | BH31: 0.4429219206 | BI31: 0.08147993682 | BJ31: -0.09626444694 | BK31: 0.1116169427 | BL31: 0.405090651 | BM31: -0.06037622264 | BN31: -0.1954280676 | BO31: 0.7134518301 | BP31: -0.5841459552 | BQ31: -0.4704021206 | BR31: -0.6304854544 | BS31: -0.1342347817 | BT31: -0.02138439501 | BU31: 0.1562809751 | BV31: -0.3017812481 | BW31: -0.3660701009 | BX31: -0.8280825362 | BY31: -0.181906031 | BZ31: 0.1867669852 | CA31: -0.3326911984 | CB31: -0.06923832244 | CC31: 0.1255824084 | CD31: -0.1106357717 | CE31: 0.01088053357 | CF31: -0.5569799097 | CG31: 0.04860200656 | CH31: 0.6168669694 | CI31: 0.9850884701 | CJ31: -0.04904288346 | CK31: 0.0965026459 | CL31: -0.5940088636 | CM31: -0.4912837442 | CN31: -0.1307414525 | CO31: -0.770902891 | CP31: -0.1281830835 | CQ31: 0.7361675728 | CR31: 0.4851673929 | CS31: 0.01836782202 | CT31: 0.02852218408 | CU31: -1.277048628 | CV31: -0.7106447029 | CW31: 0.5983492758 | CX31: -0.238148178 | CY31: 0.4884921753 | CZ31: 0.7781054698 | DA31: 0.5548363362 | DB31: -0.1554192556 | DC31: 0.1096267669 | DD31: 0.05360166659 | DE31: 0.6186718275 | DF31: -0.1306225282 | DG31: -0.6614020429 | DH31: -0.01159470791 | DI31: -0.2091348751 | DJ31: 0.1371336222 | DK31: 0.03562069614 | DL31: -0.3316686499 | DM31: -0.1650403227 | DN31: -0.2347137616 | DO31: 0.4709954832 | DP31: -0.1476865338 | DQ31: 0.2257512228 | DR31: 0.1850196088 | DS31: -0.2254346436 | DT31: 0.07620252929 | DU31: -0.8222734835 | DV31: -0.2497411679 | DW31: 0.03613952519 | DX31: -0.04086899585 | DY31: 0.1991054938 | DZ31: 0.0179663493 | EA31: -0.2569372956 | EB31: -0.4549453502 | EC31: 0.08984320918 | ED31: -0.005942238156 | EE31: -0.05047929171 | EF31: -0.02829187675 | EG31: -0.3846498429 | EH31: -0.02966014641 | EI31: -0.03902989083 | EJ31: -0.118264742 | EK31: 0.07135776809 | EL31: -0.3599031395 | EM31: -0.3317939793 | EN31: 0.5661321793 | EO31: 0.2090460583 | EP31: 0.002897432644 | EQ31: -0.03027489948 | ER31: 0.00635260346 | ES31: -0.4006957929 | ET31: -0.1056095727 | EU31: -0.6686531866 | EV31: 0.6234050673 | EW31: -0.495749896 | EX31: 0.3042624411 | EY31: -0.1798491361 | EZ31: 0.5024555386 | FA31: -0.7259938102 | FB31: 0.1540523537 | FC31: -0.2241879487 | FD31: -0.009007965779 | FE31: 0.8726368027 | FF31: 0.07216409207 | FG31: -0.2851727156 | FH31: 0.4342708636 | FJ31: 27 | FK31: 0.01463995168 | FM31: 27 | FN31: -0.04701141722
A32: HMA10_P | B32: =PSAT!B22 -> 0 | D32: HMA10_P | E32: =B32 -> 0 | F32: HMA3_T | I32: =E32*G26+H26 -> 0 | J32: HMA3_T | K32: 0.55834751 | L32: 0.8926109609 | M32: =(E32-L26)/K26 -> -0.3284495453 | O32: 27 | P32: 1.040623446 | R32: 27 | S32: 1.055263397 | V32: 27 | W32: 0.7838442503 | Y32: 27 | Z32: 0.4586417123 | AB32: 27 | AC32: 0.4116302951 | AF32: 27 | AG32: 0.3898560685 | AH32: 0.3898560685 | AJ32: 28 | AK32: -0.2528465937 | AL32: 0.01192063051 | AM32: 0.09242803561 | AN32: 0.1326955013 | AO32: 0.1719199531 | AP32: 0.02517413427 | AQ32: 0.05849543475 | AR32: 0.03354679366 | AS32: -0.04699816778 | AT32: -0.1374692479 | AU32: -0.03753770577 | AV32: 0.2888692232 | AW32: 0.3164221346 | AX32: -0.1871248729 | AY32: 0.421492414 | AZ32: 0.04333497405 | BA32: 0.05258035604 | BB32: 0.0679263098 | BC32: -0.02003080239 | BD32: -0.1318294216 | BE32: 0.2416620742 | BF32: -0.093718939 | BG32: 0.03715097466 | BH32: 0.2834699482 | BI32: -0.1781889665 | BJ32: 0.1429169314 | BK32: 0.004155129092 | BL32: 0.1396281511 | BM32: 0.0800092175 | BN32: 0.003067445212 | BO32: 0.154965834 | BP32: -0.2547043826 | BQ32: -0.05122264467 | BR32: -0.1421530216 | BS32: 0.004106974569 | BT32: 0.06063602379 | BU32: 0.03747801431 | BV32: -0.07253281207 | BW32: -0.1090133053 | BX32: -0.4364732915 | BY32: -0.112712253 | BZ32: 0.2049295404 | CA32: -0.2007393086 | CB32: 0.01051281152 | CC32: 0.3011089308 | CD32: -0.08094951445 | CE32: 0.07365679605 | CF32: -0.4251196995 | CG32: -0.00482362136 | CH32: 0.255004172 | CI32: 0.2151240601 | CJ32: 0.1930167954 | CK32: -0.1711695787 | CL32: -0.2612068726 | CM32: -0.1982947706 | CN32: -0.1399902779 | CO32: -0.3390293917 | CP32: -0.03047196307 | CQ32: 0.1860382807 | CR32: 0.1623005167 | CS32: 0.04570432149 | CT32: 0.09664337536 | CU32: -0.2859814014 | CV32: -0.2007714278 | CW32: 0.1216317046 | CX32: -0.09199730101 | CY32: -0.005548338127 | CZ32: 0.1003754941 | DA32: -0.0858112001 | DB32: 0.09744972604 | DC32: 0.1520753011 | DD32: 0.03372460476 | DE32: -0.002951683213 | DF32: -0.2103850879 | DG32: -0.307904442 | DH32: 0.2144607336 | DI32: -0.1719869937 | DJ32: 0.1193779938 | DK32: 0.02476820822 | DL32: -0.1756221673 | DM32: 0.002082178597 | DN32: -0.1206827837 | DO32: 0.3329518619 | DP32: -0.1962459224 | DQ32: 0.04758301202 | DR32: -0.06826212594 | DS32: 0.01859968327 | DT32: -0.0732797295 | DU32: -0.3103997478 | DV32: -0.1599192843 | DW32: 0.2019873957 | DX32: 0.07193627411 | DY32: -0.1089767346 | DZ32: 0.2286559224 | EA32: -0.2035534253 | EB32: -0.208029365 | EC32: 0.1294525115 | ED32: -0.01904904999 | EE32: -0.02704424476 | EF32: -0.2771949499 | EG32: -0.2113993233 | EH32: 0.1079701476 | EI32: -0.03602812817 | EJ32: -0.09697430253 | EK32: 0.04062686021 | EL32: -0.1525281578 | EM32: -0.1634065654 | EN32: 0.06054198222 | EO32: 0.04228816844 | EP32: 0.01626062411 | EQ32: -0.01507055618 | ER32: -0.1876544551 | ES32: -0.1258432617 | ET32: -0.1030087174 | EU32: -0.1832130483 | EV32: 0.3277877335 | EW32: -0.2506174259 | EX32: 0.1654090195 | EY32: -0.1871758665 | EZ32: 0.2289701523 | FA32: -0.32597736 | FB32: 0.107740682 | FC32: -0.1711791861 | FD32: 0.05493882801 | FE32: 0.2345577508 | FF32: 0.05987294767 | FG32: -0.209216132 | FH32: 0.168319355 | FJ32: 28 | FK32: 0.7201152162 | FM32: 28 | FN32: 0.1193888245
A33: HMA10_T | B33: =PSAT!B23 -> 0 | D33: HMA10_T | E33: =LN(B33+1) -> 0 | F33: HMA4_T | I33: =E33*G39+H39 -> 0 | J33: HMA4_T | K33: 0.5983667807 | L33: 0.7803728401 | M33: =(E33-L39)/K39 -> -0.3144996378 | O33: 28 | P33: -3.505485739 | R33: 28 | S33: -2.785370523 | V33: 28 | W33: -0.992413571 | Y33: 28 | Z33: -0.1140794045 | AB33: 28 | AC33: 0.005309420093 | AF33: 28 | AG33: 0.005309370203 | AH33: 0.005309370203 | AJ33: 29 | AK33: -0.1498231126 | AL33: -0.02196238108 | AM33: -0.1620293461 | AN33: 0.185757365 | AO33: 0.2279762766 | AP33: 0.3712789478 | AQ33: 0.2842658767 | AR33: -0.0534630061 | AS33: -0.02607007385 | AT33: -0.1972638799 | AU33: 0.07955840698 | AV33: 0.4616057926 | AW33: 0.1842058835 | AX33: -0.04850992111 | AY33: 0.4904580621 | AZ33: -0.07597719924 | BA33: -0.2066732475 | BB33: 0.008020800594 | BC33: 0.04167633458 | BD33: -0.2279587487 | BE33: 0.2112811273 | BF33: 0.01330920088 | BG33: 0.06524732334 | BH33: 0.3053642683 | BI33: -0.1494965525 | BJ33: -0.01623610954 | BK33: 0.1300549761 | BL33: 0.07088183446 | BM33: -0.09330546454 | BN33: -0.2439746348 | BO33: 0.1875324474 | BP33: -0.2085810662 | BQ33: -0.007101258559 | BR33: -0.1915696148 | BS33: -0.07100926926 | BT33: -0.0680293056 | BU33: -0.1590050256 | BV33: -0.2756166511 | BW33: -0.174813602 | BX33: -0.4332194524 | BY33: -0.02750697296 | BZ33: 0.1769881521 | CA33: -0.2244917349 | CB33: 0.07843456311 | CC33: -0.007172443249 | CD33: 0.1105341192 | CE33: 0.04285923167 | CF33: -0.4511224786 | CG33: 0.1477049697 | CH33: 0.3644886229 | CI33: 0.4124408156 | CJ33: 0.00646615475 | CK33: -0.08981794022 | CL33: -0.1589395346 | CM33: -0.008915098384 | CN33: -0.1808923976 | CO33: -0.3303848339 | CP33: 0.1026371359 | CQ33: 0.2392792892 | CR33: 0.2067104686 | CS33: -0.0006383019433 | CT33: -0.06922781715 | CU33: -0.6429870614 | CV33: -0.4207973735 | CW33: 0.4257017757 | CX33: 0.08930223556 | CY33: 0.02800409389 | CZ33: 0.2287317443 | DA33: 0.1234825295 | DB33: 0.06784562863 | DC33: -0.1582158366 | DD33: -0.02864290429 | DE33: 0.3003824572 | DF33: 0.1949829815 | DG33: -0.4053102117 | DH33: -0.05267528399 | DI33: -0.1125681727 | DJ33: 0.1028761891 | DK33: -0.09763325699 | DL33: -0.3563893328 | DM33: 0.01152561426 | DN33: 0.13150604 | DO33: 0.1192325334 | DP33: -0.1909483602 | DQ33: -0.02445278798 | DR33: -0.09075888458 | DS33: -0.3230291229 | DT33: 0.007999479573 | DU33: -0.2011867217 | DV33: -0.04936236416 | DW33: 0.125383337 | DX33: 0.04367133713 | DY33: 0.1410892118 | DZ33: -0.1970723184 | EA33: -0.06856646091 | EB33: -0.231677754 | EC33: 0.1413514993 | ED33: 0.01053975007 | EE33: 0.06248822578 | EF33: -0.3367088338 | EG33: -0.3186331359 | EH33: -0.05437672232 | EI33: -0.1293863633 | EJ33: -0.07236815857 | EK33: -0.04692296896 | EL33: -0.08663073639 | EM33: -0.2152462501 | EN33: 0.1314748675 | EO33: 0.1633844497 | EP33: 0.04684955948 | EQ33: -0.2233379552 | ER33: 0.1979686254 | ES33: -0.2148041132 | ET33: 0.0377631993 | EU33: -0.04801855439 | EV33: 0.05910572267 | EW33: -0.2695500525 | EX33: 0.2567329455 | EY33: 0.07706412809 | EZ33: 0.176189606 | FA33: -0.3425773362 | FB33: -0.1047883402 | FC33: 0.187181598 | FD33: -0.04591064976 | FE33: 0.5170485755 | FF33: 0.04714501996 | FG33: -0.3147927042 | FH33: 0.03521477876 | FJ33: 29 | FK33: 1.160806542 | FM33: 29 | FN33: 0.009798370874
A34: SB_E | B34: =PSAT!B51 -> 0 | D34: SB_E | E34: =B34 -> 0 | F34: HMA5_T | I34: =E34*G14+H14 -> 0 | J34: HMA5_T | K34: 0.6184499011 | L34: 0.6703744196 | M34: =(E34-L14)/K14 -> -1.832012301 | O34: 29 | P34: 0.3290323965 | R34: 29 | S34: 1.489838939 | V34: 29 | W34: 0.9032951022 | Y34: 29 | Z34: 3.796921113 | AB34: 29 | AC34: 3.806719484 | AF34: 29 | AG34: 0.9990129456 | AH34: 0.9990129456 | AJ34: 30 | AK34: -0.2433023275 | AL34: -0.08786547922 | AM34: 0.01388844041 | AN34: 0.1018770626 | AO34: 0.0924701042 | AP34: 0.01123182339 | AQ34: 0.151907429 | AR34: -0.004993926078 | AS34: -0.0832529286 | AT34: 0.07515369297 | AU34: -0.07294482593 | AV34: 0.1397628229 | AW34: 0.3451836048 | AX34: 0.06746021979 | AY34: 0.2563227764 | AZ34: 0.01310048249 | BA34: 0.04560846251 | BB34: -0.1544798741 | BC34: -0.0439322774 | BD34: 0.02419700066 | BE34: 0.05554703063 | BF34: -0.007099102237 | BG34: 0.06227697645 | BH34: 0.3423934309 | BI34: 0.01526090518 | BJ34: -0.09211187951 | BK34: 0.09993270021 | BL34: 0.0627280082 | BM34: 0.03447638162 | BN34: -0.001141851458 | BO34: 0.3680745542 | BP34: -0.1017805507 | BQ34: -0.2580894507 | BR34: -0.2476662031 | BS34: -0.01368797007 | BT34: 0.04091633668 | BU34: -0.02073445605 | BV34: -0.1188265673 | BW34: -0.1134194444 | BX34: -0.5065068657 | BY34: -0.224424283 | BZ34: 0.2410459676 | CA34: -0.05268946631 | CB34: -0.07631275658 | CC34: 0.1899357217 | CD34: -0.0496764471 | CE34: -0.07096456621 | CF34: -0.2487393275 | CG34: -0.08653994132 | CH34: 0.2087629305 | CI34: 0.3599263623 | CJ34: 0.08012960902 | CK34: 0.1065579014 | CL34: -0.4608089314 | CM34: -0.1443097312 | CN34: -0.0790852427 | CO34: -0.1996090058 | CP34: -0.1248489039 | CQ34: 0.1699348169 | CR34: 0.4684092887 | CS34: 0.01365921893 | CT34: -0.1116790566 | CU34: -0.5174887837 | CV34: -0.2226906609 | CW34: 0.3044301739 | CX34: 0.1560660673 | CY34: 0.09957017689 | CZ34: 0.3047253873 | DA34: 0.1256501335 | DB34: 0.09897897319 | DC34: 0.1394019903 | DD34: 0.04706645352 | DE34: 0.1145583712 | DF34: -0.06365857537 | DG34: -0.2109788959 | DH34: 0.07314720637 | DI34: -0.1012146959 | DJ34: -0.06692174085 | DK34: 0.009402785359 | DL34: -0.3129587301 | DM34: 0.07627993972 | DN34: -0.1691983809 | DO34: 0.3410059038 | DP34: -0.1451467245 | DQ34: 0.06659862015 | DR34: 0.1327101492 | DS34: 0.0211884393 | DT34: 0.03147372252 | DU34: -0.2650882169 | DV34: 0.1198552699 | DW34: 0.08481368372 | DX34: 0.07158024381 | DY34: 0.2052671719 | DZ34: -0.01218125174 | EA34: -0.2014350258 | EB34: -0.2766024567 | EC34: 0.0477749505 | ED34: -0.09454279452 | EE34: -0.01614537608 | EF34: -0.2187729983 | EG34: -0.207289566 | EH34: -0.01655681748 | EI34: 0.144405814 | EJ34: 0.001576157463 | EK34: 0.005577058695 | EL34: 0.02734739424 | EM34: -0.1823890585 | EN34: 0.1783251736 | EO34: -0.1647540701 | EP34: 0.05805923688 | EQ34: -0.1468827759 | ER34: -0.0378150232 | ES34: 0.03715357377 | ET34: 0.05137690573 | EU34: -0.2609383435 | EV34: 0.2408287984 | EW34: -0.1944780642 | EX34: 0.2934213455 | EY34: 0.05345970467 | EZ34: 0.4005339114 | FA34: -0.3147758425 | FB34: 0.07059474546 | FC34: 0.05291696034 | FD34: 0.07162666131 | FE34: 0.4454422584 | FF34: 0.08677107117 | FG34: 0.01459645965 | FH34: 0.0008022635554 | FJ34: 30 | FK34: -0.2844474473 | FM34: 30 | FN34: 0.0250058018
A35: SB_P | B35: =PSAT!B52 -> 0 | D35: SB_P | E35: =B35 -> 0 | F35: HMA6_T | I35: =E35*G27+H27 -> 0 | J35: HMA6_T | K35: 0.6178011463 | L35: 0.5577041923 | M35: =(E35-L27)/K27 -> -6.043525951 | O35: 30 | P35: 3.331853351 | R35: 30 | S35: 3.047405904 | V35: 30 | W35: 0.9955010742 | Y35: 30 | Z35: 0.04850547786 | AB35: 30 | AC35: 0.07351127966 | AF35: 30 | AG35: 0.07337914919 | AH35: 0.07337914919 | AJ35: 31 | AK35: 0.5656283425 | AL35: 0.1337991597 | AM35: 0.150478522 | AN35: 0.6975780957 | AO35: 0.01333310349 | AP35: 0.01270386127 | AQ35: 0.07834951561 | AR35: -0.01629091558 | AS35: 0.01076690602 | AT35: 0.7498254773 | AU35: 0.01280020998 | AV35: -0.2125999539 | AW35: -0.005544535843 | AX35: -0.2463310873 | AY35: -0.07853342912 | AZ35: 0.02321179619 | BA35: -1.564245041 | BB35: -0.03722905302 | BC35: -0.09187711205 | BD35: -0.01389612194 | BE35: -0.3124672451 | BF35: -0.1215110511 | BG35: 0.10613715 | BH35: -0.02139682742 | BI35: -1.777887522 | BJ35: -0.8676362783 | BK35: -1.517941721 | BL35: 0.03990166912 | BM35: -0.4418100196 | BN35: -0.01512555226 | BO35: -0.3589403003 | BP35: -0.1337445813 | BQ35: 0.1587989759 | BR35: 0.1527823474 | BS35: -0.402342094 | BT35: -0.1786062964 | BU35: 0.07123422537 | BV35: 0.4120091348 | BW35: -0.1223458937 | BX35: 4.240936896 | BY35: 1.253008362 | BZ35: -0.1000341197 | CA35: 0.1374129385 | CB35: -0.2962393791 | CC35: -0.2830626296 | CD35: -0.1695343097 | CE35: -0.4104528065 | CF35: 0.4253851523 | CG35: 0.7577668228 | CH35: -0.9312955984 | CI35: 3.343442083 | CJ35: 1.210982777 | CK35: 0.08084482558 | CL35: 1.97667293 | CM35: 1.447519546 | CN35: -0.1844616337 | CO35: -0.003562654115 | CP35: -0.002497301784 | CQ35: -0.2729265949 | CR35: 0.08039787316 | CS35: 0.2391521294 | CT35: -0.144340546 | CU35: 0.08111848394 | CV35: 2.99957479 | CW35: 0.001266746989 | CX35: 0.07602078537 | CY35: -0.02807822281 | CZ35: 0.09164570794 | DA35: 0.03196928982 | DB35: -0.2075954972 | DC35: -0.2585676525 | DD35: 0.1039976259 | DE35: 0.08466210518 | DF35: -0.00442987255 | DG35: 0.1620649274 | DH35: -0.1418041288 | DI35: 0.09973101644 | DJ35: -0.2800349104 | DK35: -0.1444137169 | DL35: 1.270148993 | DM35: 0.2910802579 | DN35: 0.03172169056 | DO35: 0.009970602252 | DP35: 1.811649972 | DQ35: -0.3852698383 | DR35: 0.2576017928 | DS35: -0.1801938862 | DT35: -0.02209286807 | DU35: 0.1904204265 | DV35: 1.716481141 | DW35: 1.044671493 | DX35: 0.2422604705 | DY35: -0.2605171304 | DZ35: -0.1525824514 | EA35: 1.283241207 | EB35: -0.2369055288 | EC35: 0.3742042763 | ED35: 0.242427618 | EE35: -0.2242880588 | EF35: 0.03477158222 | EG35: -0.025313338 | EH35: 1.151391668 | EI35: -0.7201726289 | EJ35: -0.3225123657 | EK35: 0.7245927746 | EL35: -0.03133335035 | EM35: 0.1451650657 | EN35: 0.03522634799 | EO35: 0.2073572156 | EP35: -0.2901536508 | EQ35: -0.004675210329 | ER35: 0.7839865741 | ES35: -0.2866179445 | ET35: -0.2222693498 | EU35: -0.6083353149 | EV35: -0.1986255771 | EW35: -0.2829281209 | EX35: -0.751893478 | EY35: -0.2175121059 | EZ35: 0.1220202862 | FA35: 5.45124381 | FB35: 0.5978127657 | FC35: 0.1008758038 | FD35: -0.270177047 | FE35: -1.573072184 | FF35: -0.111890335 | FG35: -0.4379412829 | FH35: -0.7705919787 | FJ35: 31 | FK35: -0.6160289161 | FM35: 31 | FN35: 0.3585585583
A36: SB_T | B36: =PSAT!B53 -> 0 | D36: SB_T | E36: =LN(B36+1) -> 0 | F36: HMA7_T | I36: =E36*G40+H40 -> 0 | J36: HMA7_T | K36: 0.594052475 | L36: 0.4448874903 | M36: =(E36-L40)/K40 -> -3.398079867 | O36: 31 | P36: -1.1602715 | R36: 31 | S36: -1.776300416 | V36: 31 | W36: -0.9442958675 | Y36: 31 | Z36: -2.837347388 | AB36: 31 | AC36: -2.478788829 | AF36: 31 | AG36: -0.9860382778 | AH36: -0.9860382778 | AJ36: 32 | AK36: 0.04667685629 | AL36: 0.05191594427 | AM36: -0.07726348303 | AN36: -0.07375704313 | AO36: -0.02775901855 | AP36: 0.03403020533 | AQ36: 0.001329584156 | AR36: 0.08904406859 | AS36: 0.04161866371 | AT36: -0.1623505911 | AU36: 0.02512755255 | AV36: -0.00935050723 | AW36: -0.01540519368 | AX36: 0.1445633236 | AY36: -0.1346672904 | AZ36: 0.00103639904 | BA36: 0.06583305052 | BB36: -0.03645976084 | BC36: -0.002327854748 | BD36: 0.008769406462 | BE36: 0.01436077082 | BF36: 0.0174844432 | BG36: -0.03591055159 | BH36: 0.01192894633 | BI36: 0.1192235497 | BJ36: -0.1377608139 | BK36: -0.0307079769 | BL36: 0.00598965557 | BM36: 0.05402945511 | BN36: -0.009986772107 | BO36: -0.13041973 | BP36: -0.05786533908 | BQ36: 0.02277848489 | BR36: 0.01380061629 | BS36: 0.03538901498 | BT36: 0.09844651272 | BU36: 0.185060724 | BV36: -0.05692796826 | BW36: -0.05801335068 | BX36: 0.01254620106 | BY36: 0.0798646774 | BZ36: -0.01924272814 | CA36: -0.06547562632 | CB36: 0.02492250295 | CC36: 0.153472168 | CD36: -0.02404785046 | CE36: 0.03063025429 | CF36: 0.01623472258 | CG36: -0.0913199481 | CH36: -0.05687271199 | CI36: -0.06906309909 | CJ36: 0.164784515 | CK36: 0.03101585722 | CL36: -0.08167731476 | CM36: -0.03061934011 | CN36: 0.06596860404 | CO36: -0.006978653266 | CP36: -0.04754979001 | CQ36: -7.13719169e-05 | CR36: -0.04269665224 | CS36: 0.005084703937 | CT36: -0.06572235613 | CU36: 0.01535545763 | CV36: -0.1404738192 | CW36: -0.003671373706 | CX36: 0.002204957234 | CY36: 0.1444350247 | CZ36: 0.02348682253 | DA36: 0.06039932303 | DB36: -0.03608062236 | DC36: -0.06441768492 | DD36: 0.03405631817 | DE36: -0.007483013415 | DF36: 0.03565386531 | DG36: 0.1151225165 | DH36: 0.02591470668 | DI36: -0.02173457218 | DJ36: -0.04511363315 | DK36: -0.1409639172 | DL36: -0.02758848942 | DM36: 0.0342792667 | DN36: -0.07750829829 | DO36: 0.00140002885 | DP36: 0.02032162939 | DQ36: -0.2166510361 | DR36: 0.02588109847 | DS36: 0.1677124814 | DT36: 0.01091064685 | DU36: -0.03197497807 | DV36: -0.3320148684 | DW36: -0.01149841943 | DX36: -0.08621473565 | DY36: -0.0549200188 | DZ36: 0.007950615584 | EA36: -0.1117423074 | EB36: 0.00631110823 | EC36: 0.04131857228 | ED36: 0.01784160214 | EE36: 0.1146932442 | EF36: -0.02124000835 | EG36: -0.03400544176 | EH36: -0.06061299852 | EI36: -0.1696559601 | EJ36: -0.008331101928 | EK36: -0.04573342635 | EL36: 0.02156682999 | EM36: 0.006555192936 | EN36: -0.02359361619 | EO36: 0.01638218154 | EP36: 0.01148790666 | EQ36: -0.07419211409 | ER36: -0.03319929134 | ES36: 0.05911159733 | ET36: -0.1492474469 | EU36: -0.1385060808 | EV36: -0.04412227878 | EW36: 0.2320905304 | EX36: 0.2930137106 | EY36: -0.06877181097 | EZ36: 0.008115919272 | FA36: 0.08746164502 | FB36: 0.007799497284 | FC36: 0.04856149921 | FD36: -0.06796547951 | FE36: 0.009856741871 | FF36: -0.02917067941 | FG36: -0.1143276021 | FH36: 0.02400997409 | FJ36: 32 | FK36: 0.6402731607 | FM36: 32 | FN36: -0.02271861252
A37: GB_E | B37: =PSAT!B54 -> 0 | D37: GB_E | E37: =B37 -> 0 | F37: HMA8_T | I37: =E37*G15+H15 -> 0 | J37: HMA8_T | K37: 0.5506515984 | L37: 0.3347712018 | M37: =(E37-L15)/K15 -> -1.920454563 | O37: 32 | P37: -1.3424699 | R37: 32 | S37: -0.7021967391 | V37: 32 | W37: -0.6057602834 | Y37: 32 | Z37: 0.02803469241 | AB37: 32 | AC37: 0.005316079887 | AF37: 32 | AG37: 0.005316029809 | AH37: 0.005316029809 | AJ37: 33 | AK37: 0.2098761914 | AL37: 0.6006402518 | AM37: 0.3822737813 | AN37: 0.3191140386 | AO37: -1.588249971 | AP37: -0.05564284815 | AQ37: -0.2085476089 | AR37: -0.2551922645 | AS37: -0.205218517 | AT37: 0.1597414098 | AU37: 0.9899139022 | AV37: -0.2947703056 | AW37: 0.02063799945 | AX37: 0.6497211124 | AY37: -0.8058347615 | AZ37: 0.04931353012 | BA37: 0.2468278661 | BB37: -0.2069446159 | BC37: -0.2500203984 | BD37: 0.1154836699 | BE37: -0.1851075547 | BF37: -0.3682125496 | BG37: -0.1981504712 | BH37: -0.6887613818 | BI37: -0.06841535567 | BJ37: -1.39302433 | BK37: 0.08196482013 | BL37: 0.4274491275 | BM37: -0.8480554357 | BN37: 0.0706346415 | BO37: -0.190076137 | BP37: 0.2622237218 | BQ37: 0.2463747157 | BR37: 0.2452305321 | BS37: 0.7107973042 | BT37: -0.8363745985 | BU37: 0.3348878446 | BV37: 0.06577337762 | BW37: -0.160376965 | BX37: -0.2243599377 | BY37: -0.2211995279 | BZ37: -0.7197157686 | CA37: -0.6361263999 | CB37: -0.06818588319 | CC37: -0.3838013419 | CD37: -0.1955707515 | CE37: -0.6051432425 | CF37: 0.3874224433 | CG37: 0.2214479683 | CH37: -0.1364755306 | CI37: -0.08946474051 | CJ37: 0.7448960717 | CK37: 0.4630354992 | CL37: 0.3436284329 | CM37: 0.1136692337 | CN37: -0.2212071694 | CO37: -0.1187782684 | CP37: 0.007931197027 | CQ37: 0.02089113654 | CR37: -0.6635627744 | CS37: 0.1376267601 | CT37: -0.3476966118 | CU37: 0.1912302082 | CV37: -0.2843853727 | CW37: -0.08189519195 | CX37: 0.03586166241 | CY37: 0.1111508099 | CZ37: -0.5667242402 | DA37: 0.03831454481 | DB37: 0.341870142 | DC37: -0.1365506083 | DD37: 0.07269269225 | DE37: 0.1397555584 | DF37: 0.0660263333 | DG37: 0.3839615323 | DH37: -0.6758978029 | DI37: 0.3833408392 | DJ37: -0.5566594669 | DK37: -0.7926457819 | DL37: 0.07719578704 | DM37: 0.3748760548 | DN37: 0.03213179618 | DO37: -0.09562195942 | DP37: -0.03744687325 | DQ37: 0.3131363018 | DR37: 0.2766590844 | DS37: -0.2334822349 | DT37: -0.0175762556 | DU37: 0.04015221837 | DV37: -0.2880070026 | DW37: 0.1212752819 | DX37: 0.3469719878 | DY37: -0.3169128369 | DZ37: -0.1223662324 | EA37: -0.2095627345 | EB37: -0.1229839287 | EC37: 0.9602083579 | ED37: 0.1530800484 | EE37: 0.001972894268 | EF37: -0.373494656 | EG37: -0.03382577493 | EH37: -0.3864214448 | EI37: -0.6546569701 | EJ37: -0.1555784308 | EK37: -0.1697169272 | EL37: -0.191423649 | EM37: 0.5595249392 | EN37: 0.4850902436 | EO37: 0.1749416054 | EP37: -0.07590877556 | EQ37: 0.1185483294 | ER37: 0.6062836186 | ES37: -0.0629571457 | ET37: -0.27925295 | EU37: -1.006671701 | EV37: -0.2012229443 | EW37: -0.5983942889 | EX37: -0.5528400438 | EY37: -0.1179898807 | EZ37: -0.1754782638 | FA37: -0.167222005 | FB37: -0.1028195958 | FC37: 0.4570878084 | FD37: -0.1235391501 | FE37: 0.1244798699 | FF37: -0.3311294188 | FG37: 0.2190428616 | FH37: 0.001887508655 | FJ37: 33 | FK37: 0.2931048774 | FM37: 33 | FN37: -0.3774347405
A38: GB_P | B38: =PSAT!B55 -> 0 | D38: GB_P | E38: =B38 -> 0 | F38: HMA9_T | I38: =E38*G28+H28 -> 0 | J38: HMA9_T | K38: 0.4761726015 | L38: 0.2232255109 | M38: =(E38-L28)/K28 -> -12.09819672 | O38: 33 | P38: -0.5361743575 | R38: 33 | S38: -0.2430694801 | V38: 33 | W38: -0.2383928983 | Y38: 33 | Z38: 1.99524718 | AB38: 33 | AC38: 1.617812439 | AF38: 33 | AG38: 0.9243062267 | AH38: 0.9243062267 | AJ38: 34 | AK38: 0.2144214292 | AL38: 0.1187022295 | AM38: -0.03083289327 | AN38: -0.1045893787 | AO38: 0.02203905593 | AP38: -0.09717856535 | AQ38: -0.04476318827 | AR38: -0.7421482009 | AS38: -0.1498707545 | AT38: 0.06208406586 | AU38: -0.01674436673 | AV38: -4.246399452e-05 | AW38: 0.0001924484327 | AX38: 0.2357378983 | AY38: -0.2833262691 | AZ38: -0.001074256804 | BA38: -0.09153141897 | BB38: -0.01967872716 | BC38: -0.007566261592 | BD38: 0.0003865199851 | BE38: -0.08860091925 | BF38: -0.02715070755 | BG38: -0.0614912815 | BH38: -0.1041491947 | BI38: 0.3745957495 | BJ38: -0.03990763382 | BK38: 0.1230353811 | BL38: 0.355360239 | BM38: 0.4187326013 | BN38: 0.0338854791 | BO38: 0.4386971108 | BP38: -0.02121014582 | BQ38: 0.09054005727 | BR38: 0.01597902933 | BS38: -0.2417978472 | BT38: -0.3115773264 | BU38: -0.4426576664 | BV38: 0.022221655 | BW38: 0.09515655043 | BX38: -0.07606745413 | BY38: -0.1012847629 | BZ38: -0.04129540464 | CA38: -0.1111434958 | CB38: -0.03839742048 | CC38: 0.5731169301 | CD38: 0.01594047191 | CE38: 0.5553131968 | CF38: 1.318225195 | CG38: 0.10370233 | CH38: -0.6496142043 | CI38: 0.09381538878 | CJ38: 1.02633887 | CK38: 0.141170642 | CL38: 0.03788902664 | CM38: -0.07030656423 | CN38: -0.6013393161 | CO38: -0.08669800684 | CP38: 0.00878449011 | CQ38: -0.03907116847 | CR38: 0.4159601894 | CS38: 0.6666836468 | CT38: 0.003332569817 | CU38: 2.014145224 | CV38: -0.02100472377 | CW38: -0.1789288002 | CX38: -0.02518106979 | CY38: -0.08074631535 | CZ38: -0.09024653258 | DA38: 0.05477958237 | DB38: 0.2850891469 | DC38: 0.2255271064 | DD38: 0.07523328325 | DE38: 0.02845393145 | DF38: 0.01618072046 | DG38: 0.2931448794 | DH38: -0.02432103451 | DI38: -0.4241390598 | DJ38: 0.1326648785 | DK38: -0.05321724663 | DL38: -0.0006482528739 | DM38: 0.2151114889 | DN38: 0.03525210809 | DO38: -0.0914276577 | DP38: 0.4564834298 | DQ38: 0.113605979 | DR38: 0.1013837565 | DS38: 0.3072060732 | DT38: -0.07576718445 | DU38: -0.009437174073 | DV38: -0.01480265314 | DW38: 0.008965030567 | DX38: -0.1687472486 | DY38: -0.2187183211 | DZ38: 0.04871828502 | EA38: 0.2555989596 | EB38: 0.02284738843 | EC38: -0.1586199577 | ED38: 0.04671694262 | EE38: -0.05393380183 | EF38: -0.5799407065 | EG38: 0.0002476835775 | EH38: -0.003595801713 | EI38: -0.2019539801 | EJ38: 0.6822187103 | EK38: -0.0904286857 | EL38: -0.07457043749 | EM38: 0.09052741711 | EN38: -0.132995614 | EO38: -0.05029068679 | EP38: -0.0001562469495 | EQ38: 0.08133654128 | ER38: -0.01502344702 | ES38: -0.05130473028 | ET38: -0.4421843824 | EU38: 0.02562154379 | EV38: -0.107031039 | EW38: -0.34187356 | EX38: 0.4146456588 | EY38: -0.007659818279 | EZ38: 0.2118213232 | FA38: 0.06899562982 | FB38: -0.03588335973 | FC38: -0.4377278331 | FD38: -0.9412954141 | FE38: 0.154294365 | FF38: -0.08471297366 | FG38: -0.439027176 | FH38: -0.1082326109 | FJ38: 34 | FK38: 0.05190501594 | FM38: 34 | FN38: 0.08647721474
A39: GB_T | B39: =PSAT!B56 -> 0 | D39: GB_T | E39: =LN(B39+1) -> 0 | F39: HMA10_T | I39: =E39*G41+H41 -> 0 | J39: HMA10_T | K39: 0.3522206652 | L39: 0.1107732716 | M39: =(E39-L41)/K41 -> -3.387234148 | O39: 34 | P39: -1.303129955 | R39: 34 | S39: -1.251224939 | V39: 34 | W39: -0.8486267744 | Y39: 34 | Z39: -0.004370759213 | AB39: 34 | AC39: 0.08210645553 | AF39: 34 | AG39: 0.08192244564 | AH39: 0.08192244564 | AJ39: 35 | AK39: 0.03547550665 | AL39: -0.03186391794 | AM39: -0.006400643567 | AN39: 0.04305627121 | AO39: 0.03632743442 | AP39: -0.02173147653 | AQ39: 0.04848817166 | AR39: -0.01573443121 | AS39: 0.06096141737 | AT39: -0.02849330368 | AU39: -0.06647713115 | AV39: 0.04609187397 | AW39: 0.01272134654 | AX39: 0.001765061402 | AY39: -0.004645872499 | AZ39: -0.005269067719 | BA39: 0.1281238196 | BB39: -0.00514502538 | BC39: -0.001556198282 | BD39: -0.008803743702 | BE39: -0.08028448744 | BF39: 0.01938485182 | BG39: 0.07395414015 | BH39: -0.05037802019 | BI39: 0.09788257815 | BJ39: -0.019816197 | BK39: 0.08487354499 | BL39: 0.02945182881 | BM39: -0.05933547082 | BN39: 0.02050996195 | BO39: -0.01879258257 | BP39: -0.00679316962 | BQ39: 0.0206866705 | BR39: -0.02264808925 | BS39: 0.06151892208 | BT39: 0.1212601275 | BU39: -0.01044147059 | BV39: -0.0267063321 | BW39: 0.03495040722 | BX39: -0.01132117629 | BY39: 0.0517291853 | BZ39: 0.1497443945 | CA39: 0.01887698562 | CB39: -0.03954746561 | CC39: -0.02451554784 | CD39: -0.03832880364 | CE39: -0.02704271107 | CF39: -0.03670842463 | CG39: -0.03226545592 | CH39: 0.129316564 | CI39: -0.1901007854 | CJ39: 0.03267133585 | CK39: 0.1007245517 | CL39: 0.02455153769 | CM39: -0.01569634119 | CN39: 0.01066736144 | CO39: 0.0212123079 | CP39: -0.005594720198 | CQ39: -0.04486401623 | CR39: -0.1438382055 | CS39: -0.01209756054 | CT39: -0.006155345032 | CU39: 0.07138033928 | CV39: 0.008193862976 | CW39: -0.04293665194 | CX39: -0.0183891973 | CY39: -0.01643339086 | CZ39: 0.01468824242 | DA39: -0.03898091727 | DB39: -0.01583299764 | DC39: -0.1494809968 | DD39: 0.02470947924 | DE39: 0.01498988893 | DF39: 0.02728364582 | DG39: -0.03049859633 | DH39: -0.0509367434 | DI39: 0.01215401255 | DJ39: 0.01804743292 | DK39: -0.007332875157 | DL39: 0.1622509807 | DM39: -0.03985792221 | DN39: 0.003171731009 | DO39: 0.01655943317 | DP39: -0.0206569754 | DQ39: -0.01421065719 | DR39: -0.006057542092 | DS39: -0.09758281814 | DT39: -0.03846546149 | DU39: -0.03787500919 | DV39: 0.02532526039 | DW39: -0.009406765021 | DX39: -0.03955948692 | DY39: 0.01934810896 | DZ39: 0.004577494994 | EA39: -0.01777598786 | EB39: 0.011971248 | EC39: 0.0216427246 | ED39: -0.0490165849 | EE39: -0.003680708087 | EF39: -0.1029395336 | EG39: -0.01067667313 | EH39: 0.0261490211 | EI39: -0.004893958552 | EJ39: -0.02284795637 | EK39: -0.009986003122 | EL39: -0.02354248845 | EM39: 0.03147470827 | EN39: -0.04034011738 | EO39: 0.007431221107 | EP39: 0.03335315432 | EQ39: -0.01814386244 | ER39: 0.01129448794 | ES39: 0.007792327082 | ET39: -0.0122370265 | EU39: 0.01777630667 | EV39: -0.02350289048 | EW39: 0.005502647851 | EX39: -0.008008217082 | EY39: -0.001187430955 | EZ39: -0.01207413388 | FA39: 0.05064488517 | FB39: 0.003932448005 | FC39: 0.01423608903 | FD39: 0.05180337999 | FE39: -0.03003211836 | FF39: 0.03729440557 | FG39: -0.03983636804 | FH39: 0.03099473649 | FJ39: 35 | FK39: 1.002102063 | FM39: 35 | FN39: -0.0336303023
A40: SUBG_E | B40: =PSAT!B57 -> 0 | D40: SUBG_E | E40: =B40 -> 0 | F40: SB_T | I40: =E40*G16+H16 -> 0 | J40: SB_T | K40: 0.4697186106 | L40: 1.596141354 | M40: =(E40-L16)/K16 -> -1.91661994 | O40: 35 | P40: -4.119183951 | R40: 35 | S40: -3.117081888 | V40: 35 | W40: -0.9960851409 | Y40: 35 | Z40: -3.337313973 | AB40: 35 | AC40: -3.370944275 | AF40: 35 | AG40: -0.9976419519 | AH40: -0.9976419519 | AJ40: 36 | AK40: 0.05606570414 | AL40: 0.02623864258 | AM40: -0.02045968445 | AN40: -0.09536723623 | AO40: 0.01198495141 | AP40: -0.01964767688 | AQ40: -0.0140871692 | AR40: -0.1132826463 | AS40: -0.1322355915 | AT40: -0.002217455872 | AU40: -0.0147744754 | AV40: -0.3270676783 | AW40: 0.003047752201 | AX40: 0.04086828558 | AY40: -0.4859615236 | AZ40: -0.005095229365 | BA40: 0.05415802422 | BB40: -0.0005261496669 | BC40: -0.1446502261 | BD40: -0.000491748114 | BE40: -0.01929370892 | BF40: -0.07898698757 | BG40: -0.1734907966 | BH40: -0.1152836729 | BI40: 0.4618138661 | BJ40: 0.118209882 | BK40: -0.277212725 | BL40: 0.4657043211 | BM40: 0.08284176862 | BN40: 0.1199472463 | BO40: 0.5437869954 | BP40: 0.1781455275 | BQ40: 0.1128424971 | BR40: 0.03443418252 | BS40: -0.3905600862 | BT40: -0.4101639661 | BU40: -0.2935222832 | BV40: -0.03251363902 | BW40: -0.06968060731 | BX40: 0.0635122281 | BY40: 0.1598840892 | BZ40: -0.2473021054 | CA40: -0.1649838415 | CB40: -0.06555351037 | CC40: -0.5084784422 | CD40: 0.01997598508 | CE40: 1.101581351 | CF40: -0.7549920207 | CG40: -0.002591353752 | CH40: 0.2495878428 | CI40: -0.0472657887 | CJ40: 0.2742004621 | CK40: 0.2677134995 | CL40: 0.02294470166 | CM40: 0.09877589884 | CN40: -0.2765896604 | CO40: 1.091250709 | CP40: -0.0062396138 | CQ40: 0.0376051895 | CR40: -0.3358467746 | CS40: -0.398771918 | CT40: -0.6234849501 | CU40: -0.101056675 | CV40: 0.1874047452 | CW40: 0.06288013145 | CX40: 0.02368722081 | CY40: -0.09131595011 | CZ40: -0.1316344212 | DA40: 0.09478724232 | DB40: -0.03052209978 | DC40: -0.09573176106 | DD40: 0.007220806915 | DE40: -0.01165962901 | DF40: 0.07153144127 | DG40: 0.4436346445 | DH40: -0.06044807314 | DI40: -0.9405323635 | DJ40: 0.3174995724 | DK40: -0.03121957625 | DL40: 0.001560630663 | DM40: 0.06451646627 | DN40: -0.06855411902 | DO40: -0.08914731269 | DP40: -0.02060663755 | DQ40: 0.02142112386 | DR40: 0.05297825238 | DS40: 0.07023507737 | DT40: -0.03099693861 | DU40: -0.1134223841 | DV40: -0.1309130449 | DW40: 0.04344375434 | DX40: -0.257342111 | DY40: 0.06751054946 | DZ40: 0.0241373836 | EA40: -0.1075623128 | EB40: -0.06328480485 | EC40: -0.1687907049 | ED40: 0.03583604833 | EE40: -0.03412869084 | EF40: -0.8081774402 | EG40: 0.04168528235 | EH40: 0.05408623472 | EI40: 0.2085261407 | EJ40: 0.995718357 | EK40: 0.1406263216 | EL40: -0.08471145329 | EM40: 0.07106250067 | EN40: 0.5222227065 | EO40: 0.003654276783 | EP40: 0.09508414836 | EQ40: 0.01893859956 | ER40: 0.03594420954 | ES40: -0.1163077221 | ET40: 0.1622819653 | EU40: 0.07888412877 | EV40: -0.1323941834 | EW40: -0.5686148841 | EX40: 0.1476411038 | EY40: 0.1125894667 | EZ40: 0.5415487105 | FA40: 0.03252094134 | FB40: 0.007503189788 | FC40: 0.4204826931 | FD40: 0.6236557083 | FE40: 0.07565060385 | FF40: -0.1437869601 | FG40: -0.3904223491 | FH40: 0.02956855478 | FJ40: 36 | FK40: 1.022135876 | FM40: 36 | FN40: 0.01640960888
A41: SUBG_P | B41: =PSAT!B58 -> 0 | D41: SUBG_P | E41: =B41 -> 0 | F41: GB_T | I41: =E41*G29+H29 -> 0 | J41: GB_T | K41: 0.4713363624 | L41: 1.596526622 | M41: =(E41-L29)/K29 -> -8.686826611 | O41: 36 | P41: -3.886350064 | R41: 36 | S41: -2.864214188 | V41: 36 | W41: -0.993516716 | Y41: 36 | Z41: 0.2159050715 | AB41: 36 | AC41: 0.2323146804 | AF41: 36 | AG41: 0.2282236259 | AH41: 0.2282236259 | AJ41: 37 | AK41: 0.1626328091 | AL41: 0.167980826 | AM41: -0.09875754817 | AN41: -0.261957516 | AO41: 0.02625108314 | AP41: 0.001030132376 | AQ41: 0.06840318819 | AR41: -0.1228241368 | AS41: -0.008930289932 | AT41: 0.008435148285 | AU41: 0.08109881262 | AV41: -2.184193937 | AW41: -0.0232875172 | AX41: 0.09669025784 | AY41: -0.6004194572 | AZ41: -0.01043058755 | BA41: 0.04866833314 | BB41: 0.05470132071 | BC41: -0.3072106446 | BD41: -0.02118255763 | BE41: 0.05833310667 | BF41: -0.1314402775 | BG41: -0.392906467 | BH41: -0.05729989967 | BI41: 0.2756214137 | BJ41: -0.1153767147 | BK41: -0.2287551002 | BL41: 0.5274474417 | BM41: 0.03760771261 | BN41: 0.005520786404 | BO41: 0.01870975368 | BP41: 0.3312099163 | BQ41: 0.1230042048 | BR41: 0.06523017609 | BS41: 0.008015956414 | BT41: 0.1852498243 | BU41: -0.1669909112 | BV41: 0.004935114893 | BW41: -0.1107661688 | BX41: 0.04943678239 | BY41: -0.1221832316 | BZ41: 0.115138125 | CA41: -0.3667695877 | CB41: -0.01840490001 | CC41: -1.061825098 | CD41: -0.01531275657 | CE41: 0.4532027845 | CF41: -0.1890867467 | CG41: 0.110879296 | CH41: 0.2030795579 | CI41: -0.02929707426 | CJ41: 0.2143331006 | CK41: 0.3840593486 | CL41: 0.1408656567 | CM41: -0.04377825692 | CN41: -0.03722023848 | CO41: 0.4731121249 | CP41: -0.09121705045 | CQ41: -0.07920671345 | CR41: -0.2011950913 | CS41: -0.1492489831 | CT41: -0.7208684742 | CU41: -0.1861447687 | CV41: 0.01816352198 | CW41: -3.162954049 | CX41: -0.03364038174 | CY41: -0.2232676082 | CZ41: -0.5342218348 | DA41: 0.06293530083 | DB41: 0.0279400973 | DC41: -0.250780153 | DD41: 1.044685394 | DE41: 0.01199674674 | DF41: -0.05249803004 | DG41: 0.1937838418 | DH41: -0.03008960059 | DI41: 0.01305596438 | DJ41: -0.1881351007 | DK41: -0.1502366 | DL41: 0.0934357398 | DM41: 0.009853685305 | DN41: 0.2415257753 | DO41: 0.09648174118 | DP41: 0.1082399798 | DQ41: 0.05622161034 | DR41: 0.03407919746 | DS41: 0.09178754644 | DT41: 0.0715541109 | DU41: 0.02703319214 | DV41: 0.03393264238 | DW41: 0.02507527852 | DX41: 0.171850167 | DY41: 0.2181691364 | DZ41: -0.009248775065 | EA41: -0.04788990151 | EB41: 0.08304874252 | EC41: 0.09388285994 | ED41: 0.1062186061 | EE41: -0.05234678471 | EF41: -0.2920102518 | EG41: -0.01211462742 | EH41: 0.06164474368 | EI41: -0.72104809 | EJ41: 0.1144329842 | EK41: -0.08059467236 | EL41: -0.04743904516 | EM41: 0.08311903907 | EN41: 0.3339907609 | EO41: -0.008802963218 | EP41: 0.1428959951 | EQ41: 0.08917762616 | ER41: 0.05505469402 | ES41: 0.2121991989 | ET41: -0.0855388498 | EU41: -0.181195992 | EV41: 0.358726188 | EW41: -1.159926261 | EX41: 0.2874185498 | EY41: 0.01944293246 | EZ41: -0.3019566389 | FA41: -0.03674709222 | FB41: -0.002762341796 | FC41: 0.02440326485 | FD41: 0.2036899195 | FE41: 0.06813908441 | FF41: -0.4898944341 | FG41: -0.1141316228 | FH41: -0.1046791804 | FJ41: 37 | FK41: 0.7551873821 | FM41: 37 | FN41: 0.04990902497
A42: OUTPUTS (yi) | O42: 37 | P42: 0.6005237054 | R42: 37 | S42: 1.355711088 | V42: 37 | W42: 0.8753945707 | Y42: 37 | Z42: -3.453759385 | AB42: 37 | AC42: -3.40385036 | AF42: 37 | AG42: -0.9977919779 | AH42: -0.9977919779 | AJ42: 38 | AK42: -0.01246554438 | AL42: -0.08060812049 | AM42: 0.04911146228 | AN42: -0.004559357926 | AO42: 0.01009633371 | AP42: -0.009596218039 | AQ42: -0.007397458804 | AR42: -0.01784865522 | AS42: -0.04955859728 | AT42: 0.006043789784 | AU42: 0.04718867487 | AV42: 0.06664645382 | AW42: 0.02455012064 | AX42: 0.06837335294 | AY42: -0.07748605608 | AZ42: 0.02117726808 | BA42: -0.06426817045 | BB42: 0.02697872804 | BC42: 0.01361768902 | BD42: -0.0003624727006 | BE42: -0.009274943142 | BF42: -0.01463953931 | BG42: 0.008592265041 | BH42: 0.04042282194 | BI42: 0.08060052348 | BJ42: 0.02054464405 | BK42: 0.05988061606 | BL42: -0.005544193834 | BM42: -0.08145566733 | BN42: 0.00380585339 | BO42: 0.07148060816 | BP42: -0.01132206497 | BQ42: -0.03851863646 | BR42: -0.007542970147 | BS42: 0.1377885109 | BT42: 0.1309724007 | BU42: -0.08846772683 | BV42: 0.02155709489 | BW42: -0.0008856530125 | BX42: -0.008885028334 | BY42: -0.01940948539 | BZ42: -0.03987109395 | CA42: -0.09136269954 | CB42: -0.01669667544 | CC42: -0.1818082236 | CD42: -0.009848374119 | CE42: 0.0411907622 | CF42: -0.01252719592 | CG42: 0.1339473549 | CH42: -0.01274506255 | CI42: 0.04726527766 | CJ42: 0.08708628397 | CK42: 0.02718928977 | CL42: 0.03813443559 | CM42: 0.1002114084 | CN42: 0.1872133865 | CO42: -0.2513335328 | CP42: -0.005769281571 | CQ42: 0.04607957356 | CR42: -0.1775303708 | CS42: -0.0375624558 | CT42: 0.1295275601 | CU42: -0.01229795383 | CV42: -0.04613815201 | CW42: -0.1048362898 | CX42: 0.03267097234 | CY42: -0.2145761827 | CZ42: 0.07097668007 | DA42: -0.05726927784 | DB42: 0.07033605911 | DC42: 0.1552404754 | DD42: 0.09258424737 | DE42: 0.08526725227 | DF42: -0.05220208955 | DG42: 0.1007098672 | DH42: 0.012065961 | DI42: 0.0753423305 | DJ42: -0.05043911899 | DK42: -0.04110129932 | DL42: -0.03342228887 | DM42: -0.1249185371 | DN42: 0.03364535021 | DO42: 0.02307372093 | DP42: -0.04559662078 | DQ42: 0.02047600913 | DR42: -0.0252947302 | DS42: 0.003879483988 | DT42: -0.009455499483 | DU42: -0.009875287 | DV42: -0.03377075802 | DW42: -0.07167455246 | DX42: 0.01527892732 | DY42: 0.009333222243 | DZ42: -0.02233810601 | EA42: 0.07833648031 | EB42: 0.02454923262 | EC42: -0.01296980465 | ED42: -0.02525817312 | EE42: -0.05007807215 | EF42: 0.1283379732 | EG42: 0.02465338961 | EH42: -0.03461944841 | EI42: 0.0668151814 | EJ42: -0.02981688482 | EK42: -0.02743583769 | EL42: -0.08155370609 | EM42: -0.0278762414 | EN42: -0.02248731673 | EO42: -0.03043584281 | EP42: 0.08771047738 | EQ42: 0.01957721434 | ER42: -0.04034412604 | ES42: 0.06345714431 | ET42: 0.05536788846 | EU42: -0.03037852854 | EV42: -0.02058901085 | EW42: -0.1379145674 | EX42: -0.008341262824 | EY42: 0.06816267618 | EZ42: -0.03528279911 | FA42: 0.04828529565 | FB42: 0.02982975 | FC42: 0.09126735954 | FD42: 0.04146001894 | FE42: -0.01448997974 | FF42: -0.07456713054 | FG42: -0.1357968237 | FH42: -0.08851211714 | FJ42: 38 | FK42: -0.4891079519 | FM42: 38 | FN42: 0.03759520284
A43: Predicted Output Parameters | C43: Adj. load (lbs) | D43: Adj. load (%) | O43: 38 | P43: 1.899429289 | R43: 38 | S43: 1.410321337 | V43: 38 | W43: 0.8875623506 | Y43: 38 | Z43: -0.5915593421 | AB43: 38 | AC43: -0.5539641392 | AF43: 38 | AG43: -0.5034853536 | AH43: -0.5034853536 | AK43: LAYER 2 | FJ43: 39 | FK43: -1.142605894 | FM43: 39 | FN43: -0.425689727
A44: Strain_BotofAsp | B44: =(D51*10^6)/2 -> -34.3070186 | C44: =((PSAT!$G$65-PSAT!$G$64)/PSAT!$G$64+1)*B44 -> 0 | D44: =(PSAT!$H$65)*B44 -> 0 | O44: 39 | P44: 2.536625377 | R44: 39 | S44: 1.394019483 | V44: 39 | W44: 0.8840520793 | Y44: 39 | Z44: 6.848915564 | AB44: 39 | AC44: 6.423225837 | AF44: 39 | AG44: 0.9999947291 | AH44: 0.9999947291 | AK44: Weights_W(2) | FJ44: 40 | FK44: 1.1408567 | FM44: 40 | FN44: 0.7863139317
A45: Strain_BotofBase | B45: =(D52*10^6)/2 -> 292.6807023 | C45: =((PSAT!$G$65-PSAT!$G$64)/PSAT!$G$64+1)*B45 -> 0 | D45: =(PSAT!$H$65)*B45 -> 0 | O45: 40 | P45: -1.096810861 | R45: 40 | S45: 0.04404583903 | V45: 40 | W45: 0.04401737761 | Y45: 40 | Z45: -4.906106448 | AB45: 40 | AC45: -4.119792517 | AF45: 40 | AG45: -0.9994721518 | AH45: -0.9994721518 | AJ45: LW1 | AK45: 1 | AL45: 2 | AM45: 3 | AN45: 4 | AO45: 5 | AP45: 6 | AQ45: 7 | AR45: 8 | AS45: 9 | AT45: 10 | AU45: 11 | AV45: 12 | AW45: 13 | AX45: 14 | AY45: 15 | AZ45: 16 | BA45: 17 | BB45: 18 | BC45: 19 | BD45: 20 | BE45: 21 | BF45: 22 | BG45: 23 | BH45: 24 | BI45: 25 | BJ45: 26 | BK45: 27 | BL45: 28 | BM45: 29 | BN45: 30 | BO45: 31 | BP45: 32 | BQ45: 33 | BR45: 34 | BS45: 35 | BT45: 36 | BU45: 37 | BV45: 38 | BW45: 39 | BX45: 40 | BY45: 41 | BZ45: 42 | CA45: 43 | CB45: 44 | CC45: 45 | CD45: 46 | CE45: 47 | CF45: 48 | CG45: 49 | CH45: 50 | CI45: 51 | CJ45: 52 | CK45: 53 | CL45: 54 | CM45: 55 | CN45: 56 | CO45: 57 | CP45: 58 | CQ45: 59 | CR45: 60 | CS45: 61 | CT45: 62 | CU45: 63 | CV45: 64 | CW45: 65 | CX45: 66 | CY45: 67 | CZ45: 68 | DA45: 69 | DB45: 70 | DC45: 71 | DD45: 72 | DE45: 73 | DF45: 74 | DG45: 75 | DH45: 76 | DI45: 77 | DJ45: 78 | DK45: 79 | DL45: 80 | DM45: 81 | DN45: 82 | DO45: 83 | DP45: 84 | DQ45: 85 | DR45: 86 | DS45: 87 | DT45: 88 | DU45: 89 | DV45: 90 | DW45: 91 | DX45: 92 | DY45: 93 | DZ45: 94 | EA45: 95 | EB45: 96 | EC45: 97 | ED45: 98 | EE45: 99 | EF45: 100 | EG45: 101 | EH45: 102 | EI45: 103 | EJ45: 104 | EK45: 105 | EL45: 106 | EM45: 107 | EN45: 108 | EO45: 109 | EP45: 110 | EQ45: 111 | ER45: 112 | ES45: 113 | ET45: 114 | EU45: 115 | EV45: 116 | EW45: 117 | EX45: 118 | EY45: 119 | EZ45: 120 | FA45: 121 | FB45: 122 | FC45: 123 | FD45: 124 | FE45: 125 | FF45: 126 | FG45: 127 | FH45: 128 | FJ45: 41 | FK45: 0.8522366188 | FM45: 41 | FN45: 0.02152786306
A46: Strain_TopofSubg | B46: =(D53*10^6)/2 -> -1331.156165 | C46: =((PSAT!$G$65-PSAT!$G$64)/PSAT!$G$64+1)*B46 -> 0 | D46: =(PSAT!$H$65)*B46 -> 0 | O46: 41 | P46: -3.131265696 | R46: 41 | S46: -2.279029077 | V46: 41 | W46: -0.9792526927 | Y46: 41 | Z46: 0.4934958258 | AB46: 41 | AC46: 0.5150236888 | AF46: 41 | AG46: 0.4738501618 | AH46: 0.4738501618 | AJ46: 1 | AK46: -0.07229559899 | AL46: 0.01390684854 | AM46: 0.1163121193 | AN46: -0.04580867686 | AO46: 0.07150886503 | AP46: 0.02821880317 | AQ46: 0.3258773781 | AR46: -0.3164938493 | AS46: 0.05292972835 | AT46: 0.0206598554 | AU46: -0.3084785406 | AV46: 0.1209539097 | AW46: -0.10461546 | AX46: -0.337057068 | AY46: 0.01303701301 | AZ46: -0.1288476892 | BA46: -0.08361959044 | BB46: 0.02427345291 | BC46: 0.07342809795 | BD46: 0.111365311 | BE46: -0.1292302597 | BF46: -0.2934451425 | BG46: -0.2278662084 | BH46: 0.3404931589 | BI46: -0.1101156211 | BJ46: 0.1061008135 | BK46: -0.04263087953 | BL46: -0.05296701365 | BM46: -0.3012404196 | BN46: -0.04578962221 | BO46: 0.001054795117 | BP46: 0.126630014 | BQ46: -0.1135017721 | BR46: 0.03647627134 | BS46: 0.07134046518 | BT46: -0.1529567272 | BU46: 0.08422127808 | BV46: 0.01078015588 | BW46: -0.05658383778 | BX46: 0.07528336585 | BY46: -0.1398717195 | BZ46: 0.0187221831 | CA46: 0.1504498495 | CB46: -0.1053231911 | CC46: 0.1183850602 | CD46: 0.2225752498 | CE46: 0.1521450249 | CF46: -0.3042860428 | CG46: -0.1231945192 | CH46: -0.06744579243 | CI46: -0.01305438999 | CJ46: -0.1715537957 | CK46: 2.904461325e-05 | CL46: -0.03931324206 | CM46: -0.1043400432 | CN46: 0.08770033742 | CO46: 0.1470674603 | CP46: -0.301029449 | CQ46: -0.1230902761 | CR46: -0.1987482416 | CS46: 0.1117324914 | CT46: -0.1140279068 | CU46: 0.2730908173 | CV46: 0.1509444779 | CW46: -0.04684262595 | CX46: -0.1804611182 | CY46: -0.07206477307 | CZ46: 0.1225274783 | DA46: 0.1474551452 | DB46: -0.01346561965 | DC46: -0.08116569658 | DD46: -0.02515411001 | DE46: 0.1977479523 | DF46: 0.3993805976 | DG46: 0.00643027629 | DH46: -0.08189066741 | DI46: 0.5039929574 | DJ46: -0.009789980846 | DK46: 0.002627911794 | DL46: 0.1032704326 | DM46: 0.02588189749 | DN46: 0.2440712636 | DO46: 0.2469060056 | DP46: -0.06277404352 | DQ46: 0.2185377521 | DR46: -0.1252323149 | DS46: -0.2394412525 | DT46: 0.2059464563 | DU46: -0.005497039363 | DV46: -0.0421586663 | DW46: -0.05570796065 | DX46: -0.1453383102 | DY46: 0.01267342296 | DZ46: -0.1688948135 | EA46: 0.1091746282 | EB46: 0.05859458884 | EC46: -0.01007173217 | ED46: 0.03004619467 | EE46: -0.007876352536 | EF46: 0.06060792745 | EG46: -0.1358549016 | EH46: -0.09810290616 | EI46: -0.03998487224 | EJ46: 0.05807127051 | EK46: -0.03079991752 | EL46: -0.05450437592 | EM46: -0.1039466933 | EN46: -0.03950031033 | EO46: 0.1367444111 | EP46: 0.2249367911 | EQ46: 0.1611308623 | ER46: -0.05693678945 | ES46: 0.1159008746 | ET46: 0.06244845884 | EU46: 0.3509102759 | EV46: -0.017652376 | EW46: 0.132423469 | EX46: -0.3604460065 | EY46: 0.2061368868 | EZ46: 0.06618140799 | FA46: 0.1972041046 | FB46: -0.09793677648 | FC46: -0.1690784658 | FD46: -0.2637285455 | FE46: 0.267749425 | FF46: 0.06141331246 | FG46: 0.2082345037 | FH46: -0.02866727442 | FJ46: 42 | FK46: 0.001293536254 | FM46: 42 | FN46: -0.07493181998
O47: 42 | P47: 2.29500187 | R47: 42 | S47: 2.296295406 | V47: 42 | W47: 0.979949863 | Y47: 42 | Z47: -0.2323159677 | AB47: 42 | AC47: -0.3072477877 | AF47: 42 | AG47: -0.2979312405 | AH47: -0.2979312405 | AJ47: 2 | AK47: 0.1136377807 | AL47: -0.01723039291 | AM47: -0.03848255956 | AN47: 0.0676623425 | AO47: 0.09625632891 | AP47: 0.217451553 | AQ47: 0.4405550388 | AR47: 0.1337232804 | AS47: 0.0386617416 | AT47: 0.02623842147 | AU47: 0.06424318578 | AV47: 0.2659866705 | AW47: -0.07973739495 | AX47: 0.3087735075 | AY47: -0.0547624358 | AZ47: -0.2782519452 | BA47: -0.03387768516 | BB47: 0.1054908029 | BC47: 0.01268742531 | BD47: -0.005109255068 | BE47: -0.1121630231 | BF47: -0.02052485592 | BG47: -0.2512893613 | BH47: -0.2868126277 | BI47: -0.02058098063 | BJ47: -0.1724576481 | BK47: -0.0188623648 | BL47: -0.08381015779 | BM47: 0.02311487328 | BN47: 0.1213686391 | BO47: 0.04594544097 | BP47: 0.08120427124 | BQ47: -0.1308771038 | BR47: 0.019380466 | BS47: -0.004708646499 | BT47: 0.1059138787 | BU47: -0.1718794161 | BV47: -0.02327828234 | BW47: -0.006780454959 | BX47: 0.3014394724 | BY47: -0.004809173862 | BZ47: 0.003920661695 | CA47: 0.01651545471 | CB47: -0.07805087474 | CC47: 0.1873274476 | CD47: 0.015108932 | CE47: 0.172464414 | CF47: 0.08024364334 | CG47: -0.1046688904 | CH47: -0.1761358258 | CI47: 0.08393785121 | CJ47: -0.03880719592 | CK47: 0.05157791964 | CL47: -0.01596712932 | CM47: -0.3279848646 | CN47: 0.07725120508 | CO47: -0.05882768257 | CP47: -0.4050102737 | CQ47: 0.1155471651 | CR47: -0.05238796119 | CS47: 0.1464948264 | CT47: -0.03565398569 | CU47: 0.3109241423 | CV47: 0.05062159257 | CW47: 0.05079579039 | CX47: 0.1346282974 | CY47: -0.03792863319 | CZ47: -0.0845162503 | DA47: 0.3206091257 | DB47: 0.03029411494 | DC47: -0.005377595924 | DD47: 0.1069334935 | DE47: 0.2642158 | DF47: -0.04335475695 | DG47: -0.1089928128 | DH47: 0.08562370328 | DI47: -0.1320613453 | DJ47: -0.04584277715 | DK47: -0.2006929648 | DL47: 0.2199007859 | DM47: 0.01464919293 | DN47: 0.06863193413 | DO47: 0.08521629917 | DP47: -0.02747844205 | DQ47: -0.07932827654 | DR47: -0.1567577561 | DS47: -0.07060086417 | DT47: 0.1481555494 | DU47: 0.1879630245 | DV47: -0.0001297232264 | DW47: -0.1147592836 | DX47: 0.1003317988 | DY47: -0.1852885447 | DZ47: -0.02543103773 | EA47: -0.01701847196 | EB47: -0.006508100895 | EC47: -0.0210330861 | ED47: -0.1246373684 | EE47: 0.1446227893 | EF47: 0.05161766359 | EG47: -0.06781381142 | EH47: -0.05002739641 | EI47: 0.06509667692 | EJ47: 0.06184409684 | EK47: 0.01272915944 | EL47: -0.05280065756 | EM47: -0.07813187036 | EN47: 0.236937186 | EO47: -0.09546721773 | EP47: 0.02375934554 | EQ47: -0.05846686014 | ER47: 0.1853385145 | ES47: -0.1284429686 | ET47: -0.1000300631 | EU47: -0.07632596132 | EV47: -0.01721090421 | EW47: 0.0930397031 | EX47: -0.02137334802 | EY47: -0.04017966466 | EZ47: -0.04365952437 | FA47: 0.004732466778 | FB47: -0.01778700244 | FC47: -0.01168050013 | FD47: 0.03060971147 | FE47: 0.432550707 | FF47: 0.09181905431 | FG47: 0.1749980627 | FH47: 0.1113138875 | FJ47: 43 | FK47: -0.139922514 | FM47: 43 | FN47: 0.2359067894
O48: 43 | P48: 4.241547423 | R48: 43 | S48: 4.101624909 | V48: 43 | W48: 0.999452625 | Y48: 43 | Z48: -1.018245527 | AB48: 43 | AC48: -0.7823387371 | AF48: 43 | AG48: -0.6540470317 | AH48: -0.6540470317 | AJ48: 3 | AK48: -0.07435218816 | AL48: -0.06629985631 | AM48: 0.001631272398 | AN48: -0.04432172163 | AO48: 0.003793201502 | AP48: 0.1182633128 | AQ48: -0.001759576347 | AR48: 0.05203415029 | AS48: -0.02343287287 | AT48: 0.006991953732 | AU48: 0.07004244533 | AV48: -0.00784523641 | AW48: 0.04740964254 | AX48: -0.1221541363 | AY48: 0.04934674278 | AZ48: 0.0304768821 | BA48: -0.0343894905 | BB48: -0.09306706931 | BC48: 0.07861077109 | BD48: -0.008738554668 | BE48: -0.08925548063 | BF48: 0.21044148 | BG48: 0.003440656152 | BH48: -0.1227297303 | BI48: 0.1030313785 | BJ48: 0.01208284703 | BK48: -0.003090838706 | BL48: -0.05829422096 | BM48: 0.007778151541 | BN48: -0.08992404737 | BO48: -0.05135088858 | BP48: -0.1045559362 | BQ48: 0.0419950502 | BR48: -0.1218957895 | BS48: -0.08225992225 | BT48: 0.05369110501 | BU48: 0.003285852318 | BV48: 0.09359786934 | BW48: -0.0658075921 | BX48: 0.2437889892 | BY48: 0.1128487887 | BZ48: -0.0374048938 | CA48: -0.1250764011 | CB48: 0.01092618491 | CC48: 0.0660438805 | CD48: -0.02144794589 | CE48: 0.1569923766 | CF48: -0.0458398418 | CG48: 0.02160382643 | CH48: -0.0159746185 | CI48: -0.04101565188 | CJ48: 0.1364086757 | CK48: -0.0267249542 | CL48: 0.0830743767 | CM48: -0.01282260942 | CN48: 0.009902979361 | CO48: -0.04658760447 | CP48: -0.07094523936 | CQ48: -0.04064222689 | CR48: -0.057403982 | CS48: -0.1292583138 | CT48: -0.02460469675 | CU48: 0.009850356452 | CV48: 0.008402957268 | CW48: -0.01581773168 | CX48: -0.1489564138 | CY48: 0.08972276635 | CZ48: -0.08964556869 | DA48: 0.2011088681 | DB48: 0.08402544858 | DC48: 0.03117302749 | DD48: -0.1043152328 | DE48: -0.02869430728 | DF48: -0.01987500611 | DG48: 0.04580895297 | DH48: -0.04221261436 | DI48: 0.1264040394 | DJ48: 0.04081362131 | DK48: -0.03700806816 | DL48: -0.07866233494 | DM48: 0.06858229709 | DN48: 0.07166942792 | DO48: -0.04920541429 | DP48: -0.05470004736 | DQ48: -0.07366856574 | DR48: 0.07944532491 | DS48: 0.1358469498 | DT48: 0.04854995909 | DU48: 0.05389451363 | DV48: 0.05116483625 | DW48: 0.3020754543 | DX48: 0.005828722262 | DY48: -0.06498536239 | DZ48: -0.08625517724 | EA48: 0.07528119707 | EB48: 0.1632821927 | EC48: -0.1439178456 | ED48: 0.03906230852 | EE48: -0.05439002728 | EF48: -0.01055763011 | EG48: -0.01532507182 | EH48: -0.06917318594 | EI48: -0.04119511504 | EJ48: 0.02224060935 | EK48: 0.06636458978 | EL48: 0.1025158021 | EM48: -0.05258536999 | EN48: -0.2159115084 | EO48: -0.129554632 | EP48: 0.1196542054 | EQ48: -0.08334789105 | ER48: 0.1194167275 | ES48: 0.01913595563 | ET48: 0.05574141957 | EU48: 0.0809037498 | EV48: -0.07268291559 | EW48: -0.03289809665 | EX48: -0.1253149258 | EY48: -0.08780978066 | EZ48: -0.05873172893 | FA48: 0.01745690166 | FB48: -0.09991314295 | FC48: 0.2356962634 | FD48: -0.1503070592 | FE48: -0.1924884492 | FF48: -0.008008595316 | FG48: -0.05635689606 | FH48: -0.2561658928 | FJ48: 44 | FK48: -2.007096628 | FM48: 44 | FN48: -0.3131155888
D49: INVERSE TRANSFORM (IF TRAIN_OUT log+std) | O49: 44 | P49: 2.432196814 | R49: 44 | S49: 0.4251001859 | V49: 44 | W49: 0.4012183467 | Y49: 44 | Z49: 4.191727717 | AB49: 44 | AC49: 3.878612128 | AF49: 44 | AG49: 0.9991450817 | AH49: 0.9991450817 | AJ49: 4 | AK49: -0.06883327176 | AL49: 0.0384828938 | AM49: 0.0955800242 | AN49: -0.03026434768 | AO49: 0.006332724386 | AP49: -0.08355588236 | AQ49: 0.2260238669 | AR49: 0.0220292157 | AS49: -0.04701293094 | AT49: -0.08472061194 | AU49: 0.1119059389 | AV49: -0.009404855822 | AW49: 0.08402318836 | AX49: 0.08919887302 | AY49: -0.03438603199 | AZ49: -0.1884188407 | BA49: 0.03650619341 | BB49: -0.02505247694 | BC49: 0.0888832112 | BD49: -0.0009137490171 | BE49: 0.02870145254 | BF49: -0.3098282873 | BG49: -0.1202960573 | BH49: -0.06543816427 | BI49: 0.06206215135 | BJ49: 0.07264946639 | BK49: -0.0232427284 | BL49: -0.0004846912364 | BM49: 0.03227342224 | BN49: -0.1102889761 | BO49: 0.02949267235 | BP49: -0.1244279768 | BQ49: -0.4196255748 | BR49: 0.04456075425 | BS49: 0.08694586262 | BT49: 0.07203858091 | BU49: 0.1407315362 | BV49: -0.006596739106 | BW49: 0.2708415781 | BX49: 0.1225173119 | BY49: 0.09169045674 | BZ49: -0.007892531183 | CA49: -0.02928526536 | CB49: 0.1538391883 | CC49: -0.1347441611 | CD49: 0.0004700195707 | CE49: 0.1901666209 | CF49: 0.06489990346 | CG49: -0.1250045361 | CH49: 0.02886881534 | CI49: 0.006787368888 | CJ49: 0.104700848 | CK49: 0.07992228972 | CL49: 0.03197307208 | CM49: -0.01425788418 | CN49: -0.1145053217 | CO49: -0.1049858438 | CP49: -0.331552245 | CQ49: 0.02859674241 | CR49: -0.07831639035 | CS49: 0.08246792169 | CT49: -0.0497332237 | CU49: 0.00113320479 | CV49: 0.08872787763 | CW49: -0.09997214866 | CX49: -0.01276458331 | CY49: -0.06927499435 | CZ49: 0.02251497499 | DA49: 0.009432362069 | DB49: -0.05857882515 | DC49: -0.1352505248 | DD49: -0.01759405773 | DE49: 0.1415153453 | DF49: -0.1706743343 | DG49: -0.04467422426 | DH49: 0.05721167213 | DI49: -0.07673990046 | DJ49: 0.06366221127 | DK49: 0.05055262703 | DL49: 0.121784705 | DM49: -0.04772215865 | DN49: 0.02111307616 | DO49: 0.1603264984 | DP49: 0.07593380689 | DQ49: -0.1403582923 | DR49: 0.02513940142 | DS49: -0.006874042516 | DT49: 0.1817159701 | DU49: 0.05323745233 | DV49: 0.0975168104 | DW49: -0.06465503911 | DX49: 0.03913347865 | DY49: 0.08620200642 | DZ49: -0.07545689463 | EA49: 0.1059066291 | EB49: -0.02782757375 | EC49: 0.04864050821 | ED49: -0.07214091563 | EE49: -0.266030246 | EF49: 0.06033295602 | EG49: -0.009079163097 | EH49: -0.04229790008 | EI49: 0.08357720953 | EJ49: 0.02460907675 | EK49: 0.04277780698 | EL49: 0.01627270225 | EM49: 0.1166818761 | EN49: 0.08368264145 | EO49: 0.05186538226 | EP49: 0.02327570025 | EQ49: -0.02379313657 | ER49: -0.1252866649 | ES49: -0.01887908357 | ET49: 0.03932152584 | EU49: -0.1246198099 | EV49: 0.0572831352 | EW49: 0.008177749574 | EX49: 0.2095346399 | EY49: -0.05814680514 | EZ49: 0.08749232533 | FA49: 0.08068525018 | FB49: 0.001871352755 | FC49: -0.1515837849 | FD49: -0.04353478195 | FE49: 0.4322462187 | FF49: -0.06575496656 | FG49: -0.0009215036549 | FH49: -0.0861897876 | FJ49: 45 | FK49: -0.5851775348 | FM49: 45 | FN49: 0.2302197222
A50: Standr | B50: Scale (std) | C50: Mean | D50: INVERSE TRANS_ STD | E50: INVERSE TRANS_LOG | O50: 45 | P50: 3.41697735 | R50: 45 | S50: 2.831799815 | V50: 45 | W50: 0.9930839913 | Y50: 45 | Z50: 1.605950076 | AB50: 45 | AC50: 1.836169798 | AF50: 45 | AG50: 0.9504261455 | AH50: 0.9504261455 | AJ50: 5 | AK50: -0.1510834254 | AL50: -0.06895475081 | AM50: 0.08560344315 | AN50: 0.07280211286 | AO50: 0.1324340505 | AP50: 0.2370047911 | AQ50: 0.2853429874 | AR50: -0.4157972664 | AS50: -0.04901138277 | AT50: -0.09093361167 | AU50: -0.1439223841 | AV50: -0.1530045028 | AW50: 0.06814058507 | AX50: 0.004450361418 | AY50: 0.07183401529 | AZ50: -0.1477227124 | BA50: -0.01353184667 | BB50: 0.0455667594 | BC50: -0.001070900641 | BD50: 0.08637651861 | BE50: 0.06292092652 | BF50: -0.1309817725 | BG50: -0.1439168574 | BH50: 0.1181749724 | BI50: -0.003826906457 | BJ50: 0.09662683116 | BK50: -0.001761408263 | BL50: 0.007773780328 | BM50: 0.06095881752 | BN50: -0.07264796569 | BO50: 0.06535950158 | BP50: -0.04536997199 | BQ50: -0.170898107 | BR50: -0.05584264983 | BS50: -0.07884361734 | BT50: 0.1028751578 | BU50: 0.3446554912 | BV50: 0.0829991014 | BW50: 0.01486772354 | BX50: 0.09673805131 | BY50: -0.000229034242 | BZ50: -0.04360285514 | CA50: 0.01077408836 | CB50: 0.1282956374 | CC50: -0.3080655042 | CD50: 0.08229202303 | CE50: 0.08679701903 | CF50: -0.197057462 | CG50: -0.07067983424 | CH50: -0.2548615969 | CI50: -0.04594967891 | CJ50: -0.7039514388 | CK50: 0.01494211776 | CL50: 0.04941733691 | CM50: 0.3056369167 | CN50: -0.01862802644 | CO50: 0.1860276869 | CP50: -0.04320213499 | CQ50: -0.03029405506 | CR50: -0.2548465562 | CS50: 0.2458261636 | CT50: 0.09750328976 | CU50: 0.03600231077 | CV50: -0.03708927526 | CW50: -0.06430506104 | CX50: 0.1018570525 | CY50: -0.0439245618 | CZ50: -0.08909454361 | DA50: -0.0246985999 | DB50: 0.0102270804 | DC50: 0.08534780642 | DD50: -0.06553820848 | DE50: 0.1273037331 | DF50: -0.08404546821 | DG50: 0.01497523758 | DH50: -0.08496291082 | DI50: -0.1187063873 | DJ50: -0.05279006924 | DK50: -0.2292353001 | DL50: 0.3072821017 | DM50: 0.1685380717 | DN50: 0.1564636615 | DO50: 0.1719145215 | DP50: -0.09462011389 | DQ50: 0.1060844896 | DR50: 0.07694238911 | DS50: -0.2818821805 | DT50: -0.05193420986 | DU50: 0.06498148627 | DV50: -0.05890259412 | DW50: -0.1731343665 | DX50: -0.0163641413 | DY50: -0.12101576 | DZ50: 0.02564743201 | EA50: 0.04680979355 | EB50: 0.2678724867 | EC50: 0.02016934456 | ED50: 0.08792114576 | EE50: -0.06240502414 | EF50: -0.0408120812 | EG50: -0.005744313612 | EH50: 0.07270577891 | EI50: -0.1622874891 | EJ50: 0.1004610267 | EK50: 0.06972747068 | EL50: -0.07969150088 | EM50: -0.01519145462 | EN50: -0.08838471058 | EO50: -0.1447683804 | EP50: 0.1313364926 | EQ50: 0.1161608843 | ER50: 0.1572684959 | ES50: 0.04097844119 | ET50: -0.06055129593 | EU50: -0.1274923099 | EV50: -0.0437315719 | EW50: -0.0985465544 | EX50: -0.2529516747 | EY50: 0.01070946853 | EZ50: -0.09557367784 | FA50: -0.03529722889 | FB50: 0.04221064645 | FC50: -0.04559723934 | FD50: 0.1307049706 | FE50: 0.3948019138 | FF50: -0.2451541791 | FG50: -0.06113232478 | FH50: 0.359842499 | FJ50: 46 | FK50: 0.3532923592 | FM50: 46 | FN50: 0.1087003909
A51: Strain_BotofAsp | B51: 5.166318811e-05 | C51: 2.180759437e-05 | D51: =S143*B51+C51 -> -6.86140372e-05 | E51: =EXP(D51)-1 -> -6.861168331e-05 | O51: 46 | P51: 0.3022882326 | R51: 46 | S51: 0.6555805918 | V51: 46 | W51: 0.5754147981 | Y51: 46 | Z51: -0.8812525293 | AB51: 46 | AC51: -0.7725521384 | AF51: 46 | AG51: -0.6484110243 | AH51: -0.6484110243 | AJ51: 6 | AK51: 0.1051210025 | AL51: -0.0323310595 | AM51: 0.04665988886 | AN51: 0.01731719424 | AO51: 0.0006670839002 | AP51: -0.1438990544 | AQ51: -0.2423139562 | AR51: -0.03373647921 | AS51: -0.1067261671 | AT51: -0.01640400574 | AU51: 0.3521552985 | AV51: -0.06340220205 | AW51: -0.06513258171 | AX51: 0.1642073428 | AY51: 0.003290598048 | AZ51: -0.1138496599 | BA51: 0.07543182187 | BB51: -0.0391094946 | BC51: 0.01250887273 | BD51: -0.211118267 | BE51: -0.08714700816 | BF51: -0.02119162051 | BG51: -0.0006144121347 | BH51: -0.2503713314 | BI51: 0.05545697101 | BJ51: 0.06475292056 | BK51: 0.08503353459 | BL51: 0.0292577461 | BM51: 0.2119089067 | BN51: -0.03683999248 | BO51: 0.02731984951 | BP51: 0.1289263225 | BQ51: 0.142332132 | BR51: -0.06013457048 | BS51: 0.03303269248 | BT51: 0.09176162003 | BU51: -0.2202929612 | BV51: 0.004728691947 | BW51: 0.2059892667 | BX51: 0.09227588517 | BY51: 0.1340036387 | BZ51: 0.01100889412 | CA51: 0.132036871 | CB51: -0.2586913226 | CC51: 0.02803675026 | CD51: -0.04751203635 | CE51: 0.06943344129 | CF51: 0.1875357192 | CG51: 0.03778604007 | CH51: 0.4032480212 | CI51: -0.1788072346 | CJ51: 0.09790968669 | CK51: 0.1490625067 | CL51: -0.04821941958 | CM51: 0.1316974977 | CN51: 0.0377743207 | CO51: -0.09908101271 | CP51: 0.1679178158 | CQ51: 0.05099763867 | CR51: 0.01040817254 | CS51: -0.08498432182 | CT51: -0.0619031811 | CU51: -0.0006166116083 | CV51: -0.04021202252 | CW51: 0.0851767534 | CX51: 0.12277448 | CY51: -0.05128864948 | CZ51: -0.1569353426 | DA51: -0.02186158349 | DB51: 0.1751942597 | DC51: -0.002826801924 | DD51: 0.05865146734 | DE51: 0.07405315369 | DF51: -0.2042074446 | DG51: 0.03233134392 | DH51: 0.0255955304 | DI51: 0.05384958512 | DJ51: -0.3194314807 | DK51: 0.2471615031 | DL51: -0.008413401265 | DM51: 0.1380025676 | DN51: -0.06481668795 | DO51: -0.09257511383 | DP51: 0.03249405232 | DQ51: 0.2314761652 | DR51: 0.01384224954 | DS51: 0.126707496 | DT51: -0.1159714701 | DU51: 0.1632411992 | DV51: -0.03026406756 | DW51: -0.06959741408 | DX51: 0.09275901171 | DY51: -0.002599361167 | DZ51: -0.02688190704 | EA51: -0.07079486604 | EB51: 0.08440209239 | EC51: 0.06917316745 | ED51: -0.07034671524 | EE51: 0.2547320723 | EF51: 0.07833557037 | EG51: 0.03488983245 | EH51: 0.0006919166681 | EI51: 0.09218327773 | EJ51: -0.05446006492 | EK51: 0.08350095197 | EL51: 0.09166793149 | EM51: -0.1080836773 | EN51: -0.2080419915 | EO51: 0.07260929377 | EP51: -0.3027268798 | EQ51: -0.003149754165 | ER51: -0.4257498091 | ES51: 0.06944483357 | ET51: -0.08545085582 | EU51: -0.1590659965 | EV51: 0.02592569653 | EW51: -0.0254947516 | EX51: -0.2335774978 | EY51: -0.08651937542 | EZ51: -0.1018917837 | FA51: 0.02605719637 | FB51: 0.1251417313 | FC51: 0.2604362687 | FD51: 0.06949350495 | FE51: 0.01882837912 | FF51: 0.07860364279 | FG51: 0.01227535208 | FH51: -0.08580427162 | FJ51: 47 | FK51: 0.5166646475 | FM51: 47 | FN51: 0.6944277247
A52: Strain_BotofBase | B52: 8.357974135e-05 | C52: 7.54421666e-05 | D52: =S144*B52+C52 -> 0.0005853614045 | E52: =EXP(D52)-1 -> 0.000585532762 | O52: 47 | P52: -6.308809016 | R52: 47 | S52: -5.792144369 | V52: 47 | W52: -0.9999813777 | Y52: 47 | Z52: -2.765988563 | AB52: 47 | AC52: -2.071560838 | AF52: 47 | AG52: -0.9687495986 | AH52: -0.9687495986 | AJ52: 7 | AK52: 0.1616485215 | AL52: -0.1050280183 | AM52: 0.06477809803 | AN52: 0.01415713902 | AO52: -0.1501859229 | AP52: -0.07512465445 | AQ52: -0.3838614368 | AR52: 0.3368462332 | AS52: 0.04362004788 | AT52: 0.03924737194 | AU52: 0.0339089566 | AV52: -0.2207356575 | AW52: 0.1090631712 | AX52: 0.02279212156 | AY52: 0.02801523269 | AZ52: -0.129425751 | BA52: -0.1405300021 | BB52: 0.003122553095 | BC52: -0.1241663212 | BD52: -0.173860485 | BE52: -0.08343654602 | BF52: 0.09615425871 | BG52: 0.1496052512 | BH52: 0.1160081905 | BI52: 0.009497828488 | BJ52: -0.1326508123 | BK52: 0.08047033869 | BL52: 0.09939085352 | BM52: -0.06570387872 | BN52: -0.1620617726 | BO52: -0.160226026 | BP52: 0.02781830343 | BQ52: 0.1572723507 | BR52: 0.01462235399 | BS52: 0.03562760237 | BT52: -0.1563839772 | BU52: -0.3666641808 | BV52: -0.07984635628 | BW52: 0.423593593 | BX52: -0.08681204844 | BY52: -0.1027607549 | BZ52: 0.0960092865 | CA52: -0.05330542782 | CB52: 0.4117919166 | CC52: 0.2255785855 | CD52: -0.1046149807 | CE52: -0.2309594576 | CF52: -0.07679224301 | CG52: -0.06462013662 | CH52: 0.4233618285 | CI52: -0.02932980283 | CJ52: 0.2220599102 | CK52: -0.07356611621 | CL52: -0.1056246443 | CM52: 0.2279832008 | CN52: -0.01972198603 | CO52: -0.3625580301 | CP52: -0.03935567695 | CQ52: 0.1849646222 | CR52: 0.3315338218 | CS52: -0.2608068281 | CT52: -0.1301324953 | CU52: -0.1190876591 | CV52: -0.05126796885 | CW52: -0.06779396773 | CX52: 0.01058856996 | CY52: -0.1071924699 | CZ52: 0.09504089828 | DA52: 0.07592631402 | DB52: 0.0711417099 | DC52: 0.08046077598 | DD52: -0.07609728046 | DE52: -0.2716933925 | DF52: 0.005056015759 | DG52: -0.108723569 | DH52: 0.02451775197 | DI52: 0.2063563301 | DJ52: 0.01753144409 | DK52: 0.2379269647 | DL52: -0.05639143256 | DM52: -0.07544193918 | DN52: -0.3551155238 | DO52: 0.01256262023 | DP52: 0.01838239822 | DQ52: -0.1823891947 | DR52: 0.08801483988 | DS52: 0.1996252828 | DT52: -0.3793584688 | DU52: 0.05688284354 | DV52: 0.1180087623 | DW52: 0.3475739871 | DX52: -0.01749756511 | DY52: -0.02772559978 | DZ52: 0.07803974276 | EA52: -0.03823376034 | EB52: -0.3265997894 | EC52: 0.01385084151 | ED52: -0.02721312853 | EE52: -0.05614636517 | EF52: 0.009596341174 | EG52: 0.1092251056 | EH52: -0.07037930956 | EI52: 0.2968654685 | EJ52: -0.1058174619 | EK52: 0.06856429026 | EL52: 0.08401238407 | EM52: 0.07572282192 | EN52: -0.07774375353 | EO52: -0.07322609865 | EP52: -0.09122138494 | EQ52: 0.01070401573 | ER52: -0.2794124677 | ES52: -0.07273404665 | ET52: 0.1382994631 | EU52: -0.07369605219 | EV52: -0.02967037576 | EW52: 0.1036227661 | EX52: 0.676798436 | EY52: -0.1727296688 | EZ52: 0.05979060933 | FA52: -0.1393202859 | FB52: 0.03672614238 | FC52: -0.1342448166 | FD52: 0.1476063493 | FE52: -0.2509923455 | FF52: 0.03445699852 | FG52: 0.09425177897 | FH52: -0.2460917163 | FJ52: 48 | FK52: 0.9767226407 | FM52: 48 | FN52: -0.04956476055
A53: Strain_TopofSubg | B53: 0.0003245508348 | C53: -0.0002420683284 | D53: =S145*B53+C53 -> -0.002662312329 | O53: 48 | P53: -0.1832758128 | R53: 48 | S53: 0.7934468279 | V53: 48 | W53: 0.6603572265 | Y53: 48 | Z53: 3.184928414 | AB53: 48 | AC53: 3.135363653 | AF53: 48 | AG53: 0.9962254314 | AH53: 0.9962254314 | AJ53: 8 | AK53: 0.1588066767 | AL53: 0.001239755196 | AM53: 0.1120627571 | AN53: 0.08114877158 | AO53: 0.1441599747 | AP53: 0.06158080411 | AQ53: -0.2323381644 | AR53: 0.1130345878 | AS53: 0.1532306962 | AT53: -0.07078399286 | AU53: 0.05868564911 | AV53: -0.2025774889 | AW53: 0.01888468872 | AX53: 0.04890210966 | AY53: 0.131914043 | AZ53: -0.03911267577 | BA53: 0.09197470076 | BB53: 0.05164904378 | BC53: 0.03825472823 | BD53: -0.01491465884 | BE53: -0.09859368101 | BF53: 0.2318615761 | BG53: -0.03725735113 | BH53: -0.2256243297 | BI53: -0.03703026353 | BJ53: 0.05324013047 | BK53: 0.07890265136 | BL53: 0.03588102252 | BM53: 0.1898525877 | BN53: 0.1030324628 | BO53: 0.006037895921 | BP53: 0.1046367128 | BQ53: -0.164206284 | BR53: -0.02933221533 | BS53: -0.08710076417 | BT53: -0.109141021 | BU53: 0.0706723125 | BV53: 0.01267925876 | BW53: 0.01961825658 | BX53: -0.1614564041 | BY53: -0.05016486991 | BZ53: -0.06305478931 | CA53: 0.1537297966 | CB53: 0.1927701255 | CC53: -0.1053328772 | CD53: -0.2551327552 | CE53: -0.1704492391 | CF53: 0.04471213578 | CG53: 0.1133776368 | CH53: -0.1110639455 | CI53: -0.1277110803 | CJ53: 0.08680883729 | CK53: 0.2802880829 | CL53: -0.170852491 | CM53: -0.1983818676 | CN53: 0.05446283601 | CO53: -0.4640491601 | CP53: 0.2550381424 | CQ53: -0.05992523714 | CR53: -0.1345965644 | CS53: -0.1657766338 | CT53: 0.1259066061 | CU53: -0.09358334544 | CV53: -0.02923639678 | CW53: -0.06233194898 | CX53: -0.00515782581 | CY53: 0.05413877028 | CZ53: -0.04170730402 | DA53: 0.3171657386 | DB53: 0.3973405172 | DC53: 0.0157661016 | DD53: 0.01976375376 | DE53: -0.2781134816 | DF53: 0.1525064934 | DG53: 0.0429931712 | DH53: -0.1586066795 | DI53: -0.1033240481 | DJ53: -0.1226420108 | DK53: -0.01751874619 | DL53: -0.01954050362 | DM53: 0.007037472704 | DN53: 0.03085652312 | DO53: -0.04313251513 | DP53: 0.09038649735 | DQ53: 0.04938407592 | DR53: -0.1126753053 | DS53: 0.06920660705 | DT53: 0.04707053567 | DU53: -0.006615030792 | DV53: -0.06621892593 | DW53: -0.1462933798 | DX53: 0.09973978509 | DY53: 0.1120059076 | DZ53: 0.09388538138 | EA53: -0.03716848013 | EB53: 0.06004256027 | EC53: -0.1628704864 | ED53: 0.01979045416 | EE53: 0.2408123803 | EF53: 0.08311255536 | EG53: 0.1001803206 | EH53: 0.1301103531 | EI53: 0.220415847 | EJ53: 0.0651581318 | EK53: 0.1480526096 | EL53: -0.01698081722 | EM53: -0.08318974246 | EN53: -0.1757707406 | EO53: 0.06873764491 | EP53: -0.05549459547 | EQ53: 0.023387824 | ER53: -0.1461405415 | ES53: 0.04005032111 | ET53: 0.1056370159 | EU53: 0.08987449247 | EV53: 0.02343452705 | EW53: 0.02347191745 | EX53: 0.2194329904 | EY53: -0.03613535903 | EZ53: -0.0843956782 | FA53: -0.06912131973 | FB53: -0.0565805596 | FC53: 0.3312208326 | FD53: 0.1576159083 | FE53: -0.2498959999 | FF53: -0.2708665805 | FG53: -0.2174553825 | FH53: -0.003907418922 | FJ53: 49 | FK53: -0.5441425337 | FM53: 49 | FN53: 0.1198378005
O54: 49 | P54: 2.274003015 | R54: 49 | S54: 1.729860481 | V54: 49 | W54: 0.9390394438 | Y54: 49 | Z54: -0.8184658976 | AB54: 49 | AC54: -0.6986280971 | AF54: 49 | AG54: -0.603496254 | AH54: -0.603496254 | AJ54: 9 | AK54: -0.1098719235 | AL54: 0.1561536415 | AM54: -0.01006826231 | AN54: -0.04237358822 | AO54: 0.003890145738 | AP54: -0.2221674111 | AQ54: -0.1209209919 | AR54: 0.1526306243 | AS54: 0.03493732208 | AT54: -0.007916411142 | AU54: -0.1498371947 | AV54: -0.2374971272 | AW54: 0.02252030205 | AX54: -0.2504925365 | AY54: 0.1192608897 | AZ54: 0.1653791595 | BA54: -0.08362923664 | BB54: -0.02107266458 | BC54: 0.03247822415 | BD54: -0.1577274828 | BE54: -0.08338591118 | BF54: 0.1959326479 | BG54: 0.2204781106 | BH54: 0.2758967025 | BI54: 0.1308629909 | BJ54: -0.08204046199 | BK54: -0.0365169474 | BL54: 0.04362141243 | BM54: -0.2001648158 | BN54: -0.1312815721 | BO54: 0.003418192902 | BP54: -0.0473134152 | BQ54: 0.08467553639 | BR54: 0.02129215695 | BS54: -0.02694196394 | BT54: 0.1245930097 | BU54: 0.198251175 | BV54: 0.01352316294 | BW54: 0.1639002456 | BX54: -0.02991762645 | BY54: 0.02759241628 | BZ54: 0.04248026263 | CA54: -0.07316483881 | CB54: 0.2189871028 | CC54: 0.08528733917 | CD54: 0.01405524395 | CE54: -0.07904759051 | CF54: -0.2390238044 | CG54: 0.1174168305 | CH54: 0.1009296329 | CI54: 0.01108374415 | CJ54: 0.1001205798 | CK54: 0.06805355299 | CL54: -0.2533055887 | CM54: -0.02797267454 | CN54: -0.08321082871 | CO54: -0.1833603551 | CP54: -0.1186522777 | CQ54: 0.01176638793 | CR54: 0.1195397477 | CS54: -0.09664380039 | CT54: -0.04195596807 | CU54: -0.05618658192 | CV54: -0.1565920284 | CW54: 0.02409918379 | CX54: -0.1349023501 | CY54: -0.04832948692 | CZ54: 0.02548036512 | DA54: -0.1021564936 | DB54: 0.08318513322 | DC54: 0.04159046197 | DD54: -0.07136837635 | DE54: -0.06589695085 | DF54: 0.2234935918 | DG54: 0.1044454927 | DH54: 0.08887293366 | DI54: 0.1532885912 | DJ54: 0.04125542508 | DK54: 0.1709958359 | DL54: -0.01253601923 | DM54: -0.01236763426 | DN54: -0.1643496845 | DO54: 0.1047413305 | DP54: 0.1571495051 | DQ54: 0.1166323851 | DR54: -0.00320448803 | DS54: -0.004721096465 | DT54: -0.04079643005 | DU54: 0.03464325652 | DV54: 0.04317502097 | DW54: -0.2930922735 | DX54: -0.03759309684 | DY54: -0.0790909678 | DZ54: 0.0079582966 | EA54: -0.08782290023 | EB54: 0.1225413557 | EC54: 0.1009589031 | ED54: -0.05129909889 | EE54: -0.05354630219 | EF54: -0.01976069254 | EG54: 0.1025029991 | EH54: 0.04069800573 | EI54: 0.07017393952 | EJ54: -0.05396720559 | EK54: -0.08370081196 | EL54: -0.06362618399 | EM54: 0.05203514138 | EN54: 0.1871380858 | EO54: -0.002700862843 | EP54: 0.2040267617 | EQ54: -0.08334040859 | ER54: -0.08813137109 | ES54: -0.08427321524 | ET54: 0.05437578979 | EU54: 0.0289304032 | EV54: -0.0004786786544 | EW54: -0.06867893115 | EX54: -0.04132564564 | EY54: 0.009504966443 | EZ54: -0.02963951249 | FA54: 0.08407566321 | FB54: -0.04597777435 | FC54: -0.1976758946 | FD54: -0.224642301 | FE54: -0.07479328405 | FF54: 0.05876127916 | FG54: 0.06168466569 | FH54: -0.0440394309 | FJ54: 50 | FK54: -0.8317107776 | FM54: 50 | FN54: -0.7098029802
O55: 50 | P55: -0.8980446098 | R55: 50 | S55: -1.729755387 | V55: 50 | W55: -0.93902702 | Y55: 50 | Z55: 5.10283987 | AB55: 50 | AC55: 4.39303689 | AF55: 50 | AG55: 0.9996943529 | AH55: 0.9996943529 | AJ55: 10 | AK55: -0.07150908791 | AL55: 0.0144954564 | AM55: 0.07839744191 | AN55: -0.002592665456 | AO55: 0.003079273471 | AP55: -0.08166190638 | AQ55: -0.003734298097 | AR55: 0.1149101278 | AS55: -0.0400370568 | AT55: 0.05847145892 | AU55: -0.0701477474 | AV55: -0.1335526948 | AW55: -0.04492415241 | AX55: -0.1553544963 | AY55: -0.06255688764 | AZ55: -0.2749478733 | BA55: 0.02032467708 | BB55: 0.02715993797 | BC55: -0.03737342735 | BD55: 0.03541402491 | BE55: 0.07582367309 | BF55: 0.380143327 | BG55: -0.1292473011 | BH55: -0.0835243374 | BI55: -0.02237603701 | BJ55: 0.104484215 | BK55: -0.03351955037 | BL55: 0.01254770249 | BM55: -0.1062818897 | BN55: 0.01247870106 | BO55: 0.01171795969 | BP55: -0.09715792952 | BQ55: -0.02689999446 | BR55: 0.02846757242 | BS55: -0.01520557274 | BT55: 0.04975968516 | BU55: -0.01809246848 | BV55: -0.07931027392 | BW55: -0.1495170751 | BX55: 0.004312568165 | BY55: -0.02139730871 | BZ55: 0.03374533338 | CA55: 0.004943924566 | CB55: 0.1604093995 | CC55: 0.08475584178 | CD55: 0.09700763412 | CE55: -0.1436582501 | CF55: -0.1439839812 | CG55: -0.01167289014 | CH55: -0.006178939963 | CI55: 0.08964958404 | CJ55: 0.1273564605 | CK55: -0.07912689024 | CL55: -0.08969338786 | CM55: 0.1866551885 | CN55: 0.04088355608 | CO55: -0.03191000848 | CP55: 0.09800116568 | CQ55: 0.07862785769 | CR55: 0.06749470995 | CS55: -0.01533496069 | CT55: -0.04579711521 | CU55: -0.1662367975 | CV55: 0.03687099328 | CW55: -0.1039224338 | CX55: -0.02505924767 | CY55: 0.08037546013 | CZ55: -0.06890366356 | DA55: 0.02468141556 | DB55: -0.09273425144 | DC55: 0.03634930867 | DD55: 0.1108560094 | DE55: -0.03197603487 | DF55: 0.1441558138 | DG55: 0.05762498369 | DH55: 0.003852307822 | DI55: 0.2423241395 | DJ55: 0.06838191429 | DK55: 0.02520726178 | DL55: -0.3123686504 | DM55: -0.09270707512 | DN55: -0.09410001521 | DO55: 0.0294545093 | DP55: -0.1117327486 | DQ55: 0.1327825376 | DR55: 0.07016549434 | DS55: 0.1129727097 | DT55: -0.2274601755 | DU55: -0.02258660419 | DV55: -0.02226134019 | DW55: -0.1097441542 | DX55: -0.0563605083 | DY55: 0.03801774149 | DZ55: -0.01171389047 | EA55: -0.08386632786 | EB55: 0.2386140283 | EC55: -0.03378342412 | ED55: -0.04625199609 | EE55: 0.1307999721 | EF55: 0.01851406876 | EG55: -0.04884846041 | EH55: -0.05102569258 | EI55: 0.09036843898 | EJ55: -0.08255634664 | EK55: -0.09494658491 | EL55: -0.05823290166 | EM55: -0.01691027083 | EN55: 0.1033091191 | EO55: -0.000796178512 | EP55: 0.07744891759 | EQ55: -0.04726821798 | ER55: -0.02079515083 | ES55: -0.03224710753 | ET55: 0.0009868390564 | EU55: 0.1978120819 | EV55: 0.05975396911 | EW55: 0.01310646975 | EX55: -0.3098174915 | EY55: 0.1032787436 | EZ55: 0.0315936439 | FA55: 0.007432214623 | FB55: 0.03708880509 | FC55: 0.05922258335 | FD55: -0.1369580576 | FE55: -0.01565537374 | FF55: 0.1082920677 | FG55: 0.06851362511 | FH55: 0.03139662635 | FJ55: 51 | FK55: -0.1935937019 | FM55: 51 | FN55: 0.2762670188
O56: 51 | P56: 5.022945591 | R56: 51 | S56: 4.829351889 | V56: 51 | W56: 0.9998722736 | Y56: 51 | Z56: -3.084416129 | AB56: 51 | AC56: -2.80814911 | AF56: 51 | AG56: -0.9927502082 | AH56: -0.9927502082 | AJ56: 11 | AK56: -0.05926075963 | AL56: 0.001622551039 | AM56: 0.08786784229 | AN56: -0.06810822178 | AO56: -0.1270671034 | AP56: -0.1778538704 | AQ56: 0.00990754717 | AR56: 0.1014228105 | AS56: -0.04633953875 | AT56: 0.02065064582 | AU56: -0.00489926315 | AV56: 0.08316548915 | AW56: 0.07192339655 | AX56: 0.2755205206 | AY56: -0.1116094895 | AZ56: 0.009289187378 | BA56: 0.125819116 | BB56: -0.08672113963 | BC56: 0.0154035334 | BD56: -0.03364759708 | BE56: 0.01806320103 | BF56: 0.1931991098 | BG56: 0.01870075682 | BH56: 0.0553992089 | BI56: -0.00874247399 | BJ56: 0.05844507468 | BK56: -0.02507919287 | BL56: -0.0599429681 | BM56: -0.04151891705 | BN56: -0.0401230276 | BO56: -0.0453139707 | BP56: -0.06191659636 | BQ56: 0.1160765925 | BR56: -0.0008761160036 | BS56: -0.00478814527 | BT56: -0.1029102487 | BU56: -0.4007901918 | BV56: 0.08483125592 | BW56: -0.2222577171 | BX56: -0.07394241691 | BY56: -0.03323418563 | BZ56: -0.001705885479 | CA56: 0.03777519039 | CB56: -0.08109106751 | CC56: 0.01865343127 | CD56: -0.02457061915 | CE56: -0.1077652091 | CF56: 0.2796093388 | CG56: 0.03044898448 | CH56: -0.04114552246 | CI56: 0.06632397378 | CJ56: 0.3949191436 | CK56: -0.100335339 | CL56: -0.1179807602 | CM56: -0.1776792132 | CN56: 0.02850456817 | CO56: -0.07238887099 | CP56: -0.09103015484 | CQ56: 0.08162657389 | CR56: 0.2185087207 | CS56: -0.1026607211 | CT56: -0.06751083921 | CU56: -0.06332088338 | CV56: 0.1396525434 | CW56: -0.1459129158 | CX56: -0.03820320574 | CY56: 0.0176016623 | CZ56: -0.004112552064 | DA56: -0.02613652772 | DB56: -0.168038162 | DC56: 0.007787877114 | DD56: 0.03883470736 | DE56: -0.1298093229 | DF56: -0.03731345148 | DG56: 0.06980230635 | DH56: 0.03934432251 | DI56: -0.06554233733 | DJ56: 0.1917869668 | DK56: 0.161452532 | DL56: -0.2901963734 | DM56: 0.02148139855 | DN56: -0.05743453607 | DO56: -0.04646238533 | DP56: 0.007934614601 | DQ56: 0.01055133341 | DR56: 0.02018112796 | DS56: 0.07875473429 | DT56: -0.06023823202 | DU56: 0.006532805658 | DV56: -0.007223662301 | DW56: 0.3532291456 | DX56: -0.03075200241 | DY56: -0.09648148395 | DZ56: -0.08946801785 | EA56: -0.06678014135 | EB56: -0.2946020343 | EC56: 0.01694512562 | ED56: -0.07794464272 | EE56: -0.02709955443 | EF56: 0.05510361978 | EG56: 0.08156842213 | EH56: 0.1296448387 | EI56: 0.2488409563 | EJ56: -0.1331242466 | EK56: -0.02914081358 | EL56: -0.1195586788 | EM56: 0.04640893747 | EN56: 0.1156154209 | EO56: -0.04904521875 | EP56: 0.1007987998 | EQ56: -0.0893782593 | ER56: -0.1694113468 | ES56: -0.02007370934 | ET56: -0.1284989321 | EU56: 0.09384630377 | EV56: 0.03645940462 | EW56: 0.0639099459 | EX56: -0.04042701055 | EY56: 0.03535622176 | EZ56: -0.01202794185 | FA56: 0.002731175648 | FB56: -0.04860603034 | FC56: 0.02780702506 | FD56: 0.003624602258 | FE56: -0.2698052661 | FF56: 0.1644881317 | FG56: 0.08821610655 | FH56: -0.1677960641 | FJ56: 52 | FK56: -0.9477817974 | FM56: 52 | FN56: -0.4060500781
O57: 52 | P57: -3.504704992 | R57: 52 | S57: -4.45248679 | V57: 52 | W57: -0.9997286123 | Y57: 52 | Z57: 0.2352920175 | AB57: 52 | AC57: -0.1707580606 | AF57: 52 | AG57: -0.1691175196 | AH57: -0.1691175196 | AJ57: 12 | AK57: 0.1369542973 | AL57: -0.03660244693 | AM57: -0.01315611181 | AN57: -0.1060991266 | AO57: -0.09043235861 | AP57: -0.2120429361 | AQ57: -0.1763682642 | AR57: 0.05933371141 | AS57: -0.1160024369 | AT57: -0.04901049458 | AU57: 0.10663939 | AV57: -0.2565947678 | AW57: -0.01473831438 | AX57: 0.3095591955 | AY57: -0.05449153393 | AZ57: -0.0400966655 | BA57: -0.1072947672 | BB57: 0.1586786131 | BC57: -0.07453502971 | BD57: -0.2567401355 | BE57: 0.08055223044 | BF57: -0.1572994309 | BG57: 0.1120170776 | BH57: -0.02735175226 | BI57: -0.06157339172 | BJ57: -0.08860941964 | BK57: 0.06907639942 | BL57: -0.09984968507 | BM57: 0.1664479514 | BN57: -0.06995673107 | BO57: -0.0854235352 | BP57: -0.06853568228 | BQ57: 0.172792941 | BR57: -0.06923125667 | BS57: -0.08368311206 | BT57: 0.117078324 | BU57: -0.2408356284 | BV57: -0.006403689762 | BW57: 0.2793752715 | BX57: -0.2186322917 | BY57: -0.02070241537 | BZ57: 0.04485979519 | CA57: 0.003566903243 | CB57: 0.1402020664 | CC57: -0.101913203 | CD57: 0.07621788033 | CE57: 0.02434652502 | CF57: 0.3600786479 | CG57: 0.02681300126 | CH57: 0.1430167556 | CI57: -0.1189317152 | CJ57: 0.1505167799 | CK57: 0.2181099831 | CL57: -0.1249525435 | CM57: 0.4603816793 | CN57: 0.003743246482 | CO57: 0.07638057775 | CP57: 0.1951982308 | CQ57: 0.008177409274 | CR57: 0.05092711282 | CS57: -0.1619870154 | CT57: 0.01288992504 | CU57: -0.3370623207 | CV57: -0.2703025412 | CW57: 0.08670510406 | CX57: 0.08485359937 | CY57: -0.06081061893 | CZ57: -0.02893941239 | DA57: -0.1690240457 | DB57: -0.05281999673 | DC57: 0.06724287399 | DD57: -0.07788190714 | DE57: -0.02232851276 | DF57: -0.3223160949 | DG57: 0.05078030883 | DH57: -0.09205945956 | DI57: -0.1858689757 | DJ57: -0.1780807544 | DK57: 0.1830519403 | DL57: -0.1570379779 | DM57: 0.04419037037 | DN57: 0.06892109806 | DO57: 0.01899054677 | DP57: -0.0353625615 | DQ57: 0.1875764736 | DR57: -0.0857449772 | DS57: 0.2595451303 | DT57: -0.2053668368 | DU57: 0.06805348492 | DV57: 0.05850902224 | DW57: 0.08706949965 | DX57: 0.02711180139 | DY57: 0.02839015275 | DZ57: 0.06407082198 | EA57: -0.08348217496 | EB57: -0.2804429524 | EC57: 0.04080378334 | ED57: 0.02308671667 | EE57: 0.09678053813 | EF57: 0.0168380975 | EG57: -0.00244345188 | EH57: 0.09507960012 | EI57: 0.07375671859 | EJ57: -0.1228436759 | EK57: 0.03901641897 | EL57: 0.1027786195 | EM57: -0.03641973194 | EN57: 0.03936305916 | EO57: -0.04234193182 | EP57: -0.01420669677 | EQ57: 0.06530135766 | ER57: -0.2686310531 | ES57: -0.06435885633 | ET57: -0.08313319189 | EU57: -0.4255730592 | EV57: -0.109233462 | EW57: -0.04481770941 | EX57: -0.09005360405 | EY57: -0.2902601999 | EZ57: -0.01737661861 | FA57: -0.01404837769 | FB57: 0.2915324229 | FC57: 0.1699096013 | FD57: 0.3413313071 | FE57: -0.2351039436 | FF57: 0.01455739624 | FG57: 0.2285942101 | FH57: -0.3719251683 | FJ57: 53 | FK57: -0.3925533144 | FM57: 53 | FN57: -0.0099688713
O58: 53 | P58: -4.948044453 | R58: 53 | S58: -5.340597768 | V58: 53 | W58: -0.9999540553 | Y58: 53 | Z58: 4.294171732 | AB58: 53 | AC58: 4.284202861 | AF58: 53 | AG58: 0.9996200415 | AH58: 0.9996200415 | AJ58: 13 | AK58: 0.3477212514 | AL58: 0.004489032347 | AM58: -0.04910918562 | AN58: 0.05094342248 | AO58: -0.06937257471 | AP58: -0.0856866595 | AQ58: -0.194728753 | AR58: 0.2012103336 | AS58: 0.05184816463 | AT58: 0.05869451446 | AU58: 0.3289860131 | AV58: -0.1117097453 | AW58: 0.01455363445 | AX58: 0.2147065899 | AY58: -0.1694757405 | AZ58: 0.1894730412 | BA58: -0.0961000263 | BB58: 0.04221666095 | BC58: 0.02619126008 | BD58: -0.009379593427 | BE58: 0.08532107947 | BF58: 0.1910378739 | BG58: 0.1071290618 | BH58: -0.2081796917 | BI58: 0.04404538745 | BJ58: 0.009628355147 | BK58: -0.003060110611 | BL58: -0.04045033765 | BM58: 0.1530577765 | BN58: -0.1028005094 | BO58: -0.06577908541 | BP58: 0.04231077583 | BQ58: -0.01410942347 | BR58: 0.03572754653 | BS58: -0.005504333402 | BT58: 0.08592470129 | BU58: -0.3406027807 | BV58: 0.007933031544 | BW58: 0.2802709245 | BX58: -0.2693381147 | BY58: 0.003280514877 | BZ58: -0.05955164061 | CA58: 0.1177937443 | CB58: 0.131521627 | CC58: 0.4908767787 | CD58: -0.02812322264 | CE58: -0.1934339787 | CF58: 0.3403783916 | CG58: -0.05261578164 | CH58: 0.1247349627 | CI58: 0.3750540443 | CJ58: -0.04664595237 | CK58: 0.1551307943 | CL58: -0.1147405799 | CM58: 0.1764634698 | CN58: -0.03373539523 | CO58: -0.1774945053 | CP58: -0.1345891151 | CQ58: 0.03488734098 | CR58: -0.01580359723 | CS58: -0.3679388556 | CT58: -0.07984721812 | CU58: -0.1625282188 | CV58: -0.1026580645 | CW58: -0.08162419176 | CX58: 0.1391058839 | CY58: 0.06743092564 | CZ58: -0.03584871906 | DA58: 0.05864225073 | DB58: 0.06113036501 | DC58: 0.0233528579 | DD58: -0.03580798751 | DE58: -0.170017571 | DF58: 0.05151647395 | DG58: 0.02636067755 | DH58: 0.08055405094 | DI58: -0.6504281416 | DJ58: -0.2155312939 | DK58: -0.1025428591 | DL58: -0.1087122689 | DM58: 0.271848508 | DN58: -0.01109492438 | DO58: -0.2312598039 | DP58: 0.00393765949 | DQ58: -0.0680318549 | DR58: 0.03947740993 | DS58: -0.08608913706 | DT58: 0.005682549634 | DU58: -0.02749580797 | DV58: -0.02349447354 | DW58: 0.9155811867 | DX58: -0.05604476749 | DY58: 0.03343723791 | DZ58: -0.01227272633 | EA58: -0.05194771839 | EB58: -0.1960170087 | EC58: -0.07706474889 | ED58: -0.07834473174 | EE58: 0.06065945006 | EF58: -0.08782196816 | EG58: -0.02744055881 | EH58: 0.0854377602 | EI58: -0.1229840062 | EJ58: 0.07904055574 | EK58: -0.0264036845 | EL58: -0.07976254217 | EM58: -0.05077581377 | EN58: -0.1003299469 | EO58: 0.07346487485 | EP58: 0.05521665249 | EQ58: -0.2121558935 | ER58: -0.03672269334 | ES58: 0.03673592793 | ET58: 0.09527607049 | EU58: -0.3349619232 | EV58: -0.01179353374 | EW58: 0.1461417297 | EX58: 0.3496415709 | EY58: -0.06958005022 | EZ58: -0.1548473399 | FA58: 0.1325242792 | FB58: -0.01512613783 | FC58: 0.2967447261 | FD58: 0.06189442525 | FE58: -0.494975188 | FF58: 0.1152961537 | FG58: 0.003929381906 | FH58: -0.1491007627 | FJ58: 54 | FK58: 1.222616594 | FM58: 54 | FN58: 0.4710123881
O59: 54 | P59: 0.03929327981 | R59: 54 | S59: 1.261909873 | V59: 54 | W59: 0.8515897873 | Y59: 54 | Z59: -2.803469283 | AB59: 54 | AC59: -2.332456895 | AF59: 54 | AG59: -0.9813356983 | AH59: -0.9813356983 | AJ59: 14 | AK59: -0.03452062121 | AL59: 0.04021795907 | AM59: 0.094334134 | AN59: -0.09188141202 | AO59: 0.007301417414 | AP59: -0.03693048409 | AQ59: -0.005009037272 | AR59: 0.104247909 | AS59: 0.0270039572 | AT59: 0.01989287889 | AU59: -0.212291146 | AV59: -0.08435158195 | AW59: -0.02280798727 | AX59: -0.2337408497 | AY59: -0.3026650661 | AZ59: 0.008825688459 | BA59: -0.123230424 | BB59: -0.1107702629 | BC59: 0.1120888721 | BD59: 0.08136860465 | BE59: 0.01006041961 | BF59: 0.01771726587 | BG59: 0.07857718768 | BH59: 0.01776253563 | BI59: -0.03923156535 | BJ59: 0.06132788663 | BK59: -0.01987888197 | BL59: 0.04418967093 | BM59: -0.09575454522 | BN59: -0.01438831523 | BO59: -0.06028440239 | BP59: 0.0826796791 | BQ59: 0.196916493 | BR59: 0.007760665324 | BS59: 0.317491837 | BT59: 0.001001251558 | BU59: 0.4193361303 | BV59: 0.00694153107 | BW59: -0.1405420034 | BX59: -0.03286489864 | BY59: 0.08878408889 | BZ59: -0.1432075898 | CA59: -0.1052182229 | CB59: -0.09223598294 | CC59: 0.3069443314 | CD59: 0.118184806 | CE59: 0.03177597415 | CF59: -0.0958730674 | CG59: 0.08711534888 | CH59: 0.07185642847 | CI59: 0.04669289018 | CJ59: 0.107659916 | CK59: -0.0495749042 | CL59: 0.03501140057 | CM59: -0.1123942589 | CN59: -0.1320118201 | CO59: -0.003505900072 | CP59: 0.1124445664 | CQ59: -0.002059531349 | CR59: 0.1308077963 | CS59: 0.07364174453 | CT59: -0.09175602486 | CU59: -0.121119562 | CV59: 0.001850568418 | CW59: -0.05136186041 | CX59: -0.1991440331 | CY59: 0.01561891807 | CZ59: 0.0762622918 | DA59: 0.09458033732 | DB59: -0.1931321966 | DC59: -0.1017766465 | DD59: -0.07226197325 | DE59: -0.1695588131 | DF59: 0.2052660139 | DG59: -0.0369338841 | DH59: -0.06290830979 | DI59: 0.09909512042 | DJ59: 0.08187160747 | DK59: 0.009320126108 | DL59: -0.1015113612 | DM59: -0.1615995784 | DN59: 0.0290109196 | DO59: 0.1445442652 | DP59: -0.09847845895 | DQ59: -0.172676082 | DR59: -0.07123446674 | DS59: -0.007951194009 | DT59: 0.03039303707 | DU59: -0.004721855916 | DV59: -0.03190558504 | DW59: -0.182354214 | DX59: 0.07041030763 | DY59: -0.06945280056 | DZ59: -0.05526427525 | EA59: 0.03586529111 | EB59: -0.1445157085 | EC59: 0.07431900712 | ED59: 0.173967467 | EE59: -0.255069866 | EF59: -0.07323438116 | EG59: 0.03251193003 | EH59: 0.07016127956 | EI59: 0.1635829249 | EJ59: -0.09774165102 | EK59: -0.0618806555 | EL59: 0.09552218053 | EM59: 0.04256352846 | EN59: -0.1063179651 | EO59: -0.08264476534 | EP59: 0.1280350493 | EQ59: -0.05248904686 | ER59: 0.2879505271 | ES59: 0.01936220324 | ET59: 0.04580283942 | EU59: 0.1102774021 | EV59: 0.03434365346 | EW59: -0.1577649657 | EX59: 0.3135722485 | EY59: 0.09329098711 | EZ59: -0.008182734693 | FA59: 0.1777066077 | FB59: -0.167618755 | FC59: -0.2126205907 | FD59: -0.05833843125 | FE59: -0.03825246841 | FF59: 0.2134093381 | FG59: 0.2065234486 | FH59: 0.1603325777 | FJ59: 55 | FK59: 0.2415344924 | FM59: 55 | FN59: -0.2261479699
O60: 55 | P60: -5.03965196 | R60: 55 | S60: -4.798117467 | V60: 55 | W60: -0.9998640408 | Y60: 55 | Z60: 5.987970893 | AB60: 55 | AC60: 5.761822923 | AF60: 55 | AG60: 0.9999802135 | AH60: 0.9999802135 | AJ60: 15 | AK60: -0.04573132776 | AL60: 0.08743341782 | AM60: 0.01939992211 | AN60: 0.06519485425 | AO60: 0.05473848889 | AP60: -0.2032440521 | AQ60: -0.06884162252 | AR60: 0.04945750335 | AS60: 0.1245597331 | AT60: -0.04745121371 | AU60: 0.1444937771 | AV60: -0.1073875923 | AW60: 0.08889836206 | AX60: 0.0552126196 | AY60: -0.1155779453 | AZ60: 0.2659679208 | BA60: 0.05967937405 | BB60: 0.0214459156 | BC60: -0.04376276916 | BD60: 0.184740525 | BE60: 0.02659476763 | BF60: -0.07031876693 | BG60: -0.008320706569 | BH60: 0.3187024611 | BI60: 0.1081085394 | BJ60: 0.06058720625 | BK60: 0.05166409607 | BL60: -0.09034684399 | BM60: -0.1949171213 | BN60: 0.1300520833 | BO60: 0.06743613317 | BP60: -0.0890501052 | BQ60: -0.05672553511 | BR60: -0.07987154271 | BS60: -0.185075968 | BT60: 0.112886276 | BU60: 0.1504680091 | BV60: 0.02506273672 | BW60: 0.1158742653 | BX60: 0.08091535074 | BY60: 0.06848804226 | BZ60: -0.02905206787 | CA60: -0.08990429353 | CB60: 0.1234549372 | CC60: -0.3331161617 | CD60: 0.1226582121 | CE60: -0.1862831182 | CF60: -0.01671583869 | CG60: -0.05786999438 | CH60: 0.1462042329 | CI60: -0.1082268188 | CJ60: 0.03388544672 | CK60: 0.02341334959 | CL60: 0.06706115371 | CM60: 0.1446663649 | CN60: -0.01206515052 | CO60: -0.2515972068 | CP60: 0.3232413252 | CQ60: 0.004686248662 | CR60: -0.1055263436 | CS60: -0.04635734297 | CT60: 0.2891093884 | CU60: -0.2235904198 | CV60: 0.05690147703 | CW60: -0.005549107055 | CX60: -0.0499986666 | CY60: 0.0266612833 | CZ60: 0.09400040024 | DA60: -0.1687282023 | DB60: -0.1240455324 | DC60: -0.02199670091 | DD60: -0.05072502882 | DE60: 0.004022207226 | DF60: 0.07670920179 | DG60: -0.09959207318 | DH60: -0.04122501853 | DI60: -0.4105612103 | DJ60: -0.1303516485 | DK60: 0.08359379413 | DL60: -0.09251871625 | DM60: 0.09643398194 | DN60: -0.05604268144 | DO60: 0.1567092474 | DP60: -0.006649500646 | DQ60: 0.0622306361 | DR60: -0.1347086133 | DS60: -0.008397230991 | DT60: -0.04624094223 | DU60: -0.05040481656 | DV60: -0.0394163257 | DW60: -0.2848794453 | DX60: 0.0465050506 | DY60: 0.1055225934 | DZ60: -0.02472206735 | EA60: 0.04508278809 | EB60: -0.1576833259 | EC60: -0.03369424261 | ED60: -0.06846846481 | EE60: -0.2261770701 | EF60: 0.03913383192 | EG60: -0.03972417916 | EH60: -0.005035422623 | EI60: 0.2652111281 | EJ60: -0.1395167722 | EK60: 0.01659345483 | EL60: 0.07980535389 | EM60: 0.05499293065 | EN60: 0.3262344947 | EO60: 0.1032607068 | EP60: -0.1744307387 | EQ60: 0.05224097803 | ER60: -0.1466096136 | ES60: -0.1290990273 | ET60: -0.05666283209 | EU60: -0.2450657759 | EV60: 0.02727877138 | EW60: -0.04992749129 | EX60: 0.3768199099 | EY60: -0.0385756594 | EZ60: 0.04603253747 | FA60: 0.07490558159 | FB60: 0.1464524357 | FC60: -0.03509771313 | FD60: -0.006481953467 | FE60: -0.0240712773 | FF60: 0.1165071028 | FG60: 0.1113752287 | FH60: -0.3045526543 | FJ60: 56 | FK60: 0.4744889408 | FM60: 56 | FN60: 0.06339310212
O61: 56 | P61: -0.4016560319 | R61: 56 | S61: 0.07283290887 | V61: 56 | W61: 0.0727043976 | Y61: 56 | Z61: -0.01571151167 | AB61: 56 | AC61: 0.04768159044 | AF61: 56 | AG61: 0.04764548804 | AH61: 0.04764548804 | AJ61: 16 | AK61: -0.0630022352 | AL61: -0.06861262618 | AM61: 0.04633237773 | AN61: 0.06499139027 | AO61: -0.08263871043 | AP61: 0.3438527724 | AQ61: 0.09716200336 | AR61: -0.8575517391 | AS61: -0.0007148738822 | AT61: -0.01989183027 | AU61: 0.09847273993 | AV61: 0.0969225698 | AW61: 0.1249144224 | AX61: 0.08053463154 | AY61: 0.2984981165 | AZ61: -0.05208724226 | BA61: 0.0159287613 | BB61: 0.003894477541 | BC61: -0.02286330616 | BD61: -0.06882355377 | BE61: 0.01362689176 | BF61: -0.2409100927 | BG61: -0.04616280989 | BH61: -0.2675706634 | BI61: -0.1534343173 | BJ61: -0.08005725224 | BK61: -0.1339161467 | BL61: -0.06763124158 | BM61: 0.04001339627 | BN61: 0.06603471943 | BO61: 0.213227985 | BP61: -0.1134661721 | BQ61: 0.06653179539 | BR61: -0.06454521966 | BS61: -0.1988967316 | BT61: -0.03679538791 | BU61: 0.1093076818 | BV61: 0.01898444902 | BW61: -0.05921639615 | BX61: 0.04633020795 | BY61: -0.02231527278 | BZ61: 0.09616985701 | CA61: -0.09008055375 | CB61: -0.03192070555 | CC61: -0.1123331096 | CD61: -0.06266229577 | CE61: 0.1069582653 | CF61: -0.03314315424 | CG61: 0.002149234076 | CH61: 0.01431920328 | CI61: -0.05143294606 | CJ61: -0.5160216943 | CK61: -0.004523964525 | CL61: 0.05367836041 | CM61: 0.1192669449 | CN61: 0.01805954589 | CO61: 0.02435392772 | CP61: -0.1276484964 | CQ61: -0.2084085845 | CR61: -0.1870698967 | CS61: 0.229135317 | CT61: 0.08023081071 | CU61: 0.1902369386 | CV61: -0.006714525496 | CW61: -0.02771469666 | CX61: 0.03884349537 | CY61: -0.001022801287 | CZ61: -0.06529943607 | DA61: -0.6295549612 | DB61: 0.09129537237 | DC61: -0.02956431357 | DD61: 0.06293188684 | DE61: 0.1649797661 | DF61: -0.01324804518 | DG61: -0.07029973389 | DH61: -0.1131770236 | DI61: -0.1709108657 | DJ61: -0.1936184725 | DK61: -0.5887414231 | DL61: 0.5377309226 | DM61: -0.01993389658 | DN61: 0.3690998739 | DO61: 0.1315892606 | DP61: 0.06785793635 | DQ61: 0.06849857661 | DR61: -0.08282801509 | DS61: -0.1511057977 | DT61: 0.07724034929 | DU61: -0.1329919118 | DV61: -0.05901533553 | DW61: -1.244477294 | DX61: -0.01947381825 | DY61: 0.09455620365 | DZ61: -0.2062687756 | EA61: 0.007665147355 | EB61: 0.07313628927 | EC61: -0.2019233235 | ED61: 0.2299359849 | EE61: 0.06287901795 | EF61: 0.03269619763 | EG61: 0.09350737083 | EH61: -0.01436894208 | EI61: -0.09572214501 | EJ61: 0.1312910844 | EK61: 0.03004791187 | EL61: -0.06725154998 | EM61: -0.02251341986 | EN61: -0.02988407194 | EO61: 0.06006341975 | EP61: -0.08678810139 | EQ61: 0.3008732411 | ER61: 0.002270475083 | ES61: -0.04134368361 | ET61: -0.02641695717 | EU61: 0.1263439068 | EV61: 0.04596601732 | EW61: -0.2554460191 | EX61: 0.05599282961 | EY61: 0.1069925667 | EZ61: -0.06132347753 | FA61: 0.02652355577 | FB61: -0.05550928646 | FC61: 0.05621691327 | FD61: 0.1631922839 | FE61: 0.3281623541 | FF61: -0.2401730264 | FG61: -0.3401617701 | FH61: -0.08437392485 | FJ61: 57 | FK61: 0.6694465681 | FM61: 57 | FN61: 0.2126585491
O62: 57 | P62: -1.307396009 | R62: 57 | S62: -0.6379494404 | V62: 57 | W62: -0.5635017332 | Y62: 57 | Z62: -0.9895094274 | AB62: 57 | AC62: -0.7768508783 | AF62: 57 | AG62: -0.6508954752 | AH62: -0.6508954752 | AJ62: 17 | AK62: 0.2738092543 | AL62: -0.00415927581 | AM62: 0.01057328257 | AN62: 0.08448355295 | AO62: 0.06778470875 | AP62: -0.01540547073 | AQ62: -0.1388572093 | AR62: 0.02492852945 | AS62: 0.03452325597 | AT62: 0.01119756663 | AU62: -0.02759313363 | AV62: -0.3254845151 | AW62: -0.04425758567 | AX62: 0.4209285963 | AY62: 0.03853373036 | AZ62: 0.1637685286 | BA62: 0.01057376429 | BB62: -0.001086850932 | BC62: -0.003939718927 | BD62: -0.007506986416 | BE62: 0.002344350435 | BF62: -0.08804820922 | BG62: 0.005773070549 | BH62: 0.2293325749 | BI62: -0.002683714662 | BJ62: 0.09788422423 | BK62: 0.003540308593 | BL62: -0.02087935642 | BM62: -0.1780368673 | BN62: 0.02618718934 | BO62: -0.09274690938 | BP62: 0.06446759032 | BQ62: -0.04371934289 | BR62: -0.08441010913 | BS62: -0.1629037822 | BT62: 0.0202300767 | BU62: 0.0363967059 | BV62: 0.07217471087 | BW62: 0.3225437046 | BX62: -0.105114364 | BY62: 0.05146517455 | BZ62: 0.0918314208 | CA62: -0.1013903721 | CB62: -0.1234719131 | CC62: -0.2320927863 | CD62: 0.03456946719 | CE62: -0.1216743332 | CF62: 0.1918051663 | CG62: 0.02639631134 | CH62: 0.212846109 | CI62: 0.09258550546 | CJ62: 0.07597340531 | CK62: 0.001601374543 | CL62: 0.2715741298 | CM62: 0.198079447 | CN62: 0.04052561591 | CO62: -0.1176739422 | CP62: 0.1687327585 | CQ62: 0.08084060375 | CR62: 0.1651620232 | CS62: -0.2297957823 | CT62: 0.05079721332 | CU62: -0.2160063193 | CV62: -0.05635524375 | CW62: -0.07470688019 | CX62: 0.0420473617 | CY62: -0.0004340461853 | CZ62: 0.08987835784 | DA62: -0.09034490242 | DB62: -0.1996653855 | DC62: -0.004649326353 | DD62: -0.0317890857 | DE62: -0.287720278 | DF62: 0.03345980048 | DG62: 0.001592098661 | DH62: -0.007738598996 | DI62: 0.02521876574 | DJ62: 0.1313730435 | DK62: -0.04351726942 | DL62: -0.09495731805 | DM62: 0.01793424397 | DN62: -0.05386600941 | DO62: 0.06312547319 | DP62: -0.0368884603 | DQ62: 0.05508951565 | DR62: -0.07130627699 | DS62: 0.07773654918 | DT62: -0.1565205197 | DU62: 0.05272826246 | DV62: 0.06731251996 | DW62: 0.06003036405 | DX62: 0.02577189429 | DY62: -0.03403050496 | DZ62: 0.0915857731 | EA62: -0.07326081439 | EB62: -0.1215764197 | EC62: -0.002841366043 | ED62: -0.2645255594 | EE62: -0.2554729154 | EF62: -0.06651466777 | EG62: -0.09914983946 | EH62: 0.05292282539 | EI62: 0.0104127111 | EJ62: -0.06225665677 | EK62: -0.0212509121 | EL62: -0.04756579652 | EM62: -0.03094669822 | EN62: 0.1281447756 | EO62: -0.1043419567 | EP62: -0.150775237 | EQ62: 0.1120089819 | ER62: -0.2219178377 | ES62: -0.01519063576 | ET62: -0.01700109874 | EU62: -0.1532961667 | EV62: -0.05664427817 | EW62: -0.1131872473 | EX62: 0.4453706396 | EY62: 0.1164259479 | EZ62: -0.02359881757 | FA62: -0.1413671801 | FB62: -0.1066635081 | FC62: -0.03318576561 | FD62: -0.05964350331 | FE62: -0.3616394182 | FF62: -0.07889890003 | FG62: 0.1023420271 | FH62: -0.2791505402 | FJ62: 58 | FK62: 0.5331912398 | FM62: 58 | FN62: -0.6139116979
O63: 58 | P63: 4.072769732 | R63: 58 | S63: 4.605960971 | V63: 58 | W63: 0.999800336 | Y63: 58 | Z63: -1.866301861 | AB63: 58 | AC63: -2.480213559 | AF63: 58 | AG63: -0.9860777279 | AH63: -0.9860777279 | AJ63: 18 | AK63: 0.1609757968 | AL63: 0.134651369 | AM63: -0.2367451155 | AN63: -0.08070469343 | AO63: -0.2249965795 | AP63: -0.2592792622 | AQ63: -0.1542466832 | AR63: -0.01652887353 | AS63: 0.1174569542 | AT63: 0.1399022366 | AU63: -0.07696651162 | AV63: -0.1443339972 | AW63: -0.05696468563 | AX63: 0.01874607129 | AY63: -0.2220457446 | AZ63: 0.2936767427 | BA63: 0.003341001086 | BB63: 0.07916120546 | BC63: 0.08466966419 | BD63: -0.006760114621 | BE63: 0.04230477603 | BF63: 0.3252893486 | BG63: -0.06862997966 | BH63: 0.02208386891 | BI63: 0.2317842729 | BJ63: -0.2512987442 | BK63: -0.08926903562 | BL63: -0.07923646158 | BM63: 0.00406143325 | BN63: -0.08975273273 | BO63: -0.1178290677 | BP63: 0.1426396403 | BQ63: 0.1095137231 | BR63: 0.01265506211 | BS63: 0.1368393313 | BT63: -0.1098485523 | BU63: -0.1399503986 | BV63: -0.1937153425 | BW63: 0.02855319413 | BX63: -0.2648024768 | BY63: -0.004097224274 | BZ63: 0.008215545711 | CA63: -0.2827714575 | CB63: 0.1703758631 | CC63: 0.09361408119 | CD63: -0.06236346334 | CE63: -0.1948209853 | CF63: -0.01447987975 | CG63: 0.08175589141 | CH63: 0.1346589519 | CI63: 0.06289261705 | CJ63: 0.4689939233 | CK63: -0.03417400514 | CL63: -0.1790189088 | CM63: 0.1567768576 | CN63: 0.07778782452 | CO63: -0.1796992804 | CP63: 0.3669250258 | CQ63: 0.2348632608 | CR63: 0.05868499887 | CS63: -0.1829533041 | CT63: -0.1270194022 | CU63: -0.2223450831 | CV63: -0.1996345187 | CW63: 0.009395533233 | CX63: -0.04297494677 | CY63: -0.03734525276 | CZ63: -0.1365335476 | DA63: -0.1851606983 | DB63: -0.3203996323 | DC63: 0.2238875689 | DD63: 0.1761927137 | DE63: -0.2591726828 | DF63: -0.1342223914 | DG63: -0.2033443553 | DH63: -0.05929646212 | DI63: 0.008005637394 | DJ63: 0.06278744139 | DK63: 0.02839903154 | DL63: -0.2442277008 | DM63: -0.04104067895 | DN63: -0.1148100271 | DO63: -0.05814292045 | DP63: -0.09832602362 | DQ63: -0.1204010872 | DR63: 0.08897256092 | DS63: -0.02990610479 | DT63: -0.3696181515 | DU63: 0.1942041144 | DV63: -0.06991948533 | DW63: 0.2899734461 | DX63: 0.05478597235 | DY63: -0.03059757652 | DZ63: 0.1308583162 | EA63: 0.1597613262 | EB63: -0.06844355062 | EC63: 0.115720928 | ED63: -0.1703184141 | EE63: -0.01313200982 | EF63: -0.1590542372 | EG63: 0.1800937415 | EH63: 0.04469665351 | EI63: -0.005828759591 | EJ63: -0.08519770238 | EK63: 0.02202818516 | EL63: -0.02241840442 | EM63: -0.007547533592 | EN63: 0.03962831394 | EO63: -0.04543910844 | EP63: -0.09122603824 | EQ63: 0.2068917931 | ER63: 0.003492759428 | ES63: -0.1335787457 | ET63: -0.04465928157 | EU63: 0.1009928801 | EV63: -0.02889645709 | EW63: -0.1311472165 | EX63: 0.1015108652 | EY63: 0.007003975184 | EZ63: -0.1763399858 | FA63: 0.02545996032 | FB63: -0.02263715148 | FC63: -0.205828221 | FD63: 0.2962841972 | FE63: -0.1680337135 | FF63: 0.07874272014 | FG63: 0.2738976338 | FH63: 0.02493070827 | FJ63: 59 | FK63: -1.106319016 | FM63: 59 | FN63: -0.4948167146
O64: 59 | P64: 0.7092411311 | R64: 59 | S64: -0.3970778847 | V64: 59 | W64: -0.3774459152 | Y64: 59 | Z64: 3.189168283 | AB64: 59 | AC64: 2.694351569 | AF64: 59 | AG64: 0.9909057547 | AH64: 0.9909057547 | AJ64: 19 | AK64: 0.0518520616 | AL64: -0.08320708318 | AM64: -0.08580657164 | AN64: -0.01714160467 | AO64: -0.09113354383 | AP64: -0.2414982764 | AQ64: -0.03010338682 | AR64: -0.03881189056 | AS64: 0.0159453426 | AT64: 0.1401518055 | AU64: -0.01401828657 | AV64: -0.1863003506 | AW64: -0.09460441694 | AX64: 0.02320524548 | AY64: -0.1873494981 | AZ64: 0.2224462775 | BA64: 0.02566912846 | BB64: -0.1011739038 | BC64: 0.02082934363 | BD64: 0.04553910637 | BE64: -0.1184672508 | BF64: 0.3887976327 | BG64: 0.1079321883 | BH64: -0.09159865629 | BI64: 0.0769574425 | BJ64: -0.02032956883 | BK64: -0.0538132966 | BL64: 0.09383554854 | BM64: -0.07206151393 | BN64: 0.1449778674 | BO64: -0.1862414575 | BP64: 0.08984519424 | BQ64: 0.08378028847 | BR64: 0.02815980544 | BS64: 0.2525320327 | BT64: 0.03481159496 | BU64: -0.01151398858 | BV64: -0.1109419643 | BW64: 0.08581704221 | BX64: -0.1014893752 | BY64: 0.1113393211 | BZ64: -0.128858395 | CA64: -0.1926284479 | CB64: -0.08374459719 | CC64: -0.06513847439 | CD64: 0.247901907 | CE64: -0.1907654767 | CF64: -0.1389763789 | CG64: -0.14047683 | CH64: 0.1936861445 | CI64: 0.1131900064 | CJ64: 0.2729457502 | CK64: -0.08099997979 | CL64: -0.1577958756 | CM64: 0.1309314805 | CN64: -0.04517735803 | CO64: 0.1149247949 | CP64: 0.2387359178 | CQ64: -0.02920615529 | CR64: 0.06215679413 | CS64: -0.1663364773 | CT64: -0.001461954975 | CU64: -0.2146678744 | CV64: -0.0938837478 | CW64: 0.00606700447 | CX64: 0.2448668333 | CY64: -0.03470547186 | CZ64: -0.08317831225 | DA64: -0.09556544719 | DB64: -0.2289032543 | DC64: 0.02014963621 | DD64: 0.06257939939 | DE64: -0.1349071631 | DF64: -0.02010596799 | DG64: -0.0919933157 | DH64: 0.108928957 | DI64: -0.03671296744 | DJ64: 0.1951490523 | DK64: 0.1990375854 | DL64: 0.05328469041 | DM64: -0.1455986018 | DN64: -0.1190591746 | DO64: 0.1235197064 | DP64: -0.1998993983 | DQ64: 0.02888260627 | DR64: 0.09140808411 | DS64: 0.1587074176 | DT64: -0.147883826 | DU64: 0.1870446675 | DV64: -0.04844450123 | DW64: -0.09794975905 | DX64: 0.1501364333 | DY64: 0.06021767987 | DZ64: 0.06347633408 | EA64: 0.02030160117 | EB64: 0.1503721206 | EC64: 0.04258120017 | ED64: 0.02311574325 | EE64: -0.1304722372 | EF64: -0.03845714456 | EG64: -0.03476046978 | EH64: 0.02040084372 | EI64: 0.07147362667 | EJ64: 0.03633399209 | EK64: 0.0680570077 | EL64: -0.01532116365 | EM64: -0.004942920198 | EN64: 0.121705199 | EO64: -0.08371492968 | EP64: -0.07767975176 | EQ64: -0.08377191307 | ER64: -0.1222496133 | ES64: -0.1132851601 | ET64: -0.02262066747 | EU64: -0.08237615241 | EV64: -0.06072502226 | EW64: 0.05873695484 | EX64: -0.1156131568 | EY64: 0.09055950276 | EZ64: -0.1347163377 | FA64: -0.04100034661 | FB64: 0.06022305393 | FC64: -0.1722630131 | FD64: -0.1848435786 | FE64: -0.1086040766 | FF64: 0.2354331964 | FG64: 0.2204600271 | FH64: 0.05396682271 | FJ64: 60 | FK64: -1.013658045 | FM64: 60 | FN64: -0.2404032548
O65: 60 | P65: 6.786704673 | R65: 60 | S65: 5.773046628 | V65: 60 | W65: 0.9999806527 | Y65: 60 | Z65: 0.2367165275 | AB65: 60 | AC65: -0.003686727267 | AF65: 60 | AG65: -0.003686710564 | AH65: -0.003686710564 | AJ65: 20 | AK65: -0.1139076694 | AL65: 0.03310300681 | AM65: -0.01178595881 | AN65: 0.02300378097 | AO65: 0.1244173243 | AP65: 0.4673726575 | AQ65: 0.1168978946 | AR65: -0.5951054762 | AS65: -0.05697664457 | AT65: -0.04543797215 | AU65: -0.03268185133 | AV65: 0.2473798069 | AW65: -0.03479911248 | AX65: -0.08394078783 | AY65: 0.074504888 | AZ65: 0.2707752153 | BA65: 0.04336180346 | BB65: -0.04266316538 | BC65: -0.05993973871 | BD65: 0.136221752 | BE65: -0.1010745504 | BF65: -1.179938238 | BG65: -0.2432154442 | BH65: 0.06256871171 | BI65: -0.04806373642 | BJ65: -0.01671070301 | BK65: 0.05405011576 | BL65: -0.08242585152 | BM65: 0.04392683928 | BN65: -0.05028763698 | BO65: 0.149994294 | BP65: 0.02505378415 | BQ65: 0.06784358031 | BR65: 0.1505054197 | BS65: -0.0121895944 | BT65: -0.06522982268 | BU65: 0.2620109628 | BV65: 0.03285200875 | BW65: -0.09858693515 | BX65: 0.003305121303 | BY65: -0.06602462085 | BZ65: 0.02280278429 | CA65: 0.05659235677 | CB65: 0.09019355029 | CC65: -0.2049016824 | CD65: 0.07610241433 | CE65: -0.1028353583 | CF65: -0.1103845972 | CG65: 0.05138768442 | CH65: -0.3296630276 | CI65: -0.04100284335 | CJ65: -0.3759137075 | CK65: -0.004934016378 | CL65: 0.04305194265 | CM65: -0.1431075518 | CN65: -0.02694528397 | CO65: 0.2145295195 | CP65: -0.02971328538 | CQ65: -0.09693771066 | CR65: -0.2436571714 | CS65: 0.3070461706 | CT65: 0.02171767639 | CU65: 0.07139381717 | CV65: 0.1423484963 | CW65: -0.00616543639 | CX65: -0.1890045202 | CY65: -0.1426648845 | CZ65: -0.03879462126 | DA65: -0.3097000406 | DB65: -0.2082397978 | DC65: 0.09401149556 | DD65: -0.00805941378 | DE65: 0.07067643181 | DF65: 0.09691067202 | DG65: -0.002100285363 | DH65: 0.06540624945 | DI65: -0.1183606373 | DJ65: -0.2051944074 | DK65: -0.3184222391 | DL65: 0.3730084401 | DM65: 0.04687096544 | DN65: 0.4446263094 | DO65: 0.1285397594 | DP65: 0.02538172482 | DQ65: 0.1064545207 | DR65: 0.03466771371 | DS65: -0.1057862638 | DT65: 0.3396583419 | DU65: -0.05259335154 | DV65: -0.07121362125 | DW65: -0.4142475734 | DX65: -0.01766294014 | DY65: 0.03288208468 | DZ65: -0.1244046992 | EA65: 0.1168774081 | EB65: 0.1940786977 | EC65: -0.1088956429 | ED65: 0.1052901032 | EE65: 0.03643957355 | EF65: -0.09233722069 | EG65: -0.07641443601 | EH65: -0.02430622895 | EI65: -0.1077499534 | EJ65: 0.3743545027 | EK65: -0.1055503251 | EL65: 0.04630408931 | EM65: -0.06039169159 | EN65: 0.2341987489 | EO65: -0.02966596607 | EP65: 0.0984189902 | EQ65: 0.04065179575 | ER65: 0.0341778518 | ES65: -0.02011778502 | ET65: -0.0818682543 | EU65: -0.03821370189 | EV65: 0.07955573812 | EW65: -0.1023980158 | EX65: -0.2006968159 | EY65: 0.3679792088 | EZ65: 0.1017180944 | FA65: 0.04141065481 | FB65: 0.008078032279 | FC65: -0.1042060392 | FD65: -0.1522125652 | FE65: 0.1829781441 | FF65: -0.1524687048 | FG65: -0.3256667148 | FH65: 0.09552374505 | FJ65: 61 | FK65: 1.299479326 | FM65: 61 | FN65: 0.7815651956
O66: 61 | P66: -0.8768137357 | R66: 61 | S66: 0.42266559 | V66: 61 | W66: 0.3991736694 | Y66: 61 | Z66: -3.686262121 | AB66: 61 | AC66: -2.904696925 | AF66: 61 | AG66: -0.9940194421 | AH66: -0.9940194421 | AJ66: 21 | AK66: 0.35613512 | AL66: 0.002285252957 | AM66: -0.02737774274 | AN66: -0.1301752328 | AO66: -0.1143348617 | AP66: -0.2313914027 | AQ66: -0.3283885082 | AR66: 0.07587643507 | AS66: -0.07571211023 | AT66: 0.06100152971 | AU66: 0.09866715009 | AV66: -0.07782447157 | AW66: 0.01583583854 | AX66: 0.1839474359 | AY66: -0.2440198518 | AZ66: 0.07025174194 | BA66: 0.02971071338 | BB66: 0.170443608 | BC66: 0.06396980829 | BD66: -0.3034655771 | BE66: -0.03451455804 | BF66: 0.6304365955 | BG66: 0.2904789555 | BH66: -0.1940191207 | BI66: 0.1255979168 | BJ66: 0.06188118501 | BK66: 0.02034180212 | BL66: -0.1495625499 | BM66: 0.1171940061 | BN66: -0.120146325 | BO66: -0.1896476938 | BP66: -0.07789057681 | BQ66: 0.419674987 | BR66: 0.07209206701 | BS66: -0.2259158393 | BT66: 0.08071569357 | BU66: -0.6379821591 | BV66: -0.04597427132 | BW66: 0.4310177484 | BX66: -0.2938993327 | BY66: -0.06676926931 | BZ66: -0.08498465942 | CA66: -0.0834992586 | CB66: 0.4858910954 | CC66: 0.2671709421 | CD66: -0.164497592 | CE66: -0.2778959393 | CF66: -0.03817071259 | CG66: 0.04148463938 | CH66: 0.1801268202 | CI66: -0.2552080809 | CJ66: 0.274763384 | CK66: -0.09463716365 | CL66: -0.1264422641 | CM66: 0.3657989864 | CN66: 0.05222432795 | CO66: -0.5288020095 | CP66: -0.001630662199 | CQ66: 0.03595908143 | CR66: 0.1824213672 | CS66: -0.2170593926 | CT66: -0.1920740111 | CU66: -0.315139394 | CV66: -0.1592054305 | CW66: -0.05765270434 | CX66: 0.09189371424 | CY66: 0.08421504971 | CZ66: 0.02461500386 | DA66: -0.08304743347 | DB66: -0.1566029311 | DC66: -0.06244709647 | DD66: -0.03296154623 | DE66: -0.2849598973 | DF66: 0.03794810561 | DG66: 0.03571368249 | DH66: 0.0353776623 | DI66: -0.156585009 | DJ66: 0.006543731687 | DK66: -0.02925192638 | DL66: -0.2473853399 | DM66: -0.09772271443 | DN66: -0.04009737894 | DO66: -0.1393007811 | DP66: -0.03636188189 | DQ66: -0.281727494 | DR66: 0.07319573248 | DS66: 0.188933324 | DT66: -0.3678491339 | DU66: 0.1273619302 | DV66: -0.02989349286 | DW66: 0.1727084503 | DX66: -0.07632725726 | DY66: 0.03017961451 | DZ66: 0.03694955129 | EA66: 0.06424194098 | EB66: -0.3981219924 | EC66: 0.001817515592 | ED66: -0.07684151245 | EE66: -0.0702786245 | EF66: -0.02684402723 | EG66: -0.0642697155 | EH66: -0.1193575187 | EI66: 0.3832602902 | EJ66: -0.09617589555 | EK66: 0.11931645 | EL66: -0.07621249094 | EM66: -0.1337804762 | EN66: -0.06993189198 | EO66: 0.01435300392 | EP66: -0.1247385246 | EQ66: -0.0639878752 | ER66: -0.5621355376 | ES66: 0.008012644853 | ET66: -0.01426086212 | EU66: -0.02888983826 | EV66: 0.04734484664 | EW66: -0.1159524234 | EX66: 0.6030279289 | EY66: -0.1473989901 | EZ66: -0.133230614 | FA66: 0.1208823376 | FB66: 0.003451070326 | FC66: 0.1451700065 | FD66: 0.01582474583 | FE66: -0.6199978247 | FF66: 0.09096983852 | FG66: 0.1259556068 | FH66: -0.4903818133 | FJ66: 62 | FK66: 0.3856754019 | FM66: 62 | FN66: -0.01031969171
O67: 62 | P67: 3.943958398 | R67: 62 | S67: 4.3296338 | V67: 62 | W67: 0.9996530375 | Y67: 62 | Z67: -0.4941884572 | AB67: 62 | AC67: -0.5045081489 | AF67: 62 | AG67: -0.465655186 | AH67: -0.465655186 | AJ67: 22 | AK67: 0.1051613657 | AL67: -0.005016217846 | AM67: -0.004162147044 | AN67: 0.02782358684 | AO67: -0.1425193265 | AP67: -0.1147125174 | AQ67: -0.07745269199 | AR67: 0.0216249076 | AS67: -0.02050375966 | AT67: -0.05302325639 | AU67: -0.01369293268 | AV67: -0.0925698352 | AW67: -0.01510012205 | AX67: -0.02592153568 | AY67: 0.08533783438 | AZ67: 0.00611530499 | BA67: -0.07748294516 | BB67: 0.2257867416 | BC67: 0.02237718886 | BD67: 0.2427286779 | BE67: -0.0455434528 | BF67: -0.100493858 | BG67: -0.06386123286 | BH67: 0.06197403538 | BI67: 0.1093319701 | BJ67: -0.2001497939 | BK67: 0.08915929113 | BL67: 0.04673561064 | BM67: -0.1748478202 | BN67: -0.09053609025 | BO67: -0.1491869766 | BP67: -0.1821156625 | BQ67: -0.01509280037 | BR67: 0.06104645577 | BS67: 0.091041712 | BT67: 0.1597793792 | BU67: 0.007867468626 | BV67: -0.0738946479 | BW67: 0.2357473845 | BX67: -0.03770406912 | BY67: -0.0003245301351 | BZ67: -0.08581838005 | CA67: -0.351139167 | CB67: -0.008482680505 | CC67: -0.1165538183 | CD67: -0.1415732336 | CE67: -0.06606900575 | CF67: 0.06567174596 | CG67: 0.00462687102 | CH67: 0.1531443968 | CI67: 0.1505132146 | CJ67: 0.0328392226 | CK67: -0.05539828758 | CL67: -0.1088607294 | CM67: 0.05605553094 | CN67: -0.08732717419 | CO67: -0.1888055314 | CP67: 0.1335751097 | CQ67: 0.07874064642 | CR67: 0.06058736323 | CS67: -0.06086518225 | CT67: -0.217383322 | CU67: -0.2709022532 | CV67: -0.004595583775 | CW67: -0.003663900182 | CX67: -0.05083313501 | CY67: 0.03131059192 | CZ67: 0.05078104801 | DA67: -0.257631622 | DB67: 0.1116488089 | DC67: 0.04628369966 | DD67: 0.06102442162 | DE67: -0.01140797304 | DF67: 0.01601684434 | DG67: -0.1709915834 | DH67: 0.08737558821 | DI67: -0.005295124296 | DJ67: 0.07397845374 | DK67: 0.08307667729 | DL67: -0.2581078722 | DM67: -0.019471023 | DN67: -0.1840927416 | DO67: 0.1033608063 | DP67: -0.3035643137 | DQ67: 0.1647100051 | DR67: -0.06029295049 | DS67: 0.0713919362 | DT67: -0.2054674535 | DU67: 0.1186574759 | DV67: 0.05729126813 | DW67: 0.3306680877 | DX67: 0.05686088705 | DY67: 0.0106970769 | DZ67: 0.1878284168 | EA67: -0.007343176095 | EB67: -0.01346501917 | EC67: 0.05869934597 | ED67: -0.09193506983 | EE67: 0.02002687468 | EF67: 0.04427646099 | EG67: 0.07357888547 | EH67: -0.006507598981 | EI67: -0.08380795801 | EJ67: -0.1072650472 | EK67: -0.05454032341 | EL67: -0.08421004584 | EM67: -0.1373108586 | EN67: 0.2036078654 | EO67: -0.04196187009 | EP67: -0.06207788906 | EQ67: 0.1396832607 | ER67: 0.2157188618 | ES67: -0.07317591707 | ET67: -0.02929712893 | EU67: -0.007057891997 | EV67: -0.2410104794 | EW67: -0.1027195806 | EX67: 0.08421981088 | EY67: -0.1606590592 | EZ67: -0.131492015 | FA67: -0.1335944057 | FB67: -0.07514090983 | FC67: -0.1256255615 | FD67: -0.08419157234 | FE67: 0.09192369341 | FF67: -0.03866269136 | FG67: 0.03307236567 | FH67: -0.08617208754 | FJ67: 63 | FK67: 1.552269635 | FM67: 63 | FN67: 1.289494409
O68: 63 | P68: -3.125163698 | R68: 63 | S68: -1.572894063 | V68: 63 | W68: -0.9174848822 | Y68: 63 | Z68: -9.72583296 | AB68: 63 | AC68: -8.436338551 | AF68: 63 | AG68: -0.999999906 | AH68: -0.999999906 | AJ68: 23 | AK68: 0.08177814628 | AL68: 0.1120604547 | AM68: -0.007039615146 | AN68: -0.06600858519 | AO68: -0.007805028488 | AP68: -0.1744935691 | AQ68: 0.008531278091 | AR68: -0.001709701784 | AS68: 0.1163361876 | AT68: 0.05688312044 | AU68: 0.0001316900292 | AV68: 0.06769793673 | AW68: 0.1342509053 | AX68: 0.177520792 | AY68: -0.1308353488 | AZ68: -0.04507764702 | BA68: -0.04832262848 | BB68: -0.007555480173 | BC68: -0.03074032269 | BD68: -0.0133782042 | BE68: -0.1193696145 | BF68: 0.01833715277 | BG68: 0.01285893468 | BH68: 0.01460580447 | BI68: 0.0441613309 | BJ68: -0.06387038136 | BK68: -0.07452422544 | BL68: -0.11180003 | BM68: 0.07973423956 | BN68: -0.05631897169 | BO68: -0.06349797853 | BP68: 0.1127434988 | BQ68: 0.0396046673 | BR68: 0.07367993802 | BS68: 0.1565353274 | BT68: -0.08030588909 | BU68: -0.1027326403 | BV68: -0.08869237337 | BW68: 0.1269631947 | BX68: -0.149452698 | BY68: -0.1149791501 | BZ68: -0.1210697947 | CA68: 0.1231143384 | CB68: 0.1525229161 | CC68: -0.1513041774 | CD68: -0.06517023119 | CE68: 0.05910816902 | CF68: 0.3401961981 | CG68: 0.04039168176 | CH68: 0.05654741793 | CI68: 0.04733247085 | CJ68: 0.06723651253 | CK68: -0.1031597254 | CL68: -0.07003616008 | CM68: 0.006730032329 | CN68: 0.01330586849 | CO68: 0.03343947204 | CP68: -0.2382269753 | CQ68: -0.0003684480653 | CR68: 0.1029815353 | CS68: -0.1149176396 | CT68: 0.0008501395958 | CU68: -0.07948269769 | CV68: 0.009076484238 | CW68: 0.02865884049 | CX68: -0.01099398421 | CY68: -0.07722893371 | CZ68: 0.009523525716 | DA68: 0.03780149618 | DB68: 0.1422348017 | DC68: 0.04890372745 | DD68: 0.0305755562 | DE68: 0.09957919819 | DF68: -0.2342172673 | DG68: -0.06141913692 | DH68: -0.01955311394 | DI68: -0.1531442298 | DJ68: -0.0307257744 | DK68: 0.06485912391 | DL68: -0.1402884986 | DM68: -0.01125385966 | DN68: -0.1040613099 | DO68: -0.09599010671 | DP68: 0.09245166736 | DQ68: -0.1983485889 | DR68: -0.08891667974 | DS68: -0.05611134431 | DT68: -0.0269713727 | DU68: 0.01686276097 | DV68: -0.0311399288 | DW68: 0.2097279354 | DX68: -0.04628384633 | DY68: 0.04038516679 | DZ68: -0.09842982679 | EA68: 0.05899800924 | EB68: -0.02837246421 | EC68: 0.07301574533 | ED68: -0.0172280718 | EE68: 0.1677643668 | EF68: -0.03962262657 | EG68: 0.10459801 | EH68: 0.1138087316 | EI68: 0.1688746105 | EJ68: 0.02126909033 | EK68: 0.1408380548 | EL68: 0.05543460012 | EM68: -0.02030949382 | EN68: -0.04598748893 | EO68: 0.1096487012 | EP68: -0.1622455159 | EQ68: -0.2254631684 | ER68: -0.1019273294 | ES68: 0.05515106166 | ET68: -0.02712166093 | EU68: -0.2848719006 | EV68: 0.05196401295 | EW68: -0.04660396095 | EX68: 0.01521797934 | EY68: -0.1404490561 | EZ68: 0.1489420004 | FA68: -0.2060142012 | FB68: 0.05437170603 | FC68: 0.05501411133 | FD68: 0.1262674481 | FE68: 0.03039115325 | FF68: -0.04705864678 | FG68: 0.1546885914 | FH68: 0.03405708579 | FJ68: 64 | FK68: 0.9875798795 | FM68: 64 | FN68: -0.1000438613
O69: 64 | P69: -0.8531525467 | R69: 64 | S69: 0.1344273328 | V69: 64 | W69: 0.1336234109 | Y69: 64 | Z69: -3.005966103 | AB69: 64 | AC69: -3.106009964 | AF69: 64 | AG69: -0.9959976593 | AH69: -0.9959976593 | AJ69: 24 | AK69: 0.2029910169 | AL69: -0.07018228331 | AM69: 0.004621215243 | AN69: -0.07387624532 | AO69: -0.08397000259 | AP69: -0.1478816357 | AQ69: -0.06943921208 | AR69: 0.1138230056 | AS69: -0.018726994 | AT69: 0.0425646944 | AU69: -0.005193033013 | AV69: -0.1007574564 | AW69: 0.09730009573 | AX69: 0.01363173395 | AY69: 0.0850844681 | AZ69: 0.02826665777 | BA69: 0.009167731749 | BB69: -0.06520890779 | BC69: 0.01143170011 | BD69: 0.02601354294 | BE69: -0.1481652881 | BF69: 0.1959543444 | BG69: 0.1778109026 | BH69: 0.09862525994 | BI69: -0.1069782544 | BJ69: 0.03804246639 | BK69: -0.0246791663 | BL69: 0.02920406736 | BM69: -0.03167742051 | BN69: 0.1017600561 | BO69: 0.01781076038 | BP69: -0.08382451279 | BQ69: 0.1558167926 | BR69: 0.05345720404 | BS69: 0.03578815895 | BT69: 0.0798748702 | BU69: -0.3069320201 | BV69: -0.02914485988 | BW69: 0.2452283132 | BX69: -0.06126062691 | BY69: 0.0277681679 | BZ69: -0.03376003408 | CA69: -0.04790140733 | CB69: 0.232452768 | CC69: 0.1417519415 | CD69: 0.3165173918 | CE69: -0.04565321005 | CF69: -0.1599556637 | CG69: 0.08303734184 | CH69: 0.05460384705 | CI69: -0.08088011305 | CJ69: -0.01171771189 | CK69: -0.08754986836 | CL69: -0.1108522311 | CM69: 0.3386860587 | CN69: -0.02315641461 | CO69: -0.1811116847 | CP69: 0.04081798565 | CQ69: -0.0001539008022 | CR69: 0.1161041654 | CS69: -0.02860283141 | CT69: 0.07928877996 | CU69: -0.09112636272 | CV69: -0.1453443955 | CW69: -0.05343703501 | CX69: 0.05848455488 | CY69: 0.01236221973 | CZ69: -0.04692385576 | DA69: -0.2840611028 | DB69: -0.2054396078 | DC69: -0.02240393043 | DD69: 0.07310115538 | DE69: 0.1332224674 | DF69: -0.170360877 | DG69: -0.006587750872 | DH69: -0.005621596195 | DI69: -0.156755261 | DJ69: 0.07410178025 | DK69: 0.09375401805 | DL69: -0.07495779559 | DM69: -0.1311553985 | DN69: -0.05988671326 | DO69: 0.1832506155 | DP69: 0.009836330866 | DQ69: 0.05168252908 | DR69: -0.121242273 | DS69: 0.180195631 | DT69: -0.1652358221 | DU69: -0.1184744199 | DV69: 0.01316002241 | DW69: 0.08022542208 | DX69: 0.0265437746 | DY69: -0.04474643012 | DZ69: 0.01960600885 | EA69: 0.0520027419 | EB69: 0.0429075828 | EC69: -0.03697340969 | ED69: -0.095501396 | EE69: 0.2179915098 | EF69: 0.03920546226 | EG69: 0.1016540971 | EH69: -0.1013047648 | EI69: -0.0439876189 | EJ69: -0.2023076566 | EK69: -0.1221395385 | EL69: -0.05813136717 | EM69: -0.03541344152 | EN69: 0.009911058325 | EO69: 0.04149023008 | EP69: -0.1520426655 | EQ69: 0.005010170219 | ER69: -0.1925795008 | ES69: 0.014594023 | ET69: 0.1131845118 | EU69: -0.05656296625 | EV69: -0.006059495009 | EW69: 0.0303634563 | EX69: 0.07937154296 | EY69: 0.05945731951 | EZ69: 0.09543134481 | FA69: -0.08187417741 | FB69: -0.03474233532 | FC69: -0.1463464904 | FD69: 0.1656553386 | FE69: -0.1844705971 | FF69: 0.2112182658 | FG69: -0.03243593284 | FH69: -0.2673069269 | FJ69: 65 | FK69: -0.6929234481 | FM69: 65 | FN69: -0.07765698286
O70: 65 | P70: 3.489830433 | R70: 65 | S70: 2.796906985 | V70: 65 | W70: 0.9925859668 | Y70: 65 | Z70: 0.13262636 | AB70: 65 | AC70: 0.05496937715 | AF70: 65 | AG70: =2/(1+EXP(-2*AC70))-1 -> 0.05491407824 | AH70: 0.05491407824 | AJ70: 25 | AK70: 0.008254331779 | AL70: -0.04072392697 | AM70: -0.1313880496 | AN70: -0.007321190088 | AO70: -0.01470173629 | AP70: 0.08467272867 | AQ70: 0.3935010285 | AR70: -0.0529592955 | AS70: 0.04947916923 | AT70: -0.03416460832 | AU70: 0.01771671109 | AV70: 0.0692664943 | AW70: 0.01603577523 | AX70: 0.362391136 | AY70: 0.08906876211 | AZ70: -0.1650132902 | BA70: -0.04872936271 | BB70: -0.03286572143 | BC70: 0.06177223665 | BD70: -0.008143716514 | BE70: -0.02932751941 | BF70: 0.052806173 | BG70: -0.02348786315 | BH70: -0.1265790582 | BI70: -0.04443694969 | BJ70: -0.1010744932 | BK70: -0.005676237219 | BL70: -0.035587114 | BM70: -0.007433082516 | BN70: 0.009412731562 | BO70: -0.0332570115 | BP70: -0.03528188713 | BQ70: 0.1579519917 | BR70: -0.07312627043 | BS70: 0.03350909593 | BT70: 0.07221357301 | BU70: 0.00804639514 | BV70: -0.04023598798 | BW70: -0.1806116913 | BX70: -0.002386620214 | BY70: 0.06903404659 | BZ70: -0.06085983886 | CA70: 0.01282766335 | CB70: 0.1213941276 | CC70: -0.125763257 | CD70: -0.03469875274 | CE70: 0.03187440186 | CF70: 0.1977527451 | CG70: -0.06046610519 | CH70: -0.2960222114 | CI70: -0.03507516707 | CJ70: -0.1125982842 | CK70: -0.006792721204 | CL70: 0.04957257818 | CM70: -0.05902194092 | CN70: 0.02480015307 | CO70: -0.1607382213 | CP70: 0.04127408396 | CQ70: -0.0474130553 | CR70: -0.05321725591 | CS70: -0.09425698512 | CT70: 0.01563745443 | CU70: 0.2201486977 | CV70: -0.02574849326 | CW70: -0.02950032687 | CX70: 0.0111872978 | CY70: -0.06058668292 | CZ70: -0.09834453494 | DA70: -0.01583432793 | DB70: 0.04611971868 | DC70: 0.003431771661 | DD70: -0.007844058746 | DE70: -0.07878542991 | DF70: -0.0507691115 | DG70: 0.07586655202 | DH70: -0.009800344289 | DI70: -0.1645092702 | DJ70: -0.154998936 | DK70: -0.1513030758 | DL70: -0.03111718908 | DM70: 0.01219448943 | DN70: 0.01817542893 | DO70: -0.08038453665 | DP70: 0.04207280624 | DQ70: -0.08388376343 | DR70: -0.04548790386 | DS70: 0.04213433062 | DT70: 0.1453447482 | DU70: -0.01108348653 | DV70: -0.02452259808 | DW70: 0.04854363786 | DX70: 0.09525960898 | DY70: 0.01190638025 | DZ70: 0.02679714086 | EA70: -0.03501618677 | EB70: -0.05557018833 | EC70: -0.03221945819 | ED70: 0.07654768413 | EE70: 0.2191207953 | EF70: 0.03441806813 | EG70: -0.04050943234 | EH70: 0.06866987586 | EI70: 0.04855273956 | EJ70: -0.0396140687 | EK70: 0.001377104909 | EL70: -0.03613374037 | EM70: -0.04458556665 | EN70: -0.06538315476 | EO70: -0.07126982113 | EP70: 0.003526683058 | EQ70: -0.008631290275 | ER70: 0.331149659 | ES70: 0.01861289965 | ET70: -0.03637981534 | EU70: -0.06632442385 | EV70: 0.04537277253 | EW70: 0.06391176506 | EX70: 0.1770851854 | EY70: -0.03931573098 | EZ70: -0.01592382505 | FA70: -0.0580772422 | FB70: -0.02600066207 | FC70: 0.2225998803 | FD70: 0.03494434403 | FE70: -0.4407052712 | FF70: 0.07282381034 | FG70: -0.08006117175 | FH70: 0.3911770655 | FJ70: 66 | FK70: 1.228212697 | FM70: 66 | FN70: -0.07609967673
O71: 66 | P71: 0.5816668985 | R71: 66 | S71: 1.809879595 | V71: 66 | W71: =2/(1+EXP(-2*S71))-1 -> 0.9478196134 | Y71: 66 | Z71: 3.676164093 | AB71: 66 | AC71: 3.600064416 | AF71: 66 | AG71: 0.9985081344 | AH71: =TANH(AC71) -> 0.9985081344 | AJ71: 26 | AK71: -0.08113736068 | AL71: -0.06555015267 | AM71: -0.04644657447 | AN71: -0.06708753294 | AO71: -0.03909581231 | AP71: 0.09669551263 | AQ71: 0.287855563 | AR71: -0.1744044443 | AS71: 0.04351398904 | AT71: 0.0321390401 | AU71: -0.125376262 | AV71: -0.08183161358 | AW71: -0.02155284402 | AX71: 0.1228418343 | AY71: -0.06149327799 | AZ71: 0.04948163907 | BA71: -0.05124775463 | BB71: -0.001956403655 | BC71: 0.06754839956 | BD71: 0.0994911605 | BE71: 0.003782666527 | BF71: 0.1287205981 | BG71: -0.08680220754 | BH71: -0.1154972876 | BI71: 0.04260836484 | BJ71: 0.1087567925 | BK71: -0.07044269616 | BL71: 0.0244873103 | BM71: 0.01430629717 | BN71: 0.003730000571 | BO71: -0.04163506228 | BP71: 0.06048740746 | BQ71: 0.1164028001 | BR71: 0.08083873002 | BS71: -0.02125363061 | BT71: 0.04030240879 | BU71: 0.0860929669 | BV71: 0.08497169981 | BW71: -0.1413265368 | BX71: -0.05861217684 | BY71: 0.008178838697 | BZ71: 0.03090634899 | CA71: -0.03733608897 | CB71: 0.1413781942 | CC71: -0.120511212 | CD71: -0.03504855935 | CE71: -0.05216456141 | CF71: 0.06031812291 | CG71: -0.0128498258 | CH71: -0.2864275999 | CI71: -0.02516569962 | CJ71: 0.04173999969 | CK71: -0.05862296658 | CL71: -0.1244373287 | CM71: 0.2108919955 | CN71: 0.008316050467 | CO71: -0.070534233 | CP71: -0.02148244503 | CQ71: 0.01800200008 | CR71: 0.06328030042 | CS71: 0.1861833513 | CT71: -0.05097047265 | CU71: 0.2099365712 | CV71: -0.1070074543 | CW71: 0.03663201968 | CX71: -0.02390323622 | CY71: -0.08726072796 | CZ71: -0.01207319823 | DA71: 0.05424790052 | DB71: 0.07386219425 | DC71: 0.05668975314 | DD71: -0.08365918556 | DE71: -0.02997795431 | DF71: -0.02607510768 | DG71: -0.03271790142 | DH71: -0.05309864027 | DI71: -0.1310881261 | DJ71: -0.1128036051 | DK71: -0.02378192007 | DL71: 0.1445137321 | DM71: -0.07762628573 | DN71: 0.08377447446 | DO71: -0.05230380822 | DP71: 0.0890612104 | DQ71: -0.1786427179 | DR71: 0.05741080922 | DS71: 0.3384958055 | DT71: -0.03322355011 | DU71: 0.05647501017 | DV71: 0.03568084566 | DW71: 0.03836158316 | DX71: 0.03307306906 | DY71: 0.1057497256 | DZ71: 0.09736538786 | EA71: 0.04308622069 | EB71: 0.08124839394 | EC71: 0.1010671595 | ED71: -0.1143709141 | EE71: -0.05887163364 | EF71: -0.03522049163 | EG71: 0.04530514571 | EH71: 0.05633074369 | EI71: 0.1028373481 | EJ71: -0.04254810018 | EK71: -0.06435283746 | EL71: -0.07163036794 | EM71: 0.003677691722 | EN71: -0.2336886055 | EO71: -0.01784893379 | EP71: 0.0533444652 | EQ71: -0.1094847851 | ER71: 0.1401593365 | ES71: -0.003751181551 | ET71: 0.03398339557 | EU71: 0.06909172296 | EV71: -0.1038394862 | EW71: -0.09826392371 | EX71: 0.2294221014 | EY71: 0.01927331197 | EZ71: 0.007579991546 | FA71: -0.04350349011 | FB71: 0.1391017128 | FC71: 0.1121472606 | FD71: 0.04191485687 | FE71: 0.1241894029 | FF71: -0.004592848328 | FG71: 0.03322767528 | FH71: 0.3899430335 | FJ71: 67 | FK71: 0.4470148978 | FM71: 67 | FN71: 0.03318594578
O72: 67 | P72: 1.078313054 | R72: 67 | S72: 1.525327952 | V72: 67 | W72: 0.9096216707 | Y72: 67 | Z72: 0.6656588935 | AB72: 67 | AC72: 0.6988448393 | AF72: 67 | AG72: 0.6036340389 | AH72: 0.6036340389 | AJ72: 27 | AK72: 0.09537836274 | AL72: 0.08041216986 | AM72: 0.02508524457 | AN72: 0.009388833966 | AO72: 0.001151902863 | AP72: 0.04991980874 | AQ72: -0.09164100798 | AR72: -0.04506997127 | AS72: -0.01373579075 | AT72: -0.141209726 | AU72: 0.141970333 | AV72: -0.1489378731 | AW72: -0.02395267821 | AX72: 0.3855062337 | AY72: 0.1134441268 | AZ72: -0.01402305442 | BA72: -0.01496091314 | BB72: 0.01118913523 | BC72: 0.03175782358 | BD72: -0.07589793151 | BE72: 0.04762619245 | BF72: 0.1185422015 | BG72: 0.04009239231 | BH72: -0.118274277 | BI72: 0.01793073108 | BJ72: 0.128062982 | BK72: -0.0453361833 | BL72: 0.02745728318 | BM72: 0.0401498795 | BN72: -0.08951721974 | BO72: -0.1604756478 | BP72: 0.04922539236 | BQ72: 0.02724053357 | BR72: -0.03949907662 | BS72: -0.3296288405 | BT72: -0.02257718409 | BU72: 0.2854736693 | BV72: -0.004681181557 | BW72: 0.09142678812 | BX72: -0.2138971129 | BY72: -0.09559277237 | BZ72: -0.03862874265 | CA72: -0.04502047297 | CB72: -0.2331751735 | CC72: 0.03538375558 | CD72: -0.1622330644 | CE72: -0.1200612704 | CF72: -0.05035384064 | CG72: 0.05958288308 | CH72: 0.1362497409 | CI72: -0.1267113617 | CJ72: -0.0506151873 | CK72: 0.08129401065 | CL72: 0.1241558342 | CM72: -0.01542902887 | CN72: -0.07299545013 | CO72: 0.1005747551 | CP72: -0.1755916074 | CQ72: -0.06592415948 | CR72: 0.03924438229 | CS72: -0.03898568595 | CT72: 0.03572788632 | CU72: 0.0199384881 | CV72: -0.1003867307 | CW72: 0.05923637983 | CX72: 0.03101397331 | CY72: 0.07051562987 | CZ72: -0.04407783504 | DA72: -0.003928136587 | DB72: 0.160172133 | DC72: -0.06595298908 | DD72: -0.05320888679 | DE72: -0.1149413266 | DF72: -0.08112500663 | DG72: 0.03962236881 | DH72: 0.009271213717 | DI72: -0.3019866784 | DJ72: -0.1598766804 | DK72: -0.1011827129 | DL72: -0.05884984991 | DM72: 0.007552954708 | DN72: 0.1793326359 | DO72: 0.04353567275 | DP72: -0.05504128629 | DQ72: -0.08539182981 | DR72: 0.06087827676 | DS72: -0.05000046241 | DT72: 0.07383888611 | DU72: 0.0242993126 | DV72: -0.02045584218 | DW72: -0.1747044536 | DX72: 0.08774523071 | DY72: -0.03655406714 | DZ72: -0.05193822633 | EA72: -0.02548523644 | EB72: -0.03606433886 | EC72: 0.07751839565 | ED72: -0.1172427136 | EE72: 0.2237140054 | EF72: -0.002372734162 | EG72: -0.06027763121 | EH72: 0.07245279343 | EI72: -0.2140329233 | EJ72: 0.08840731072 | EK72: 0.0915865023 | EL72: 0.02070396499 | EM72: 0.05543248538 | EN72: 0.1405106621 | EO72: -0.06560951773 | EP72: 0.1294586925 | EQ72: -0.1099139191 | ER72: -0.4163716304 | ES72: -0.1123029855 | ET72: 0.1280774597 | EU72: 0.09623160677 | EV72: -0.05574656131 | EW72: -0.02656801612 | EX72: 0.2492587008 | EY72: -0.09169119464 | EZ72: 0.092194322 | FA72: -0.06602360544 | FB72: 0.05774318118 | FC72: 0.2167220537 | FD72: 0.05659228998 | FE72: -0.1971068596 | FF72: -0.3415695422 | FG72: -0.0638913518 | FH72: -0.03300091197 | FJ72: 68 | FK72: -0.9443353021 | FM72: 68 | FN72: -0.06907969498
O73: 68 | P73: 3.310050495 | R73: 68 | S73: 2.365715193 | V73: 68 | W73: 0.982526301 | Y73: 68 | Z73: -0.9787049822 | AB73: 68 | AC73: -1.047784677 | AF73: 68 | AG73: -0.7809435942 | AH73: -0.7809435942 | AJ73: 28 | AK73: -0.04950983261 | AL73: 0.01672027268 | AM73: -0.08811444241 | AN73: 0.08438332105 | AO73: 0.01878230789 | AP73: 0.2404460986 | AQ73: 0.06978677703 | AR73: 0.03270306692 | AS73: -0.1056007452 | AT73: 0.0410828829 | AU73: 0.003954425271 | AV73: 0.3472231544 | AW73: 4.838694903e-05 | AX73: 0.03467618439 | AY73: 0.0356692259 | AZ73: -0.05765465105 | BA73: -0.03243689824 | BB73: -0.03885720872 | BC73: 0.06549210762 | BD73: -0.07843241702 | BE73: -0.08071199229 | BF73: -0.1412701102 | BG73: -0.03875528564 | BH73: -0.03032349938 | BI73: 0.03964475615 | BJ73: 0.03668357998 | BK73: 0.07520619782 | BL73: 0.00241735245 | BM73: -0.0396160434 | BN73: 0.05379779142 | BO73: 0.129228792 | BP73: -0.1004192408 | BQ73: -0.1225496207 | BR73: 0.02778317665 | BS73: 0.00890392246 | BT73: 0.07304420469 | BU73: -0.1696552497 | BV73: -0.1203714069 | BW73: 0.003226947561 | BX73: 0.142889668 | BY73: -0.009816951194 | BZ73: 0.01718762081 | CA73: 0.07532525036 | CB73: 0.05144848553 | CC73: 0.02519961635 | CD73: 0.1845781374 | CE73: 0.1084536093 | CF73: -0.07214252081 | CG73: 0.0392405076 | CH73: 0.04039148277 | CI73: -0.003811208139 | CJ73: -0.1043481489 | CK73: -0.08868026123 | CL73: 0.1224057968 | CM73: 0.2055256435 | CN73: 0.01664267656 | CO73: -0.02348253769 | CP73: -0.1479728379 | CQ73: -0.05094529811 | CR73: 0.1352166232 | CS73: 0.1465463033 | CT73: 0.008051258096 | CU73: 0.3016341281 | CV73: -0.1031230741 | CW73: -0.01929651173 | CX73: 0.02473846093 | CY73: 0.06671870339 | CZ73: -0.1298013491 | DA73: 0.006094532861 | DB73: -0.2176175983 | DC73: 0.01540631853 | DD73: -0.005537993102 | DE73: -0.06516523947 | DF73: -0.01064221831 | DG73: -0.07413775805 | DH73: -0.0814571995 | DI73: -0.0002604410402 | DJ73: -0.005277571826 | DK73: 0.05381187538 | DL73: 0.1054178109 | DM73: -0.07274300163 | DN73: 0.1120121855 | DO73: 0.1936710454 | DP73: -0.1137715875 | DQ73: -0.09314235408 | DR73: 0.03776296479 | DS73: 0.0191702166 | DT73: 0.05716429629 | DU73: -0.03459690704 | DV73: 0.1358761434 | DW73: -0.07201369114 | DX73: 0.08733997859 | DY73: -0.008863789237 | DZ73: -0.01688657194 | EA73: -0.1015822998 | EB73: -0.2543041537 | EC73: 0.02229472972 | ED73: 0.1145120061 | EE73: -0.1398849111 | EF73: -0.02111756684 | EG73: -0.04266475438 | EH73: -0.06853989248 | EI73: 0.1118678956 | EJ73: 0.06175993397 | EK73: -0.06282633492 | EL73: -0.02719377523 | EM73: -0.09140754091 | EN73: -0.04559480596 | EO73: -0.03731815253 | EP73: -0.06334179305 | EQ73: -0.06811984654 | ER73: 0.007514988805 | ES73: 0.01641681651 | ET73: 0.07620458335 | EU73: -0.003788144404 | EV73: -0.05922712491 | EW73: 0.01186724088 | EX73: 0.340468326 | EY73: -0.004820259426 | EZ73: -0.02009436459 | FA73: 0.01410945027 | FB73: -0.1534700297 | FC73: -0.1332099226 | FD73: 0.1247710114 | FE73: 0.1409389637 | FF73: -0.04849332433 | FG73: -0.02258917982 | FH73: -0.09973322835 | FJ73: 69 | FK73: 0.0481886366 | FM73: 69 | FN73: 0.7014620905
O74: 69 | P74: -2.082421398 | R74: 69 | S74: -2.034232761 | V74: 69 | W74: -0.9663680017 | Y74: 69 | Z74: -1.268052388 | AB74: 69 | AC74: -0.5665902973 | AF74: 69 | AG74: -0.5128507777 | AH74: -0.5128507777 | AJ74: 29 | AK74: -0.08630358863 | AL74: 0.0893148778 | AM74: 0.05989599603 | AN74: -0.08480604798 | AO74: 0.06105027985 | AP74: 0.2702107494 | AQ74: 0.1180689328 | AR74: -0.1980358237 | AS74: -0.03584442616 | AT74: -0.01369660274 | AU74: 0.001788456759 | AV74: 0.1176041937 | AW74: 0.1200264341 | AX74: 0.1916457021 | AY74: 0.08464480032 | AZ74: 0.05065275701 | BA74: -0.08643948252 | BB74: 0.006654446403 | BC74: -0.007299346154 | BD74: 0.2512227238 | BE74: -0.01336892972 | BF74: -0.1442847532 | BG74: -0.009334924293 | BH74: -0.08054088344 | BI74: -0.09280952484 | BJ74: -0.02551496856 | BK74: -0.1203564323 | BL74: 0.03247016556 | BM74: -0.002050193799 | BN74: -0.02278365656 | BO74: -0.1184796095 | BP74: 0.05361576378 | BQ74: 0.01624628759 | BR74: -0.006486936555 | BS74: -0.3652792938 | BT74: -0.1219411276 | BU74: -0.2222902578 | BV74: -0.0592956157 | BW74: -0.08815544732 | BX74: 0.1850479176 | BY74: 0.001915072832 | BZ74: 0.04602601189 | CA74: -0.0504061183 | CB74: 0.04175113787 | CC74: -0.1360418413 | CD74: 0.004980714085 | CE74: 0.09018989722 | CF74: -0.1183881435 | CG74: -0.07857360851 | CH74: -0.1541146563 | CI74: -0.02994931468 | CJ74: -0.1693258558 | CK74: -0.06298429704 | CL74: -0.1659762978 | CM74: 0.004750721959 | CN74: -0.007885186312 | CO74: 0.4684761792 | CP74: -0.09328781649 | CQ74: -0.07489013808 | CR74: 0.04683197578 | CS74: 0.01663888274 | CT74: 0.0592755383 | CU74: 0.2386615262 | CV74: -0.2257141098 | CW74: 0.0003535170238 | CX74: -0.1874511296 | CY74: -0.1121606403 | CZ74: -0.09375521839 | DA74: 0.1191838803 | DB74: 0.1607948961 | DC74: 0.150636135 | DD74: -0.008378873286 | DE74: 0.1065125986 | DF74: -0.1778767955 | DG74: -0.05578225559 | DH74: -0.02455604994 | DI74: -0.1741835672 | DJ74: -0.1439908162 | DK74: -0.1838194221 | DL74: 0.0413319897 | DM74: -0.04231936613 | DN74: -0.008762707568 | DO74: -0.05601349204 | DP74: -0.1627796455 | DQ74: 0.01063255388 | DR74: 0.04599169947 | DS74: -0.004811448056 | DT74: -0.01114506717 | DU74: 0.07034494632 | DV74: -0.07013995498 | DW74: 0.11072325 | DX74: 0.08798533282 | DY74: -0.09147012651 | DZ74: 0.008153416144 | EA74: 0.05608372992 | EB74: 0.3038240487 | EC74: 0.0396031419 | ED74: 0.1170583187 | EE74: -0.1012465925 | EF74: -0.04523235388 | EG74: 0.004830283051 | EH74: -0.1579166378 | EI74: -0.2595755383 | EJ74: 0.1985278847 | EK74: -0.002553182634 | EL74: 0.04658870872 | EM74: 0.04375773698 | EN74: -0.02600882092 | EO74: -0.03591264075 | EP74: -0.01114909784 | EQ74: 0.09711616599 | ER74: -0.08576321947 | ES74: -0.04089575628 | ET74: -0.08908521232 | EU74: -0.3150016047 | EV74: -0.02939197348 | EW74: -0.08453348325 | EX74: 0.09526115442 | EY74: -0.1645203811 | EZ74: -0.008959727455 | FA74: -0.1152870873 | FB74: 0.2600111596 | FC74: 0.1566818035 | FD74: 0.07659401006 | FE74: 0.1766537172 | FF74: -0.2323011161 | FG74: -0.2104983143 | FH74: 0.3635185246 | FJ74: 70 | FK74: -0.449576303 | FM74: 70 | FN74: -0.02785321247
O75: 70 | P75: -0.8958449283 | R75: 70 | S75: -1.345421231 | V75: 70 | W75: -0.8729682223 | Y75: 70 | Z75: 4.323900546 | AB75: 70 | AC75: 4.296047334 | AF75: 70 | AG75: 0.9996289349 | AH75: 0.9996289349 | AJ75: 30 | AK75: -0.02711967074 | AL75: -0.009594772252 | AM75: -0.06396950603 | AN75: 0.01126986291 | AO75: -0.2995035188 | AP75: -0.4377008317 | AQ75: -0.5025179837 | AR75: 0.4780705169 | AS75: -0.02817677609 | AT75: 0.0574804313 | AU75: 0.06682478772 | AV75: -0.4828958233 | AW75: 0.05010922484 | AX75: -0.05557030716 | AY75: 0.2159355897 | AZ75: 0.06305536864 | BA75: 0.1109380826 | BB75: 0.04998397261 | BC75: 0.04402232625 | BD75: -0.2779596547 | BE75: 0.1469431986 | BF75: 0.4342990997 | BG75: 0.2713581815 | BH75: -0.2261017949 | BI75: 0.1530732002 | BJ75: 0.02007590941 | BK75: 0.08629967276 | BL75: -0.0502243462 | BM75: 0.2917627752 | BN75: -0.004029134155 | BO75: -0.03884290477 | BP75: -0.05728694778 | BQ75: 0.2625590123 | BR75: -0.006625291194 | BS75: -0.2713940558 | BT75: -0.01547670807 | BU75: -0.5784187405 | BV75: 0.0707763478 | BW75: 0.3618348603 | BX75: -0.4647268349 | BY75: -0.09701103633 | BZ75: 0.120235605 | CA75: -0.03255969855 | CB75: -0.06524691231 | CC75: 0.378803124 | CD75: -0.1002535275 | CE75: -0.3198368946 | CF75: 0.257494522 | CG75: 0.04523706742 | CH75: 0.70765184 | CI75: -0.01534427095 | CJ75: 0.2831615601 | CK75: 0.1581338417 | CL75: -0.05144558037 | CM75: 0.04209303957 | CN75: 0.0326235696 | CO75: -0.2126970286 | CP75: -0.2568975151 | CQ75: 0.2271481416 | CR75: -0.3326739651 | CS75: -0.4492350637 | CT75: -0.09713738811 | CU75: -0.2846896667 | CV75: -0.1187856878 | CW75: 0.01174913427 | CX75: -0.04642611642 | CY75: 0.08685847533 | CZ75: -0.001019316301 | DA75: 0.1008403481 | DB75: 0.1959975827 | DC75: -0.1456700239 | DD75: -0.1357608667 | DE75: -0.1899539438 | DF75: -0.2732531635 | DG75: 0.05567298409 | DH75: -0.06376590744 | DI75: -0.07890095361 | DJ75: 0.07603821665 | DK75: 0.3767507336 | DL75: -0.3722158716 | DM75: 0.08763109309 | DN75: -0.4437990661 | DO75: -0.08876253154 | DP75: -0.05250485036 | DQ75: -0.03903072845 | DR75: 0.1176214386 | DS75: 0.4178569848 | DT75: -0.2614269389 | DU75: 0.07803310775 | DV75: 0.03527490177 | DW75: 0.5618273905 | DX75: 0.02513490808 | DY75: -0.007900606564 | DZ75: -0.002352642305 | EA75: 0.04564406933 | EB75: -0.3393362395 | EC75: 0.05644805935 | ED75: -0.2116635312 | EE75: 0.1790083193 | EF75: -0.02431515178 | EG75: -0.06431397586 | EH75: -0.007885865003 | EI75: 0.06762350644 | EJ75: -0.4216602076 | EK75: 0.1066215797 | EL75: 0.02589003162 | EM75: -0.05614698578 | EN75: -0.1421255387 | EO75: 0.007697111589 | EP75: -0.01156759203 | EQ75: 0.06850698612 | ER75: -0.1115113649 | ES75: 0.02971883813 | ET75: -0.01018128671 | EU75: -0.1205658579 | EV75: 0.003486756964 | EW75: -0.01985358237 | EX75: 0.1942279999 | EY75: -0.04103705828 | EZ75: -0.07492095578 | FA75: -0.192681657 | FB75: 0.1378013099 | FC75: 0.2119304085 | FD75: 0.4571717569 | FE75: -0.4467591762 | FF75: -0.1006948529 | FG75: 0.1354663553 | FH75: -0.1017500017 | FJ75: 71 | FK75: 0.2966231576 | FM75: 71 | FN75: -0.01230930213
O76: 71 | P76: 2.639434907 | R76: 71 | S76: 2.936058065 | V76: 71 | W76: 0.9943820132 | Y76: 71 | Z76: 0.7561044269 | AB76: 71 | AC76: 0.7437951248 | AF76: 71 | AG76: 0.6314326134 | AH76: 0.6314326134 | AJ76: 31 | AK76: -0.09466691354 | AL76: 0.01136760368 | AM76: 0.08414935399 | AN76: -0.02283470294 | AO76: -0.0210241023 | AP76: -0.1108167291 | AQ76: 0.2509375653 | AR76: -0.04494178777 | AS76: 0.09328777027 | AT76: 0.09615021681 | AU76: -0.05901836433 | AV76: 0.08475382576 | AW76: -0.03509869145 | AX76: -0.03568488115 | AY76: -0.1393737394 | AZ76: 0.01387972132 | BA76: -0.05432650655 | BB76: 0.03955278405 | BC76: -0.09208016957 | BD76: 0.05855342806 | BE76: -0.06304080364 | BF76: -4.340682414e-05 | BG76: -0.2017244336 | BH76: 0.206475335 | BI76: -0.1891141276 | BJ76: -0.1512394352 | BK76: -0.04836611827 | BL76: -0.05448353952 | BM76: 0.1737837021 | BN76: 0.1141015073 | BO76: 0.2526781796 | BP76: 0.06185398752 | BQ76: -0.258643006 | BR76: 0.1449468537 | BS76: 0.2725412321 | BT76: 0.02782158856 | BU76: -0.1760243609 | BV76: -0.04861226847 | BW76: 0.2578576697 | BX76: 0.1278944803 | BY76: 0.04899251303 | BZ76: 0.0853192599 | CA76: -0.1007879063 | CB76: 0.1737374215 | CC76: -0.1749509835 | CD76: 0.04467542739 | CE76: 0.05910929999 | CF76: -0.120086923 | CG76: 0.06801511211 | CH76: -0.06905879842 | CI76: 0.06452608614 | CJ76: -0.05565868135 | CK76: -0.1149622583 | CL76: 0.03306518096 | CM76: 0.100404663 | CN76: -0.07027978718 | CO76: -0.2441632139 | CP76: 0.01496762316 | CQ76: -0.09122661872 | CR76: -0.157630613 | CS76: 0.1576350045 | CT76: -0.1451535249 | CU76: 0.06659996078 | CV76: 0.1480310346 | CW76: 0.08027566189 | CX76: -0.2581779286 | CY76: -0.02019337323 | CZ76: 0.04012941745 | DA76: -0.06712203591 | DB76: -0.1092023323 | DC76: -0.1269548346 | DD76: 0.02512363443 | DE76: -0.02189947167 | DF76: -0.02449285273 | DG76: 0.05090977253 | DH76: -0.0023766801 | DI76: 0.01657832696 | DJ76: 0.1089624124 | DK76: -0.03971614775 | DL76: 0.2145651005 | DM76: -0.3046346329 | DN76: -0.03755628086 | DO76: 0.04379450861 | DP76: -0.04311201967 | DQ76: -0.2572844228 | DR76: -0.07505826297 | DS76: -0.222977781 | DT76: 0.07270489279 | DU76: -0.1108857484 | DV76: 0.09980087864 | DW76: 0.09572947582 | DX76: 0.0468776226 | DY76: -0.06043148442 | DZ76: -0.01585541303 | EA76: 0.01191717963 | EB76: -0.1995823108 | EC76: 0.05923272997 | ED76: 0.1286896174 | EE76: -0.06173821569 | EF76: 0.03493821214 | EG76: -0.06916853157 | EH76: 0.04714774094 | EI76: 0.1289197909 | EJ76: 0.1892148113 | EK76: -0.05955420441 | EL76: -0.04179929405 | EM76: -0.008387703255 | EN76: 0.04170674358 | EO76: 0.01616098631 | EP76: 0.03956180205 | EQ76: 0.1528394405 | ER76: -0.3928291637 | ES76: -0.02820174522 | ET76: 0.07462219358 | EU76: 0.286869795 | EV76: 0.1094334089 | EW76: -0.1798997942 | EX76: 0.3245161983 | EY76: 0.06764514348 | EZ76: 0.05452173252 | FA76: -0.1445355409 | FB76: -0.1599958342 | FC76: -0.1160571176 | FD76: -0.05709695697 | FE76: -0.1695280695 | FF76: -0.1838508973 | FG76: -0.2153198724 | FH76: -0.09767785338 | FJ76: 72 | FK76: 1.559945209 | FM76: 72 | FN76: -0.0328305126
O77: 72 | P77: -4.604121815 | R77: 72 | S77: -3.044176606 | V77: 72 | W77: -0.9954719894 | Y77: 72 | Z77: -0.5094618098 | AB77: 72 | AC77: -0.5422923225 | AF77: 72 | AG77: -0.4947212079 | AH77: -0.4947212079 | AJ77: 32 | AK77: -0.1856076698 | AL77: 0.06643561638 | AM77: -0.2022025125 | AN77: -0.08615510507 | AO77: 0.1258823645 | AP77: 0.03073950652 | AQ77: 0.1389443682 | AR77: 0.04629906972 | AS77: 0.02284282473 | AT77: -0.108920955 | AU77: -0.1724531338 | AV77: 0.2723680231 | AW77: 0.09331764085 | AX77: -0.1455751849 | AY77: -0.04470186227 | AZ77: -0.1388077839 | BA77: -0.04340293321 | BB77: 0.07496861964 | BC77: 0.009229499101 | BD77: 0.169626234 | BE77: -0.02542560461 | BF77: -0.3194649064 | BG77: -0.09680457562 | BH77: 0.02048305845 | BI77: -0.06271374752 | BJ77: -0.03758179239 | BK77: 0.06389575996 | BL77: 0.09138694105 | BM77: -0.02464604704 | BN77: 0.1161101292 | BO77: -0.004939978048 | BP77: 0.07624524196 | BQ77: -0.2679687201 | BR77: -0.007837603076 | BS77: -0.07323882054 | BT77: 0.06476263719 | BU77: 0.3886463615 | BV77: -0.002515376402 | BW77: -0.207416062 | BX77: 0.1956077882 | BY77: -0.03652364409 | BZ77: -0.004350245138 | CA77: -0.1129050954 | CB77: -0.397248376 | CC77: 0.06781989518 | CD77: 0.2611441491 | CE77: 0.09951082299 | CF77: 0.01430828669 | CG77: -0.0383869288 | CH77: -0.04759654921 | CI77: -0.1547836859 | CJ77: 0.1423409063 | CK77: 0.0458561947 | CL77: 0.1333101746 | CM77: -0.2684172741 | CN77: -0.08719106237 | CO77: 0.4166345189 | CP77: 0.1528957692 | CQ77: -0.08379399904 | CR77: -0.1423246361 | CS77: 0.06864058203 | CT77: -0.08998366819 | CU77: 0.2034730225 | CV77: 0.02872249435 | CW77: 0.0787015807 | CX77: -0.09863444007 | CY77: -0.1001213992 | CZ77: -0.02840796659 | DA77: -0.007540979804 | DB77: -0.1014035212 | DC77: -0.05692909127 | DD77: 0.01675522205 | DE77: 0.3818816103 | DF77: -0.03533606774 | DG77: -0.03161092543 | DH77: -0.1429238386 | DI77: 0.1965553311 | DJ77: 0.04524938974 | DK77: -0.1251754902 | DL77: 0.1106518461 | DM77: 0.1011051913 | DN77: 0.1238916378 | DO77: 0.0210937122 | DP77: -0.00688442608 | DQ77: 0.05382147382 | DR77: 0.01661727927 | DS77: -0.197129195 | DT77: 0.1441443356 | DU77: 0.1204232867 | DV77: 0.05858384644 | DW77: 0.2265084349 | DX77: -0.05774331373 | DY77: -0.1019464851 | DZ77: -0.100943132 | EA77: -0.05980579612 | EB77: 0.3587485785 | EC77: -0.06924003858 | ED77: 0.0261007094 | EE77: -0.1607636482 | EF77: -0.07243980812 | EG77: -0.05851406865 | EH77: -0.08958237222 | EI77: -0.4553323217 | EJ77: 0.1800741846 | EK77: 0.0743125685 | EL77: -0.05113501437 | EM77: 0.1102523398 | EN77: 0.2948016102 | EO77: 0.06004860196 | EP77: 0.009769318188 | EQ77: 0.01178683033 | ER77: 0.2209620226 | ES77: -0.1656632076 | ET77: -0.1115020371 | EU77: -0.2160234311 | EV77: -0.02509431613 | EW77: -0.002152517101 | EX77: -0.5765317485 | EY77: -0.1301900185 | EZ77: -0.1132769171 | FA77: 0.02033234502 | FB77: 0.04291642142 | FC77: -0.1812773452 | FD77: -0.08040281403 | FE77: 0.1543825356 | FF77: 0.0232899061 | FG77: 0.3087229377 | FH77: 0.3241185655 | FJ77: 73 | FK77: -0.3168835476 | FM77: 73 | FN77: 0.8058152669
O78: 73 | P78: -0.08713990149 | R78: 73 | S78: -0.4040234491 | V78: 73 | W78: -0.3833863081 | Y78: 73 | Z78: -1.152029442 | AB78: 73 | AC78: -0.3462141756 | AF78: 73 | AG78: -0.3330138153 | AH78: -0.3330138153 | AJ78: 33 | AK78: 0.01462619824 | AL78: -0.06264026224 | AM78: -0.07888444272 | AN78: 0.014303888 | AO78: 0.2247889309 | AP78: 0.2279264808 | AQ78: 0.5580960795 | AR78: -0.08267489348 | AS78: 0.02135100526 | AT78: 0.106943148 | AU78: -0.4923429568 | AV78: 0.104113681 | AW78: 0.07339281572 | AX78: 0.1335766331 | AY78: -0.1630002157 | AZ78: -0.03044298591 | BA78: 0.08097671829 | BB78: -0.0279835367 | BC78: -0.04491927393 | BD78: 0.2445167337 | BE78: -0.01543118066 | BF78: -0.3348622794 | BG78: -0.07421910158 | BH78: 0.4233237413 | BI78: 0.05789873443 | BJ78: 0.1201021516 | BK78: 0.06944950282 | BL78: -0.05429450126 | BM78: -0.2398135244 | BN78: 0.07710450734 | BO78: 0.04748644003 | BP78: 0.01642777039 | BQ78: -0.01034596824 | BR78: 0.06634209059 | BS78: -0.01928246363 | BT78: -0.0648459601 | BU78: 0.4569890117 | BV78: 0.02208419417 | BW78: -0.4209649721 | BX78: -0.1552392642 | BY78: 0.04719688714 | BZ78: -0.08227482241 | CA78: -0.005751673595 | CB78: 0.1155289526 | CC78: -0.2373436401 | CD78: 0.115894077 | CE78: 0.04540015703 | CF78: -0.01199845173 | CG78: -0.03169419906 | CH78: -0.5105067404 | CI78: 0.2114988297 | CJ78: -0.1569085156 | CK78: -0.0249863154 | CL78: 0.02791293567 | CM78: -0.483977071 | CN78: -0.07542915128 | CO78: 0.194247513 | CP78: 0.3991358684 | CQ78: -0.1112779153 | CR78: -0.02015047009 | CS78: 0.2188159915 | CT78: 0.007387900858 | CU78: 0.4762918615 | CV78: 0.1573906722 | CW78: -0.002761530376 | CX78: -0.2206272447 | CY78: 0.01103591037 | CZ78: -0.08253652825 | DA78: -0.3246100251 | DB78: -0.1473547039 | DC78: -0.0001388449641 | DD78: -0.04066881425 | DE78: -0.01459901549 | DF78: 0.1655157645 | DG78: 0.01329331496 | DH78: 0.01946324937 | DI78: -0.2390181936 | DJ78: 0.403083984 | DK78: -0.2487668846 | DL78: -0.1333913144 | DM78: -0.1650131421 | DN78: 0.05818205172 | DO78: 0.08423166655 | DP78: 0.0400228399 | DQ78: -0.08379035851 | DR78: 0.03639118037 | DS78: -0.1255002884 | DT78: 0.2120092338 | DU78: 0.01772776111 | DV78: -0.004418781958 | DW78: -0.06652529368 | DX78: 0.07678351055 | DY78: 0.01222303094 | DZ78: -0.02036507248 | EA78: -0.1170217407 | EB78: 0.06561026865 | EC78: -0.007498115433 | ED78: 0.2566104508 | EE78: -0.3523211177 | EF78: 0.004400699304 | EG78: -0.005861727015 | EH78: 0.03895918099 | EI78: -0.3250231208 | EJ78: 0.1446860974 | EK78: 0.02445574124 | EL78: 0.08307092851 | EM78: 0.09572922661 | EN78: 0.3524073272 | EO78: 0.01056411699 | EP78: 0.1158050034 | EQ78: 0.01779500734 | ER78: 0.6652138458 | ES78: 0.0919463423 | ET78: 0.03448523864 | EU78: 0.1552199481 | EV78: 0.08576071991 | EW78: -0.006529627983 | EX78: 0.03556510421 | EY78: 0.063040761 | EZ78: -0.0521107854 | FA78: 0.01508716637 | FB78: -0.08399903704 | FC78: -0.2654399968 | FD78: -0.02144182265 | FE78: -0.0903089785 | FF78: 0.0784008161 | FG78: 0.09423993372 | FH78: 0.3398100413 | FJ78: 74 | FK78: 1.112961674 | FM78: 74 | FN78: 0.06447876219
O79: 74 | P79: 0.6518431525 | R79: 74 | S79: 1.764804827 | V79: 74 | W79: 0.9430372267 | Y79: 74 | Z79: -4.368010038 | AB79: 74 | AC79: -4.303531276 | AF79: 74 | AG79: -0.9996344466 | AH79: -0.9996344466 | AJ79: 34 | AK79: -0.1581490353 | AL79: -0.0009302233771 | AM79: 0.1480537283 | AN79: 0.1018763951 | AO79: 0.1611963114 | AP79: 0.01554232626 | AQ79: -0.09604564393 | AR79: -0.3127178141 | AS79: 0.004579331484 | AT79: -0.07516811786 | AU79: 0.005229348541 | AV79: -0.1674449128 | AW79: -0.004518773455 | AX79: -0.08017379232 | AY79: 0.1940457067 | AZ79: -0.1012177054 | BA79: -0.1301386014 | BB79: 0.018612596 | BC79: 0.004936272615 | BD79: 0.04113226172 | BE79: -0.09016131602 | BF79: 0.03999165618 | BG79: -0.02447372433 | BH79: 0.1774576255 | BI79: 0.01086983001 | BJ79: -0.03032629328 | BK79: -0.08662618154 | BL79: 0.07379453191 | BM79: 0.02559777302 | BN79: -0.005784863049 | BO79: 0.1289183596 | BP79: 0.02266276581 | BQ79: -0.09244283264 | BR79: 0.05700137324 | BS79: -0.1306129061 | BT79: 0.06958414801 | BU79: 0.07993047681 | BV79: 0.02617228049 | BW79: -0.2282536084 | BX79: -0.1410173971 | BY79: 0.03476630569 | BZ79: 0.09041043688 | CA79: 0.1600242587 | CB79: -0.02306517919 | CC79: -0.3147801436 | CD79: 0.02285803394 | CE79: -0.1405640215 | CF79: -0.1568938377 | CG79: 0.02551928097 | CH79: -0.07193851288 | CI79: 0.02675340088 | CJ79: -0.03916389672 | CK79: 0.01945868081 | CL79: 0.04857063418 | CM79: -0.1001765241 | CN79: 0.006882536992 | CO79: 0.1840543181 | CP79: -0.06315465019 | CQ79: -0.07179778755 | CR79: -0.1757423616 | CS79: -0.03089632761 | CT79: 0.09896510223 | CU79: -0.04090076936 | CV79: 0.2298963446 | CW79: -0.1327676242 | CX79: -0.1888081027 | CY79: -0.06993080553 | CZ79: 0.07197547584 | DA79: -0.003183641163 | DB79: -0.06706813084 | DC79: -0.1505911965 | DD79: -0.07393934808 | DE79: -0.05396681642 | DF79: 0.003231927055 | DG79: -0.07785395292 | DH79: -0.07048794091 | DI79: -0.05906285441 | DJ79: -0.02943840128 | DK79: -0.1689417583 | DL79: -0.2096139037 | DM79: -0.02526431531 | DN79: -0.186441509 | DO79: 0.02874416421 | DP79: 0.1548609797 | DQ79: 0.07065469915 | DR79: -0.06366784784 | DS79: -0.1330794961 | DT79: 0.0006354545145 | DU79: -0.0003433917168 | DV79: 0.07222198408 | DW79: 0.3977031285 | DX79: 0.06020680652 | DY79: 0.10554015 | DZ79: -0.03806478945 | EA79: 0.0346971727 | EB79: 0.06894355705 | EC79: 0.09459977502 | ED79: 0.04949772847 | EE79: 0.02703139264 | EF79: 0.03937093595 | EG79: -0.1110075697 | EH79: 0.1040560613 | EI79: 0.02422786615 | EJ79: -0.1662788815 | EK79: -0.05125420777 | EL79: -0.06503004133 | EM79: 0.008689568061 | EN79: -0.1303451146 | EO79: -0.01291084107 | EP79: 0.06960957859 | EQ79: 0.2048213365 | ER79: 0.0802242847 | ES79: 0.09134013311 | ET79: 0.06885685539 | EU79: 0.0744281198 | EV79: 0.03376748699 | EW79: -0.08148556037 | EX79: -0.2945451658 | EY79: 0.08535897753 | EZ79: -0.0398138006 | FA79: 0.02285039157 | FB79: -0.1236172724 | FC79: -0.1472642668 | FD79: -0.171071407 | FE79: -0.1711534549 | FF79: -0.2819289229 | FG79: 0.06688537471 | FH79: 0.04123585045 | FJ79: 75 | FK79: 1.065744176 | FM79: 75 | FN79: 0.04521054396
O80: 75 | P80: -7.089460513 | R80: 75 | S80: -6.023716336 | V80: 75 | W80: -0.9999882809 | Y80: 75 | Z80: -0.08264886923 | AB80: 75 | AC80: -0.03743832527 | AF80: 75 | AG80: -0.03742084353 | AH80: -0.03742084353 | AJ80: 35 | AK80: -0.0284037909 | AL80: -0.08193418908 | AM80: -0.0181482592 | AN80: 0.0008915093336 | AO80: 0.06018006829 | AP80: 0.1141498481 | AQ80: 0.2326895777 | AR80: 0.02126857464 | AS80: -0.02529509408 | AT80: 0.05952022849 | AU80: 0.1706063978 | AV80: 0.3508079041 | AW80: 0.06146361308 | AX80: 0.4491728486 | AY80: 0.09643787733 | AZ80: -0.08990048292 | BA80: 0.01109168906 | BB80: -0.0005466820267 | BC80: -0.1073697633 | BD80: 0.08698587658 | BE80: -0.06199643263 | BF80: -0.2780634765 | BG80: 0.08780095098 | BH80: 0.1475929751 | BI80: 0.09103261432 | BJ80: 0.0896363507 | BK80: 0.079984595 | BL80: -0.05126085903 | BM80: 0.0281830608 | BN80: -0.07268778159 | BO80: 0.01045986885 | BP80: -0.04269951786 | BQ80: -0.2145391417 | BR80: 0.1235655249 | BS80: -0.03647542231 | BT80: -0.07398958257 | BU80: 0.03316734383 | BV80: -0.08904858524 | BW80: -0.07875724184 | BX80: 0.1854652455 | BY80: -0.01688412755 | BZ80: 0.01337312668 | CA80: -0.004919555211 | CB80: -0.4264611292 | CC80: -0.05727568358 | CD80: -0.05328207016 | CE80: 0.1962730724 | CF80: 0.330501918 | CG80: -0.02765533387 | CH80: -0.2511704187 | CI80: 0.03228156186 | CJ80: -0.02509012832 | CK80: -0.003319870501 | CL80: 0.2862661853 | CM80: -0.1810957311 | CN80: 0.0130749766 | CO80: 0.02590445297 | CP80: -0.1403111064 | CQ80: -0.1509461819 | CR80: -0.1939150707 | CS80: 0.04943308588 | CT80: 0.02557214355 | CU80: 0.1038823727 | CV80: 0.1697013515 | CW80: -0.04098610847 | CX80: -0.03468145919 | CY80: 0.01108154479 | CZ80: -0.06281116416 | DA80: -0.03045909813 | DB80: 0.0198076789 | DC80: 0.0612883532 | DD80: 0.08020242482 | DE80: -0.1429616104 | DF80: -0.09932372824 | DG80: 0.09284179566 | DH80: 0.06222220895 | DI80: -0.2961997999 | DJ80: 0.08596612448 | DK80: -0.1376133081 | DL80: 0.01056874765 | DM80: 0.03356654115 | DN80: 0.147104728 | DO80: -0.09076846696 | DP80: -0.03917998338 | DQ80: -0.1603505411 | DR80: 0.0490096226 | DS80: -0.06679265749 | DT80: 0.3628207919 | DU80: 0.007398133994 | DV80: -0.02744920025 | DW80: 0.02771463457 | DX80: -0.07476446545 | DY80: 0.04640537593 | DZ80: -0.004225399854 | EA80: -0.04060050363 | EB80: -0.130446785 | EC80: 0.003142852537 | ED80: 0.1543466952 | EE80: 0.06164740888 | EF80: -0.06127630343 | EG80: -0.02432086522 | EH80: 0.05197288504 | EI80: 0.08659939909 | EJ80: 0.05730644474 | EK80: -0.01847224546 | EL80: 0.06624802982 | EM80: -0.1310101909 | EN80: 0.05204142036 | EO80: -0.03914321104 | EP80: 0.01365684989 | EQ80: -0.02432593349 | ER80: -0.07396083326 | ES80: 0.1233165711 | ET80: -0.03787384272 | EU80: -0.01068608258 | EV80: 0.1227439168 | EW80: 0.14431378 | EX80: 0.4640122694 | EY80: -0.1045795249 | EZ80: -0.1698735009 | FA80: -0.2085153609 | FB80: -0.1186484615 | FC80: -0.007496670038 | FD80: -0.1205700123 | FE80: 0.3296243287 | FF80: -0.03688809837 | FG80: -0.1321004306 | FH80: 0.09603445665 | FJ80: 76 | FK80: -0.5925487948 | FM80: 76 | FN80: -0.09122445848
O81: 76 | P81: 2.933256968 | R81: 76 | S81: 2.340708173 | V81: 76 | W81: 0.9816383749 | Y81: 76 | Z81: -0.1220245893 | AB81: 76 | AC81: -0.2132490478 | AF81: 76 | AG81: -0.2100742734 | AH81: -0.2100742734 | AJ81: 36 | AK81: 0.0813660651 | AL81: -0.004486380757 | AM81: -0.04263801181 | AN81: -0.05523257089 | AO81: 0.07914175892 | AP81: 0.23087874 | AQ81: 0.3182353103 | AR81: -0.08099718741 | AS81: -0.07247823479 | AT81: 0.1349703251 | AU81: -0.355106855 | AV81: 0.1098178804 | AW81: -0.04430466391 | AX81: -0.157018479 | AY81: -0.05649513203 | AZ81: 0.09396018629 | BA81: 0.07076916117 | BB81: 0.004150667804 | BC81: 0.04045756983 | BD81: 0.1490133907 | BE81: -0.09432031413 | BF81: -0.07493573509 | BG81: -0.06960922763 | BH81: -0.02963583546 | BI81: 0.03590445856 | BJ81: -0.09367562169 | BK81: 0.05126567449 | BL81: -0.004697953467 | BM81: -0.2109140376 | BN81: -0.03354822985 | BO81: 0.03700465454 | BP81: -0.05936797684 | BQ81: 0.02501353696 | BR81: -0.08410222695 | BS81: 0.04304280673 | BT81: -0.02169222848 | BU81: -0.1536512396 | BV81: 0.02176340245 | BW81: -0.4527235001 | BX81: 0.07156097624 | BY81: 0.03452507817 | BZ81: -0.105712725 | CA81: -0.0768851633 | CB81: 0.07878479084 | CC81: -0.01341724116 | CD81: -0.05472713947 | CE81: 0.02787068505 | CF81: -0.2571110762 | CG81: 0.08082877834 | CH81: -0.2106791626 | CI81: 0.1416960023 | CJ81: -0.03439694133 | CK81: -0.1826283973 | CL81: -0.3370490208 | CM81: -0.08514214446 | CN81: -0.1170879367 | CO81: 0.06178545826 | CP81: 0.1116420584 | CQ81: 0.02538133818 | CR81: -0.06078960667 | CS81: 0.1812432961 | CT81: 0.005809651797 | CU81: 0.9177938605 | CV81: -0.00909975426 | CW81: -0.06185917458 | CX81: -0.1223325676 | CY81: 0.07952827058 | CZ81: -0.1693563677 | DA81: 0.0655781885 | DB81: -0.04532179223 | DC81: 0.08396192546 | DD81: 0.1492022182 | DE81: 0.1132886439 | DF81: 0.3449990454 | DG81: 0.06271019508 | DH81: 0.06345037833 | DI81: -0.1349129561 | DJ81: 0.3416948674 | DK81: -0.2385896679 | DL81: 0.04742770827 | DM81: -0.1428031547 | DN81: -0.01589423745 | DO81: 0.04638236856 | DP81: 0.01186371852 | DQ81: -0.02523040199 | DR81: -0.01742690314 | DS81: -0.1879527428 | DT81: 0.1831338601 | DU81: -0.03015286035 | DV81: 0.0604241977 | DW81: 0.1324574318 | DX81: 0.09729737342 | DY81: -0.1163504903 | DZ81: 0.1641374384 | EA81: -0.01043820125 | EB81: 0.02054512597 | EC81: 0.0001212674443 | ED81: 0.1081015959 | EE81: -0.1023834092 | EF81: 0.0129534659 | EG81: 0.009274210001 | EH81: -0.1713565148 | EI81: 0.001590174972 | EJ81: 0.04631322981 | EK81: 0.05943729394 | EL81: -0.02406962303 | EM81: 0.009304509433 | EN81: -0.09897317844 | EO81: 0.01506669611 | EP81: 0.1053121802 | EQ81: -0.1231803524 | ER81: 0.2095163839 | ES81: -0.04099113069 | ET81: -0.1066584646 | EU81: 0.3918156403 | EV81: 0.01053858421 | EW81: 0.05851017479 | EX81: -0.01123746111 | EY81: -0.01272417663 | EZ81: 0.01783443322 | FA81: 0.02588747163 | FB81: -0.0215240027 | FC81: 0.08694754158 | FD81: -0.1161709343 | FE81: 0.2072725335 | FF81: -0.01572037124 | FG81: -0.003196144683 | FH81: 0.3972304709 | FJ81: 77 | FK81: 0.4015319284 | FM81: 77 | FN81: 0.04795500059
O82: 77 | P82: 3.714128573 | R82: 77 | S82: 4.115660502 | V82: 77 | W82: 0.9994677727 | Y82: 77 | Z82: -3.337962602 | AB82: 77 | AC82: -3.290007602 | AF82: 77 | AG82: -0.9972281904 | AH82: -0.9972281904 | AJ82: 37 | AK82: 0.2076683775 | AL82: -0.02444702744 | AM82: -0.03825618111 | AN82: 0.0962015765 | AO82: -0.0309199773 | AP82: 0.01718845884 | AQ82: 0.03830248819 | AR82: 0.1089862295 | AS82: -0.0829388814 | AT82: -0.1016903357 | AU82: 0.1812486547 | AV82: 0.115808118 | AW82: -0.03010139098 | AX82: 0.2519421109 | AY82: -0.08781318617 | AZ82: -0.2243893054 | BA82: 0.03289566664 | BB82: -0.1547329175 | BC82: 0.03395656056 | BD82: 0.2133474913 | BE82: 0.03092295762 | BF82: 0.1562287312 | BG82: -0.0406291792 | BH82: -0.2491259931 | BI82: 0.03768679033 | BJ82: -0.001372803 | BK82: -0.05287709836 | BL82: -0.0384632839 | BM82: 0.03091135572 | BN82: -0.01588008824 | BO82: -0.06795238517 | BP82: -0.00392795033 | BQ82: -0.09020753268 | BR82: -0.02796058983 | BS82: -0.2000778583 | BT82: -0.09129124828 | BU82: -0.09480399021 | BV82: -0.02313549842 | BW82: 0.1830094602 | BX82: 0.153596644 | BY82: 0.05267620653 | BZ82: 0.1145986924 | CA82: 0.1697969897 | CB82: -0.01771058157 | CC82: 0.4311686428 | CD82: -0.1603129901 | CE82: 0.06663132324 | CF82: 0.1240654719 | CG82: -0.007858094559 | CH82: -0.1282746181 | CI82: -0.1034642933 | CJ82: -0.05904603931 | CK82: 0.07021196884 | CL82: 0.1603890902 | CM82: -0.2153157187 | CN82: -0.0201855137 | CO82: -0.2114141615 | CP82: 0.05535273444 | CQ82: 0.07508020302 | CR82: -0.2780826128 | CS82: 0.2039512642 | CT82: -0.04946215337 | CU82: 0.1187322431 | CV82: -0.03945521924 | CW82: 0.1038157857 | CX82: 0.3535757391 | CY82: -0.09015862603 | CZ82: 0.01907467932 | DA82: 0.1813187879 | DB82: 0.2066673189 | DC82: 0.1288218675 | DD82: -0.03447791735 | DE82: 0.1595171793 | DF82: 0.05720159638 | DG82: -0.0227673229 | DH82: -0.05659258344 | DI82: -0.03118955131 | DJ82: -0.161022359 | DK82: -0.02170784242 | DL82: 0.06577574051 | DM82: 0.04551230655 | DN82: 0.08488362424 | DO82: -0.05862123007 | DP82: -0.09778719223 | DQ82: -0.306256361 | DR82: -0.07873001961 | DS82: -0.06685673005 | DT82: 0.0918032238 | DU82: 0.008368494684 | DV82: 0.05194457442 | DW82: 0.08087695733 | DX82: 0.1085498855 | DY82: 0.1071347853 | DZ82: -0.0005714559772 | EA82: -0.01339506296 | EB82: -0.3310238025 | EC82: 0.001195608883 | ED82: -0.04083760311 | EE82: 0.1732902729 | EF82: 0.04816270399 | EG82: -0.07531706932 | EH82: -0.09627460721 | EI82: 0.3624152035 | EJ82: -0.01122000432 | EK82: -0.09455687837 | EL82: -0.07646699237 | EM82: -0.0694536469 | EN82: -0.209848244 | EO82: 0.02115265836 | EP82: 0.0299476995 | EQ82: -0.05419793786 | ER82: 0.07883207358 | ES82: 0.1064970323 | ET82: 0.0387377297 | EU82: 0.08110637815 | EV82: -0.0951936171 | EW82: 0.02223925909 | EX82: 0.1154692129 | EY82: 0.02096421037 | EZ82: 0.0109799102 | FA82: 0.05851947372 | FB82: -0.01558680834 | FC82: 0.2348363419 | FD82: 0.0177905866 | FE82: 0.2429551411 | FF82: -0.2569472833 | FG82: 0.09581053428 | FH82: -0.04257672346 | FJ82: 78 | FK82: 0.09963691193 | FM82: 78 | FN82: -0.1413921702
O83: 78 | P83: 3.075390829 | R83: 78 | S83: 3.17502774 | V83: 78 | W83: 0.9965127905 | Y83: 78 | Z83: -6.240124997 | AB83: 78 | AC83: -6.381517167 | AF83: 78 | AG83: -0.9999942705 | AH83: -0.9999942705 | AJ83: 38 | AK83: -0.1275114497 | AL83: 0.003678164223 | AM83: -0.02303835315 | AN83: -0.01006097826 | AO83: -0.05256365252 | AP83: -0.1607234717 | AQ83: -0.02396074174 | AR83: 0.07681154028 | AS83: 0.04213195459 | AT83: -0.04475555359 | AU83: -0.07396506945 | AV83: -0.2125403047 | AW83: 0.0005315183924 | AX83: -0.2432738472 | AY83: -0.03711021515 | AZ83: -0.1761323198 | BA83: -0.04077200739 | BB83: -0.01823404882 | BC83: -0.03939284856 | BD83: 0.2029240518 | BE83: -0.04523243414 | BF83: 0.6927842303 | BG83: 0.07406250741 | BH83: -0.01321224084 | BI83: -0.05725828017 | BJ83: 0.005287810087 | BK83: 0.09786497903 | BL83: -0.02119684837 | BM83: -0.1191388377 | BN83: -0.04407231419 | BO83: 0.02973956196 | BP83: 0.06220852935 | BQ83: -0.07386647629 | BR83: 0.03480261862 | BS83: 0.1410063243 | BT83: 0.08642332599 | BU83: 0.03838929465 | BV83: -0.03599894486 | BW83: 0.01215741063 | BX83: -0.02258510347 | BY83: -0.1360588634 | BZ83: -0.02482960951 | CA83: -0.01236315025 | CB83: -0.07472647964 | CC83: 0.06877768743 | CD83: 0.01501099702 | CE83: 0.09653426372 | CF83: -0.007190406071 | CG83: 0.04207284046 | CH83: 0.1829232019 | CI83: 0.07876245231 | CJ83: 0.06651472544 | CK83: -0.05394941398 | CL83: 0.06003939572 | CM83: 0.03665622363 | CN83: -0.04247298004 | CO83: -0.01431473775 | CP83: -0.003109777923 | CQ83: 0.03926473118 | CR83: 0.09166591218 | CS83: -0.1289476231 | CT83: -0.08187805699 | CU83: -0.2029180347 | CV83: 0.01131957977 | CW83: 0.1112421034 | CX83: -0.09038913843 | CY83: -0.02719721425 | CZ83: 0.02174770584 | DA83: 0.0556834737 | DB83: -0.008961973334 | DC83: -0.1295868956 | DD83: -0.06822757258 | DE83: 0.04057944896 | DF83: 0.04906921603 | DG83: 0.03587224341 | DH83: 0.00545829509 | DI83: 0.2689384217 | DJ83: 0.1898086468 | DK83: 0.1747361435 | DL83: -0.09618680777 | DM83: -0.03291083741 | DN83: 0.01369430034 | DO83: 0.05093128462 | DP83: -0.05530334659 | DQ83: 0.006563534325 | DR83: 0.05540650488 | DS83: -0.01253334254 | DT83: -0.1409643689 | DU83: -0.02129503478 | DV83: -0.03083982552 | DW83: 0.2132903159 | DX83: 0.03371021943 | DY83: 0.01386548882 | DZ83: 0.1432277229 | EA83: 0.02652433739 | EB83: -0.03421851847 | EC83: -0.01844340858 | ED83: -0.03332657859 | EE83: -0.05201442301 | EF83: -0.0606030279 | EG83: -0.0294565805 | EH83: 0.001903149117 | EI83: 0.1566406987 | EJ83: -0.02225651383 | EK83: -0.002416098757 | EL83: 0.1150900791 | EM83: -0.01727796984 | EN83: -0.04080188832 | EO83: -0.04357046981 | EP83: 0.03849327173 | EQ83: 0.07627781351 | ER83: 0.2198434779 | ES83: 0.0212671737 | ET83: -0.06448938891 | EU83: 0.0446030697 | EV83: 0.01506477686 | EW83: 0.03779822662 | EX83: -0.02230533064 | EY83: -0.005850145623 | EZ83: 0.1366728016 | FA83: -0.03503143164 | FB83: -0.1376678689 | FC83: -0.1601837114 | FD83: -0.0713455644 | FE83: 0.02047278137 | FF83: -0.005010488153 | FG83: 0.01831462639 | FH83: 0.1173302157 | FJ83: 79 | FK83: -1.215402228 | FM83: 79 | FN83: -0.4916883788
O84: 79 | P84: 5.511611076 | R84: 79 | S84: 4.296208848 | V84: 79 | W84: 0.9996290547 | Y84: 79 | Z84: 3.555428583 | AB84: 79 | AC84: 3.063740205 | AF84: 79 | AG84: 0.9956453582 | AH84: 0.9956453582 | AJ84: 39 | AK84: -0.06949589523 | AL84: -0.06759664657 | AM84: -0.008408602602 | AN84: 0.0464939778 | AO84: -0.008257737669 | AP84: -0.07653408114 | AQ84: -0.1502920194 | AR84: 0.0780711491 | AS84: -0.04261581148 | AT84: 0.06589859339 | AU84: -0.01644439464 | AV84: -0.0512691117 | AW84: 0.01511473168 | AX84: 0.1247265237 | AY84: -0.05666715306 | AZ84: -0.05182630804 | BA84: 0.1047186647 | BB84: -0.05593248748 | BC84: -0.03410783827 | BD84: 0.033552432 | BE84: 0.004618762024 | BF84: 0.5277020653 | BG84: 0.1127924096 | BH84: -0.02261333711 | BI84: 0.07100031458 | BJ84: 0.02466416881 | BK84: 0.05178051939 | BL84: -0.05755505471 | BM84: -0.03456668008 | BN84: -0.011323656 | BO84: 0.06334016663 | BP84: -0.04260162418 | BQ84: 0.1554030589 | BR84: 0.04478119136 | BS84: -0.05597674195 | BT84: -0.04640803533 | BU84: 0.1108271205 | BV84: 0.06129054907 | BW84: -0.2136974062 | BX84: -0.2734681854 | BY84: 0.09298801927 | BZ84: 0.02070754703 | CA84: 0.1209212571 | CB84: -0.2662597459 | CC84: 0.1617216268 | CD84: -0.001315908189 | CE84: -0.04696070494 | CF84: -0.1300611805 | CG84: 0.00390906895 | CH84: 0.1906047169 | CI84: -0.01115071533 | CJ84: 0.1521886335 | CK84: -0.1047362698 | CL84: 0.04388575514 | CM84: 0.03155954042 | CN84: 0.05811208327 | CO84: 0.08154712815 | CP84: -0.1177867652 | CQ84: 0.09881048717 | CR84: 0.09963224935 | CS84: -0.2658174091 | CT84: -0.04266483048 | CU84: -0.1067323976 | CV84: 0.0259271555 | CW84: -0.01032980668 | CX84: -0.06334557215 | CY84: -0.05274059024 | CZ84: -0.08486699377 | DA84: 0.2581805262 | DB84: -0.03266773287 | DC84: 0.01141983103 | DD84: -0.0247119947 | DE84: 0.02544973746 | DF84: 0.08429191696 | DG84: 0.05342898735 | DH84: -0.07831632909 | DI84: 0.01887703312 | DJ84: -0.02526101011 | DK84: 0.02890559408 | DL84: -0.1913565739 | DM84: 0.05928481715 | DN84: -0.0410288911 | DO84: 0.04137715886 | DP84: 0.00239201528 | DQ84: 0.005906188346 | DR84: 0.07513007064 | DS84: 0.1326390667 | DT84: -0.08375231689 | DU84: -0.05313316524 | DV84: -0.04833895246 | DW84: 0.2363022037 | DX84: -0.06907616649 | DY84: -0.03182619293 | DZ84: 0.1220227245 | EA84: -0.01878703608 | EB84: 0.159916237 | EC84: -0.02504958407 | ED84: 0.03079177593 | EE84: -0.01612570485 | EF84: 0.03258147942 | EG84: 0.03415725684 | EH84: 0.01950520914 | EI84: -0.07011550738 | EJ84: 0.03502073886 | EK84: -0.03683474244 | EL84: 0.02648559498 | EM84: -0.09678510164 | EN84: -0.07926529341 | EO84: 0.06860867468 | EP84: -0.01236522318 | EQ84: -0.01109487205 | ER84: -0.03668165409 | ES84: -0.01765825888 | ET84: -0.1323166548 | EU84: 0.07188582355 | EV84: 0.03035393775 | EW84: -0.06542779503 | EX84: -0.0816791503 | EY84: -0.0390998725 | EZ84: 0.03010062219 | FA84: 0.001388351482 | FB84: -0.01186510582 | FC84: 0.08192010956 | FD84: 0.0002604789422 | FE84: -0.4967193146 | FF84: -0.08872136067 | FG84: -0.004283166059 | FH84: 0.1474451468 | FJ84: 80 | FK84: 1.395335238 | FM84: 80 | FN84: 0.4586272573
O85: 80 | P85: -1.39810152 | R85: 80 | S85: -0.002766281687 | V85: 80 | W85: -0.002766274631 | Y85: 80 | Z85: -3.420024474 | AB85: 80 | AC85: -2.961397217 | AF85: 80 | AG85: -0.9946588879 | AH85: -0.9946588879 | AJ85: 40 | AK85: -0.2272529452 | AL85: 0.04057039564 | AM85: -0.07368330795 | AN85: 0.03461191602 | AO85: -0.09508922589 | AP85: 0.19520714 | AQ85: -0.05570763349 | AR85: 0.06659144192 | AS85: 0.08561392735 | AT85: 0.01394970526 | AU85: -0.2235652691 | AV85: 0.2758824894 | AW85: -0.05479085886 | AX85: -0.447651555 | AY85: -0.4699505795 | AZ85: -0.1473625415 | BA85: 0.04424657115 | BB85: -0.08805209912 | BC85: 0.04833753534 | BD85: 0.02779616286 | BE85: -0.08363223885 | BF85: -0.1966909186 | BG85: 0.1412805667 | BH85: -0.02233201585 | BI85: 0.04715206749 | BJ85: -0.01605006636 | BK85: -0.05175153313 | BL85: 0.008876600468 | BM85: -0.08500580227 | BN85: 0.09544271189 | BO85: 0.1014947044 | BP85: 0.02186695294 | BQ85: 0.03883988151 | BR85: -0.08566072254 | BS85: 0.5594100695 | BT85: -0.007361690813 | BU85: -0.1141502065 | BV85: 0.01313055077 | BW85: 0.006132813512 | BX85: 0.04898755582 | BY85: -0.04705399503 | BZ85: -0.07471801795 | CA85: 0.22998494 | CB85: -0.07910896701 | CC85: 0.5131338361 | CD85: -0.1056584268 | CE85: 0.3260163859 | CF85: -0.141924622 | CG85: -0.001232775421 | CH85: -0.1138215638 | CI85: 0.1605729318 | CJ85: 0.06461288944 | CK85: -0.2629446422 | CL85: 0.06749996179 | CM85: -0.1868276288 | CN85: -0.00623842904 | CO85: 0.489033498 | CP85: -0.402028201 | CQ85: 0.03680451239 | CR85: -0.3950259537 | CS85: -0.07680778006 | CT85: -0.1850603009 | CU85: 0.2052138291 | CV85: 0.3216668684 | CW85: -0.07957672482 | CX85: -0.2346142387 | CY85: -0.07394617422 | CZ85: 0.07921409178 | DA85: 0.2738561978 | DB85: -0.2921366183 | DC85: 0.02200367474 | DD85: 0.03567541029 | DE85: 0.2691974239 | DF85: 0.1622961975 | DG85: 0.01222449531 | DH85: -0.1009103096 | DI85: 0.4845725629 | DJ85: 0.3090385391 | DK85: 0.1096542187 | DL85: 0.1060472512 | DM85: -0.3550934115 | DN85: 0.2655704949 | DO85: 0.06165649654 | DP85: -0.09280267893 | DQ85: 0.1113734277 | DR85: -0.1290111021 | DS85: 0.0653959763 | DT85: 0.5024271971 | DU85: -0.04901660748 | DV85: 0.05126926597 | DW85: 0.3921450499 | DX85: -0.08417327107 | DY85: -0.04148665794 | DZ85: 0.1227375229 | EA85: 0.04017764708 | EB85: 0.2112832498 | EC85: -0.002646051618 | ED85: -0.03013328928 | EE85: -0.003041826822 | EF85: -0.004350021989 | EG85: -0.04727462296 | EH85: -0.05435723254 | EI85: -0.002765412331 | EJ85: -0.09805064345 | EK85: -0.07934523627 | EL85: 0.07786188005 | EM85: -0.001495544503 | EN85: -0.0885261012 | EO85: 0.06382850012 | EP85: -0.001025451633 | EQ85: 0.1332525345 | ER85: -0.1903815294 | ES85: -0.1404532043 | ET85: -0.02217137627 | EU85: 0.3219387179 | EV85: 0.1103042679 | EW85: 0.08384541515 | EX85: -0.5047610322 | EY85: 0.022930176 | EZ85: 0.1386420477 | FA85: 0.2722395166 | FB85: -0.3303071317 | FC85: -0.1495104685 | FD85: -0.2099212603 | FE85: 0.3698117264 | FF85: 0.1464690054 | FG85: 0.3361833773 | FH85: 0.1954358984 | FJ85: 81 | FK85: 0.01696362228 | FM85: 81 | FN85: 0.1998724339
O86: 81 | P86: 0.09386550579 | R86: 81 | S86: 0.1108291281 | V86: 81 | W86: 0.1103775716 | Y86: 81 | Z86: 2.651201348 | AB86: 81 | AC86: 2.851073782 | AF86: 81 | AG86: 0.9933446458 | AH86: 0.9933446458 | AJ86: 41 | AK86: -0.124020309 | AL86: 0.07999028388 | AM86: -0.01055047573 | AN86: 0.0876014083 | AO86: 0.07794241664 | AP86: 0.04224015555 | AQ86: 0.1204459059 | AR86: -0.1329769472 | AS86: 0.006502684537 | AT86: 0.02332044616 | AU86: -0.2146046239 | AV86: 0.233048212 | AW86: 0.05551474822 | AX86: -0.2325334213 | AY86: -0.1328301101 | AZ86: -0.154936948 | BA86: -0.1070345307 | BB86: -0.02449811022 | BC86: -0.0827718552 | BD86: 0.0621484705 | BE86: 0.08476153217 | BF86: 0.01233604121 | BG86: 0.001410560917 | BH86: -0.2683076403 | BI86: 0.02497730481 | BJ86: 0.09111648033 | BK86: -0.007745487941 | BL86: -0.07510887078 | BM86: -0.003154779667 | BN86: -0.07457060964 | BO86: 0.06988105119 | BP86: 0.007827684856 | BQ86: -0.04917151798 | BR86: 0.006856782259 | BS86: 0.09867118545 | BT86: -0.008870916357 | BU86: 0.1085567859 | BV86: 0.04869072411 | BW86: 0.1544501453 | BX86: 0.1447998956 | BY86: -0.01515568505 | BZ86: -0.1018885267 | CA86: 0.04585364103 | CB86: -0.01837516085 | CC86: 0.1964411891 | CD86: -0.08116338838 | CE86: 0.1547530517 | CF86: 0.09591898306 | CG86: 0.03506532109 | CH86: -0.2050885556 | CI86: 0.001341670923 | CJ86: -0.08411895745 | CK86: 0.03607242897 | CL86: 0.009342488665 | CM86: -0.1294065594 | CN86: -0.08130731231 | CO86: -0.03923299332 | CP86: -0.2554673091 | CQ86: -0.0471717746 | CR86: -0.2657942685 | CS86: 0.1867683817 | CT86: -0.07931382875 | CU86: -0.02788122194 | CV86: 0.1356067465 | CW86: 0.1152093483 | CX86: -0.1602711298 | CY86: -0.02229693457 | CZ86: -0.12904908 | DA86: 0.1408263343 | DB86: -0.1182305788 | DC86: 0.07738855628 | DD86: 0.07286491996 | DE86: 0.2813743988 | DF86: 0.2154331045 | DG86: -0.08590492645 | DH86: -0.1194607181 | DI86: 0.280818768 | DJ86: 0.04562649713 | DK86: -0.1138951878 | DL86: -0.0294710197 | DM86: 0.0665304229 | DN86: 0.004920841723 | DO86: 0.02395031717 | DP86: -0.05497246394 | DQ86: -0.2153320994 | DR86: -0.1013296311 | DS86: 0.03340640213 | DT86: -0.1042863612 | DU86: 0.002579487383 | DV86: 0.004347686619 | DW86: 0.08790855123 | DX86: -0.09632613576 | DY86: 0.1025573836 | DZ86: -0.1515690853 | EA86: -0.06997991772 | EB86: 0.04268284468 | EC86: 0.07421774095 | ED86: 0.01036918087 | EE86: 0.01425077715 | EF86: 0.07962666958 | EG86: -0.01775448866 | EH86: 0.01721413767 | EI86: 0.144979492 | EJ86: -0.07076268696 | EK86: -0.06953245852 | EL86: 0.01457138888 | EM86: 0.08686957447 | EN86: -0.08108319211 | EO86: -0.1204112781 | EP86: -0.0645907246 | EQ86: -0.0895253967 | ER86: 0.4168406891 | ES86: -0.05790026385 | ET86: 0.08370238088 | EU86: 0.1443022736 | EV86: -0.03248009768 | EW86: 0.04104859452 | EX86: -0.2313367231 | EY86: 0.06413843761 | EZ86: 0.1600094713 | FA86: -0.06239514914 | FB86: -0.2039173059 | FC86: 0.1286994773 | FD86: -0.3044381844 | FE86: 0.3296880275 | FF86: 0.1734014889 | FG86: 0.08579597933 | FH86: 0.1832484452 | FJ86: 82 | FK86: -0.1666878512 | FM86: 82 | FN86: 0.8831122805
O87: 82 | P87: -3.541085108 | R87: 82 | S87: -3.707772959 | V87: 82 | W87: -0.9987970764 | Y87: 82 | Z87: -3.403970822 | AB87: 82 | AC87: -2.520858542 | AF87: 82 | AG87: -0.9871577113 | AH87: -0.9871577113 | AJ87: 42 | AK87: -0.0002400190447 | AL87: -0.003263072709 | AM87: 0.03064725815 | AN87: -0.02408685694 | AO87: -0.05629414788 | AP87: -0.2933160039 | AQ87: -0.1896258894 | AR87: 0.1160565755 | AS87: -0.1003666702 | AT87: 0.06415729982 | AU87: 0.1441413396 | AV87: -0.2603360448 | AW87: -0.02140981625 | AX87: -0.01464290429 | AY87: 0.2032517062 | AZ87: 0.1818789108 | BA87: -0.01810444187 | BB87: -0.0548079098 | BC87: 0.1179662627 | BD87: -0.01296278721 | BE87: -0.09431705584 | BF87: -0.2832224079 | BG87: -0.04910999075 | BH87: 0.03712579841 | BI87: -0.01255381266 | BJ87: -0.1185851322 | BK87: -0.09260121064 | BL87: 0.02870122103 | BM87: 0.1745759339 | BN87: -0.006488226016 | BO87: 0.02217808868 | BP87: 0.1093498364 | BQ87: -0.04383481178 | BR87: 0.0944454391 | BS87: -0.1122643021 | BT87: 0.04078638246 | BU87: 0.04680773539 | BV87: 0.06109060742 | BW87: 0.04105458921 | BX87: -0.07296477099 | BY87: 0.04728528342 | BZ87: 0.03922520275 | CA87: -0.02581879998 | CB87: 0.4414832074 | CC87: -0.06100480886 | CD87: 0.0210248745 | CE87: -0.09553260852 | CF87: 0.2127425642 | CG87: -0.05160496107 | CH87: 0.2409995497 | CI87: -0.2307387213 | CJ87: 0.1133250047 | CK87: 0.1646974002 | CL87: -0.1917844725 | CM87: 0.2660035172 | CN87: -0.06849469098 | CO87: 0.09261664196 | CP87: -0.1517135774 | CQ87: 0.1379782297 | CR87: 0.01349606268 | CS87: -0.01031909951 | CT87: 0.0848166878 | CU87: -0.008063126883 | CV87: -0.2481649318 | CW87: -0.01696989159 | CX87: -0.00315964813 | CY87: 0.01580075048 | CZ87: -0.06023867679 | DA87: 0.1916726713 | DB87: 0.1720715554 | DC87: 0.1150168392 | DD87: -0.08254768884 | DE87: -0.002496660597 | DF87: -0.1686456063 | DG87: 0.07649271633 | DH87: 0.02685435652 | DI87: -0.06609918186 | DJ87: -0.2602037305 | DK87: 0.09333652591 | DL87: -0.08460934973 | DM87: 0.3557074949 | DN87: 0.03626118816 | DO87: -0.1745719754 | DP87: -0.0168998919 | DQ87: 0.1444257994 | DR87: -0.06651549646 | DS87: -0.08862407264 | DT87: -0.1839513177 | DU87: 0.05045151572 | DV87: -0.08569931004 | DW87: 0.1399420899 | DX87: -0.06223737717 | DY87: -0.05383897853 | DZ87: 0.05137563145 | EA87: -0.06421843277 | EB87: -0.1138542912 | EC87: 0.04590180391 | ED87: -0.2229829191 | EE87: -0.03152405951 | EF87: -0.006951847257 | EG87: -0.01712746215 | EH87: 0.05304158764 | EI87: -0.07393977497 | EJ87: -0.03496216844 | EK87: 0.03793595284 | EL87: -0.0319858376 | EM87: 0.01587056093 | EN87: -0.08942686825 | EO87: 0.0578746134 | EP87: 0.01147099854 | EQ87: -0.132285116 | ER87: 0.1403993903 | ES87: 0.05721347388 | ET87: -0.09363924311 | EU87: -0.004735975275 | EV87: -0.004762731913 | EW87: 0.002574736366 | EX87: 0.03317940103 | EY87: -0.01238408286 | EZ87: -0.01758966287 | FA87: -0.1371575147 | FB87: 0.1950037452 | FC87: 0.1020540255 | FD87: 0.283438165 | FE87: 0.1594981321 | FF87: -0.1837386174 | FG87: -0.2048912382 | FH87: -0.1479526085 | FJ87: 83 | FK87: -0.1257481212 | FM87: 83 | FN87: -0.05880116291
O88: 83 | P88: -4.674015046 | R88: 83 | S88: -4.799763167 | V88: 83 | W88: -0.9998644875 | Y88: 83 | Z88: -0.7601556174 | AB88: 83 | AC88: -0.8189567803 | AF88: 83 | AG88: -0.6745016706 | AH88: -0.6745016706 | AJ88: 43 | AK88: -0.02325830219 | AL88: 0.04911231527 | AM88: -0.06039176507 | AN88: 0.002544788465 | AO88: -0.04522945757 | AP88: -0.2225021952 | AQ88: -0.1675215251 | AR88: -0.06038787042 | AS88: -0.108349448 | AT88: -0.06532086414 | AU88: 0.04321000738 | AV88: 0.0171214078 | AW88: 0.008887391584 | AX88: 0.05004452115 | AY88: 0.3812207701 | AZ88: 0.08268348737 | BA88: -0.1036742124 | BB88: 0.06033196534 | BC88: -0.02242863861 | BD88: 0.03853381922 | BE88: -0.02210506744 | BF88: 0.2188123593 | BG88: -0.1099153127 | BH88: -0.006510428102 | BI88: -0.01552154914 | BJ88: 0.008694082818 | BK88: 0.01070615759 | BL88: -0.01010118364 | BM88: 0.1966251075 | BN88: 0.08920635139 | BO88: -0.07293003909 | BP88: -0.00348808977 | BQ88: 0.02693412745 | BR88: 0.04572915547 | BS88: -0.2823078016 | BT88: 0.02772923843 | BU88: -0.01616429635 | BV88: 0.1102283431 | BW88: 0.1692937223 | BX88: -0.194501617 | BY88: -0.01647350498 | BZ88: -0.09171656618 | CA88: 0.0266663744 | CB88: 0.08937777698 | CC88: -0.1147497974 | CD88: -0.1930290963 | CE88: -0.2250843584 | CF88: -0.08356834706 | CG88: 0.1045319096 | CH88: 0.130818436 | CI88: -0.05585359439 | CJ88: -0.1801312742 | CK88: 0.01217438955 | CL88: 0.03136997848 | CM88: -0.0130983403 | CN88: 0.1064041064 | CO88: -0.07791341528 | CP88: 0.09267536423 | CQ88: 0.01875701488 | CR88: -0.002193290621 | CS88: 0.02120745618 | CT88: 0.03056157894 | CU88: -0.1675159374 | CV88: 0.09775692358 | CW88: -0.02991264195 | CX88: -0.0394454806 | CY88: -0.07321731443 | CZ88: -0.06666677574 | DA88: -0.08748174479 | DB88: 0.1217573578 | DC88: -0.07326961635 | DD88: 0.03542481022 | DE88: 0.07161039284 | DF88: -0.05217963458 | DG88: 0.01595088837 | DH88: -0.05067939573 | DI88: -0.06111680572 | DJ88: -0.2211817111 | DK88: 0.1182283719 | DL88: 0.1099723337 | DM88: -0.03152196539 | DN88: -0.04383251935 | DO88: -0.004073137651 | DP88: -0.01456059183 | DQ88: 0.339157968 | DR88: 0.09194374381 | DS88: -0.05811550162 | DT88: 0.05474444922 | DU88: 0.02460673446 | DV88: 0.05774158373 | DW88: -0.1252233104 | DX88: 0.08531591836 | DY88: 0.0965772719 | DZ88: 0.04375069653 | EA88: -0.09729943974 | EB88: 0.1414137868 | EC88: -0.03499136656 | ED88: -0.0198977911 | EE88: 0.1730862258 | EF88: 0.1006058468 | EG88: -0.08760875769 | EH88: 0.05198162595 | EI88: -0.09624855725 | EJ88: -0.04514533618 | EK88: 0.04966108187 | EL88: -0.0906561499 | EM88: 0.04036140176 | EN88: -0.06707365156 | EO88: -0.03673472007 | EP88: 0.05578977857 | EQ88: 0.001530058244 | ER88: 0.1727294339 | ES88: -0.0355982172 | ET88: -0.03736424129 | EU88: -0.1034473846 | EV88: 0.06467741458 | EW88: 0.02075285223 | EX88: -0.1990776693 | EY88: -0.06280514836 | EZ88: -0.05167470389 | FA88: -0.1469761365 | FB88: 0.09031797565 | FC88: 0.2850598817 | FD88: 0.06022724046 | FE88: -0.03270150741 | FF88: -0.4222342545 | FG88: 0.01939192804 | FH88: 0.08530221595 | FJ88: 84 | FK88: -0.04040868255 | FM88: 84 | FN88: 0.04913541594
O89: 84 | P89: -0.9930610103 | R89: 84 | S89: -1.033469693 | V89: 84 | W89: -0.775296183 | Y89: 84 | Z89: -1.013339704 | AB89: 84 | AC89: -0.9642042882 | AF89: 84 | AG89: -0.7461463374 | AH89: -0.7461463374 | AJ89: 44 | AK89: 0.1140504589 | AL89: -0.0973039035 | AM89: -0.1326406064 | AN89: -0.09175179482 | AO89: -0.08987595614 | AP89: -0.2810773655 | AQ89: -0.2322209328 | AR89: 0.3899469146 | AS89: 0.07760749409 | AT89: 0.02540423511 | AU89: -0.01894523617 | AV89: -0.2268281301 | AW89: 0.01288585379 | AX89: -0.1125590305 | AY89: -0.1912192275 | AZ89: 0.3019904156 | BA89: 0.1185832969 | BB89: 0.0494287391 | BC89: 0.0003105427338 | BD89: 0.05703842277 | BE89: 0.09163783923 | BF89: -0.03436526769 | BG89: 0.195081516 | BH89: 0.1444796944 | BI89: 0.1427779208 | BJ89: 0.06351134038 | BK89: 0.02245441159 | BL89: 0.08695821026 | BM89: -0.1137025259 | BN89: -0.009375264427 | BO89: -0.1841165066 | BP89: -0.1504963658 | BQ89: 0.3304633753 | BR89: 0.05625690091 | BS89: 0.1276009878 | BT89: 0.09459290296 | BU89: 0.009584141856 | BV89: 0.03768627453 | BW89: -0.1290920493 | BX89: -0.09247403957 | BY89: -0.02197372955 | BZ89: 0.0158072157 | CA89: -0.2231085989 | CB89: 0.06339926069 | CC89: 0.1443213654 | CD89: 0.06057148926 | CE89: -0.3414141252 | CF89: 0.02211241702 | CG89: -0.06031963923 | CH89: 0.1055667983 | CI89: 0.1436401344 | CJ89: 0.4075425065 | CK89: -0.2233091998 | CL89: -0.0624878812 | CM89: 0.05527223967 | CN89: 0.04255455351 | CO89: -0.02035209382 | CP89: 0.1898808097 | CQ89: 0.1042583382 | CR89: 0.2232022187 | CS89: -0.1384351352 | CT89: -0.1522320616 | CU89: -0.2994533287 | CV89: 0.006483290526 | CW89: -0.0608611972 | CX89: -0.1900572917 | CY89: -0.1188266213 | CZ89: -0.05647245744 | DA89: -0.3243659605 | DB89: -0.2071079444 | DC89: -0.02096799261 | DD89: -0.09761689102 | DE89: -0.3736388121 | DF89: -0.09277250802 | DG89: 0.01907553701 | DH89: -0.1071611495 | DI89: -0.03317366058 | DJ89: 0.1609954623 | DK89: 0.1814989136 | DL89: -0.3630751952 | DM89: -0.1591865732 | DN89: -0.1261809355 | DO89: 0.0207411196 | DP89: -0.07534127038 | DQ89: -0.2368405995 | DR89: 0.04161775112 | DS89: 0.2848212436 | DT89: -0.2883948141 | DU89: 0.06607863976 | DV89: -0.02419062079 | DW89: 0.4656363744 | DX89: 0.0186227613 | DY89: 0.09934909507 | DZ89: 0.2370690751 | EA89: 0.1050361047 | EB89: -0.148782954 | EC89: -0.04988867046 | ED89: -0.195833085 | EE89: 0.07110657159 | EF89: -0.03045033558 | EG89: 0.1069014496 | EH89: 0.002702642385 | EI89: 0.1751897337 | EJ89: -0.2899618045 | EK89: -0.005604277339 | EL89: 0.009595966005 | EM89: 0.0184841087 | EN89: 0.223868069 | EO89: -0.08873274482 | EP89: 0.07812793918 | EQ89: 0.04266375229 | ER89: -0.1055433063 | ES89: -0.04836528093 | ET89: 0.07972165308 | EU89: 0.1770342205 | EV89: 0.03250476012 | EW89: -0.08455145984 | EX89: 0.193303093 | EY89: 0.052544749 | EZ89: -0.2558298428 | FA89: -0.02831113862 | FB89: -0.1864363917 | FC89: -0.1136607832 | FD89: 0.1306644969 | FE89: -0.2741924682 | FF89: 0.08571838717 | FG89: 0.3471762369 | FH89: 0.07998764514 | FJ89: 85 | FK89: -0.07315119498 | FM89: 85 | FN89: 0.09906085411
O90: 85 | P90: 0.02432541733 | R90: 85 | S90: -0.04882577765 | V90: 85 | W90: -0.0487870151 | Y90: 85 | Z90: 2.710674499 | AB90: 85 | AC90: 2.809735353 | AF90: 85 | AG90: 0.9927730886 | AH90: 0.9927730886 | AJ90: 45 | AK90: 0.1933008261 | AL90: -0.002085874567 | AM90: 0.06472199914 | AN90: 0.1025869886 | AO90: 0.06467151311 | AP90: -0.1677708056 | AQ90: -0.1373480254 | AR90: 0.01793811364 | AS90: 0.06634339156 | AT90: -0.05626182706 | AU90: 0.1586093529 | AV90: -0.09683701231 | AW90: -0.1285929052 | AX90: -0.008903397034 | AY90: 0.01481235143 | AZ90: -0.01218759073 | BA90: -0.113259062 | BB90: -0.08906955597 | BC90: 0.01408567221 | BD90: 0.01371397963 | BE90: -0.06932082584 | BF90: 0.2268930537 | BG90: 0.1810899504 | BH90: -0.1443926317 | BI90: 0.04032299577 | BJ90: 0.002866651865 | BK90: 0.07393583879 | BL90: -0.09059278273 | BM90: 0.1682012748 | BN90: 0.07231418389 | BO90: 0.0643953094 | BP90: -0.07011562552 | BQ90: 0.119685335 | BR90: -0.0005484253682 | BS90: -0.06019926629 | BT90: -0.07233044885 | BU90: -0.08789997978 | BV90: 0.01997720055 | BW90: 0.3483141725 | BX90: -0.3444963793 | BY90: 0.02329298223 | BZ90: -0.01411280052 | CA90: -0.009627234182 | CB90: -0.02466723382 | CC90: -0.1373753707 | CD90: -0.3446113284 | CE90: -0.03531265496 | CF90: 0.2399868449 | CG90: 0.09588108537 | CH90: 0.1671415449 | CI90: -0.1832694708 | CJ90: 0.01409081974 | CK90: 0.1336835604 | CL90: -0.04573604058 | CM90: 0.0459786639 | CN90: 0.0618008602 | CO90: 0.05171459583 | CP90: 0.2753635648 | CQ90: 0.06601708243 | CR90: 0.00540213158 | CS90: -0.1230218348 | CT90: 0.03444495606 | CU90: -0.3761775789 | CV90: -0.08188605538 | CW90: -0.02713670055 | CX90: 0.07408048365 | CY90: 0.1287538772 | CZ90: -0.09100875818 | DA90: 0.03651011154 | DB90: 0.2507541103 | DC90: -0.05930557249 | DD90: 0.00644365559 | DE90: -0.01990105366 | DF90: -0.1787104658 | DG90: 0.03806475147 | DH90: 0.112226317 | DI90: 0.005329173145 | DJ90: -0.3429928758 | DK90: -0.05803784967 | DL90: -0.1472202967 | DM90: 0.04861216309 | DN90: 0.07143310909 | DO90: -0.2583502222 | DP90: -0.06446980743 | DQ90: 0.07414905983 | DR90: 0.01203162505 | DS90: 0.2775932658 | DT90: -0.1672966842 | DU90: 0.03224920631 | DV90: -0.04060365641 | DW90: -0.0817818811 | DX90: -0.004973738156 | DY90: 0.01069327267 | DZ90: 0.08337896292 | EA90: 0.0166019154 | EB90: 0.0232448904 | EC90: -0.09982686302 | ED90: 0.05335142074 | EE90: 0.2546207099 | EF90: 0.02752188292 | EG90: -0.08542191855 | EH90: -0.07738064104 | EI90: 0.1029217847 | EJ90: 0.0003841535446 | EK90: -0.09437636048 | EL90: -0.1132975404 | EM90: 0.09828832368 | EN90: -0.05191204374 | EO90: -0.1034039233 | EP90: 0.03922403062 | EQ90: 0.05394521225 | ER90: -0.5802862176 | ES90: -0.03127019416 | ET90: -0.03518900562 | EU90: -0.1674111805 | EV90: 0.01990025303 | EW90: 0.1235035886 | EX90: 0.2500033033 | EY90: -0.1083277508 | EZ90: 0.06876069213 | FA90: -0.07444348365 | FB90: 0.1889934704 | FC90: 0.1609957299 | FD90: -0.0331927906 | FE90: -0.4454905172 | FF90: -0.0636559612 | FG90: -0.04654475965 | FH90: -0.1874282125 | FJ90: 86 | FK90: 0.9590189794 | FM90: 86 | FN90: -0.02929628652
O91: 86 | P91: -6.144893151 | R91: 86 | S91: -5.185874172 | V91: 86 | W91: -0.9999373929 | Y91: 86 | Z91: 0.9046211674 | AB91: 86 | AC91: 0.8753248808 | AF91: 86 | AG91: 0.7040694743 | AH91: 0.7040694743 | AJ91: 46 | AK91: 0.09987557463 | AL91: -0.06769067889 | AM91: 0.04460952804 | AN91: -0.002081473063 | AO91: -0.02037780913 | AP91: -0.03816222633 | AQ91: -0.05088567555 | AR91: 0.03607420495 | AS91: 0.07721809267 | AT91: -0.002336100126 | AU91: -0.04337301055 | AV91: 0.08419264241 | AW91: -0.02962496671 | AX91: 0.1643271697 | AY91: 0.04993445274 | AZ91: 0.01869583058 | BA91: 0.09371169565 | BB91: 0.0377561251 | BC91: 0.007829320254 | BD91: 0.1404644714 | BE91: 0.08481955499 | BF91: -0.2493542362 | BG91: 0.1107753322 | BH91: 0.1629672857 | BI91: 0.07363809895 | BJ91: 0.01892240555 | BK91: 0.01266462674 | BL91: 0.01995731317 | BM91: 0.01346482898 | BN91: -0.01377796131 | BO91: -0.01767129597 | BP91: 0.005115983791 | BQ91: 0.07780812152 | BR91: -0.04110661164 | BS91: 0.00194062757 | BT91: 0.003348852829 | BU91: 0.09415498193 | BV91: -0.05975691062 | BW91: 0.2405213856 | BX91: -0.08591245849 | BY91: 0.006866198388 | BZ91: -0.05426511141 | CA91: -0.006241229255 | CB91: 0.06702933682 | CC91: 0.2723963826 | CD91: -0.1184870564 | CE91: -0.01409694591 | CF91: 0.3390608264 | CG91: -0.04354563939 | CH91: 0.05520882347 | CI91: 0.0004695793719 | CJ91: 0.03818229843 | CK91: 0.005292586005 | CL91: 0.07231008769 | CM91: -0.1329012777 | CN91: -0.01733003608 | CO91: -0.1621364516 | CP91: -0.5286415221 | CQ91: 0.1563592569 | CR91: 0.05025145949 | CS91: -0.02035191389 | CT91: -0.1743241173 | CU91: 0.2065249669 | CV91: 0.1632507278 | CW91: 0.01191612803 | CX91: 0.07868419252 | CY91: 0.06063185774 | CZ91: -0.03176158254 | DA91: 0.05226363887 | DB91: 0.1922022843 | DC91: 0.02157583925 | DD91: -0.003693184617 | DE91: -0.1091018413 | DF91: -0.2165351586 | DG91: 0.06923321736 | DH91: 0.02055564081 | DI91: 0.0465758848 | DJ91: -0.06380858389 | DK91: 0.03088445903 | DL91: -0.2279783462 | DM91: 0.05752488775 | DN91: -0.04460066857 | DO91: -0.2017331194 | DP91: 0.007193176364 | DQ91: -0.12777133 | DR91: 0.04931321089 | DS91: 0.01998347179 | DT91: 0.04024840437 | DU91: 0.01268338529 | DV91: -0.007887096662 | DW91: 0.1275320325 | DX91: -0.005672640505 | DY91: 0.09438529621 | DZ91: 0.1239860789 | EA91: -0.08562090226 | EB91: -0.1109010584 | EC91: -0.001709796639 | ED91: -0.12809653 | EE91: 0.0207884413 | EF91: -0.01759846468 | EG91: -0.07506219051 | EH91: -0.02086025308 | EI91: -0.1246477986 | EJ91: -0.01386700708 | EK91: -0.01396295088 | EL91: 0.0738700662 | EM91: 0.05594486463 | EN91: 0.12227123 | EO91: 0.08857461588 | EP91: 0.1474502481 | EQ91: -0.06988092914 | ER91: 0.09457352163 | ES91: -0.03482774573 | ET91: 0.01056859429 | EU91: -0.09845523692 | EV91: 0.005621799735 | EW91: -0.05714708927 | EX91: 0.1095863339 | EY91: -0.06012815369 | EZ91: -0.0875641903 | FA91: 0.01932229915 | FB91: 0.07335065339 | FC91: -0.0003703973123 | FD91: -0.03697228582 | FE91: -0.108736347 | FF91: -0.1555825564 | FG91: -0.1042405672 | FH91: -0.040508525 | FJ91: 87 | FK91: 0.1813335572 | FM91: 87 | FN91: -0.8565762887
O92: 87 | P92: -1.819701855 | R92: 87 | S92: -1.638368298 | V92: 87 | W92: -0.9272441185 | Y92: 87 | Z92: 5.690619822 | AB92: 87 | AC92: 4.834043534 | AF92: 87 | AG92: 0.9998734665 | AH92: 0.9998734665 | AJ92: 47 | AK92: 0.08076471737 | AL92: -0.05353363505 | AM92: -0.06031303121 | AN92: 0.1068157763 | AO92: 0.07650197764 | AP92: 0.3843267778 | AQ92: 0.2255504776 | AR92: 0.094746641 | AS92: -0.006804311956 | AT92: -0.01089430719 | AU92: 0.009588819983 | AV92: 0.4850625576 | AW92: 0.063158324 | AX92: -0.01557245741 | AY92: -0.03055859442 | AZ92: -0.09069006681 | BA92: 0.1008071895 | BB92: 0.0303690506 | BC92: 0.03897915181 | BD92: 0.1075866684 | BE92: -0.09869731443 | BF92: -0.1421393613 | BG92: -0.001284488421 | BH92: 0.0184083323 | BI92: -0.041759601 | BJ92: 0.003639478767 | BK92: 0.1290612639 | BL92: -0.01208804028 | BM92: 0.006896542135 | BN92: 0.09197439386 | BO92: 0.04567600497 | BP92: -0.01466254135 | BQ92: -0.124471536 | BR92: 0.08791113645 | BS92: -0.1631377524 | BT92: 0.02756032217 | BU92: -0.1429045329 | BV92: 0.01167958319 | BW92: -0.1700613435 | BX92: 0.1996007493 | BY92: 0.1045049402 | BZ92: 0.04695901091 | CA92: -0.01215874078 | CB92: -0.03042364635 | CC92: -0.012543201 | CD92: -0.05349690954 | CE92: -0.03769909573 | CF92: -0.07639457888 | CG92: -0.07632260252 | CH92: -0.08810114026 | CI92: 0.07795583227 | CJ92: -0.03118895732 | CK92: -0.009637389999 | CL92: -0.08210293652 | CM92: 0.09352265326 | CN92: 0.002498091354 | CO92: -0.003755239302 | CP92: 0.06585627287 | CQ92: -0.02574775589 | CR92: -0.006551122512 | CS92: 0.0930470292 | CT92: 0.06057551412 | CU92: 0.3744090132 | CV92: -0.09496752968 | CW92: -0.03594656891 | CX92: -0.245862412 | CY92: 0.08381721169 | CZ92: 0.05821782177 | DA92: -0.01830626148 | DB92: -0.04917422164 | DC92: 0.08600967593 | DD92: 0.0240175612 | DE92: -0.1284897394 | DF92: 0.199711591 | DG92: -0.07051851298 | DH92: 0.1044454708 | DI92: -0.04650283896 | DJ92: 0.2735913561 | DK92: -0.06946457352 | DL92: 0.01792328953 | DM92: -0.04471856541 | DN92: 0.0868607087 | DO92: 0.02028376601 | DP92: -0.05029643242 | DQ92: -0.1859928681 | DR92: -0.03623448834 | DS92: -0.1924065059 | DT92: -0.0648242039 | DU92: 0.05159816021 | DV92: 0.08218566602 | DW92: -0.01039580072 | DX92: -0.004308847968 | DY92: -0.01393544453 | DZ92: 0.08590460371 | EA92: 0.07392389358 | EB92: -0.0551831399 | EC92: 0.0108948201 | ED92: 0.02451078777 | EE92: -0.1667032404 | EF92: 0.03925320623 | EG92: 0.01290865332 | EH92: 0.04312963389 | EI92: 0.02936672853 | EJ92: 0.06333527261 | EK92: 0.001450807657 | EL92: -0.08949531381 | EM92: -0.07129946035 | EN92: -0.01540240734 | EO92: -0.06619985577 | EP92: 0.1784441094 | EQ92: -0.05455591393 | ER92: -0.1386948161 | ES92: 0.003706119699 | ET92: 0.01127979506 | EU92: 0.1339538382 | EV92: 0.09155058769 | EW92: 0.1084187227 | EX92: -0.02295771849 | EY92: -0.05534467021 | EZ92: -0.06452997325 | FA92: -0.1104395133 | FB92: -0.02938566241 | FC92: -0.1983499747 | FD92: 0.02544148079 | FE92: 0.004882886166 | FF92: -0.2613152186 | FG92: -0.01082267428 | FH92: -0.1391961207 | FJ92: 88 | FK92: -0.2492952979 | FM92: 88 | FN92: 0.7284992717
O93: 88 | P93: 1.227841118 | R93: 88 | S93: 0.97854582 | V93: 88 | W93: 0.7524357127 | Y93: 88 | Z93: -4.891691103 | AB93: 88 | AC93: -4.163191831 | AF93: 88 | AG93: -0.9995160256 | AH93: -0.9995160256 | AJ93: 48 | AK93: -0.1591217958 | AL93: 0.09219593719 | AM93: 0.01812488229 | AN93: 0.01643409956 | AO93: 0.05274671078 | AP93: 0.3146878722 | AQ93: 0.4329852685 | AR93: -0.158454864 | AS93: -0.07527369248 | AT93: 0.004984780891 | AU93: -0.07266320555 | AV93: 0.2821168832 | AW93: 0.0159383129 | AX93: -0.1066180534 | AY93: -0.05731070512 | AZ93: -0.05608260256 | BA93: 0.1040194213 | BB93: 0.06342565948 | BC93: -0.09143094642 | BD93: 0.170312264 | BE93: -0.003639392874 | BF93: -0.3780336332 | BG93: -0.332306457 | BH93: 0.08606090054 | BI93: 0.04606913676 | BJ93: -0.07153151257 | BK93: 0.07385679509 | BL93: 0.04050281138 | BM93: 0.04132914728 | BN93: -0.03422038092 | BO93: 0.001659527887 | BP93: -0.07491677219 | BQ93: -0.2315376529 | BR93: -0.1082092512 | BS93: 0.1789648127 | BT93: 0.08640154553 | BU93: 0.314400666 | BV93: -0.08676730168 | BW93: -0.1795209035 | BX93: 0.5432065251 | BY93: 0.07251614014 | BZ93: -0.05412296412 | CA93: 0.1198996195 | CB93: -0.4832144291 | CC93: 0.1398467803 | CD93: -0.1490256946 | CE93: 0.1689409079 | CF93: -0.3033653297 | CG93: -0.1181593286 | CH93: -0.2853276895 | CI93: 0.0383793053 | CJ93: -0.1334006357 | CK93: -0.06411063926 | CL93: 0.2049692021 | CM93: -0.226756803 | CN93: -0.1004056205 | CO93: 0.2698871661 | CP93: -0.2713783063 | CQ93: -0.08033003083 | CR93: 0.2225290719 | CS93: 0.2717386574 | CT93: -0.06292780538 | CU93: 0.399979677 | CV93: 0.3248630854 | CW93: -0.002860727128 | CX93: -0.2186803917 | CY93: 0.04948858313 | CZ93: -0.007818877459 | DA93: 0.1338362412 | DB93: -0.04034697192 | DC93: 0.06238659346 | DD93: 0.03202453492 | DE93: -0.01516336963 | DF93: 0.3815758357 | DG93: -0.02383165296 | DH93: -0.009924958033 | DI93: 0.3651996949 | DJ93: 0.08374393266 | DK93: -0.009059736414 | DL93: 0.2364625994 | DM93: -0.2349068956 | DN93: 0.2563772573 | DO93: 0.2169445592 | DP93: 0.01311934182 | DQ93: -0.1384206052 | DR93: -0.08287604383 | DS93: -0.194848831 | DT93: 0.006895116607 | DU93: 0.01535211175 | DV93: 0.1212877964 | DW93: 0.1238204224 | DX93: -0.0918588994 | DY93: -0.1397478294 | DZ93: 0.05468481652 | EA93: 0.05735329933 | EB93: 0.2608261138 | EC93: -0.105175142 | ED93: 0.1375550952 | EE93: 0.03507489144 | EF93: -0.07655575559 | EG93: 0.04989783138 | EH93: 0.01297949692 | EI93: -0.2833726001 | EJ93: 0.3460345081 | EK93: -0.01783690218 | EL93: -0.09519382632 | EM93: -0.05109898221 | EN93: -0.04937351132 | EO93: 0.01575555105 | EP93: -0.05033519515 | EQ93: -0.0335318557 | ER93: 0.1942607511 | ES93: 0.1527486202 | ET93: -0.04802462928 | EU93: 0.3891106995 | EV93: 0.08240445494 | EW93: 0.02708434127 | EX93: 0.2079110694 | EY93: -0.04366558858 | EZ93: 0.008731609607 | FA93: 0.07856398437 | FB93: -0.1867366024 | FC93: -0.0347842735 | FD93: -0.1863193908 | FE93: 0.1770929567 | FF93: -0.07381800017 | FG93: -0.05726062869 | FH93: 0.3462787354 | FJ93: 89 | FK93: 0.4789807531 | FM93: 89 | FN93: -0.1672158701
O94: 89 | P94: -3.231138906 | R94: 89 | S94: -2.752158152 | V94: 89 | W94: -0.9918946427 | Y94: 89 | Z94: 2.662239055 | AB94: 89 | AC94: 2.495023185 | AF94: 89 | AG94: 0.9864813016 | AH94: 0.9864813016 | AJ94: 49 | AK94: -0.1385216945 | AL94: -0.06948587831 | AM94: -0.008297887274 | AN94: -0.09312174333 | AO94: -0.004240516331 | AP94: -0.02881620822 | AQ94: -0.2269812229 | AR94: 0.03934471176 | AS94: -0.004338909194 | AT94: -0.06316556728 | AU94: -0.1103754514 | AV94: 0.0473313483 | AW94: 0.1011870371 | AX94: -0.2824699886 | AY94: -0.06065987657 | AZ94: -0.01669199988 | BA94: -0.0628603007 | BB94: 0.03360487206 | BC94: 0.0645684435 | BD94: -0.1199582444 | BE94: 0.1175521038 | BF94: -0.2115712901 | BG94: 0.03382879198 | BH94: -0.06201726858 | BI94: 0.03750353873 | BJ94: -0.1421694609 | BK94: -0.1471622703 | BL94: -0.01612579382 | BM94: 0.03325093507 | BN94: 0.02070465581 | BO94: -0.1105775303 | BP94: 0.02170469552 | BQ94: -0.08490623175 | BR94: -0.0245257125 | BS94: -0.01661783941 | BT94: 0.07323031944 | BU94: -0.1764531606 | BV94: 0.01727371579 | BW94: -0.01785536869 | BX94: -0.02655642284 | BY94: 0.1010146013 | BZ94: -0.08662302902 | CA94: 0.09048896102 | CB94: -0.2881651412 | CC94: 0.1166517444 | CD94: 0.04573009431 | CE94: -0.2045445812 | CF94: -0.2676814561 | CG94: -0.125550806 | CH94: 0.2285775132 | CI94: 0.01412921053 | CJ94: 0.07415362692 | CK94: -0.008363745905 | CL94: 0.0658962467 | CM94: 0.2072949802 | CN94: -0.04390480684 | CO94: 0.09502644249 | CP94: 0.03527653103 | CQ94: 0.006189372761 | CR94: -0.008109641283 | CS94: 0.1004858105 | CT94: -0.02785231136 | CU94: -0.2082050798 | CV94: 0.1303392511 | CW94: 0.03269902393 | CX94: -0.2019908779 | CY94: 0.01268460246 | CZ94: -0.1319406367 | DA94: -0.17409249 | DB94: -0.1147595443 | DC94: -0.03612058229 | DD94: -0.03640835976 | DE94: 0.1103155498 | DF94: 0.08335493498 | DG94: -0.05231998097 | DH94: -0.04249403652 | DI94: 0.08439675728 | DJ94: 0.06602783473 | DK94: 0.1993501333 | DL94: -0.007361553068 | DM94: -0.1335202321 | DN94: -0.01263258065 | DO94: 0.1261614201 | DP94: -0.06202442837 | DQ94: -0.07485437777 | DR94: -0.0601364175 | DS94: -0.04974017018 | DT94: -0.1835127609 | DU94: -0.03406585751 | DV94: -0.01301497057 | DW94: -0.1070914285 | DX94: 0.07363322618 | DY94: -0.009118472919 | DZ94: -0.02831931723 | EA94: -0.005122320063 | EB94: 0.2352569134 | EC94: 0.01862348329 | ED94: -0.0910050763 | EE94: -0.1486231315 | EF94: 0.05100475965 | EG94: -0.01198631363 | EH94: 0.0111349986 | EI94: 0.1147199521 | EJ94: 0.03241931185 | EK94: 0.04891057932 | EL94: -0.05998281695 | EM94: 0.07473454956 | EN94: -0.08426402372 | EO94: -0.01127114531 | EP94: -0.07080691966 | EQ94: 0.1950254494 | ER94: -0.05882517933 | ES94: -0.07438177472 | ET94: -0.05210674196 | EU94: 0.2722947186 | EV94: 0.01319136212 | EW94: 0.1691575423 | EX94: -0.03700486116 | EY94: 0.001293645602 | EZ94: 0.07288937339 | FA94: 0.08370644502 | FB94: -0.1475847902 | FC94: -0.2769395294 | FD94: 0.2205146018 | FE94: -0.01271900715 | FF94: 0.1131521171 | FG94: -0.01479034544 | FH94: -0.1767913828 | FJ94: 90 | FK94: 0.4604320148 | FM94: 90 | FN94: -0.02226726798
O95: 90 | P95: 1.718996583 | R95: 90 | S95: 2.179428597 | V95: 90 | W95: 0.9747371887 | Y95: 90 | Z95: -0.975294774 | AB95: 90 | AC95: -0.997562042 | AF95: 90 | AG95: -0.7605683736 | AH95: -0.7605683736 | AJ95: 50 | AK95: 0.07135440705 | AL95: 0.02530044241 | AM95: -0.05342397085 | AN95: 0.1033752174 | AO95: -0.1346752745 | AP95: -0.02483205979 | AQ95: -0.2257405368 | AR95: 0.188090304 | AS95: -0.1051141678 | AT95: 0.08723909078 | AU95: 0.2428662717 | AV95: -0.2136245813 | AW95: 0.09007960301 | AX95: 0.1966532192 | AY95: 0.007669597067 | AZ95: 0.02111332672 | BA95: -0.104678992 | BB95: 0.04208754473 | BC95: 0.11875312 | BD95: -0.08256247431 | BE95: 0.1201779924 | BF95: 0.1031432085 | BG95: 0.2361473394 | BH95: 0.08100079804 | BI95: 0.05065514784 | BJ95: -0.07094893189 | BK95: -0.008108944287 | BL95: 0.02835025973 | BM95: 0.01214996583 | BN95: -0.139124754 | BO95: 0.01085126428 | BP95: -0.05511413601 | BQ95: 0.2100749718 | BR95: -0.009909740915 | BS95: -0.3070671464 | BT95: 0.1348285467 | BU95: -0.04766679799 | BV95: -0.09405532691 | BW95: 0.08229898501 | BX95: -0.261835735 | BY95: -0.006875285658 | BZ95: 0.04835690283 | CA95: -0.04377053162 | CB95: 0.3481098181 | CC95: -0.1701874909 | CD95: -0.3119960325 | CE95: -0.1449863146 | CF95: 0.1003043018 | CG95: 0.06727590879 | CH95: 0.1600556195 | CI95: -0.1188965611 | CJ95: 0.2155162467 | CK95: 0.0332470477 | CL95: -0.1293618948 | CM95: 0.08458733608 | CN95: -0.1756803114 | CO95: -0.1858777474 | CP95: 0.2069583219 | CQ95: 0.09964988424 | CR95: 0.1454872069 | CS95: -0.3801050773 | CT95: 0.03943069049 | CU95: -0.2090740816 | CV95: -0.2479262199 | CW95: -0.005359417451 | CX95: 0.1652262758 | CY95: -0.02987576888 | CZ95: 0.1075145202 | DA95: -0.04282933878 | DB95: 0.03954638543 | DC95: 0.1243918942 | DD95: -0.03306694674 | DE95: -0.1107110174 | DF95: -0.2500083548 | DG95: 0.02540761297 | DH95: 0.01940429228 | DI95: -0.0721377466 | DJ95: -0.0690411985 | DK95: 0.1371500199 | DL95: -0.1419096746 | DM95: 0.05060856876 | DN95: -0.1057800098 | DO95: -0.02824128235 | DP95: -0.03603467189 | DQ95: -0.2490795384 | DR95: -0.07028899084 | DS95: 0.2569564789 | DT95: 0.06853182849 | DU95: 0.08592755524 | DV95: -0.02253355972 | DW95: -0.2383883489 | DX95: -0.1360214839 | DY95: -0.06962934677 | DZ95: -0.07811211117 | EA95: 0.1261387267 | EB95: -0.3236883125 | EC95: -0.0684757167 | ED95: -0.01123738533 | EE95: -0.09290296478 | EF95: 0.1221085132 | EG95: -0.03115827575 | EH95: -0.1011951499 | EI95: 0.1089161108 | EJ95: -0.1297757574 | EK95: -0.02993442981 | EL95: 0.01270838866 | EM95: 0.006369879174 | EN95: 0.1877719581 | EO95: 0.0128147919 | EP95: -0.008817091212 | EQ95: 0.01825635645 | ER95: -0.1628420518 | ES95: 0.04297103559 | ET95: -0.003131781812 | EU95: -0.4000956299 | EV95: 0.01632469723 | EW95: 0.07670652231 | EX95: 0.241281891 | EY95: -0.2634157151 | EZ95: 0.03545974632 | FA95: -0.1157698794 | FB95: 0.02371175053 | FC95: 0.3373294483 | FD95: 0.2825069575 | FE95: -0.3049666152 | FF95: -0.0984545552 | FG95: 0.2522017117 | FH95: 0.001433993995 | FJ95: 91 | FK95: 1.052293819 | FM95: 91 | FN95: -0.592186165
O96: 91 | P96: -0.9210214753 | R96: 91 | S96: 0.1312723437 | V96: 91 | W96: 0.1305234582 | Y96: 91 | Z96: 1.287063936 | AB96: 91 | AC96: 0.6948777706 | AF96: 91 | AG96: 0.6011064277 | AH96: 0.6011064277 | AJ96: 51 | AK96: -0.1559312626 | AL96: 0.00222032214 | AM96: 0.07405025422 | AN96: 0.02358702331 | AO96: -0.01682350588 | AP96: 0.002045140614 | AQ96: -0.1649566693 | AR96: 0.1105735643 | AS96: 0.01069181493 | AT96: -0.05399087648 | AU96: 0.2378247725 | AV96: 0.1410804405 | AW96: -0.02738970432 | AX96: -0.6323343998 | AY96: -0.1107354931 | AZ96: -0.1906300543 | BA96: -0.0418576301 | BB96: -0.03981468469 | BC96: 0.02366813619 | BD96: -0.06762145709 | BE96: -0.03374987378 | BF96: 0.0216122419 | BG96: -0.04044389553 | BH96: 0.03678644159 | BI96: -0.03546510299 | BJ96: 0.05836424592 | BK96: 0.01867394363 | BL96: 0.001355452921 | BM96: 0.3011135251 | BN96: -0.07288369268 | BO96: -0.06063078199 | BP96: 0.02042491037 | BQ96: -0.07490683794 | BR96: -0.02546859285 | BS96: 0.2881616487 | BT96: -0.01943924822 | BU96: -0.2409371551 | BV96: 0.01569233492 | BW96: -0.0485100445 | BX96: -0.01585835726 | BY96: 0.04192217488 | BZ96: 0.0904782863 | CA96: 0.002355473933 | CB96: 0.1023002539 | CC96: 0.1312412916 | CD96: 0.006491143785 | CE96: 0.166645203 | CF96: -0.1254929138 | CG96: 0.00358917202 | CH96: -0.09035516282 | CI96: -0.1858814083 | CJ96: 0.05257545823 | CK96: 0.2842835909 | CL96: -0.06539631725 | CM96: 0.2108053774 | CN96: 0.05655139587 | CO96: -0.1866254552 | CP96: 0.0002090517983 | CQ96: 0.0006573073757 | CR96: -0.002879660565 | CS96: 0.2590583919 | CT96: -0.02239751596 | CU96: -0.02469848399 | CV96: 0.08550491951 | CW96: 0.04302991755 | CX96: 0.03551307577 | CY96: -0.01877662634 | CZ96: -0.03678089601 | DA96: 0.0165557416 | DB96: -0.1267290642 | DC96: 0.07183200274 | DD96: -0.01879520337 | DE96: 0.260827539 | DF96: 0.1490184317 | DG96: -0.003095199395 | DH96: 0.05107930697 | DI96: 0.2013077068 | DJ96: -0.1001565215 | DK96: -0.1080760195 | DL96: 0.08149739416 | DM96: 0.1443477889 | DN96: -0.03142679703 | DO96: 0.1288071107 | DP96: 0.01054176772 | DQ96: 0.0499332741 | DR96: 0.01917673219 | DS96: -0.06817328398 | DT96: -0.06989827183 | DU96: -0.02865241983 | DV96: 0.002396964722 | DW96: -0.07265105307 | DX96: 0.06491009236 | DY96: 0.02840133468 | DZ96: 0.006902737488 | EA96: -0.08561375663 | EB96: 0.1415221347 | EC96: -0.06314213271 | ED96: 0.001730843911 | EE96: -0.04170212385 | EF96: -0.0780629617 | EG96: 0.04383634885 | EH96: 0.02041520863 | EI96: 0.004132052661 | EJ96: -0.06657346047 | EK96: 0.07039975959 | EL96: -0.03119704793 | EM96: -0.06936526305 | EN96: 0.05114007699 | EO96: -0.07356285192 | EP96: -0.09595499643 | EQ96: 0.0131343803 | ER96: -0.2525283422 | ES96: -0.01362517301 | ET96: -0.02953151954 | EU96: -0.0554650285 | EV96: -0.05862127048 | EW96: -0.08994114124 | EX96: -0.1257727332 | EY96: 0.07111590703 | EZ96: 0.03408763109 | FA96: 0.4048546764 | FB96: 0.1012764884 | FC96: -0.5664170509 | FD96: -0.02465178813 | FE96: 0.6784163394 | FF96: 0.001825469719 | FG96: 0.04027066012 | FH96: -0.05592061508 | FJ96: 92 | FK96: 1.039821803 | FM96: 92 | FN96: 0.02402908851
O97: 92 | P97: -1.477105713 | R97: 92 | S97: -0.4372839093 | V97: 92 | W97: -0.4113905526 | Y97: 92 | Z97: 0.3626171403 | AB97: 92 | AC97: 0.3866462288 | AF97: 92 | AG97: 0.3684653754 | AH97: 0.3684653754 | AJ97: 52 | AK97: -0.1035860431 | AL97: 0.02466462084 | AM97: 0.03805477811 | AN97: -0.01142402846 | AO97: -0.04570608598 | AP97: -0.00283812511 | AQ97: -0.01871192854 | AR97: -0.01639736292 | AS97: 0.0366843403 | AT97: -0.06128892634 | AU97: 0.2391822252 | AV97: 0.02224059221 | AW97: -0.004186980331 | AX97: -0.1511977581 | AY97: -0.004114191767 | AZ97: 0.003615686405 | BA97: -0.01372817901 | BB97: 0.1300045952 | BC97: -0.017343875 | BD97: 0.02845805903 | BE97: 0.009462228159 | BF97: 0.3803804088 | BG97: 0.07330819294 | BH97: 0.07432259247 | BI97: 0.02250954328 | BJ97: 0.05323901693 | BK97: -0.03583655584 | BL97: -0.07865366734 | BM97: 0.1025059476 | BN97: 0.0889427052 | BO97: -0.03038582043 | BP97: 0.01905783613 | BQ97: 0.1877808398 | BR97: -0.0005450378562 | BS97: 0.1178321628 | BT97: 0.01475801223 | BU97: -0.3173041844 | BV97: 0.108732374 | BW97: -0.07989079042 | BX97: -0.1122012044 | BY97: -0.03425896129 | BZ97: 0.01746836211 | CA97: -0.01306311795 | CB97: -0.06884038703 | CC97: 0.0643251662 | CD97: 0.002502449868 | CE97: -0.0940447972 | CF97: -0.1797953749 | CG97: 0.02133330188 | CH97: 0.2011693598 | CI97: -0.1192371245 | CJ97: 0.05593630356 | CK97: 0.07195391707 | CL97: 0.1316034493 | CM97: 0.3841473637 | CN97: 0.04511891682 | CO97: -0.04350595083 | CP97: 0.001358142797 | CQ97: 0.001473734479 | CR97: 0.1332684174 | CS97: 0.34833206 | CT97: -0.04062788416 | CU97: -0.2416225064 | CV97: 0.1960774281 | CW97: 0.000444301383 | CX97: -0.02216658399 | CY97: 0.08013333389 | CZ97: 0.004657676991 | DA97: 0.02574730684 | DB97: -0.02285791302 | DC97: -0.05542847912 | DD97: -0.04648210621 | DE97: 0.09654802143 | DF97: -0.1067411672 | DG97: -0.02684015303 | DH97: -0.05508209319 | DI97: 0.03040884542 | DJ97: -0.03478483639 | DK97: 0.108831488 | DL97: -0.1131347064 | DM97: 0.08244580838 | DN97: -0.105333929 | DO97: 0.1905217457 | DP97: 0.05091886284 | DQ97: -0.2295317092 | DR97: -0.01571637494 | DS97: -0.2841104051 | DT97: -0.2459450564 | DU97: -0.003856781063 | DV97: 0.1284098836 | DW97: -0.08714037651 | DX97: 0.07212003387 | DY97: -0.03204183041 | DZ97: 0.02853560863 | EA97: 0.07125276381 | EB97: 0.2518974022 | EC97: -0.05284915897 | ED97: 0.06928479563 | EE97: -0.1051560697 | EF97: -0.03742910727 | EG97: 0.001618107481 | EH97: -0.04622453801 | EI97: 0.2487117785 | EJ97: -0.02306287964 | EK97: -0.05519330909 | EL97: 0.08556356453 | EM97: -0.06172247785 | EN97: 0.08599529129 | EO97: 0.0555254021 | EP97: -0.1046853501 | EQ97: 0.0155315448 | ER97: -0.6601264126 | ES97: 0.02602799993 | ET97: -0.01271267525 | EU97: 0.110284612 | EV97: 0.03397181589 | EW97: 0.04400161354 | EX97: -0.1304041895 | EY97: 0.008483260635 | EZ97: 0.02981579418 | FA97: 0.1501135404 | FB97: -0.08217312279 | FC97: -0.2337440062 | FD97: 0.2086597476 | FE97: 0.09744581454 | FF97: 0.1526916395 | FG97: -0.01613246033 | FH97: -0.001776353803 | FJ97: 93 | FK97: -0.0361007314 | FM97: 93 | FN97: 0.124712039
O98: 93 | P98: 2.957329779 | R98: 93 | S98: 2.921229047 | V98: 93 | W98: 0.9942133886 | Y98: 93 | Z98: 0.1319555474 | AB98: 93 | AC98: 0.2566675864 | AF98: 93 | AG98: 0.2511759816 | AH98: 0.2511759816 | AJ98: 53 | AK98: 0.1517785287 | AL98: -0.06484597798 | AM98: 0.02886253013 | AN98: 0.01469744312 | AO98: -0.1789741688 | AP98: 0.06422229905 | AQ98: 0.06493868871 | AR98: -0.05036954077 | AS98: -0.01360596263 | AT98: -0.03810963922 | AU98: -0.2319359242 | AV98: 0.2293264977 | AW98: 0.0619641101 | AX98: -0.07806737289 | AY98: -0.2035953021 | AZ98: 0.01972094655 | BA98: -0.1023792517 | BB98: 0.0004415225996 | BC98: 0.03915117356 | BD98: -0.09629960718 | BE98: -0.007271018616 | BF98: 0.02235162499 | BG98: -0.1577087456 | BH98: 0.1735579041 | BI98: -0.1314257561 | BJ98: -0.06336132082 | BK98: -0.1194272448 | BL98: -0.08246121476 | BM98: -0.1854752923 | BN98: -0.07885584207 | BO98: -0.00447047465 | BP98: -0.07045642448 | BQ98: -0.03259953845 | BR98: 0.01195790546 | BS98: 0.1242439089 | BT98: -0.08352445609 | BU98: 0.1889859119 | BV98: 0.006346469572 | BW98: -0.1492118118 | BX98: -0.05770274228 | BY98: 0.02562304322 | BZ98: -0.08583203452 | CA98: -0.0871979749 | CB98: -0.03364390536 | CC98: 0.213629597 | CD98: 0.01641497579 | CE98: 0.06907724675 | CF98: -0.3100716673 | CG98: 0.02865563825 | CH98: -0.09668737654 | CI98: 0.2447171777 | CJ98: -0.0002006550841 | CK98: -0.3267416286 | CL98: 0.03835516421 | CM98: -0.0132876855 | CN98: 0.09025331341 | CO98: -0.1951342156 | CP98: -0.1255769134 | CQ98: -0.01520966316 | CR98: 0.06319912274 | CS98: 0.06713370458 | CT98: -0.004568960819 | CU98: 0.1193161062 | CV98: 0.04766568002 | CW98: -0.06872319265 | CX98: -0.09178899209 | CY98: -0.07642065989 | CZ98: -0.07026994103 | DA98: -0.08183455898 | DB98: -0.00583953245 | DC98: -0.05043427627 | DD98: 0.03373672359 | DE98: 0.09698681215 | DF98: 0.03903973802 | DG98: 0.08188590957 | DH98: 0.08588103661 | DI98: -0.1986774492 | DJ98: 0.181364252 | DK98: 0.08620276068 | DL98: -0.2758492361 | DM98: -0.01513956983 | DN98: -0.1086182017 | DO98: 0.06008817059 | DP98: -0.01527941849 | DQ98: -0.2386981819 | DR98: 0.1081348233 | DS98: 0.08195461165 | DT98: -0.03092075507 | DU98: 0.01801754252 | DV98: 0.02243867811 | DW98: 0.3861531483 | DX98: -0.1218383902 | DY98: -0.0009050127982 | DZ98: -0.07292510415 | EA98: -0.08174617747 | EB98: 0.1067687004 | EC98: -0.01380704807 | ED98: -0.05185415416 | EE98: -0.2304159002 | EF98: 0.126693034 | EG98: -0.0257923272 | EH98: -0.05636284994 | EI98: -0.07307156309 | EJ98: -0.2032170675 | EK98: 0.05697652523 | EL98: 0.05270183037 | EM98: 0.03410737614 | EN98: 0.1755556259 | EO98: -0.04588015028 | EP98: 0.06771509752 | EQ98: -0.1143470843 | ER98: -0.04628231265 | ES98: 0.02632037811 | ET98: 0.1056743423 | EU98: 0.2847023173 | EV98: -0.1066383543 | EW98: -0.02375371487 | EX98: 0.09834532946 | EY98: 0.02731331994 | EZ98: 0.1438215221 | FA98: 0.02281320764 | FB98: -0.1374398001 | FC98: -0.2543652036 | FD98: 0.04039935213 | FE98: -0.1542750628 | FF98: 0.2421720759 | FG98: 0.1130164563 | FH98: 0.06114720655 | FJ98: 94 | FK98: 0.7802406191 | FM98: 94 | FN98: -0.02443922287
O99: 94 | P99: 1.542301299 | R99: 94 | S99: 2.322541918 | V99: 94 | W99: 0.9809654496 | Y99: 94 | Z99: 1.990171446 | AB99: 94 | AC99: 1.965732223 | AF99: 94 | AG99: 0.9615248346 | AH99: 0.9615248346 | AJ99: 54 | AK99: -0.01079651906 | AL99: 0.04542148224 | AM99: -0.03014507069 | AN99: 0.09738940263 | AO99: -0.008070696437 | AP99: 0.05872075751 | AQ99: -0.02295653968 | AR99: 0.1631266275 | AS99: -0.015392578 | AT99: 0.06241596074 | AU99: 0.1191650129 | AV99: 0.2935371992 | AW99: -0.02741216527 | AX99: -0.2602993862 | AY99: -0.05853622896 | AZ99: 0.03422759247 | BA99: 0.03027997452 | BB99: -0.03648303075 | BC99: 0.005425695519 | BD99: -0.07223749444 | BE99: -0.09514922018 | BF99: -0.08694976436 | BG99: -0.06027732607 | BH99: -0.2368568699 | BI99: -0.005484388345 | BJ99: -0.03464261491 | BK99: 0.06367747551 | BL99: -0.0225631725 | BM99: 0.02414349384 | BN99: 0.01858581573 | BO99: 0.04961199758 | BP99: 0.08324930522 | BQ99: -0.04935303762 | BR99: -0.04201687904 | BS99: 0.2706716928 | BT99: -0.06693625098 | BU99: -0.02646160923 | BV99: 0.03212391741 | BW99: -0.008415542973 | BX99: 0.1013651473 | BY99: 0.04587441461 | BZ99: -0.05373015657 | CA99: 0.03183201933 | CB99: 0.1370961323 | CC99: 0.1463368114 | CD99: 0.02289849603 | CE99: 0.03612047332 | CF99: -0.3002009634 | CG99: 0.001262640952 | CH99: -0.1818972631 | CI99: 0.06570522667 | CJ99: 0.09649195477 | CK99: -0.1105396425 | CL99: 0.01200275619 | CM99: -0.1199385122 | CN99: -0.03769787308 | CO99: 0.204142044 | CP99: -0.07861160872 | CQ99: -0.01208567011 | CR99: 0.01555841211 | CS99: 0.3505874584 | CT99: -0.02669930021 | CU99: 0.08238420732 | CV99: 0.1526031561 | CW99: -0.01268591329 | CX99: -0.09643776363 | CY99: -0.00605189058 | CZ99: 0.05499539037 | DA99: -0.04274341855 | DB99: -0.07968566227 | DC99: -0.05273785555 | DD99: -0.02282123557 | DE99: 0.1143220366 | DF99: 0.2704588717 | DG99: 0.0003267089306 | DH99: 0.03451879622 | DI99: -0.07161213888 | DJ99: 0.07065512695 | DK99: 0.05059646958 | DL99: -0.1206194403 | DM99: -0.2254563509 | DN99: -0.01106434617 | DO99: -0.05008990771 | DP99: 0.0132533938 | DQ99: 0.1471061194 | DR99: 0.02291637059 | DS99: 0.01313001186 | DT99: 0.24610428 | DU99: 0.03740033051 | DV99: -0.06173836433 | DW99: 0.2174708916 | DX99: -0.03344434436 | DY99: 0.006787248562 | DZ99: -0.03738013047 | EA99: -0.0373099751 | EB99: 0.2427113421 | EC99: 0.06417887276 | ED99: 0.01744331827 | EE99: 0.1945488694 | EF99: -0.06056964184 | EG99: -0.03974782625 | EH99: 0.06861220229 | EI99: -0.02157216238 | EJ99: 0.06517049424 | EK99: -0.144417132 | EL99: -0.01740266169 | EM99: -0.03208976341 | EN99: -0.1036628278 | EO99: -0.05410662546 | EP99: 0.04238975421 | EQ99: -0.1189791373 | ER99: -0.1168342467 | ES99: 0.01874291647 | ET99: -0.126158487 | EU99: 0.2870270647 | EV99: 0.01602083222 | EW99: -0.1119624858 | EX99: -0.2539658146 | EY99: 0.04009868734 | EZ99: -0.0147051981 | FA99: 0.1583285966 | FB99: 0.04679443945 | FC99: -0.514216303 | FD99: -0.3031441175 | FE99: 0.2152933696 | FF99: -0.2649199035 | FG99: 0.0402267193 | FH99: 0.0553706771 | FJ99: 95 | FK99: 1.335601902 | FM99: 95 | FN99: -0.1023649247
